Workbook

Sheet ACS_Notes (hidden)
A1: NOTES:
A4: Data are based on a sample and are subject to sampling variability. The degree of uncertainty for an estimate arising from sampling variability is represented through the use of a margin of error. The value shown here is the 90 percent margin of error. The margin of error can be interpreted roughly as providing a 90 percent probability that the interval defined by the estimate minus the margin of error and the estimate plus the margin of error (the lower and upper confidence bounds) contains the true value. In addition to sampling variability, the ACS estimates are subject to nonsampling error (for a discussion of nonsampling variability, see Accuracy of the Data). The effect of nonsampling error is not represented in these tables.
A8: In addition to sampling variability, the ACS estimates are subject to nonsampling error (for a discussion of nonsampling variability, see Accuracy of the Data. The link is located at the end of this worksheet.). The effect of nonsampling error is not represented in these tables.
A11: While the 2005-2009 American Community Survey (ACS) data generally reflect the November 2008 Office of Management and Budget (OMB) definitions of metropolitan and micropolitan statistical areas; in certain instances the names, codes, and boundaries of the principal cities shown in ACS tables may differ from the OMB definitions due to differences in the effective dates of the geographic entities.
A15: Estimates of urban and rural population, housing units, and characteristics reflect boundaries of urban areas defined based on Census 2000 data. Boundaries for urban areas have not been updated since Census 2000. As a result, data for urban and rural areas from the ACS do not necessarily reflect the results of ongoing urbanization.
A17: Explanation of Symbols:
A19: 1. An '**' entry in the margin of error column indicates that either no sample observations or too few sample observations were available to compute a standard error and thus the margin of error. A statistical test is not appropriate.
A21: 2. An '-' entry in the estimate column indicates that either no sample observations or too few sample observations were available to compute an estimate, or a ratio of medians cannot be calculated because one or both of the median estimates falls in the lowest interval or upper interval of an open-ended distribution.
A23: 3. An '-' following a median estimate means the median falls in the lowest interval of an open-ended distribution.
A24: 4. An '+' following a median estimate means the median falls in the upper interval of an open-ended distribution.
A25: 5. An '***' entry in the margin of error column indicates that the median falls in the lowest interval or upper interval of an open-ended distribution. A statistical test is not appropriate.
A26: 6. An '*****' entry in the margin of error column indicates that the estimate is controlled. A statistical test for sampling variability is not appropriate.
A28: Accuracy of Data

Sheet StartInstruction
A1: Demographic Profiles for Municipalities in Belknap County
A3: To view or print a Demographic Profile follow the steps below
A6: Step 1. | C6: Select the municipality you wish to
C7: Profile from the drop down box below.
A12: Step 2. | C12: Click one of the profile topic buttons below to review or print
C13: the information for the selected geography. | E13: .
C14: Don't forget to adjust the axis on charts as necessary.
O28: Updated: | Q28: 2023-12-07
O30: Next Update: | Q30: Spring 2024 Annual Employment Date

Sheet ACS_Table_B08303 (hidden)
B1: B08303: TRAVEL TIME TO WORK
B2: Universe: Workers 16 years and over who did not work at home
B3: Data Set: 2006-2010 American Community Survey 3-Year Estimates
E5: Alton | G5: Barnstead | I5: Belmont | K5: Center Harbor | M5: Gilford | O5: Gilmanton | Q5: Laconia | S5: Meredith | U5: New Hampton | W5: Sanbornton | Y5: Tilton
C6: Estimates | D6: Margin Of Error | E6: Estimates | F6: Margin Of Error | G6: Estimates | H6: Margin Of Error | I6: Estimates | J6: Margin Of Error | K6: Estimates | L6: Margin Of Error | M6: Estimates | N6: Margin Of Error | O6: Estimates | P6: Margin Of Error | Q6: Estimates | R6: Margin Of Error | S6: Estimates | T6: Margin Of Error | U6: Estimates | V6: Margin Of Error | W6: Estimates | X6: Margin Of Error
B7: Population Older than 16 not working at hom | C7: 2706 | D7: 398 | E7: 2201 | F7: 222 | G7: 3408 | H7: 355 | I7: 390 | J7: 114 | K7: 3157 | L7: 452 | M7: 2178 | N7: 195 | O7: 8008 | P7: 473 | Q7: 2370 | R7: 316 | S7: 1161 | T7: 152 | U7: 1413 | V7: 216 | W7: 1931 | X7: 227
B8: Less than 5 minutes | C8: 123 | D8: 131 | E8: 104 | F8: 84 | G8: 49 | H8: 47 | I8: 25 | J8: 23 | K8: 35 | L8: 40 | M8: 68 | N8: 58 | O8: 738 | P8: 243 | Q8: 201 | R8: 111 | S8: 31 | T8: 29 | U8: 36 | V8: 37 | W8: 164 | X8: 136
B9: 5 to 9 minutes | C9: 186 | D9: 124 | E9: 42 | F9: 40 | G9: 466 | H9: 180 | I9: 87 | J9: 54 | K9: 764 | L9: 256 | M9: 32 | N9: 39 | O9: 1796 | P9: 332 | Q9: 277 | R9: 122 | S9: 52 | T9: 40 | U9: 79 | V9: 72 | W9: 195 | X9: 122
B10: 10 to 14 minutes | C10: 296 | D10: 163 | E10: 276 | F10: 135 | G10: 655 | H10: 203 | I10: 56 | J10: 31 | K10: 691 | L10: 228 | M10: 47 | N10: 38 | O10: 1803 | P10: 396 | Q10: 197 | R10: 107 | S10: 71 | T10: 49 | U10: 159 | V10: 89 | W10: 223 | X10: 105
B11: 15 to 19 minutes | C11: 118 | D11: 86 | E11: 152 | F11: 73 | G11: 507 | H11: 212 | I11: 11 | J11: 11 | K11: 625 | L11: 222 | M11: 182 | N11: 110 | O11: 1105 | P11: 247 | Q11: 400 | R11: 116 | S11: 112 | T11: 47 | U11: 392 | V11: 254 | W11: 144 | X11: 90
B12: 20 to 24 minutes | C12: 288 | D12: 143 | E12: 154 | F12: 96 | G12: 268 | H12: 125 | I12: 63 | J12: 37 | K12: 119 | L12: 76 | M12: 279 | N12: 111 | O12: 637 | P12: 255 | Q12: 375 | R12: 167 | S12: 253 | T12: 88 | U12: 228 | V12: 104 | W12: 309 | X12: 132
B13: 25 to 29 minutes | C13: 76 | D13: 67 | E13: 59 | F13: 37 | G13: 157 | H13: 98 | I13: 19 | J13: 14 | K13: 85 | L13: 67 | M13: 363 | N13: 121 | O13: 175 | P13: 105 | Q13: 70 | R13: 70 | S13: 77 | T13: 45 | U13: 56 | V13: 47 | W13: 62 | X13: 43
B14: 30 to 34 minutes | C14: 234 | D14: 139 | E14: 519 | F14: 174 | G14: 519 | H14: 228 | I14: 53 | J14: 39 | K14: 86 | L14: 87 | M14: 398 | N14: 189 | O14: 691 | P14: 269 | Q14: 258 | R14: 119 | S14: 184 | T14: 131 | U14: 69 | V14: 54 | W14: 315 | X14: 121
B15: 35 to 39 minutes | C15: 259 | D15: 179 | E15: 163 | F15: 82 | G15: 25 | H15: 28 | I15: 6 | J15: 10 | K15: 51 | L15: 40 | M15: 118 | N15: 72 | O15: 175 | P15: 119 | Q15: 71 | R15: 52 | S15: 20 | T15: 19 | U15: 8 | V15: 13 | W15: 0 | X15: 12
B16: 40 to 44 minutes | C16: 116 | D16: 72 | E16: 274 | F16: 107 | G16: 240 | H16: 142 | I16: 29 | J16: 35 | K16: 253 | L16: 146 | M16: 213 | N16: 95 | O16: 237 | P16: 100 | Q16: 0 | R16: 17 | S16: 19 | T16: 27 | U16: 94 | V16: 75 | W16: 64 | X16: 61
B17: 45 to 59 minutes | C17: 579 | D17: 194 | E17: 217 | F17: 92 | G17: 172 | H17: 103 | I17: 25 | J17: 41 | K17: 203 | L17: 96 | M17: 306 | N17: 140 | O17: 291 | P17: 135 | Q17: 229 | R17: 137 | S17: 164 | T17: 61 | U17: 113 | V17: 65 | W17: 233 | X17: 149
B18: 60 to 89 minutes | C18: 358 | D18: 223 | E18: 190 | F18: 79 | G18: 250 | H18: 132 | I18: 11 | J18: 12 | K18: 174 | L18: 86 | M18: 136 | N18: 85 | O18: 231 | P18: 118 | Q18: 178 | R18: 105 | S18: 56 | T18: 33 | U18: 58 | V18: 58 | W18: 122 | X18: 106
B19: 90 or more minutes | C19: 73 | D19: 94 | E19: 51 | F19: 41 | G19: 100 | H19: 75 | I19: 5 | J19: 7 | K19: 71 | L19: 61 | M19: 36 | N19: 40 | O19: 129 | P19: 83 | Q19: 114 | R19: 81 | S19: 122 | T19: 69 | U19: 121 | V19: 81 | W19: 100 | X19: 64

Sheet PopulationCharacteristics (hidden)
B2: =CntyDataLink!A35 -> Laconia
G3: Land Area: | I3: =((CntyDataLink!F35*10.764)/43560)/640 -> 20.27915299 | N3: Water Area: | O3: =((CntyDataLink!G35*10.764)/43560)/640 -> 6.300699122
B4: POPULATION CHARACTERISTICS
B19: Population | C19: ="Source: US Census; Office of Planning and Development, NH BEA; "& L20&", "&P20&", and "&S20&" American Community Survey Table B01001" -> Source: US Census; Office of Planning and Development, NH BEA; 2008-2012, 2013-2017, and 2018-2022 American Community Survey Table B01001 | N19: Population by Age | P19: ="Source: "& L20&", "&P20&", and "&S20&" American Community Survey Tables B01001 and B01002" -> Source: 2008-2012, 2013-2017, and 2018-2022 American Community Survey Tables B01001 and B01002
L20: 2008-2012 | P20: 2013-2017 | S20: 2018-2022
C21: 1990 | D21: 2000 | E21: 2010 | F21: 2020 | G21: 2018-2022 | H21: 2025 | I21: 2030 | L21: Estimate | N21: Margin of Error | O21: Percent of Population | P21: Estimate | Q21: Margin of Error | R21: Percent of Population | S21: Estimate | T21: Margin of Error | U21: Percent of Population | V21: Percent Change | W21: Statistically Significant Change
C22: =CntyDataLink!$F$20 -> 15743 | D22: =CntyDataLink!$G$20 -> 16411 | E22: =CntyDataLink!$H$20 -> 15951 | F22: =CntyDataLink!$I$20 -> 16871 | G22: =CntyDataLink!$B$132 -> 3047 | H22: =CntyDataLink!$J$20 -> 17577 | I22: =CntyDataLink!$K$20 -> 18177 | K22: Under 15 yrs. | L22: =CntyDataLinkPrior10YearEstimate!$D$132 -> 505 | N22: =CntyDataLinkPrior10YearEstimate!$E$132 -> 125.6582667 | O22: =L22/SUM($L$22:$L$29) -> 0.1707234618 | P22: =CntyDataLinkPrior5YearEstimates!$D$132 -> 456 | Q22: =CntyDataLinkPrior5YearEstimates!$E$132 -> 83.25262759 | R22: =P22/SUM($P$22:$P$29) -> 0.1533804238 | S22: =CntyDataLink!$D$132 -> 485 | T22: =CntyDataLink!$E$132 -> 170.9122582 | U22: =S22/SUM($S$22:$S$29) -> 0.159172957 | V22: =(S22-P22)/P22 -> 0.06359649123 | W22: =StatisticallySignificantCalcs!$A3 -> Y
K23: 15 to 24 yrs. | L23: =CntyDataLinkPrior10YearEstimate!$F$132 -> 214 | N23: =CntyDataLinkPrior10YearEstimate!$G$132 -> 59.88321969 | O23: =L23/SUM($L$22:$L$29) -> 0.07234617985 | P23: =CntyDataLinkPrior5YearEstimates!$F$132 -> 285 | Q23: =CntyDataLinkPrior5YearEstimates!$G$132 -> 76.81145748 | R23: 0.09586276488 | S23: =CntyDataLink!$F$132 -> 199 | T23: =CntyDataLink!$G$132 -> 118.0127112 | U23: =S23/SUM($S$22:$S$29) -> 0.06531014112 | V23: =(S23-P23)/P23 -> -0.301754386 | W23: =StatisticallySignificantCalcs!$A4 -> Y
B24: Percent Change | K24: 25 to 34 yrs. | L24: =CntyDataLinkPrior10YearEstimate!$H$132 -> 269 | N24: =CntyDataLinkPrior10YearEstimate!$I$132 -> 76.88302804 | O24: =L24/SUM($L$22:$L$29) -> 0.09093982421 | P24: =CntyDataLinkPrior5YearEstimates!$H$132 -> 228 | Q24: =CntyDataLinkPrior5YearEstimates!$I$132 -> 62.15303693 | R24: 0.07669021191 | S24: =CntyDataLink!$H$132 -> 480 | T24: =CntyDataLink!$I$132 -> 169.4432058 | U24: 0.1575319987 | V24: 1.105263158 | W24: =StatisticallySignificantCalcs!$A5 -> Y
D25: =C21&"-2020" -> 1990-2020 | E25: =D21&"-2020" -> 2000-2020 | F25: =E21&"-2020" -> 2010-2020 | G25: =F21&"-2030" -> 2020-2030 | H25: =G21&"-"&H21 -> 2018-2022-2025 | I25: =H21&"-"&I21 -> 2025-2030 | K25: 35 to 44 yrs. | L25: =CntyDataLinkPrior10YearEstimate!$J$132 -> 358 | N25: =CntyDataLinkPrior10YearEstimate!$K$132 -> 83.18653737 | O25: 0.1210277214 | P25: =CntyDataLinkPrior5YearEstimates!$J$132 -> 305 | Q25: =CntyDataLinkPrior5YearEstimates!$K$132 -> 56.57738064 | R25: 0.1025899765 | S25: =CntyDataLink!$J$132 -> 291 | T25: =CntyDataLink!$K$132 -> 127.3813173 | U25: 0.0955037742 | V25: -0.04590163934 | W25: =StatisticallySignificantCalcs!$A6 -> Y
D26: =(D22-C22)/C22 -> 0.04243155688 | E26: -0.02802997989 | F26: 0.05767663469 | G26: -0.8193942268 | H26: 4.768624877 | I26: 0.03413551801 | K26: 45 to 54 yrs. | L26: =CntyDataLinkPrior10YearEstimate!$L$132 -> 586 | N26: =CntyDataLinkPrior10YearEstimate!$M$132 -> 111.919614 | O26: 0.1981068289 | P26: =CntyDataLinkPrior5YearEstimates!$L$132 -> 455 | Q26: =CntyDataLinkPrior5YearEstimates!$M$132 -> 84.17838202 | R26: 0.1530440632 | S26: =CntyDataLink!$L$132 -> 343 | T26: =CntyDataLink!$M$132 -> 152.3056138 | U26: 0.1125697407 | V26: -0.2461538462 | W26: =StatisticallySignificantCalcs!$A7 -> Y
K27: 55 to 64 yrs. | L27: =CntyDataLinkPrior10YearEstimate!$N$132 -> 592 | N27: =CntyDataLinkPrior10YearEstimate!$O$132 -> 110.8196733 | O27: 0.2001352265 | P27: =CntyDataLinkPrior5YearEstimates!$N$132 -> 714 | Q27: =CntyDataLinkPrior5YearEstimates!$O$132 -> 110.4807676 | R27: 0.2401614531 | S27: =CntyDataLink!$N$132 -> 585 | T27: =CntyDataLink!$O$132 -> 153.3720965 | U27: 0.1919921234 | V27: -0.1806722689 | W27: =StatisticallySignificantCalcs!$A8 -> Y
K28: 65 to 74 yrs. | L28: =CntyDataLinkPrior10YearEstimate!$P$132 -> 230 | N28: =CntyDataLinkPrior10YearEstimate!$Q$132 -> 66.49812027 | O28: 0.07775524003 | P28: =CntyDataLinkPrior5YearEstimates!$P$132 -> 344 | Q28: =CntyDataLinkPrior5YearEstimates!$Q$132 -> 59.21992908 | R28: 0.115708039 | S28: =CntyDataLink!$P$132 -> 467 | T28: =CntyDataLink!$Q$132 -> 135.9669077 | U28: 0.1532655071 | V28: 0.3575581395 | W28: =StatisticallySignificantCalcs!$A9 -> Y
K29: Over 74 yrs. | L29: =CntyDataLinkPrior10YearEstimate!$R$132 -> 204 | N29: =CntyDataLinkPrior10YearEstimate!$S$132 -> 66.1135387 | O29: 0.06896551724 | P29: =CntyDataLinkPrior5YearEstimates!$R$132 -> 186 | Q29: =CntyDataLinkPrior5YearEstimates!$S$132 -> 58.5918083 | R29: 0.06256306761 | S29: =CntyDataLink!$R$132 -> 197 | T29: =CntyDataLink!$S$132 -> 74.82646591 | U29: 0.06465375779 | V29: 0.05913978495 | W29: =StatisticallySignificantCalcs!$A10 -> Y
K30: Median Age (years) | L30: =CntyDataLinkPrior10YearEstimate!$AX$132 -> 47.4 | N30: =CntyDataLinkPrior10YearEstimate!$AY$132 -> 3.7 | P30: =CntyDataLinkPrior5YearEstimates!$AX132 -> 48 | Q30: =CntyDataLinkPrior5YearEstimates!$AY$132 -> 2.5 | S30: =CntyDataLink!$AX$132 -> 45.8 | T30: =CntyDataLink!$AY$132 -> 6.5
B32: Population By Race | M32: Statistically Significant Change
M33: =IF(L36="","-",StatisticallySignificantCalcs!A20) -> N
C34: =$L$20 -> 2008-2012 | F34: =$P$20 -> 2013-2017 | I34: =$S$20 -> 2018-2022 | L34: Statistically Significant Change
C35: Estimate | D35: Margin of Error | F35: Estimate | G35: Margin of Error | I35: Estimate | J35: Margin of Error | L35: 2012-2022 | M35: 2017-2022
B36: White | C36: =CntyDataLinkPrior10YearEstimate!$AL$132 -> 2855 | D36: =CntyDataLinkPrior10YearEstimate!$AM$132 -> 79 | E36: =IF(C$36="-","-",VALUE(C36/$C$41)) -> 0.9651791751 | F36: =CntyDataLinkPrior5YearEstimates!$AL$132 -> 2804 | G36: =CntyDataLinkPrior5YearEstimates!$AM$132 -> 122 | H36: =IF(F$36="-","-",VALUE(F36/$F$41)) -> 0.9431550622 | I36: =CntyDataLink!$AL$132 -> 2889 | J36: =CntyDataLink!$AM$132 -> 98 | K36: =IF(I$36="-","-",VALUE(I36/$I$41)) -> 0.9481457171 | L36: =StatisticallySignificantCalcs!A20 -> N | M36: =StatisticallySignificantCalcs!J20 -> N
B37: Black | C37: =CntyDataLinkPrior10YearEstimate!$AN132 -> 0 | D37: =CntyDataLinkPrior10YearEstimate!$AO$132 -> 11 | E37: =IF(C$37="-","-",VALUE(C37/$C$41)) -> 0 | F37: =CntyDataLinkPrior5YearEstimates!$AN132 -> 16 | G37: =CntyDataLinkPrior5YearEstimates!$AO$132 -> 20 | H37: =IF(F$37="-","-",VALUE(F37/$F$41)) -> 0.005381769257 | I37: =CntyDataLink!$AN$132 -> 29 | J37: =CntyDataLink!$AO$132 -> 41 | K37: =IF(I$37="-","-",VALUE(I37/$I$41)) -> 0.009517558254 | L37: =StatisticallySignificantCalcs!A21 -> N | M37: =StatisticallySignificantCalcs!J21 -> N
B38: American Indian | C38: =CntyDataLinkPrior10YearEstimate!$AP$132 -> 16 | D38: =CntyDataLinkPrior10YearEstimate!$AQ$132 -> 24 | E38: =IF(C$38="-","-",VALUE(C38/$C$41)) -> 0.005409060176 | F38: =CntyDataLinkPrior5YearEstimates!$AP$132 -> 0 | G38: =CntyDataLinkPrior5YearEstimates!$AQ$132 -> 11 | H38: =IF(F$38="-","-",VALUE(F38/$F$41)) -> 0 | I38: =CntyDataLink!$AP$132 -> 0 | J38: =CntyDataLink!$AQ$132 -> 12 | K38: =IF(I$38="-","-",VALUE(I38/$I$41)) -> 0 | L38: =StatisticallySignificantCalcs!A22 -> N | M38: =StatisticallySignificantCalcs!J22 -> N
B39: Asian &Pacific Is. | C39: =CntyDataLinkPrior10YearEstimate!$AR$132 -> 0 | D39: =CntyDataLinkPrior10YearEstimate!$AS$132 -> 15.55634919 | E39: =IF(C$39="-","-",VALUE(C39/$C$41)) -> 0 | F39: =CntyDataLinkPrior5YearEstimates!$AR$132 -> 47 | G39: =CntyDataLinkPrior5YearEstimates!$AS$132 -> 48.33218389 | H39: =IF(F$39="-","-",VALUE(F39/$F$41)) -> 0.01580894719 | I39: =CntyDataLink!$AR$132 -> 29 | J39: =CntyDataLink!$AS$132 -> 35.11409973 | K39: =IF(I$39="-","-",VALUE(I39/$I$41)) -> 0.009517558254 | L39: =StatisticallySignificantCalcs!A23 -> N | M39: =StatisticallySignificantCalcs!J23 -> N
B40: Other* | C40: =CntyDataLinkPrior10YearEstimate!$AT$132 -> 0 | D40: =CntyDataLinkPrior10YearEstimate!$AU$132 -> 15.55634919 | E40: =IF(C$40="-","-",VALUE(C40/$C$41)) -> 0 | F40: =CntyDataLinkPrior5YearEstimates!$AT$132 -> 59 | G40: =CntyDataLinkPrior5YearEstimates!$AU$132 -> 61 | H40: =IF(F$40="-","-",VALUE(F40/$F$41)) -> 0.01984527413 | I40: =CntyDataLink!$AT$132 -> 87 | J40: =CntyDataLink!$AU$132 -> 75.95393341 | K40: =IF(I$40="-","-",VALUE(I40/$I$41)) -> 0.02855267476 | L40: =StatisticallySignificantCalcs!A24 -> Y | M40: =StatisticallySignificantCalcs!J24 -> N
B41: Total Population | C41: =CntyDataLinkPrior10YearEstimate!$B$132 -> 2958 | D41: =CntyDataLinkPrior10YearEstimate!$C$132 -> 18 | F41: =CntyDataLinkPrior5YearEstimates!$B$132 -> 2973 | G41: =CntyDataLinkPrior5YearEstimates!$C$132 -> 16 | I41: =CntyDataLink!$B$132 -> 3047 | J41: =CntyDataLink!$C$132 -> 21
B42: Hispanic | C42: =CntyDataLinkPrior10YearEstimate!$AV$132 -> 87 | D42: =CntyDataLinkPrior10YearEstimate!$AW$132 -> 72 | E42: =IF(C$42="-","-",VALUE(C42/$C$41)) -> 0.02941176471 | F42: =CntyDataLinkPrior5YearEstimates!$AV132 -> 47 | G42: =CntyDataLinkPrior5YearEstimates!$AW$132 -> 43 | H42: =IF(F$42="-","-",VALUE(F42/$F$41)) -> 0.01580894719 | I42: =CntyDataLink!$AV$132 -> 13 | J42: =CntyDataLink!$AW$132 -> 2 | K42: =IF(I$42="-","-",VALUE(I42/$I$41)) -> 0.004266491631 | L42: =StatisticallySignificantCalcs!A26 -> Y | M42: =StatisticallySignificantCalcs!J26 -> Y
B44: * | C44: Other includes population of 2 or more races
B46: ="Source: "& L20&", "&P20&", and "&S20&" American Community Survey Table B03002" -> Source: 2008-2012, 2013-2017, and 2018-2022 American Community Survey Table B03002
C48: Households and Families
D49: =$L$20 -> 2008-2012 | G49: =$P$20 -> 2013-2017 | J49: =$S$20 -> 2018-2022 | N49: ="Percent Change " &L35 -> Percent Change 2012-2022 | P49: ="Percent Change " &M35 -> Percent Change 2017-2022
D50: Estimate | E50: Margin of Error | G50: Estimate | H50: Margin of Error | J50: Estimate | K50: Margin of Error
C51: Total Households | D51: =CntyDataLinkPrior10YearEstimate!$T$132 -> 1190 | E51: =CntyDataLinkPrior10YearEstimate!$U$132 -> 79 | G51: =CntyDataLinkPrior5YearEstimates!$T$132 -> 1118 | H51: =CntyDataLinkPrior5YearEstimates!$U$132 -> 83 | J51: =CntyDataLink!$T$132 -> 1125 | K51: =CntyDataLink!$U$132 -> 132 | N51: =(J51-D51)/D51 -> -0.05462184874 | P51: =(J51-G51)/G51 -> 0.00626118068
C52: Persons per Household | D52: =CntyDataLinkPrior10YearEstimate!$BD$132 -> 2.482352941 | E52: =CntyDataLinkPrior10YearEstimate!$BE$132 -> 0.1655665156 | G52: =CntyDataLinkPrior5YearEstimates!$BD$132 -> 2.650268336 | H52: =CntyDataLinkPrior5YearEstimates!$BE$132 -> 0.197341856 | J52: =CntyDataLink!$BD$132 -> 2.696888889 | K52: =CntyDataLink!$BE$132 -> 0.3169850631 | N52: =(J52-D52)/D52 -> 0.08642443391 | P52: =(J52-G52)/G52 -> 0.01759088011
C53: Family Households | D53: =CntyDataLinkPrior10YearEstimate!$V$132 -> 836 | E53: =CntyDataLinkPrior10YearEstimate!$U$132 -> 79 | G53: =CntyDataLinkPrior5YearEstimates!$V$132 -> 842 | H53: =CntyDataLinkPrior5YearEstimates!$U$132 -> 83 | J53: =CntyDataLink!$V$132 -> 768 | K53: =CntyDataLink!$U$132 -> 132 | N53: -0.08133971292 | P53: -0.08788598575
C54: Persons per Family Household | D54: =CntyDataLinkPrior10YearEstimate!$BF$132 -> 2.979665072 | E54: =CntyDataLinkPrior10YearEstimate!$BG$132 -> 0.3276073598 | G54: =CntyDataLinkPrior5YearEstimates!$BF$132 -> 3.067695962 | H54: =CntyDataLinkPrior5YearEstimates!$BG$132 -> 0.2887320534 | J54: =CntyDataLink!$BF$132 -> 3.390625 | K54: =CntyDataLink!$BG$132 -> 0.475761811 | N54: 0.1379215175 | P54: 0.1052676152
C55: Married-Couple Family Hh | D55: =CntyDataLinkPrior10YearEstimate!$X$132 -> 719 | E55: =CntyDataLinkPrior10YearEstimate!$Y$132 -> 77 | G55: =CntyDataLinkPrior5YearEstimates!$X$132 -> 749 | H55: =CntyDataLinkPrior5YearEstimates!$Y$132 -> 70 | J55: =CntyDataLink!$X$132 -> 620 | K55: =CntyDataLink!$Y$132 -> 112 | N55: -0.1376912378 | P55: -0.1722296395
C56: Single-Parent Family Hh | D56: =CntyDataLinkPrior10YearEstimate!$Z$132 -> 117 | E56: =CntyDataLinkPrior10YearEstimate!$AA$132 -> 53 | G56: =CntyDataLinkPrior5YearEstimates!$Z$132 -> 93 | H56: =CntyDataLinkPrior5YearEstimates!$AA$132 -> 48 | J56: =CntyDataLink!$Z$132 -> 148 | K56: =CntyDataLink!$AA$132 -> 81 | N56: 0.264957265 | P56: 0.5913978495
C57: Non-Family Households | D57: =CntyDataLinkPrior10YearEstimate!$AF$132 -> 354 | E57: =CntyDataLinkPrior10YearEstimate!$AG$132 -> 90 | G57: =CntyDataLinkPrior5YearEstimates!$AF$132 -> 276 | H57: =CntyDataLinkPrior5YearEstimates!$AG$132 -> 77 | J57: =CntyDataLink!$AF$132 -> 357 | K57: =CntyDataLink!$AG$132 -> 130 | N57: 0.008474576271 | P57: 0.2934782609
C58: Persons per Non-Family Hh | D58: =CntyDataLinkPrior10YearEstimate!$BH$132 -> 1.307909605 | E58: =CntyDataLinkPrior10YearEstimate!$BI$132 -> 0.514536085 | G58: =CntyDataLinkPrior5YearEstimates!$BH$132 -> 1.376811594 | H58: =CntyDataLinkPrior5YearEstimates!$BI$132 -> 0.5509161647 | J58: =CntyDataLink!$BH$132 -> 1.204481793 | K58: =CntyDataLink!$BI$132 -> 0.6392088183 | N58: -0.07907871572 | P58: -0.1251658558
B61: As a result of changes in the American Community Survey, direct comparisons between the data should be made with caution.
B63: ="Source: "&L20&", "&P20&", and "&S20&" American Community Survey Table B11001" -> Source: 2008-2012, 2013-2017, and 2018-2022 American Community Survey Table B11001
B64: POPULATION CHARACTERISTICS

Sheet SchoolEnrolEduAttain (hidden)
C2: =CntyDataLink!A50 -> Laconia
C3: SOCIAL CHARACTERISTICS
C21: School Enrollment | F21: 2008-2012 | I21: 2013-2017 | L21: 2018-2022 | P21: Statistically Significant Change
F22: Estimate | G22: Margin of Error | H22: Percent of Population | I22: Estimate | J22: Margin of Error | K22: Percent of Population | L22: Estimate | M22: Margin of Error | N22: Percent of Population | P22: 2012-2022 | Q22: 2017-2022
C23: Population 3 years and over | F23: =CntyDataLinkPrior10YearEstimate!$B$140 -> 2823 | G23: =CntyDataLinkPrior10YearEstimate!$C$140 -> 69 | I23: =CntyDataLinkPrior5YearEstimates!$B$140 -> 2934 | J23: =CntyDataLinkPrior5YearEstimates!$C$140 -> 33 | L23: =CntyDataLink!$B$140 -> 2979 | M23: =CntyDataLink!$C$140 -> 39 | P23: =StatisticallySignificantCalcs!$A$45 -> Y | Q23: =StatisticallySignificantCalcs!$J$45 -> N
C24: Population 3 years & over enrolled in school | F24: =CntyDataLinkPrior10YearEstimate!$D$140 -> 493 | G24: =CntyDataLinkPrior10YearEstimate!$E$140 -> 88 | H24: =F24/$F$23 -> 0.1746369111 | I24: =CntyDataLinkPrior5YearEstimates!$D$140 -> 641 | J24: =CntyDataLinkPrior5YearEstimates!$E$140 -> 98 | K24: =I24/$I$23 -> 0.2184730743 | L24: =CntyDataLink!$D$140 -> 515 | M24: =CntyDataLink!$E$140 -> 116 | N24: =L24/$L$23 -> 0.1728768043 | P24: =StatisticallySignificantCalcs!$A$46 -> N | Q24: =StatisticallySignificantCalcs!$J$46 -> N
C25: Preprimary (Nursery, Preschool, Kindergarten) | F25: =CntyDataLinkPrior10YearEstimate!$F$140 -> 84 | G25: =CntyDataLinkPrior10YearEstimate!$G$140 -> 50.93132631 | H25: 0.02975557917 | I25: =CntyDataLinkPrior5YearEstimates!$F$140 -> 71 | J25: =CntyDataLinkPrior5YearEstimates!$G$140 -> 34.98571137 | K25: =I25/$I$23 -> 0.02419904567 | L25: =CntyDataLink!$F$140 -> 43 | M25: =CntyDataLink!$G$140 -> 43.829214 | N25: 0.01443437395 | P25: =StatisticallySignificantCalcs!$A$47 -> N | Q25: =StatisticallySignificantCalcs!$J$47 -> N
C26: Nursery school and Preschool | F26: =CntyDataLinkPrior10YearEstimate!$H$140 -> 43 | G26: =CntyDataLinkPrior10YearEstimate!$I$140 -> 35 | H26: 0.01523202267 | I26: =CntyDataLinkPrior5YearEstimates!$H$140 -> 48 | J26: =CntyDataLinkPrior5YearEstimates!$I$140 -> 30 | K26: 0.0163599182 | L26: =CntyDataLink!$H$140 -> 30 | M26: =CntyDataLink!$I$140 -> 39 | N26: 0.01007049345 | P26: =StatisticallySignificantCalcs!$A$48 -> N | Q26: =StatisticallySignificantCalcs!$J$48 -> N
C27: Kindergarten | F27: =CntyDataLinkPrior10YearEstimate!$J$140 -> 41 | G27: =CntyDataLinkPrior10YearEstimate!$K$140 -> 37 | H27: 0.0145235565 | I27: =CntyDataLinkPrior5YearEstimates!$J$140 -> 23 | J27: =CntyDataLinkPrior5YearEstimates!$K$140 -> 18 | K27: 0.007839127471 | L27: =CntyDataLink!$J$140 -> 13 | M27: =CntyDataLink!$K$140 -> 20 | N27: 0.004363880497 | P27: =StatisticallySignificantCalcs!$A$49 -> N | Q27: =StatisticallySignificantCalcs!$J$49 -> N
C28: Elementary through High school | F28: =CntyDataLinkPrior10YearEstimate!$P$140 -> 291 | G28: =CntyDataLinkPrior10YearEstimate!$Q$140 -> 75.17978452 | H28: 0.1030818278 | I28: =CntyDataLinkPrior5YearEstimates!$P$140 -> 454 | J28: =CntyDataLinkPrior5YearEstimates!$Q$140 -> 89.67719889 | K28: 0.1547375596 | L28: =CntyDataLink!$P$140 -> 421 | M28: =CntyDataLink!$Q$140 -> 167.418637 | N28: 0.1413225915 | P28: =StatisticallySignificantCalcs!$A$50 -> N | Q28: =StatisticallySignificantCalcs!$J$50 -> N
C29: Elementary school (grades 1-8) | F29: =CntyDataLinkPrior10YearEstimate!$L$140 -> 184 | G29: =CntyDataLinkPrior10YearEstimate!$M$140 -> 60.95900262 | H29: 0.06517888771 | I29: =CntyDataLinkPrior5YearEstimates!$L$140 -> 293 | J29: =CntyDataLinkPrior5YearEstimates!$M$140 -> 73.06161783 | K29: 0.09986366735 | L29: =CntyDataLink!$L$140 -> 342 | M29: =CntyDataLink!$M$140 -> 145.9623239 | N29: 0.1148036254 | P29: =StatisticallySignificantCalcs!$A$51 -> N | Q29: =StatisticallySignificantCalcs!$J$51 -> N
C30: High school (grades 9-12) | F30: =CntyDataLinkPrior10YearEstimate!$N$140 -> 107 | G30: =CntyDataLinkPrior10YearEstimate!$O$140 -> 44 | H30: 0.03790294013 | I30: =CntyDataLinkPrior5YearEstimates!$N$140 -> 161 | J30: =CntyDataLinkPrior5YearEstimates!$O$140 -> 52 | K30: 0.0548738923 | L30: =CntyDataLink!$N$140 -> 79 | M30: =CntyDataLink!$O$140 -> 82 | N30: 0.0265189661 | P30: =StatisticallySignificantCalcs!$A$52 -> N | Q30: =StatisticallySignificantCalcs!$J$52 -> N
C31: College or Graduate School | F31: =CntyDataLinkPrior10YearEstimate!$R$140 -> 118 | G31: =CntyDataLinkPrior10YearEstimate!$S$140 -> 56.63920903 | H31: 0.04179950407 | I31: =CntyDataLinkPrior5YearEstimates!$R$140 -> 116 | J31: =CntyDataLinkPrior5YearEstimates!$S$140 -> 49.04079934 | K31: 0.03953646898 | L31: =CntyDataLink!$R$140 -> 51 | M31: =CntyDataLink!$S$140 -> 45.70557953 | N31: 0.01711983887 | P31: =StatisticallySignificantCalcs!$A$53 -> N | Q31: =StatisticallySignificantCalcs!$J$53 -> N
C33: ="Source: "&F21&", "& I21&" and "&L21&" American Community Survey Table B14001" -> Source: 2008-2012, 2013-2017 and 2018-2022 American Community Survey Table B14001
C50: Educational Attainment | F50: =F21 -> 2008-2012 | I50: =$I$21 -> 2013-2017 | L50: =$L$21 -> 2018-2022 | P50: Statistically Significant Change
F51: Estimate | G51: Margin of Error | H51: Percent of Population | I51: Estimate | J51: Margin of Error | K51: Percent of Population | L51: Estimate | M51: Margin of Error | N51: Percent of Population | P51: =P22 -> 2012-2022 | Q51: =Q22 -> 2017-2022
C52: Population 25 years and over | F52: =CntyDataLinkPrior10YearEstimate!$V$140 -> 2239 | G52: =CntyDataLinkPrior10YearEstimate!$W$140 -> 88 | I52: =CntyDataLinkPrior5YearEstimates!$V$140 -> 2232 | J52: =CntyDataLinkPrior5YearEstimates!$W$140 -> 93 | L52: =CntyDataLink!$V$140 -> 2363 | M52: =CntyDataLink!$W$140 -> 135 | P52: =StatisticallySignificantCalcs!A54 -> N | Q52: =StatisticallySignificantCalcs!$J$54 -> N
C53: Less than 9th Grade | F53: =CntyDataLinkPrior10YearEstimate!$X$140 -> 55 | G53: =CntyDataLinkPrior10YearEstimate!$Y$140 -> 55.06359959 | H53: =F53/$F$52 -> 0.02456453774 | I53: =CntyDataLinkPrior5YearEstimates!$X$140 -> 21 | J53: =CntyDataLinkPrior5YearEstimates!$Y$140 -> 27.58622845 | K53: =I53/$I$52 -> 0.009408602151 | L53: =CntyDataLink!$X$140 -> 10 | M53: =CntyDataLink!$Y$140 -> 32.87856445 | N53: =L53/$L$52 -> 0.004231908591 | P53: =StatisticallySignificantCalcs!A55 -> N | Q53: =StatisticallySignificantCalcs!$J$55 -> N
C54: 9th to 12th Grade, no Diploma | F54: =CntyDataLinkPrior10YearEstimate!$Z$140 -> 106 | G54: =CntyDataLinkPrior10YearEstimate!$AA$140 -> 44.92215489 | H54: =F54/$F$52 -> 0.04734256364 | I54: =CntyDataLinkPrior5YearEstimates!$Z$140 -> 43 | J54: =CntyDataLinkPrior5YearEstimates!$AA$140 -> 31.70173497 | K54: 0.01926523297 | L54: =CntyDataLink!$Z$140 -> 193 | M54: =CntyDataLink!$AA$140 -> 202.1237245 | N54: 0.0816758358 | P54: =StatisticallySignificantCalcs!A56 -> N | Q54: =StatisticallySignificantCalcs!$J$56 -> N
C55: High School Graduate | F55: =CntyDataLinkPrior10YearEstimate!$AB$140 -> 545 | G55: =CntyDataLinkPrior10YearEstimate!$AC$140 -> 102.5329215 | H55: 0.2434122376 | I55: =CntyDataLinkPrior5YearEstimates!$AB$140 -> 528 | J55: =CntyDataLinkPrior5YearEstimates!$AC$140 -> 97.5807358 | K55: 0.2365591398 | L55: =CntyDataLink!$AB$140 -> 515 | M55: =CntyDataLink!$AC$140 -> 133.4053972 | N55: 0.2179432924 | P55: =StatisticallySignificantCalcs!A57 -> N | Q55: =StatisticallySignificantCalcs!$J$57 -> N
C56: Some College, No Degree | F56: =CntyDataLinkPrior10YearEstimate!$AD$140 -> 447 | G56: =CntyDataLinkPrior10YearEstimate!$AE$140 -> 87.29833904 | H56: 0.1996426976 | I56: =CntyDataLinkPrior5YearEstimates!$AD$140 -> 444 | J56: =CntyDataLinkPrior5YearEstimates!$AE$140 -> 96.43132271 | K56: 0.1989247312 | L56: =CntyDataLink!$AD$140 -> 596 | M56: =CntyDataLink!$AE$140 -> 176.1646957 | N56: 0.252221752 | P56: =StatisticallySignificantCalcs!A58 -> N | Q56: =StatisticallySignificantCalcs!$J$58 -> N
C57: Associate Degree | F57: =CntyDataLinkPrior10YearEstimate!$AF$140 -> 297 | G57: =CntyDataLinkPrior10YearEstimate!$AG$140 -> 85.60373824 | H57: 0.1326485038 | I57: =CntyDataLinkPrior5YearEstimates!$AF$140 -> 319 | J57: =CntyDataLinkPrior5YearEstimates!$AG$140 -> 75.69015788 | K57: 0.142921147 | L57: =CntyDataLink!$AF$140 -> 191 | M57: =CntyDataLink!$AG$140 -> 96.04686356 | N57: 0.08082945408 | P57: =StatisticallySignificantCalcs!A59 -> N | Q57: =StatisticallySignificantCalcs!$J$59 -> Y
C58: Bachelor's Degree | F58: =CntyDataLinkPrior10YearEstimate!$AH$140 -> 500 | G58: =CntyDataLinkPrior10YearEstimate!$AI$140 -> 95.46203434 | H58: 0.2233139795 | I58: =CntyDataLinkPrior5YearEstimates!$AH$140 -> 470 | J58: =CntyDataLinkPrior5YearEstimates!$AI$140 -> 84.64632302 | K58: 0.2105734767 | L58: =CntyDataLink!$AH$140 -> 539 | M58: =CntyDataLink!$AI$140 -> 159.5524992 | N58: 0.228099873 | P58: =StatisticallySignificantCalcs!A60 -> N | Q58: =StatisticallySignificantCalcs!$J$60 -> N
C59: Graduate or Professional Degree | F59: =CntyDataLinkPrior10YearEstimate!$AJ$140 -> 170 | G59: =CntyDataLinkPrior10YearEstimate!$AK$140 -> 70.24243732 | H59: 0.07592675301 | I59: =CntyDataLinkPrior5YearEstimates!$AJ$140 -> 392 | J59: =CntyDataLinkPrior5YearEstimates!$AK$140 -> 90.31057524 | K59: 0.1756272401 | L59: =CntyDataLink!$AJ$140 -> 307 | M59: =CntyDataLink!$AK$140 -> 118.3173698 | N59: 0.1299195937 | P59: =StatisticallySignificantCalcs!A61 -> N | Q59: =StatisticallySignificantCalcs!$J$61 -> N
C61: Percent of High School Graduate or Higher | H61: =SUM(F55:F59)/F52 -> 0.8749441715 | K61: =SUM(I55:I59)/I52 -> 0.9646057348 | N61: =SUM(L55:L59)/L52 -> 0.9090139653
C62: Percent of Bachelor's Degree or Higher | H62: =SUM(F58:F59)/F52 -> 0.2992407325 | K62: =SUM(I58:I59)/I52 -> 0.3862007168 | N62: =SUM(L58:L59)/L52 -> 0.3580194668
C64: ="Source: "&F21&", "&I21&" and "&L21&" American Community Survey Table B15002" -> Source: 2008-2012, 2013-2017 and 2018-2022 American Community Survey Table B15002 | H64: Data from the American Community Survey are estimates

Sheet HousingCharacteristics (hidden)
B2: =CntyDataLink!$A35 -> Laconia
B4: HOUSING CHARACTERISTICS
D27: ="Source: "& " "&D69&", "&G69&" and "&J69& " American Community Survey Table B25004; B25024; B25032" -> Source: 2008-2012, 2013-2017 and 2018-2022 American Community Survey Table B25004; B25024; B25032
B28: Units by Tenure & Vacancy
C30: 2008-2012 | F30: 2013-2017 | I30: 2018-2022 | L30: Percent Change | O30: Statistically Significant Change
C31: Estimate | D31: Margin of Error | E31: % | F31: Estimate | G31: Margin of Error | H31: % | I31: Estimate | J31: Margin of Error | K31: % | L31: 2012-2022 | M31: 2017-2022 | O31: =L31 -> 2012-2022 | P31: =M31 -> 2017-2022
B32: Total Units | C32: =CntyDataLinkPrior10YearEstimate!$B$108 -> 9927 | D32: =CntyDataLinkPrior5YearEstimates!$C$108 -> 324 | F32: =CntyDataLinkPrior5YearEstimates!$B$108 -> 9945 | G32: =CntyDataLinkPrior5YearEstimates!$C$108 -> 324 | I32: =CntyDataLink!$B$108 -> 10073 | J32: =CntyDataLink!$C$108 -> 360 | L32: =IF(I32="-","-",(I32-C32)/C32) -> 0.01470736376 | M32: =IF(I32="-","-",(I32-F32)/F32) -> 0.01287078934 | O32: =StatisticallySignificantCalcs!$A62 -> N | P32: =StatisticallySignificantCalcs!$J62 -> N
B33: Occupied Units | C33: =CntyDataLinkPrior10YearEstimate!$D$108 -> 7143 | D33: =CntyDataLinkPrior5YearEstimates!$E$108 -> 357 | E33: =ROUND(C33/C32,2)*100&"% of Total" -> 72% of Total | F33: =CntyDataLinkPrior5YearEstimates!$D$108 -> 6740 | G33: =CntyDataLinkPrior5YearEstimates!$E$108 -> 357 | H33: =ROUND(F33/F32,2)*100&"% of Total" -> 68% of Total | I33: =CntyDataLink!$D$108 -> 6965 | J33: =CntyDataLink!$E$108 -> 394 | K33: =ROUND(I33/I32,2)*100&"% of Total" -> 69% of Total | L33: =IF(I33="-","-",(I33-C33)/C33) -> -0.02491950161 | M33: 0.03338278932 | O33: =StatisticallySignificantCalcs!$A63 -> N | P33: =StatisticallySignificantCalcs!$J63 -> N
B34: Owner Occupied | C34: =CntyDataLinkPrior10YearEstimate!$F$108 -> 4244 | D34: =CntyDataLinkPrior5YearEstimates!$G$108 -> 271 | E34: =ROUND(C34/C33,2)*100&"% of Occ." -> 59% of Occ. | F34: =CntyDataLinkPrior5YearEstimates!$F$108 -> 3650 | G34: =CntyDataLinkPrior5YearEstimates!$G$108 -> 271 | H34: =ROUND(F34/F33,2)*100&"% of Occ." -> 54% of Occ. | I34: =CntyDataLink!$F$108 -> 4095 | J34: =CntyDataLink!$G$108 -> 367 | K34: =ROUND(I34/I33,2)*100&"% of Occ." -> 59% of Occ. | L34: =IF(I34="-","-",(I34-C34)/C34) -> -0.03510838831 | M34: 0.1219178082 | O34: =StatisticallySignificantCalcs!$A64 -> N | P34: =StatisticallySignificantCalcs!$J64 -> N
B35: Renter Occupied | C35: =CntyDataLinkPrior10YearEstimate!$H$108 -> 2899 | D35: =CntyDataLinkPrior5YearEstimates!$I$108 -> 253 | E35: =ROUND(C35/C33,2)*100&"% of Occ." -> 41% of Occ. | F35: =CntyDataLinkPrior5YearEstimates!$H$108 -> 3090 | G35: =CntyDataLinkPrior5YearEstimates!$I$108 -> 253 | H35: =ROUND(F35/F33,2)*100&"% of Occ." -> 46% of Occ. | I35: =CntyDataLink!$H$108 -> 2870 | J35: =CntyDataLink!$I$108 -> 417 | K35: =ROUND(I35/I33,2)*100&"% of Occ." -> 41% of Occ. | L35: =IF(I35="-","-",(I35-C35)/C35) -> -0.01000344947 | M35: -0.071197411 | O35: =StatisticallySignificantCalcs!$A65 -> N | P35: =StatisticallySignificantCalcs!$J65 -> N
B36: Vacant Units | C36: =CntyDataLinkPrior10YearEstimate!$J$108 -> 2784 | D36: =CntyDataLinkPrior5YearEstimates!$K$108 -> 294 | E36: =ROUND(C36/C32,2)*100&"% of Total" -> 28% of Total | F36: =CntyDataLinkPrior5YearEstimates!$J$108 -> 3205 | G36: =CntyDataLinkPrior5YearEstimates!$K$108 -> 294 | H36: =ROUND(F36/F32,2)*100&"% of Total" -> 32% of Total | I36: =CntyDataLink!$J$108 -> 3108 | J36: =CntyDataLink!$K$108 -> 326 | K36: =ROUND(I36/I32,2)*100&"% of Total" -> 31% of Total | L36: =IF(I36="-",I36,VALUE((I36-C36)/C36)) -> 0.1163793103 | M36: -0.03026521061 | O36: =StatisticallySignificantCalcs!$A66 -> N | P36: =StatisticallySignificantCalcs!$J66 -> N
B37: Vacant For Sale | C37: =CntyDataLinkPrior10YearEstimate!$P$108 -> 66 | D37: =CntyDataLinkPrior5YearEstimates!$Q$108 -> 103 | E37: =ROUND(C37/(C$36),3)*100&"% Vac." -> 2.4% Vac. | F37: =CntyDataLinkPrior5YearEstimates!$P$108 -> 142 | G37: =CntyDataLinkPrior5YearEstimates!$Q$108 -> 103 | H37: =ROUND(F37/(F$36),3)*100&"% Vac." -> 4.4% Vac. | I37: =CntyDataLink!$P$108 -> 83 | J37: =CntyDataLink!$Q$108 -> 75 | K37: =ROUND(I37/(I$36),3)*100&"% Vac." -> 2.7% Vac. | L37: =IF(I37="-",I37,VALUE((I37-C37)/C37)) -> 0.2575757576 | M37: -0.4154929577 | O37: =StatisticallySignificantCalcs!$A67 -> N | P37: =StatisticallySignificantCalcs!$J67 -> N
B38: Vacant For Rent | C38: =CntyDataLinkPrior10YearEstimate!$L$108 -> 270 | D38: =CntyDataLinkPrior5YearEstimates!$M$108 -> 99 | E38: =ROUND(C38/(C$36),3)*100&"% Vac." -> 9.7% Vac. | F38: =CntyDataLinkPrior5YearEstimates!$L$108 -> 120 | G38: =CntyDataLinkPrior5YearEstimates!$M$108 -> 99 | H38: =ROUND(F38/(F$36),3)*100&"% Vac." -> 3.7% Vac. | I38: =CntyDataLink!$L$108 -> 115 | J38: =CntyDataLink!$M$108 -> 95 | K38: =ROUND(I38/(I$36),3)*100&"% Vac." -> 3.7% Vac. | L38: =IF(I38="-",I38,VALUE((I38-C38)/C38)) -> -0.5740740741 | M38: -0.04166666667 | O38: =StatisticallySignificantCalcs!$A68 -> Y | P38: =StatisticallySignificantCalcs!$J68 -> N
B39: Vacant Seasonal | C39: =CntyDataLinkPrior10YearEstimate!$T$108 -> 2185 | D39: =CntyDataLinkPrior5YearEstimates!$U$108 -> 302 | E39: =ROUND(C39/(C$36),3)*100&"% Vac." -> 78.5% Vac. | F39: =CntyDataLinkPrior5YearEstimates!$T$108 -> 2748 | G39: =CntyDataLinkPrior5YearEstimates!$U$108 -> 302 | H39: =ROUND(F39/(F$36),3)*100&"% Vac." -> 85.7% Vac. | I39: =CntyDataLink!$T$108 -> 2529 | J39: =CntyDataLink!$U$108 -> 326 | K39: =ROUND(I39/(I$36),3)*100&"% Vac." -> 81.4% Vac. | L39: =IF(I39="-",I39,VALUE((I39-C39)/C39)) -> 0.1574370709 | M39: -0.07969432314 | O39: =StatisticallySignificantCalcs!$A69 -> N | P39: =StatisticallySignificantCalcs!$J69 -> N
B41: Data from the American Community Survey are estimates
B44: HOUSING CHARACTERISTICS
D65: ="Source: "& " "&D69&", "&G69&" and "&J69& " American Community Survey Table B25024; B25032" -> Source: 2008-2012, 2013-2017 and 2018-2022 American Community Survey Table B25024; B25032
C67: Units by Type
D69: =C30 -> 2008-2012 | G69: =F30 -> 2013-2017 | J69: =I30 -> 2018-2022 | M69: Percent Change | O69: Statistically Significant Change
D70: Estimate | E70: Margin of Error | F70: % of Total | G70: Estimate | H70: Margin of Error | I70: % of Total | J70: Estimate | K70: Margin of Error | L70: % of Total | M70: =L31 -> 2012-2022 | N70: =M31 -> 2017-2022 | O70: =O31 -> 2012-2022 | P70: =P31 -> 2017-2022
C71: Total Units | D71: =CntyDataLinkPrior10YearEstimate!$B$108 -> 9927 | E71: =CntyDataLinkPrior10YearEstimate!$C$108 -> 258 | G71: =CntyDataLinkPrior5YearEstimates!$B$108 -> 9945 | H71: =CntyDataLinkPrior5YearEstimates!$C$108 -> 324 | J71: =CntyDataLink!$B$108 -> 10073 | K71: =CntyDataLink!$C$108 -> 360 | O71: =StatisticallySignificantCalcs!$A70 -> N | P71: =StatisticallySignificantCalcs!$J70 -> N
C72: Single Family Units | D72: =CntyDataLinkPrior10YearEstimate!$AT$108 -> 5003 | E72: =CntyDataLinkPrior10YearEstimate!$AU$108 -> 370 | F72: =IF(D72="-","-",($D$72/$D$71)) -> 0.503979047 | G72: =CntyDataLinkPrior5YearEstimates!$AT$108 -> 5197 | H72: =CntyDataLinkPrior5YearEstimates!$AU$108 -> 338 | I72: =IF(G72="-","-",($G$72/$G$71)) -> 0.5225741579 | J72: =CntyDataLink!$AT$108 -> 4901 | K72: =CntyDataLink!$AU$108 -> 380 | L72: =IF(J72="-","-",($J$72/$J$71)) -> 0.4865481982 | M72: =IF(J72="-","-",($J72-$D72)/$D72) -> -0.02038776734 | N72: =IF(J72="-","-",($J72-$G72)/$G72) -> -0.05695593612 | O72: =StatisticallySignificantCalcs!$A71 -> N | P72: =StatisticallySignificantCalcs!$J71 -> N
C73: SF Owner Occ. | D73: =CntyDataLinkPrior10YearEstimate!$AF$108 -> 3388 | E73: =CntyDataLinkPrior10YearEstimate!$AG$108 -> 283 | G73: =CntyDataLinkPrior5YearEstimates!$AF$108 -> 2997 | H73: =CntyDataLinkPrior5YearEstimates!$AG$108 -> 256 | J73: =CntyDataLink!$AF$108 -> 3142 | K73: =CntyDataLink!$AG$108 -> 298 | O73: =StatisticallySignificantCalcs!$A72 -> N | P73: =StatisticallySignificantCalcs!$J72 -> N
C74: SF Renter Occ. | D74: =CntyDataLinkPrior10YearEstimate!$AN$108 -> 414 | E74: =CntyDataLinkPrior10YearEstimate!$AO$108 -> 139 | G74: =CntyDataLinkPrior5YearEstimates!$AN$108 -> 507 | H74: =CntyDataLinkPrior5YearEstimates!$AO$108 -> 168 | J74: =CntyDataLink!$AN$108 -> 419 | K74: =CntyDataLink!$AO$108 -> 150 | O74: =StatisticallySignificantCalcs!$A73 -> N | P74: =StatisticallySignificantCalcs!$J73 -> N
C75: Multi-family Units | D75: =CntyDataLinkPrior10YearEstimate!$AV$108 -> 4447 | E75: =CntyDataLinkPrior10YearEstimate!$AW$108 -> 520.1317141 | F75: =IF(D75="-","-",$D$75/$D$71) -> 0.4479701823 | G75: =CntyDataLinkPrior5YearEstimates!$AV$108 -> 4381 | H75: =CntyDataLinkPrior5YearEstimates!$AW$108 -> 463.3033563 | I75: =IF(G75="-","-",$G$75/$G$71) -> 0.4405228758 | J75: =CntyDataLink!$AV$108 -> 4609 | K75: =CntyDataLink!$AW$108 -> 568.7969761 | L75: =IF(J75="-","-",$J$75/$J$71) -> 0.4575598134 | M75: =IF(J75="-","-",($J75-$D75)/$D75) -> 0.03642905329 | N75: =IF(J75="-","-",($J75-$G75)/$G75) -> 0.05204291258 | O75: =StatisticallySignificantCalcs!$A74 -> N | P75: =StatisticallySignificantCalcs!$J74 -> N
C76: MF Owner Occ. | D76: =CntyDataLinkPrior10YearEstimate!$AH$108 -> 675 | E76: =CntyDataLinkPrior10YearEstimate!$AI$108 -> 198.3330532 | G76: =CntyDataLinkPrior5YearEstimates!$AH$108 -> 505 | H76: =CntyDataLinkPrior5YearEstimates!$AI$108 -> 129.8691649 | J76: =CntyDataLink!$AH$108 -> 762 | K76: =CntyDataLink!$AI$108 -> 229.4253691 | O76: =StatisticallySignificantCalcs!$A75 -> N | P76: =StatisticallySignificantCalcs!$J75 -> N
C77: MF Renter Occ. | D77: =CntyDataLinkPrior10YearEstimate!$AP$108 -> 2474 | E77: =CntyDataLinkPrior10YearEstimate!$AQ$108 -> 378.8086588 | G77: =CntyDataLinkPrior5YearEstimates!$AP$108 -> 2565 | H77: =CntyDataLinkPrior5YearEstimates!$AQ$108 -> 342.9825068 | J77: =CntyDataLink!$AP$108 -> 2426 | K77: =CntyDataLink!$AQ$108 -> 422.7244966 | O77: =StatisticallySignificantCalcs!$A76 -> N | P77: =StatisticallySignificantCalcs!$J76 -> N
C78: Mobile Home & Other | D78: =CntyDataLinkPrior10YearEstimate!$AX$108 -> 477 | E78: =CntyDataLinkPrior10YearEstimate!$AY$108 -> 168.9615341 | F78: =IF(D78="-","-",($D$78/$D$71)) -> 0.04805077063 | G78: =CntyDataLinkPrior5YearEstimates!$AX$108 -> 367 | H78: =CntyDataLinkPrior5YearEstimates!$AY$108 -> 131.1068267 | I78: =IF(G78="-","-",($G$78/$G$71)) -> 0.03690296631 | J78: =CntyDataLink!$AX$108 -> 563 | K78: =CntyDataLink!$AY$108 -> 181.9945054 | L78: =IF(J78="-","-",($J$78/$J$71)) -> 0.05589198848 | M78: =IF(J78="-","-",($J78-$D78)/$D78) -> 0.180293501 | N78: =IF(J78="-","-",($J78-$G78)/$G78) -> 0.5340599455 | O78: =StatisticallySignificantCalcs!$A77 -> N | P78: =StatisticallySignificantCalcs!$J77 -> N
B80: Data from the American Community Survey are estimates
B83: Units by Number of Bedrooms
D84: ="Source: "& " "&D69&", "&G69&" and "&J69& " American Community Survey Table B25041" -> Source: 2008-2012, 2013-2017 and 2018-2022 American Community Survey Table B25041
C86: =C30 -> 2008-2012 | G86: =F30 -> 2013-2017 | K86: =I30 -> 2018-2022 | O86: Statistically Significant Change
B87: Bedrooms | C87: Estimate | D87: Margin of Error | E87: % of Total | G87: Estimate | H87: Margin of Error | I87: % of Total | K87: Estimate | L87: Margin of Error | M87: % of Total | O87: =O31 -> 2012-2022 | P87: =P31 -> 2017-2022
B88: No Bedrooms | C88: =CntyDataLinkPrior10YearEstimate!$BR$108 -> 178 | D88: =CntyDataLinkPrior10YearEstimate!$BS$108 -> 98 | E88: =C88/SUM($C$88:$C$92) -> 0.01817068191 | G88: =CntyDataLinkPrior5YearEstimates!$BR$108 -> 172 | H88: =CntyDataLinkPrior5YearEstimates!$BS$108 -> 88 | I88: =G88/SUM($G$88:$G$92) -> 0.01732648333 | K88: =CntyDataLink!$BT$108 -> 295 | L88: =CntyDataLink!$BU$108 -> 136 | M88: =K88/SUM($K$88:$K$92) -> 0.02957689994 | O88: =StatisticallySignificantCalcs!$A78 -> Y | P88: =StatisticallySignificantCalcs!$J78 -> N
B89: 1 Bedroom | C89: =CntyDataLinkPrior10YearEstimate!$BT$108 -> 1341 | D89: =CntyDataLinkPrior10YearEstimate!$BU$108 -> 217 | E89: =C89/SUM($C$88:$C$92) -> 0.1368926092 | G89: =CntyDataLinkPrior5YearEstimates!$BT$108 -> 1539 | H89: =CntyDataLinkPrior5YearEstimates!$BU$108 -> 276 | I89: =G89/SUM($G$88:$G$92) -> 0.1550317316 | K89: =CntyDataLink!$BV$108 -> 1510 | L89: =CntyDataLink!$BW$108 -> 291 | M89: =K89/SUM($K$88:$K$92) -> 0.1513936234 | O89: =StatisticallySignificantCalcs!$A79 -> Y | P89: =StatisticallySignificantCalcs!$J79 -> N
B90: 2 Bedrooms | C90: =CntyDataLinkPrior10YearEstimate!$BV$108 -> 3646 | D90: =CntyDataLinkPrior10YearEstimate!$BW$108 -> 409 | E90: =C90/SUM($C$88:$C$92) -> 0.3721927317 | G90: =CntyDataLinkPrior5YearEstimates!$BV$108 -> 3715 | H90: =CntyDataLinkPrior5YearEstimates!$BW$108 -> 343 | I90: =G90/SUM($G$88:$G$92) -> 0.3742318928 | K90: =CntyDataLink!$BX$108 -> 3767 | L90: =CntyDataLink!$BY$108 -> 398 | M90: =K90/SUM($K$88:$K$92) -> 0.3776819731 | O90: =StatisticallySignificantCalcs!$A80 -> Y | P90: =StatisticallySignificantCalcs!$J80 -> N
B91: 3 Bedrooms | C91: =CntyDataLinkPrior10YearEstimate!$BX$108 -> 3227 | D91: =CntyDataLinkPrior10YearEstimate!$BY$108 -> 313 | E91: =C91/SUM($C$88:$C$92) -> 0.3294201715 | G91: =CntyDataLinkPrior5YearEstimates!$BX$108 -> 3221 | H91: =CntyDataLinkPrior5YearEstimates!$BY$108 -> 336 | I91: =G91/SUM($G$88:$G$92) -> 0.3244686209 | K91: =CntyDataLink!$BZ$108 -> 3104 | L91: =CntyDataLink!$CA$108 -> 311 | M91: =K91/SUM($K$88:$K$92) -> 0.3112091438 | O91: =StatisticallySignificantCalcs!$A81 -> Y | P91: =StatisticallySignificantCalcs!$J81 -> N
B92: 4+ Bedrooms | C92: =CntyDataLinkPrior10YearEstimate!$BZ$108 -> 1404 | D92: =CntyDataLinkPrior10YearEstimate!$CA$108 -> 237.8760181 | E92: =C92/SUM($C$88:$C$92) -> 0.1433238056 | G92: =CntyDataLinkPrior5YearEstimates!$BZ$108 -> 1280 | H92: =CntyDataLinkPrior5YearEstimates!$CA$108 -> 242.0330556 | I92: =G92/SUM($G$88:$G$92) -> 0.1289412713 | K92: =CntyDataLink!$CB$108 -> 1298 | L92: =CntyDataLink!$CC$108 -> 248.6543786 | M92: =K92/SUM($K$88:$K$92) -> 0.1301383597 | O92: =StatisticallySignificantCalcs!$A82 -> Y | P92: =StatisticallySignificantCalcs!$J82 -> N
B95: Data from the American Community Survey are estimates
B97: Units by Year Built
B98: ="Source: "&K86& " American Community Survey Table B25034" -> Source: 2018-2022 American Community Survey Table B25034
D100: Year Built | G100: Units | I100: % of Total | K100: Margin of Error
F101: 2014 or later | G101: =CntyDataLink!$AZ$108 -> 31 | I101: =G101/SUM($G$101:$G$110) -> 0.003077534002 | K101: =CntyDataLink!$BA$108 -> 50
F102: 2010 through 2013 | G102: =CntyDataLink!$BB$108 -> 560 | I102: 0.05559416261 | K102: =CntyDataLink!$BC$108 -> 169
F103: 2000 through 2009 | G103: =CntyDataLink!$BD$108 -> 1238 | I103: 0.1229028095 | K103: =CntyDataLink!$BE$108 -> 216
F104: 1990 through 1999 | G104: =CntyDataLink!$BF$108 -> 617 | I104: 0.06125285416 | K104: =CntyDataLink!$BG$108 -> 197
F105: 1980 through 1989 | G105: =CntyDataLink!$BH$108 -> 1746 | I105: 0.173334657 | K105: =CntyDataLink!$BI$108 -> 374
F106: 1970 through 1979 | G106: =CntyDataLink!$BJ$108 -> 1102 | I106: 0.10940137 | K106: =CntyDataLink!$BK$108 -> 262
F107: 1960 through 1969 | G107: =CntyDataLink!$BL$108 -> 643 | I107: 0.06383401171 | K107: =CntyDataLink!$BM$108 -> 218
F108: 1950 through 1959 | G108: =CntyDataLink!$BN$108 -> 817 | I108: 0.08110791224 | K108: =CntyDataLink!$BO$108 -> 228
F109: 1940 through 1949 | G109: =CntyDataLink!$BP$108 -> 583 | I109: 0.05787749429 | K109: =CntyDataLink!$BQ$108 -> 213
F110: 1939 and earlier | G110: =CntyDataLink!$BR$108 -> 2736 | I110: 0.2716171945 | K110: =CntyDataLink!$BS$108 -> 327
B112: Data from the American Community Survey are estimates

Sheet BuildingPermitsSince2000 (hidden)
B2: =CntyDataLink!A35 -> Laconia
B4: HOUSING CHARACTERISTICS
B35: Housing Units Authorized by Permit | F35: Source: Office of Planning and Development, NH BEA
B37: Year | C37: 2000 | D37: =C37+1 -> 2001 | E37: =D37+1 -> 2002 | F37: 2003 | G37: 2004 | H37: 2005 | I37: 2006 | J37: 2007 | K37: 2008 | L37: 2009 | M37: 2010 | N37: 2011 | O37: 2012 | P37: 2013 | Q37: 2014 | R37: 2015 | S37: 2016 | T37: 2017 | U37: 2018 | V37: 2019 | W37: 2020 | X37: 2021 | Y37: Total
B38: Single Family | C38: =CntyDataLink!$BU$20 -> 47 | D38: =CntyDataLink!$BX$20 -> 60 | E38: =CntyDataLink!$CA$20 -> 72 | F38: =CntyDataLink!$CD$20 -> 139 | G38: =CntyDataLink!$CG$20 -> 166 | H38: =CntyDataLink!$CJ$20 -> 36 | I38: =CntyDataLink!$CM$20 -> 57 | J38: =CntyDataLink!$CO$20 -> 0 | K38: =CntyDataLink!$CS$20 -> 30 | L38: =CntyDataLink!$CV$20 -> 32 | M38: =CntyDataLink!$CY$20 -> 54 | N38: =CntyDataLink!$DB$20 -> 36 | O38: =CntyDataLink!$DE$20 -> 27 | P38: =CntyDataLink!$DH$20 -> 1 | Q38: =CntyDataLink!$DK$20 -> 34 | R38: =CntyDataLink!$DN$20 -> 32 | S38: =CntyDataLink!$DQ$20 -> 26 | T38: =CntyDataLink!$DT$20 -> 18 | U38: =CntyDataLink!$DW$20 -> 14 | V38: =CntyDataLink!$DZ$20 -> 12 | W38: =CntyDataLink!$EC$20 -> 44 | X38: =CntyDataLink!$EI$20 -> 26 | Y38: =SUM(C38:W38) -> 937
B39: Multi-family | C39: =CntyDataLink!$BV$20 -> 8 | D39: =CntyDataLink!$BY$20 -> 4 | E39: =CntyDataLink!$CB$20 -> 10 | F39: =CntyDataLink!$CE$20 -> 0 | G39: =CntyDataLink!$CH$20 -> 0 | H39: =CntyDataLink!$CK$20 -> 72 | I39: =CntyDataLink!$CN$20 -> 80 | J39: =CntyDataLink!$CP$20 -> 51 | K39: =CntyDataLink!$CT$20 -> 47 | L39: =CntyDataLink!$CW$20 -> -3 | M39: =CntyDataLink!$CZ$20 -> -4 | N39: =CntyDataLink!$DC$20 -> 10 | O39: =CntyDataLink!$DF$20 -> 4 | P39: =CntyDataLink!$DI$20 -> 50 | Q39: =CntyDataLink!$DL$20 -> 64 | R39: =CntyDataLink!$DO$20 -> 138 | S39: =CntyDataLink!$DR$20 -> 10 | T39: =CntyDataLink!$DU$20 -> 5 | U39: =CntyDataLink!$DX$20 -> 9 | V39: =CntyDataLink!$EA$20 -> 4 | W39: =CntyDataLink!$ED$20 -> 24 | X39: =CntyDataLink!$EJ$20 -> 55 | Y39: =SUM(C39:W39) -> 583
B40: Manufactured | C40: =CntyDataLink!$BW$20 -> 26 | D40: =CntyDataLink!$BZ$20 -> 1 | E40: =CntyDataLink!$CC$20 -> 0 | F40: =CntyDataLink!$CF$20 -> 1 | G40: =CntyDataLink!$CI$20 -> 0 | H40: =CntyDataLink!$CL$20 -> 0 | I40: =CntyDataLink!$CO$20 -> 0 | J40: =CntyDataLink!$CR$20 -> 0 | K40: =CntyDataLink!$CU$20 -> 0 | L40: =CntyDataLink!$CX$20 -> 0 | M40: =CntyDataLink!$DA$20 -> 0 | N40: =CntyDataLink!$DD$20 -> 0 | O40: =CntyDataLink!$DG$20 -> 0 | P40: =CntyDataLink!$DJ$20 -> 0 | Q40: =CntyDataLink!$DM$20 -> 0 | R40: =CntyDataLink!$DP$20 -> 0 | S40: =CntyDataLink!$DR$20 -> 10 | T40: =CntyDataLink!$DV$20 -> 3 | U40: =CntyDataLink!$DY$20 -> 1 | V40: =CntyDataLink!$EB$20 -> 0 | W40: =CntyDataLink!$EE$20 -> 19 | X40: =CntyDataLink!$EK$20 -> 0 | Y40: =SUM(C40:W40) -> 61
B41: Total | C41: =SUM(C38:C40) -> 81 | D41: =SUM(D38:D40) -> 65 | E41: 82 | F41: 140 | G41: 166 | H41: 108 | I41: 137 | J41: 51 | K41: 77 | L41: 29 | M41: 50 | N41: 46 | O41: 31 | P41: 51 | Q41: 98 | R41: 170 | S41: 46 | T41: 26 | U41: =SUM(U38:U40) -> 24 | V41: =SUM(V38:V40) -> 16 | W41: =SUM(W38:W40) -> 87 | X41: =SUM(X38:X40) -> 81 | Y41: =SUM(C41:W41) -> 1581

Sheet EmpVsHUxCounty (hidden)
A2: =A45 -> Laconia
A44: Housing Units
A45: =CntyDataLink!A20 -> Laconia
D46: Source: Office of Planning and Development, NH BEA
A47: Units Authorized By Permit | B47: 2010 | C47: =B47+1 -> 2011 | D47: =C47+1 -> 2012 | E47: 2013 | F47: 2014 | G47: 2015 | H47: 2016 | I47: 2017 | J47: 2018 | K47: 2019 | L47: 2020 | M47: 2021
A48: Single Family | B48: =CntyDataLink!$CY$20 -> 54 | C48: =CntyDataLink!$DB$20 -> 36 | D48: =CntyDataLink!$DE$20 -> 27 | E48: =CntyDataLink!$DH$20 -> 1 | F48: =CntyDataLink!$DK$20 -> 34 | G48: =CntyDataLink!$DN$20 -> 32 | H48: =CntyDataLink!$DQ$20 -> 26 | I48: =CntyDataLink!$DT$20 -> 18 | J48: =CntyDataLink!$DW$20 -> 14 | K48: =CntyDataLink!$DZ$20 -> 12 | L48: =CntyDataLink!$EC$20 -> 44 | M48: =CntyDataLink!$EI$20 -> 26
A49: Multi-family | B49: =CntyDataLink!$CZ$20 -> -4 | C49: =CntyDataLink!$DC$20 -> 10 | D49: =CntyDataLink!$DF$20 -> 4 | E49: =CntyDataLink!$DI$20 -> 50 | F49: =CntyDataLink!$DL$20 -> 64 | G49: =CntyDataLink!$DO$20 -> 138 | H49: =CntyDataLink!$DR$20 -> 10 | I49: =CntyDataLink!$DU$20 -> 5 | J49: =CntyDataLink!$DX$20 -> 9 | K49: =CntyDataLink!$EA$20 -> 4 | L49: =CntyDataLink!$ED$20 -> 24 | M49: =CntyDataLink!$EJ$20 -> 55
A50: Manufactured | B50: =CntyDataLink!$DA$20 -> 0 | C50: =CntyDataLink!$DD$20 -> 0 | D50: =CntyDataLink!$DG$20 -> 0 | E50: =CntyDataLink!$DJ$20 -> 0 | F50: =CntyDataLink!$DM$20 -> 0 | G50: =CntyDataLink!$DP$20 -> 0 | H50: =CntyDataLink!$DR$20 -> 10 | I50: =CntyDataLink!$DV$20 -> 3 | J50: =CntyDataLink!$DY$20 -> 1 | K50: =CntyDataLink!$EB$20 -> 0 | L50: =CntyDataLink!$EE$20 -> 19 | M50: =CntyDataLink!$EK$20 -> 0
A51: Total | B51: =SUM(B48:B50) -> 50 | C51: 46 | D51: 31 | E51: 51 | F51: 98 | G51: 170 | H51: 46 | I51: 26 | J51: =SUM(J48:J50) -> 24 | K51: =SUM(K48:K50) -> 16 | L51: =SUM(L48:L50) -> 87 | M51: =SUM(M48:M50) -> 81
A53: Total Housing Units | B53: 2010 Census | C53: 2011 | D53: =C53+1 -> 2012 | E53: 2013 | F53: 2014 | G53: 2015 | H53: 2016 | I53: 2017 | J53: 2018 | K53: 2019 | L53: 2020 | M53: 2021 | N53: 2022
A54: Single Family | B54: =CntyDataLink!$BA$167 -> 4979 | C54: =B48+B54 -> 5033 | D54: =C48+C54 -> 5069 | E54: 5096 | F54: 5097 | G54: 5131 | H54: 5163 | I54: 5189 | J54: 5207 | K54: 5221 | L54: =K54+K48 -> 5233 | M54: 5277 | N54: =M54+M48 -> 5303
A55: Multi Family | B55: =CntyDataLink!$BB$167 -> 4425 | C55: =B49+B55 -> 4421 | D55: 4431 | E55: 4435 | F55: 4485 | G55: 4549 | H55: 4687 | I55: 4697 | J55: 4702 | K55: 4711 | L55: 4715 | M55: 4739 | N55: =M55+M49 -> 4794
A56: =A50 -> Manufactured | B56: =CntyDataLink!$BC$167 -> 475 | C56: =B50+B56 -> 475 | D56: 475 | E56: 475 | F56: 475 | G56: 475 | H56: 475 | I56: 485 | J56: 488 | K56: 489 | L56: 489 | M56: 508 | N56: =M56+M50 -> 508
A57: Total | B57: =SUM(B54:B56) -> 9879 | C57: 9929 | D57: 9975 | E57: 10006 | F57: 10057 | G57: 10155 | H57: 10325 | I57: 10371 | J57: 10397 | K57: 10421 | L57: 10437 | M57: 10524 | N57: =SUM(N54:N56) -> 10605
A59: Percent Change | B59: 2000-2010 Census | C59: 10-11 | D59: 11-12 | E59: 12-13 | F59: 13-14 | G59: 14-15 | H59: 15-16 | I59: 16-17 | J59: 17-18 | K59: 18-19 | L59: 19-20 | M59: 20-21 | N59: 21-22
A60: Single Family | B60: =(B54-CntyDataLink!CF$65)/CntyDataLink!CF$65 -> 0.1790196543 | C60: =(C54-B54)/B54 -> 0.01084555132 | D60: 0.007152791576 | E60: 0.005326494378 | F60: 0.0001962323391 | G60: 0.006670590543 | H60: 0.006236601052 | I60: 0.005035831881 | J60: 0.003468876469 | K60: 0.002688688304 | L60: 0.002298410266 | M60: 0.008408178865 | N60: =(N54-M54)/M54 -> 0.00492704188
A61: Multi Family | B61: =(B55-SUM(CntyDataLink!CG65:CM65))/SUM(CntyDataLink!CG65:CM65) -> 0.08085002443 | C61: =(C55-B55)/B55 -> -0.0009039548023 | D61: 0.00226193169 | E61: 0.0009027307606 | F61: 0.01127395716 | G61: 0.01426978818 | H61: 0.03033633766 | I61: 0.002133560913 | J61: 0.001064509261 | K61: 0.001914079115 | L61: 0.0008490766292 | M61: 0.005090137858 | N61: 0.01160582401
A62: =A50 -> Manufactured | B62: =(B56-SUM(CntyDataLink!CN65))/(CntyDataLink!CN65) -> 1.004219409 | C62: =(C56-B56)/B56 -> 0 | D62: 0 | E62: 0 | F62: 0 | G62: 0 | H62: 0 | I62: 0.02105263158 | J62: 0.00618556701 | K62: 0.002049180328 | L62: 0 | M62: 0.03885480573 | N62: 0
A63: Total | B63: =(B57-CntyDataLink!$CE65)/CntyDataLink!$CE65 -> 0.1548982932 | C63: =(C57-B57)/B57 -> 0.005061241016 | D63: 0.004632893544 | E63: 0.003107769424 | F63: 0.005096941835 | G63: 0.009744456597 | H63: 0.01674052191 | I63: 0.004455205811 | J63: 0.002506990647 | K63: 0.00230835818 | L63: 0.00153536129 | M63: 0.008335728658 | N63: 0.007696693273
A68: Private Employment
A69: =CntyDataLink!A25 -> Laconia
C70: 2011 | D70: =C70+1 -> 2012 | E70: =D70+1 -> 2013 | F70: =E70+1 -> 2014 | G70: =F70+1 -> 2015 | H70: =G70+1 -> 2016 | I70: =H70+1 -> 2017 | J70: =I70+1 -> 2018 | K70: =J70+1 -> 2019 | L70: =K70+1 -> 2020 | M70: =L70+1 -> 2021 | N70: =M70+1 -> 2022
A71: Goods Producing | C71: 61 | D71: 185 | E71: 148 | F71: 161 | G71: 149 | H71: 144 | I71: 165 | J71: 164 | K71: 155 | L71: 150 | M71: 180 | N71: 205
A72: Service Providing | C72: 641 | D72: 3699 | E72: 3706 | F72: 3602 | G72: 3575 | H72: 3698 | I72: 3767 | J72: 3827 | K72: 3852 | L72: 3472 | M72: 3734 | N72: 3779
A73: Total Private Emp | C73: 702 | D73: 3885 | E73: 3854 | F73: 3763 | G73: 3724 | H73: 3842 | I73: 3933 | J73: 3991 | K73: 4008 | L73: 3622 | M73: 3914 | N73: 3983
A75: Percent Change | D75: 10-11 | E75: 11-12 | F75: 12-13 | G75: 13-14 | H75: 14-15 | I75: 15-16 | J75: 16-17 | K75: 17-18 | L75: 18-19 | M75: 19-20 | N75: 20-21
A76: Goods Producing | D76: -0.2179487179 | E76: -0.262295082 | F76: 0.3555555556 | G76: -0.2459016393 | H76: 0.1956521739 | I76: -0.01818181818 | J76: 0.09259259259 | K76: 0.186440678 | L76: 0.05714285714 | M76: 0.2162162162 | N76: 0.2
A77: Service Providing | D77: 0.05081967213 | E77: -0.02184087363 | F77: 0.08771929825 | G77: 0.05425219941 | H77: -0.006954102921 | I77: 0 | J77: 0.02380952381 | K77: 0.02599179207 | L77: 0.04 | M77: -0.07435897436 | N77: 0.08033240997
A78: Total Private Emp | D78: 0.02034883721 | E78: -0.04273504274 | F78: 0.1056547619 | G78: 0.02826379542 | H78: 0.006544502618 | I78: -0.001300390117 | J78: 0.02734375 | K78: 0.04055766793 | L78: 0.04141291108 | M78: -0.05029239766 | N78: 0.09236453202
A82: Source: New Hampshire Department of Employment Security
A84: =A2 -> Laconia
C120: 2012 | D120: =C120+1 -> 2013 | E120: 2014 | F120: 2015 | G120: 2016 | H120: 2017 | I120: 2018 | J120: 2019 | K120: 2020 | L120: 2021 | M120: 2022
A121: Total Housing Units | C121: =D$57 -> 9975 | D121: 10006 | E121: 10057 | F121: 10155 | G121: 10325 | H121: 10371 | I121: 10397 | J121: 10421 | K121: 10437 | L121: 10524 | M121: =N$57 -> 10605
A122: Private & Government Emp. | C122: =VALUE(CntyDataLink!$CM$25) -> 9542 | D122: =VALUE(CntyDataLink!$CU$25) -> 9506 | E122: =VALUE(CntyDataLink!$DC$25) -> 9327 | F122: =VALUE(CntyDataLink!$DK$25) -> 9378 | G122: =VALUE(CntyDataLink!$DS$25) -> 9226 | H122: =VALUE(CntyDataLink!$EA$25) -> 9253 | I122: =VALUE(CntyDataLink!$EI$25) -> 9224 | J122: =VALUE(CntyDataLink!$EQ$25) -> 9270 | K122: =VALUE(CntyDataLink!$FA$25) -> 8597 | L122: =VALUE(CntyDataLink!$FK$25) -> 8472 | M122: =VALUE(CntyDataLink!$FU$25) -> 8615
A124: Source: New Hampshire Department of Employment Security and Office of Planning and Development, NH BEA

Sheet HHIncome-10YearComparison (hidden)
B2: =CntyDataLink!A35 -> Laconia
B4: INCOME CHARACTERISTICS
B27: Households By Household Income
E28: 2008-2012 | I28: 2013-2017 | L28: 2018-2022 | P28: Statistically Significant Change
B29: Household Income | E29: Estimate | F29: Margin of Error | I29: Estimate | J29: Margin of Error | L29: Estimate | M29: Margin of Error | P29: 2012-2022 | Q29: 2017-2022
B30: Less than $10,000 | E30: =CntyDataLinkPrior10YearEstimate!$B$120 -> 536 | F30: =CntyDataLinkPrior10YearEstimate!$C$120 -> 177 | G30: =E30/SUM($E$30:$E$39) -> 0.07503849923 | I30: =CntyDataLinkPrior5YearEstimates!$B$120 -> 536 | J30: =CntyDataLinkPrior5YearEstimates!$C$120 -> 177 | K30: =I30/SUM($I$30:$I$39) -> 0.07503849923 | L30: =CntyDataLink!$B$120 -> 272 | M30: =CntyDataLink!$C$120 -> 171 | N30: =L30/SUM($L$30:$L$39) -> 0.03905240488 | P30: =StatisticallySignificantCalcs!$A$83 -> Y | Q30: =StatisticallySignificantCalcs!$J$83 -> N
B31: $10,000 to $14,999 | E31: =CntyDataLinkPrior10YearEstimate!$D$120 -> 441 | F31: =CntyDataLinkPrior10YearEstimate!$E$120 -> 120 | G31: =E31/SUM($E$30:$E$39) -> 0.06173876522 | I31: =CntyDataLinkPrior5YearEstimates!$D$120 -> 441 | J31: =CntyDataLinkPrior5YearEstimates!$E$120 -> 120 | K31: =I31/SUM($I$30:$I$39) -> 0.06173876522 | L31: =CntyDataLink!$D$120 -> 318 | M31: =CntyDataLink!$E$120 -> 164 | N31: =L31/SUM($L$30:$L$39) -> 0.04565685571 | P31: =StatisticallySignificantCalcs!$A$84 -> N | Q31: =StatisticallySignificantCalcs!$J$84 -> N
B32: $15,000 to $24,999 | E32: =CntyDataLinkPrior10YearEstimate!$F$120 -> 801 | F32: =CntyDataLinkPrior10YearEstimate!$G$120 -> 188.4303585 | G32: 0.1121377572 | I32: =CntyDataLinkPrior5YearEstimates!$F$120 -> 801 | J32: =CntyDataLinkPrior5YearEstimates!$G$120 -> 188.4303585 | K32: 0.1121377572 | L32: =CntyDataLink!$F$120 -> 504 | M32: =CntyDataLink!$G$120 -> 159.2011306 | N32: 0.07236180905 | P32: =StatisticallySignificantCalcs!$A$85 -> Y | Q32: =StatisticallySignificantCalcs!$J$85 -> N
B33: $25,000 to $34,999 | E33: =CntyDataLinkPrior10YearEstimate!$H$120 -> 738 | F33: =CntyDataLinkPrior10YearEstimate!$I$120 -> 187.5446613 | G33: 0.1033179336 | I33: =CntyDataLinkPrior5YearEstimates!$H$120 -> 738 | J33: =CntyDataLinkPrior5YearEstimates!$I$120 -> 187.5446613 | K33: 0.1033179336 | L33: =CntyDataLink!$H$120 -> 762 | M33: =CntyDataLink!$I$120 -> 239.0397456 | N33: 0.1094041637 | P33: =StatisticallySignificantCalcs!$A$86 -> N | Q33: =StatisticallySignificantCalcs!$J$86 -> N
B34: $35,000 to $49,999 | E34: =CntyDataLinkPrior10YearEstimate!$J$120 -> 1300 | F34: =CntyDataLinkPrior10YearEstimate!$K$120 -> 260.0326903 | G34: 0.1819963601 | I34: =CntyDataLinkPrior5YearEstimates!$J$120 -> 1300 | J34: =CntyDataLinkPrior5YearEstimates!$K$120 -> 260.0326903 | K34: 0.1819963601 | L34: =CntyDataLink!$J$120 -> 722 | M34: =CntyDataLink!$K$120 -> 256.1366823 | N34: 0.103661163 | P34: =StatisticallySignificantCalcs!$A$87 -> Y | Q34: =StatisticallySignificantCalcs!$J$87 -> N
B35: $50,000 to $74,999 | E35: =CntyDataLinkPrior10YearEstimate!$L$120 -> 1226 | F35: =CntyDataLinkPrior10YearEstimate!$M$120 -> 234.3608329 | G35: 0.1716365673 | I35: =CntyDataLinkPrior5YearEstimates!$L$120 -> 1226 | J35: =CntyDataLinkPrior5YearEstimates!$M$120 -> 234.3608329 | K35: 0.1716365673 | L35: =CntyDataLink!$L$120 -> 1248 | M35: =CntyDataLink!$M$120 -> 294.4299577 | N35: 0.1791816224 | P35: =StatisticallySignificantCalcs!$A$88 -> N | Q35: =StatisticallySignificantCalcs!$J$88 -> N
B36: $75,000 to $99,999 | E36: =CntyDataLinkPrior10YearEstimate!$N$120 -> 624 | F36: =CntyDataLinkPrior10YearEstimate!$O$120 -> 165 | G36: 0.08735825283 | I36: =CntyDataLinkPrior5YearEstimates!$N$120 -> 624 | J36: =CntyDataLinkPrior5YearEstimates!$O$120 -> 165 | K36: 0.08735825283 | L36: =CntyDataLink!$N$120 -> 1082 | M36: =CntyDataLink!$O$120 -> 228 | N36: 0.1553481694 | P36: =StatisticallySignificantCalcs!$A$89 -> Y | Q36: =StatisticallySignificantCalcs!$J$89 -> N
B37: $100,000 to $149,999 | E37: =CntyDataLinkPrior10YearEstimate!$P$120 -> 1007 | F37: =CntyDataLinkPrior10YearEstimate!$Q$120 -> 206.813926 | G37: 0.1409771805 | I37: =CntyDataLinkPrior5YearEstimates!$P$120 -> 1007 | J37: =CntyDataLinkPrior5YearEstimates!$Q$120 -> 206.813926 | K37: 0.1409771805 | L37: =CntyDataLink!$P$120 -> 1188 | M37: =CntyDataLink!$Q$120 -> 241.8346543 | N37: 0.1705671213 | P37: =StatisticallySignificantCalcs!$A$90 -> N | Q37: =StatisticallySignificantCalcs!$J$90 -> N
B38: $150,000 to $199,999 | E38: =CntyDataLinkPrior10YearEstimate!$R$120 -> 288 | F38: =CntyDataLinkPrior10YearEstimate!$S$120 -> 95 | G38: 0.04031919362 | I38: =CntyDataLinkPrior5YearEstimates!$R$120 -> 288 | J38: =CntyDataLinkPrior5YearEstimates!$S$120 -> 95 | K38: 0.04031919362 | L38: =CntyDataLink!$R$120 -> 419 | M38: =CntyDataLink!$S$120 -> 128 | N38: 0.06015793252 | P38: =StatisticallySignificantCalcs!$A$91 -> N | Q38: =StatisticallySignificantCalcs!$J$91 -> N
B39: Greater than $200,000 | E39: =CntyDataLinkPrior10YearEstimate!$T$120 -> 182 | F39: =CntyDataLinkPrior10YearEstimate!$U$120 -> 74 | G39: 0.02547949041 | I39: =CntyDataLinkPrior5YearEstimates!$T$120 -> 182 | J39: =CntyDataLinkPrior5YearEstimates!$U$120 -> 74 | K39: 0.02547949041 | L39: =CntyDataLink!$T$120 -> 450 | M39: =CntyDataLink!$U$120 -> 148 | N39: 0.06460875808 | P39: =StatisticallySignificantCalcs!$A$92 -> Y | Q39: =StatisticallySignificantCalcs!$J$92 -> N
E40: 491895 | I40: 491895
C41: Median HH Income | E41: =CntyDataLinkPrior10YearEstimate!$BV$128 -> 47817 | F41: =CntyDataLinkPrior10YearEstimate!$BW$128 -> 2617 | I41: =CntyDataLinkPrior5YearEstimates!$BV$128 -> 48893 | J41: =CntyDataLinkPrior5YearEstimates!$BW$128 -> 4719 | L41: =CntyDataLink!$BV$128 -> 67856 | M41: =CntyDataLink!$BW$128 -> 7883
C42: HH Income in 2020 Dollars | E42: =($E$50)*E41 -> 60950.5655 | F42: =($E$50)*F41 -> 3335.793335 | I42: =($E$49)*I41 -> 58374.59577 | J42: =($E$49)*J41 -> 5634.134077
B44: ="Source: "& " "&E28&", "&I28&" and "&L28& " American Community Survey; Tables B25119; B19001" -> Source: 2008-2012, 2013-2017 and 2018-2022 American Community Survey; Tables B25119; B19001
B46: Data from the American Community Survey are estimates.
B48: CPI Adjustment Factor
B49: 2013-2017 | E49: 1.193925424
B50: 2008-2012 | E50: 1.274663101

Sheet HHIncomeByAge (hidden)
C2: =CntyDataLink!A55 -> Laconia
C3: INCOME CHARACTERISTICS
C21: =HHIncomeByAge!C2 -> Laconia | D21: Household Income in 2022
G22: Households by Age of Householder
D23: Households | E23: Margin of Error Households | G23: Under 25 | H23: Margin of Error Under 25 | J23: 25 to 44 | K23: Margin of Error 25 to 44 | M23: 45 to 64 | N23: Margin of Error 45 to 64 | P23: 65 & Over | Q23: Margin of Error 65 & Over | S23: Family Households | T23: Margin of Error Family HH | U23: Non-Family HH | V23: Margin of Error Non-Family HH
C24: Less Than $10,000 | D24: =CntyDataLink!$D$116 -> 272 | E24: =CntyDataLink!$E$116 -> 171 | G24: =CntyDataLink!$AN$116 -> 0 | H24: =CntyDataLink!$AO$116 -> 19 | J24: =CntyDataLink!$BV$116 -> 4 | K24: =CntyDataLink!$BW$116 -> 9 | M24: =CntyDataLink!$DD$116 -> 194 | N24: =CntyDataLink!$DE$116 -> 161 | P24: =CntyDataLink!$EL$116 -> 74 | Q24: =CntyDataLink!$EM$116 -> 46 | S24: =CntyDataLink!$D$160 -> 5 | T24: =CntyDataLink!$E$160 -> 8 | U24: =CntyDataLink!$AN$160 -> 267 | V24: =CntyDataLink!$AO$160 -> 171
C25: $10,000 to $14,999 | D25: =CntyDataLink!$F$116 -> 318 | E25: =CntyDataLink!$G$116 -> 164 | G25: =CntyDataLink!$AP$116 -> 0 | H25: =CntyDataLink!$AQ$116 -> 19 | J25: =CntyDataLink!$BX$116 -> 115 | K25: =CntyDataLink!$BY$116 -> 123 | M25: =CntyDataLink!$DF$116 -> 118 | N25: =CntyDataLink!$DG$116 -> 89 | P25: =CntyDataLink!$EN$116 -> 85 | Q25: =CntyDataLink!$EO$116 -> 87 | S25: =CntyDataLink!$F$160 -> 138 | T25: =CntyDataLink!$G$160 -> 114 | U25: =CntyDataLink!$AP$160 -> 205 | V25: =CntyDataLink!$AQ$160 -> 151
C26: $15,000 to $19,999 | D26: =CntyDataLink!$H$116 -> 277 | E26: =CntyDataLink!$I$116 -> 132 | G26: =CntyDataLink!$AR$116 -> 0 | H26: =CntyDataLink!$AS$116 -> 19 | J26: =CntyDataLink!$BZ$116 -> 105 | K26: =CntyDataLink!$CA$116 -> 106 | M26: =CntyDataLink!$DH$116 -> 23 | N26: =CntyDataLink!$DI$116 -> 24 | P26: =CntyDataLink!$EP$116 -> 149 | Q26: =CntyDataLink!$EQ$116 -> 90 | S26: =CntyDataLink!$H$160 -> 92 | T26: =CntyDataLink!$I$160 -> 89 | U26: =CntyDataLink!$AR$160 -> 185 | V26: =CntyDataLink!$AS$160 -> 103
C27: $20,000 to $24,999 | D27: =CntyDataLink!$J$116 -> 227 | E27: =CntyDataLink!$K$116 -> 89 | G27: =CntyDataLink!$AT$116 -> 12 | H27: =CntyDataLink!$AU$116 -> 27 | J27: =CntyDataLink!$CB$116 -> 52 | K27: =CntyDataLink!$CC$116 -> 50 | M27: =CntyDataLink!$DJ$116 -> 34 | N27: =CntyDataLink!$DK$116 -> 39 | P27: =CntyDataLink!$ER$116 -> 129 | Q27: =CntyDataLink!$ES$116 -> 59 | S27: =CntyDataLink!$J$160 -> 35 | T27: =CntyDataLink!$K$160 -> 35 | U27: =CntyDataLink!$AT$160 -> 192 | V27: =CntyDataLink!$AU$160 -> 79
C28: $25,000 to $29,999 | D28: =CntyDataLink!$L$116 -> 399 | E28: =CntyDataLink!$M$116 -> 166 | G28: =CntyDataLink!$AV$116 -> 0 | H28: =CntyDataLink!$AW$116 -> 19 | J28: =CntyDataLink!$CD$116 -> 99 | K28: =CntyDataLink!$CE$116 -> 66 | M28: =CntyDataLink!$DL$116 -> 105 | N28: =CntyDataLink!$DM$116 -> 91 | P28: =CntyDataLink!$ET$116 -> 195 | Q28: =CntyDataLink!$EU$116 -> 97 | S28: =CntyDataLink!$L$160 -> 175 | T28: =CntyDataLink!$M$160 -> 89 | U28: =CntyDataLink!$AV$160 -> 268 | V28: =CntyDataLink!$AW$160 -> 132
C29: $30,000 to $34,999 | D29: =CntyDataLink!$N$116 -> 363 | E29: =CntyDataLink!$O$116 -> 172 | G29: =CntyDataLink!$AX$116 -> 0 | H29: =CntyDataLink!$AY$116 -> 19 | J29: =CntyDataLink!$CF$116 -> 21 | K29: =CntyDataLink!$CG$116 -> 34 | M29: =CntyDataLink!$DN$116 -> 153 | N29: =CntyDataLink!$DO$116 -> 102 | P29: =CntyDataLink!$EV$116 -> 189 | Q29: =CntyDataLink!$EW$116 -> 127 | S29: =CntyDataLink!$N$160 -> 102 | T29: =CntyDataLink!$O$160 -> 87 | U29: =CntyDataLink!$AX$160 -> 261 | V29: =CntyDataLink!$AY$160 -> 143
C30: $35,000 to $39,999 | D30: =CntyDataLink!$P$116 -> 286 | E30: =CntyDataLink!$Q$116 -> 161 | G30: =CntyDataLink!$AZ$116 -> 0 | H30: =CntyDataLink!$BA$116 -> 19 | J30: =CntyDataLink!$CH$116 -> 160 | K30: =CntyDataLink!$CI$116 -> 150 | M30: =CntyDataLink!$DP$116 -> 73 | N30: =CntyDataLink!$DQ$116 -> 62 | P30: =CntyDataLink!$EX$116 -> 53 | Q30: =CntyDataLink!$EY$116 -> 41 | S30: =CntyDataLink!$P$160 -> 196 | T30: =CntyDataLink!$Q$160 -> 157 | U30: =CntyDataLink!$AZ$160 -> 103 | V30: =CntyDataLink!$BA$160 -> 48
C31: $40,000 to $44,999 | D31: =CntyDataLink!$R$116 -> 221 | E31: =CntyDataLink!$S$116 -> 174 | G31: =CntyDataLink!$BB$116 -> 0 | H31: =CntyDataLink!$BC$116 -> 19 | J31: =CntyDataLink!$CJ$116 -> 41 | K31: =CntyDataLink!$CK$116 -> 49 | M31: =CntyDataLink!$DR$116 -> 164 | N31: =CntyDataLink!$DS$116 -> 170 | P31: =CntyDataLink!$EZ$116 -> 16 | Q31: =CntyDataLink!$FA$116 -> 16 | S31: =CntyDataLink!$R$160 -> 68 | T31: =CntyDataLink!$S$160 -> 73 | U31: =CntyDataLink!$BB$160 -> 202 | V31: =CntyDataLink!$BC$160 -> 175
C32: $45,000 to $49,999 | D32: =CntyDataLink!$T$116 -> 215 | E32: =CntyDataLink!$U$116 -> 97 | G32: =CntyDataLink!$BD$116 -> 0 | H32: =CntyDataLink!$BE$116 -> 19 | J32: =CntyDataLink!$CL$116 -> 67 | K32: =CntyDataLink!$CM$116 -> 60 | M32: =CntyDataLink!$DT$116 -> 66 | N32: =CntyDataLink!$DU$116 -> 64 | P32: =CntyDataLink!$FB$116 -> 82 | Q32: =CntyDataLink!$FC$116 -> 59 | S32: =CntyDataLink!$T$160 -> 126 | T32: =CntyDataLink!$U$160 -> 85 | U32: =CntyDataLink!$BD$160 -> 93 | V32: =CntyDataLink!$BE$160 -> 73
C33: $50,000 to $59,999 | D33: =CntyDataLink!$V$116 -> 611 | E33: =CntyDataLink!$W$116 -> 180 | G33: =CntyDataLink!$BF$116 -> 0 | H33: =CntyDataLink!$BG$116 -> 19 | J33: =CntyDataLink!$CN$116 -> 160 | K33: =CntyDataLink!$CO$116 -> 102 | M33: =CntyDataLink!$DV$116 -> 204 | N33: =CntyDataLink!$DW$116 -> 126 | P33: =CntyDataLink!$FD$116 -> 247 | Q33: =CntyDataLink!$FE$116 -> 79 | S33: =CntyDataLink!$V$160 -> 342 | T33: =CntyDataLink!$W$160 -> 147 | U33: =CntyDataLink!$BF$160 -> 251 | V33: =CntyDataLink!$BG$160 -> 145
C34: $60,000 to $74,999 | D34: =CntyDataLink!$X$116 -> 637 | E34: =CntyDataLink!$Y$116 -> 233 | G34: =CntyDataLink!$BH$116 -> 0 | H34: =CntyDataLink!$BI$116 -> 19 | J34: =CntyDataLink!$CP$116 -> 244 | K34: =CntyDataLink!$CQ$116 -> 126 | M34: =CntyDataLink!$DX$116 -> 169 | N34: =CntyDataLink!$DY$116 -> 117 | P34: =CntyDataLink!$FF$116 -> 224 | Q34: =CntyDataLink!$FG$116 -> 129 | S34: =CntyDataLink!$X$160 -> 447 | T34: =CntyDataLink!$Y$160 -> 197 | U34: =CntyDataLink!$BH$160 -> 236 | V34: =CntyDataLink!$BI$160 -> 120
C35: $75,000 to $99,999 | D35: =CntyDataLink!$Z$116 -> 1082 | E35: =CntyDataLink!$AA$116 -> 228 | G35: =CntyDataLink!$BJ$116 -> 11 | H35: =CntyDataLink!$BK$116 -> 21 | J35: =CntyDataLink!$CR$116 -> 480 | K35: =CntyDataLink!$CS$116 -> 178 | M35: =CntyDataLink!$DZ$116 -> 317 | N35: =CntyDataLink!$EA$116 -> 129 | P35: =CntyDataLink!$FH$116 -> 274 | Q35: =CntyDataLink!$FI$116 -> 98 | S35: =CntyDataLink!$Z$160 -> 806 | T35: =CntyDataLink!$AA$160 -> 190 | U35: =CntyDataLink!$BJ$160 -> 197 | V35: =CntyDataLink!$BK$160 -> 96
C36: $100,000 to $124,999 | D36: =CntyDataLink!$AB$116 -> 664 | E36: =CntyDataLink!$AC$116 -> 170 | G36: =CntyDataLink!$BL$116 -> 41 | H36: =CntyDataLink!$BM$116 -> 62 | J36: =CntyDataLink!$CT$116 -> 277 | K36: =CntyDataLink!$CU$116 -> 122 | M36: =CntyDataLink!$EB$116 -> 256 | N36: =CntyDataLink!$EC$116 -> 123 | P36: =CntyDataLink!$FJ$116 -> 90 | Q36: =CntyDataLink!$FK$116 -> 59 | S36: =CntyDataLink!$AB$160 -> 415 | T36: =CntyDataLink!$AC$160 -> 117 | U36: =CntyDataLink!$BL$160 -> 209 | V36: =CntyDataLink!$BM$160 -> 121
C37: $125,000 to $149,999 | D37: =CntyDataLink!$AD$116 -> 524 | E37: =CntyDataLink!$AE$116 -> 172 | G37: =CntyDataLink!$BN$116 -> 0 | H37: =CntyDataLink!$BO$116 -> 19 | J37: =CntyDataLink!$CV$116 -> 155 | K37: =CntyDataLink!$CW$116 -> 108 | M37: =CntyDataLink!$ED$116 -> 194 | N37: =CntyDataLink!$EE$116 -> 98 | P37: =CntyDataLink!$FL$116 -> 175 | Q37: =CntyDataLink!$FM$116 -> 111 | S37: =CntyDataLink!$AD$160 -> 432 | T37: =CntyDataLink!$AE$160 -> 136 | U37: =CntyDataLink!$BN$160 -> 92 | V37: =CntyDataLink!$BO$160 -> 76
C38: $150,000 to $199,999 | D38: =CntyDataLink!$AF$116 -> 419 | E38: =CntyDataLink!$AG$116 -> 128 | G38: =CntyDataLink!$BP$116 -> 0 | H38: =CntyDataLink!$BQ$116 -> 19 | J38: =CntyDataLink!$CX$116 -> 62 | K38: =CntyDataLink!$CY$116 -> 46 | M38: =CntyDataLink!$EF$116 -> 264 | N38: =CntyDataLink!$EG$116 -> 112 | P38: =CntyDataLink!$FN$116 -> 93 | Q38: =CntyDataLink!$FO$116 -> 64 | S38: =CntyDataLink!$AF$160 -> 340 | T38: =CntyDataLink!$AG$160 -> 124 | U38: =CntyDataLink!$BP$160 -> 80 | V38: =CntyDataLink!$BQ$160 -> 65
C39: $200,000 or More | D39: =CntyDataLink!$AH$116 -> 450 | E39: =CntyDataLink!$AI$116 -> 148 | G39: =CntyDataLink!$BR$116 -> 0 | H39: =CntyDataLink!$BS$116 -> 19 | J39: =CntyDataLink!$CZ$116 -> 44 | K39: =CntyDataLink!$DA$116 -> 46 | M39: =CntyDataLink!$EH$116 -> 277 | N39: =CntyDataLink!$EI$116 -> 107 | P39: =CntyDataLink!$FP$116 -> 129 | Q39: =CntyDataLink!$FQ$116 -> 69 | S39: =CntyDataLink!$AH$160 -> 338 | T39: =CntyDataLink!$AI$160 -> 118 | U39: =CntyDataLink!$BR$160 -> 67 | V39: =CntyDataLink!$BS$160 -> 57
C41: Total Households | D41: =CntyDataLink!$B$116 -> 6965 | E41: =CntyDataLink!$C$116 -> 394 | G41: =CntyDataLink!$AL$116 -> 64 | H41: =CntyDataLink!$AM$116 -> 71 | J41: =CntyDataLink!$BT$116 -> 2086 | K41: =CntyDataLink!$BU$116 -> 251 | M41: =CntyDataLink!$DB$116 -> 2611 | N41: =CntyDataLink!$DC$116 -> 274 | P41: =CntyDataLink!$EJ$116 -> 2204 | Q41: =CntyDataLink!$EK$116 -> 299 | S41: =CntyDataLink!$B$160 -> 4057 | T41: =CntyDataLink!$C$160 -> 295 | U41: =CntyDataLink!$AL$160 -> 2908 | V41: =CntyDataLink!$AM$160 -> 393
C42: Median Household Inc | D42: =CntyDataLink!$FR$116 -> 67856 | E42: =CntyDataLink!$FS$116 -> 7883 | G42: =CntyDataLink!$FT$116 -> 108049 | H42: =CntyDataLink!$FU$116 -> 73409 | J42: =CntyDataLink!$FV$116 -> 72685 | K42: =CntyDataLink!$FW$116 -> 14893 | M42: =CntyDataLink!$FX$116 -> 75139 | N42: =CntyDataLink!$FY$116 -> 23396 | P42: =CntyDataLink!$FZ$116 -> 54730 | Q42: =CntyDataLink!$GA$116 -> 8196 | S42: =CntyDataLink!$AJ$160 -> 88464 | T42: =CntyDataLink!$AK$160 -> 4774 | U42: =CntyDataLink!BT$160 -> 38500 | V42: =CntyDataLink!$BU$160 -> 10087
C44: Source: 2018-2022 American Community Survey Table B19001; B19037; B19101; B19102; B19112; B19113; B19049
C45: Data from the American Community Survey are estimates
C47: =C2 -> Laconia
C48: INCOME CHARACTERISTICS
C80: Source: 2018-2022 American Community Survey Table B19001; B19102 | P80: Data from the American Community Survey are estimates

Sheet HHIncomeByTenure (hidden)
D2: =CntyDataLink!A80 -> Laconia
D3: INCOME CHARACTERISTICS
D28: =D2 -> Laconia
D29: Household Income By Tenure
F30: 2022 Household Income 1 | H30: Occupied Housing Units | I30: MOE Occupied Housing Units | J30: Owner Occupied Housing Units | K30: MOE Owner Occupied Housing Units | L30: Renter Occupied Housing Units | M30: MOE Renter Occupied Housing Units
F32: Total | H32: =CntyDataLink!$B$128 -> 6965 | I32: =CntyDataLink!$C$128 -> 394 | J32: =CntyDataLink!$D$128 -> 4095 | K32: =CntyDataLink!$E$128 -> 367 | L32: =CntyDataLink!$AB$128 -> 2870 | M32: =CntyDataLink!$AC$128 -> 417
D33: 4999 | E33: =VALUE(RIGHT(F33,7)) -> 5000 | F33: Less Than $5,000 | H33: =CntyDataLink!$AZ$128 -> 178 | I33: =CntyDataLink!$BA$128 -> 139.7426206 | J33: =CntyDataLink!$F$128 -> 22 | K33: =CntyDataLink!$G$128 -> 22 | L33: =CntyDataLink!$AD$128 -> 156 | M33: =CntyDataLink!$AE$128 -> 138
C34: =VALUE(RIGHT($F33,7)) -> 5000 | D34: 4999 | E34: 10000 | F34: $5,000 to $10,000 | H34: =CntyDataLink!$BB$128 -> 94 | I34: =CntyDataLink!$BC$128 -> 99.62429423 | J34: =CntyDataLink!$H$128 -> 62 | K34: =CntyDataLink!$I$128 -> 95 | L34: =CntyDataLink!$AF$128 -> 32 | M34: =CntyDataLink!$AG$128 -> 30
C35: 10000 | D35: 4999 | E35: 15000 | F35: $10,000 to $15,000 | H35: =CntyDataLink!$BD$128 -> 318 | I35: =CntyDataLink!$BE$128 -> 155.9551217 | J35: =CntyDataLink!$J$128 -> 44 | K35: =CntyDataLink!$K$128 -> 39 | L35: =CntyDataLink!$AH$128 -> 274 | M35: =CntyDataLink!$AI$128 -> 151
C36: 15000 | D36: 4999 | E36: 20000 | F36: $15,000 to $20,000 | H36: =CntyDataLink!$BF$128 -> 277 | I36: =CntyDataLink!$BG$128 -> 136.7808466 | J36: =CntyDataLink!$L$128 -> 100 | K36: =CntyDataLink!$M$128 -> 90 | L36: =CntyDataLink!$AJ$128 -> 177 | M36: =CntyDataLink!$AK$128 -> 103
C37: 20000 | D37: 4999 | E37: 25000 | F37: $20,000 to $25,000 | H37: =CntyDataLink!$BH$128 -> 227 | I37: =CntyDataLink!$BI$128 -> 91.21951546 | J37: =CntyDataLink!$N$128 -> 125 | K37: =CntyDataLink!$O$128 -> 64 | L37: =CntyDataLink!$AL$128 -> 102 | M37: =CntyDataLink!$AM$128 -> 65
C38: 25000 | D38: 9999 | E38: 35000 | F38: $25,000 to $35,000 | H38: =CntyDataLink!$BJ$128 -> 762 | I38: =CntyDataLink!$BK$128 -> 225.816297 | J38: =CntyDataLink!$P$128 -> 351 | K38: =CntyDataLink!$Q$128 -> 152 | L38: =CntyDataLink!$AN$128 -> 411 | M38: =CntyDataLink!$AO$128 -> 167
C39: 35000 | D39: 14999 | E39: 50000 | F39: $35,000 to $50,000 | H39: =CntyDataLink!$BL$128 -> 722 | I39: =CntyDataLink!$BM$128 -> 241.5967715 | J39: =CntyDataLink!$R$128 -> 252 | K39: =CntyDataLink!$S$128 -> 88 | L39: =CntyDataLink!$AP$128 -> 470 | M39: =CntyDataLink!$AQ$128 -> 225
C40: 50000 | D40: 24999 | E40: 75000 | F40: $50,000 to $75,000 | H40: =CntyDataLink!$BN$128 -> 1248 | I40: =CntyDataLink!$BO$128 -> 284.608503 | J40: =CntyDataLink!$T$128 -> 655 | K40: =CntyDataLink!$U$128 -> 211 | L40: =CntyDataLink!$AR$128 -> 593 | M40: =CntyDataLink!$AS$128 -> 191
C41: 75000 | D41: 24999 | E41: 100000 | F41: $75,000 to $100,000 | H41: =CntyDataLink!$BP$128 -> 1082 | I41: =CntyDataLink!$BQ$128 -> 219.7384809 | J41: =CntyDataLink!$V$128 -> 824 | K41: =CntyDataLink!$W$128 -> 171 | L41: =CntyDataLink!$AT$128 -> 258 | M41: =CntyDataLink!$AU$128 -> 138
C42: 100000 | D42: 49999 | E42: 150000 | F42: $100,000 to $150,000 | H42: =CntyDataLink!$BR$128 -> 1188 | I42: =CntyDataLink!$BS$128 -> 292.1797392 | J42: =CntyDataLink!$X$128 -> 881 | K42: =CntyDataLink!$Y$128 -> 213 | L42: =CntyDataLink!$AV$128 -> 307 | M42: =CntyDataLink!$AW$128 -> 200
C43: 150000 | F43: $150,000 and More | H43: =CntyDataLink!$BT$128 -> 869 | I43: =CntyDataLink!$BU$128 -> 197.4487275 | J43: =CntyDataLink!$Z$128 -> 779 | K43: =CntyDataLink!$AA$128 -> 185 | L43: =CntyDataLink!$AX$128 -> 90 | M43: =CntyDataLink!$AY$128 -> 69
F46: Median Household Income 2 | H46: =CntyDataLink!$BV$128 -> 67856 | I46: =CntyDataLink!$BW$128 -> 7883 | J46: =CntyDataLink!$BX$128 -> 91128 | K46: =CntyDataLink!$BY$128 -> 6160 | L46: =CntyDataLink!$BZ$128 -> 43891 | M46: =CntyDataLink!$CA$128 -> 7667
F49: Data from the American Community Survey are estimates
D51: Source: | E51: 1 | F51: 2017-2021 American Community Survey Table B25118; 2022 Inflation Adjusted dollars
E52: 2 | F52: 2017-2021 American Community Survey Table B25119; 2022 Inflation Adjusted dollars
D56: HOUSEHOLD INCOME IN THE PAST 12 MONTHS BY PERCENT OF MEDIAN THRESHOLD
D59: All Occupied Housing Units | I59: Owner Occupied Households | N59: Renter Occupied Households
D61: HOUSEHOLD INCOME | F61: Estimate | G61: Margin Of Error | I61: HOUSEHOLD INCOME | K61: Estimate | L61: Margin Of Error | N61: HOUSEHOLD INCOME | P61: Estimate | Q61: Margin Of Error
C62: =$H$46*0.3 -> 20356.8 | D62: 30% of Median Household Income | F62: =IF($C$62<$C$36,((($C$62-$C$35)/$D$35)*$H$35)+SUM($H$33:$H$34),IF($C$62<$C$37,((($C$62-$C$36)/$D$36)*$H$36)+SUM($H$33:$H$35),IF($C$62<$C$38,((($C$62-$C$37)/$D$37)*$H$37)+SUM($H$33:$H$36),IF($C$62<$C$39,((($C$62-$C$38)/$D$38)*$H$38)+SUM($H$33:$H$37),IF($C$62<$C$40,((($C$62-$C$39)/$D$39)*$H$39)+SUM($H$33:$H$38),IF($C$62<$C$41,((($C$62-$C$40)/$D$40)*$H$40)+SUM($H$33:$H$39),IF($C$62<$C$42,((($C$62-$C$41)/$D$41)*$H$41)+SUM($H$33:$H$40),"False"))))))) -> 883.2019604 | G62: =IF($C$62<$C$36,((($C$62-$C$35)/$D$35)*$I$35)+SQRT(SUM(($I$33^2),($I$34^2))),IF($C$62<$C$37,((($C$62-$C$36)/$D$36)*$I$36)+SQRT(SUM(($I$33^2),($I$34^2),($I$35^2))),IF($C$62<$C$38,((($C$62-$C$37)/$D$37)*$I$37)+SQRT(SUM(($I$33^2),($I$34^2),($I$35^2),($I$36^2))),IF($C$62<$C$39,((($C$62-$C$38)/$D$38)*$I$38)+SQRT(SUM(($I$33^2),($I$34^2),($I$35^2),($I$36^2),($I$37^2))),IF($C$62<$C$40,((($C$62-$C$39)/$D$39)*$I$39)+SQRT(SUM(($I$33^2),($I$34^2),($I$35^2),($I$36^2),($I$37^2),($I$38^2))),IF($C$62<$C$41,((($C$62-$C$40)/$D$40)*$I$40)+SQRT(SUM(($I$33^2),($I$34^2),($I$35^2),($I$36^2),($I$37^2),($I$38^2),($I$39^2))),IF($C$62<$C$42,((($C$62-$C$41)/$D$41)*$I$41)+SQRT((($I$33^2)+($I$34^2)+($I$35^2)+($I$36^2)+($I$37^2)+($I$38^2)+($I$39^2)+($I$40^2))),"False"))))))) -> 275.7392542 | H62: =$J$46*0.3 -> 27338.4 | I62: 30% of Median Household Income | K62: =IF($H$62<$C$36,((($H$62-$C$35)/$D$35)*$J$35)+SUM($J$33:$J$34),IF($H$62<$C$37,((($H$62-$C$36)/$D$36)*$J$36)+SUM($J$33:$J$35),IF($H$62<$C$38,((($H$62-$C$37)/$D$37)*$J$37)+SUM($J$33:$J$36),IF($H$62<$C$39,((($H$62-$C$38)/$D$38)*$J$38)+SUM($J$33:$J$37),IF($H$62<$C$40,((($H$62-$C$39)/$D$39)*$J$39)+SUM($J$33:$J$38),IF($H$62<$C$41,((($H$62-$C$40)/$D$40)*$J$40)+SUM($J$33:$J$39),IF($H$62<$C$42,((($H$62-$C$41)/$D$41)*$J$41)+SUM($J$33:$J$40),"False"))))))) -> 435.0860486 | L62: =IF($H$62<$C$36,((($H$62-$C$35)/$D$35)*$K$35)+SQRT(SUM(($K$33^2),($K$34^2))),IF($H$62<$C$37,((($H$62-$C$36)/$D$36)*$K$36)+SQRT(SUM(($K$33^2),($K$34^2),($K$35^2))),IF($H$62<$C$38,((($H$62-$C$37)/$D$37)*$K$37)+SQRT(SUM(($K$33^2),($K$34^2),($K$35^2),($K$36^2))),IF($H$62<$C$39,((($H$62-$C$38)/$D$38)*$K$38)+SQRT(SUM(($K$33^2),($K$34^2),($K$35^2),($K$36^2),($K$37^2))),IF($H$62<$C$40,((($H$62-$C$39)/$D$39)*$K$39)+SQRT(SUM(($K$33^2),($K$34^2),($K$35^2),($K$36^2),($K$37^2),($K$38^2))),IF($H$62<$C$41,((($H$62-$C$40)/$D$40)*$K$40)+SQRT(SUM(($K$33^2),($K$34^2),($K$35^2),($K$36^2),($K$37^2),($K$38^2),($K$39^2))),IF($H$62<$C$42,((($H$62-$C$41)/$D$41)*$K$41)+SQRT((($K$33^2)+($K$34^2)+($K$35^2)+($K$36^2)+($K$37^2)+($K$38^2)+($K$39^2)+($K$40^2))),"False"))))))) -> 187.9480221 | M62: =$L$46*0.3 -> 13167.3 | N62: 30% of Median Household Income | P62: =IF($M$62<$C$36,((($M$62-$C$35)/$D$35)*$L$35)+SUM($L$33:$L$34),IF($M$62<$C$37,((($M$62-$C$36)/$D$36)*$L$36)+SUM($L$33:$L$35),IF($M$62<$C$38,((($M$62-$C$37)/$D$37)*$L$37)+SUM($L$33:$L$36),IF($M$62<$C$39,((($M$62-$C$38)/$D$38)*$L$38)+SUM($L$33:$L$37),IF($M$62<$C$40,((($M$62-$C$39)/$D$39)*$L$39)+SUM($L$33:$L$38),IF($M$62<$C$41,((($M$62-$C$40)/$D$40)*$L$40)+SUM($L$33:$L$39),IF($M$62<$C$42,((($M$62-$C$41)/$D$41)*$L$41)+SUM($L$33:$L$40),"False"))))))) -> 361.6027606 | Q62: =IF($M$62<$C$36,((($M$62-$C$35)/$D$35)*$M$35)+SQRT(SUM(($M$33^2),($M$34^2))),IF($M$62<$C$37,((($M$62-$C$36)/$D$36)*$M$36)+SQRT(SUM(($M$33^2),($M$34^2),($M$35^2))),IF($M$62<$C$38,((($M$62-$C$37)/$D$37)*$M$37)+SQRT(SUM(($M$33^2),($M$34^2),($M$35^2),($M$36^2))),IF($M$62<$C$39,((($M$62-$C$38)/$D$38)*$M$38)+SQRT(SUM(($M$33^2),($M$34^2),($M$35^2),($M$36^2),($M$37^2))),IF($M$62<$C$40,((($M$62-$C$39)/$D$39)*$M$39)+SQRT(SUM(($M$33^2),($M$34^2),($M$35^2),($M$36^2),($M$37^2),($M$38^2))),IF($M$62<$C$41,((($M$62-$C$40)/$D$40)*$M$40)+SQRT(SUM(($M$33^2),($M$34^2),($M$35^2),($M$36^2),($M$37^2),($M$38^2),($M$39^2))),IF($M$62<$C$42,((($M$62-$C$41)/$D$41)*$M$41)+SQRT((($M$33^2)+($M$34^2)+($M$35^2)+($M$36^2)+($M$37^2)+($M$38^2)+($M$39^2)+($M$40^2))),"False"))))))) -> 236.8948219
A63: 490 | C63: =$H$46*0.5 -> 33928 | D63: 50% of Median Household Income | F63: =IF($C$63<$C$36,((($C$63-$C$35)/$D$35)*$H$35)+SUM($H$33:$H$34),IF($C$63<$C$37,((($C$63-$C$36)/$D$36)*$H$36)+SUM($H$33:$H$35),IF($C$63<$C$38,((($C$63-$C$37)/$D$37)*$H$37)+SUM($H$33:$H$36),IF($C$63<$C$39,((($C$63-$C$38)/$D$38)*$H$38)+SUM($H$33:$H$37),IF($C$63<$C$40,((($C$63-$C$39)/$D$39)*$H$39)+SUM($H$33:$H$38),IF($C$63<$C$41,((($C$63-$C$40)/$D$40)*$H$40)+SUM($H$33:$H$39),IF($C$63<$C$42,((($C$63-$C$41)/$D$41)*$H$41)+SUM($H$33:$H$40),"False"))))))) -> 1774.381638 | G63: =IF($C$63<$C$36,((($C$63-$C$35)/$D$35)*$I$35)+SQRT(SUM(($I$33^2),($I$34^2))),IF($C$63<$C$37,((($C$63-$C$36)/$D$36)*$I$36)+SQRT(SUM(($I$33^2),($I$34^2),($I$35^2))),IF($C$63<$C$38,((($C$63-$C$37)/$D$37)*$I$37)+SQRT(SUM(($I$33^2),($I$34^2),($I$35^2),($I$36^2))),IF($C$63<$C$39,((($C$63-$C$38)/$D$38)*$I$38)+SQRT(SUM(($I$33^2),($I$34^2),($I$35^2),($I$36^2),($I$37^2))),IF($C$63<$C$40,((($C$63-$C$39)/$D$39)*$I$39)+SQRT(SUM(($I$33^2),($I$34^2),($I$35^2),($I$36^2),($I$37^2),($I$38^2))),IF($C$63<$C$41,((($C$63-$C$40)/$D$40)*$I$40)+SQRT(SUM(($I$33^2),($I$34^2),($I$35^2),($I$36^2),($I$37^2),($I$38^2),($I$39^2))),IF($C$63<$C$42,((($C$63-$C$41)/$D$41)*$I$41)+SQRT((($I$33^2)+($I$34^2)+($I$35^2)+($I$36^2)+($I$37^2)+($I$38^2)+($I$39^2)+($I$40^2))),"False"))))))) -> 485.8911558 | H63: =$J$46*0.5 -> 45564 | I63: 50% of Median Household Income | K63: =IF($H$63<$C$36,((($H$63-$C$35)/$D$35)*$J$35)+SUM($J$33:$J$34),IF($H$63<$C$37,((($H$63-$C$36)/$D$36)*$J$36)+SUM($J$33:$J$35),IF($H$63<$C$38,((($H$63-$C$37)/$D$37)*$J$37)+SUM($J$33:$J$36),IF($H$63<$C$39,((($H$63-$C$38)/$D$38)*$J$38)+SUM($J$33:$J$37),IF($H$63<$C$40,((($H$63-$C$39)/$D$39)*$J$39)+SUM($J$33:$J$38),IF($H$63<$C$41,((($H$63-$C$40)/$D$40)*$J$40)+SUM($J$33:$J$39),IF($H$63<$C$42,((($H$63-$C$41)/$D$41)*$J$41)+SUM($J$33:$J$40),"False"))))))) -> 881.4870325 | L63: =IF($H$63<$C$36,((($H$63-$C$35)/$D$35)*$K$35)+SQRT(SUM(($K$33^2),($K$34^2))),IF($H$63<$C$37,((($H$63-$C$36)/$D$36)*$K$36)+SQRT(SUM(($K$33^2),($K$34^2),($K$35^2))),IF($H$63<$C$38,((($H$63-$C$37)/$D$37)*$K$37)+SQRT(SUM(($K$33^2),($K$34^2),($K$35^2),($K$36^2))),IF($H$63<$C$39,((($H$63-$C$38)/$D$38)*$K$38)+SQRT(SUM(($K$33^2),($K$34^2),($K$35^2),($K$36^2),($K$37^2))),IF($H$63<$C$40,((($H$63-$C$39)/$D$39)*$K$39)+SQRT(SUM(($K$33^2),($K$34^2),($K$35^2),($K$36^2),($K$37^2),($K$38^2))),IF($H$63<$C$41,((($H$63-$C$40)/$D$40)*$K$40)+SQRT(SUM(($K$33^2),($K$34^2),($K$35^2),($K$36^2),($K$37^2),($K$38^2),($K$39^2))),IF($H$63<$C$42,((($H$63-$C$41)/$D$41)*$K$41)+SQRT((($K$33^2)+($K$34^2)+($K$35^2)+($K$36^2)+($K$37^2)+($K$38^2)+($K$39^2)+($K$40^2))),"False"))))))) -> 277.2236462 | M63: =$L$46*0.5 -> 21945.5 | N63: 50% of Median Household Income | P63: =IF($M$63<$C$36,((($M$63-$C$35)/$D$35)*$L$35)+SUM($L$33:$L$34),IF($M$63<$C$37,((($M$63-$C$36)/$D$36)*$L$36)+SUM($L$33:$L$35),IF($M$63<$C$38,((($M$63-$C$37)/$D$37)*$L$37)+SUM($L$33:$L$36),IF($M$63<$C$39,((($M$63-$C$38)/$D$38)*$L$38)+SUM($L$33:$L$37),IF($M$63<$C$40,((($M$63-$C$39)/$D$39)*$L$39)+SUM($L$33:$L$38),IF($M$63<$C$41,((($M$63-$C$40)/$D$40)*$L$40)+SUM($L$33:$L$39),IF($M$63<$C$42,((($M$63-$C$41)/$D$41)*$L$41)+SUM($L$33:$L$40),"False"))))))) -> 678.6961392 | Q63: =IF($M$63<$C$36,((($M$63-$C$35)/$D$35)*$M$35)+SQRT(SUM(($M$33^2),($M$34^2))),IF($M$63<$C$37,((($M$63-$C$36)/$D$36)*$M$36)+SQRT(SUM(($M$33^2),($M$34^2),($M$35^2))),IF($M$63<$C$38,((($M$63-$C$37)/$D$37)*$M$37)+SQRT(SUM(($M$33^2),($M$34^2),($M$35^2),($M$36^2))),IF($M$63<$C$39,((($M$63-$C$38)/$D$38)*$M$38)+SQRT(SUM(($M$33^2),($M$34^2),($M$35^2),($M$36^2),($M$37^2))),IF($M$63<$C$40,((($M$63-$C$39)/$D$39)*$M$39)+SQRT(SUM(($M$33^2),($M$34^2),($M$35^2),($M$36^2),($M$37^2),($M$38^2))),IF($M$63<$C$41,((($M$63-$C$40)/$D$40)*$M$40)+SQRT(SUM(($M$33^2),($M$34^2),($M$35^2),($M$36^2),($M$37^2),($M$38^2),($M$39^2))),IF($M$63<$C$42,((($M$63-$C$41)/$D$41)*$M$41)+SQRT((($M$33^2)+($M$34^2)+($M$35^2)+($M$36^2)+($M$37^2)+($M$38^2)+($M$39^2)+($M$40^2))),"False"))))))) -> 256.2814073
C64: =$H$46*0.8 -> 54284.8 | D64: 80% of Median Household Income | F64: =IF($C$64<$C$36,((($C$64-$C$35)/$D$35)*$H$35)+SUM($H$33:$H$34),IF($C$64<$C$37,((($C$64-$C$36)/$D$36)*$H$36)+SUM($H$33:$H$35),IF($C$64<$C$38,((($C$64-$C$37)/$D$37)*$H$37)+SUM($H$33:$H$36),IF($C$64<$C$39,((($C$64-$C$38)/$D$38)*$H$38)+SUM($H$33:$H$37),IF($C$64<$C$40,((($C$64-$C$39)/$D$39)*$H$39)+SUM($H$33:$H$38),IF($C$64<$C$41,((($C$64-$C$40)/$D$40)*$H$40)+SUM($H$33:$H$39),IF($C$64<$C$42,((($C$64-$C$41)/$D$41)*$H$41)+SUM($H$33:$H$40),"False"))))))) -> 2791.905772 | G64: =IF($C$64<$C$36,((($C$64-$C$35)/$D$35)*$I$35)+SQRT(SUM(($I$33^2),($I$34^2))),IF($C$64<$C$37,((($C$64-$C$36)/$D$36)*$I$36)+SQRT(SUM(($I$33^2),($I$34^2),($I$35^2))),IF($C$64<$C$38,((($C$64-$C$37)/$D$37)*$I$37)+SQRT(SUM(($I$33^2),($I$34^2),($I$35^2),($I$36^2))),IF($C$64<$C$39,((($C$64-$C$38)/$D$38)*$I$38)+SQRT(SUM(($I$33^2),($I$34^2),($I$35^2),($I$36^2),($I$37^2))),IF($C$64<$C$40,((($C$64-$C$39)/$D$39)*$I$39)+SQRT(SUM(($I$33^2),($I$34^2),($I$35^2),($I$36^2),($I$37^2),($I$38^2))),IF($C$64<$C$41,((($C$64-$C$40)/$D$40)*$I$40)+SQRT(SUM(($I$33^2),($I$34^2),($I$35^2),($I$36^2),($I$37^2),($I$38^2),($I$39^2))),IF($C$64<$C$42,((($C$64-$C$41)/$D$41)*$I$41)+SQRT((($I$33^2)+($I$34^2)+($I$35^2)+($I$36^2)+($I$37^2)+($I$38^2)+($I$39^2)+($I$40^2))),"False"))))))) -> 484.8629862 | H64: =$J$46*0.8 -> 72902.4 | I64: 80% of Median Household Income | K64: =IF($H$64<$C$36,((($H$64-$C$35)/$D$35)*$J$35)+SUM($J$33:$J$34),IF($H$64<$C$37,((($H$64-$C$36)/$D$36)*$J$36)+SUM($J$33:$J$35),IF($H$64<$C$38,((($H$64-$C$37)/$D$37)*$J$37)+SUM($J$33:$J$36),IF($H$64<$C$39,((($H$64-$C$38)/$D$38)*$J$38)+SUM($J$33:$J$37),IF($H$64<$C$40,((($H$64-$C$39)/$D$39)*$J$39)+SUM($J$33:$J$38),IF($H$64<$C$41,((($H$64-$C$40)/$D$40)*$J$40)+SUM($J$33:$J$39),IF($H$64<$C$42,((($H$64-$C$41)/$D$41)*$J$41)+SUM($J$33:$J$40),"False"))))))) -> 1556.066883 | L64: =IF($H$64<$C$36,((($H$64-$C$35)/$D$35)*$K$35)+SQRT(SUM(($K$33^2),($K$34^2))),IF($H$64<$C$37,((($H$64-$C$36)/$D$36)*$K$36)+SQRT(SUM(($K$33^2),($K$34^2),($K$35^2))),IF($H$64<$C$38,((($H$64-$C$37)/$D$37)*$K$37)+SQRT(SUM(($K$33^2),($K$34^2),($K$35^2),($K$36^2))),IF($H$64<$C$39,((($H$64-$C$38)/$D$38)*$K$38)+SQRT(SUM(($K$33^2),($K$34^2),($K$35^2),($K$36^2),($K$37^2))),IF($H$64<$C$40,((($H$64-$C$39)/$D$39)*$K$39)+SQRT(SUM(($K$33^2),($K$34^2),($K$35^2),($K$36^2),($K$37^2),($K$38^2))),IF($H$64<$C$41,((($H$64-$C$40)/$D$40)*$K$40)+SQRT(SUM(($K$33^2),($K$34^2),($K$35^2),($K$36^2),($K$37^2),($K$38^2),($K$39^2))),IF($H$64<$C$42,((($H$64-$C$41)/$D$41)*$K$41)+SQRT((($K$33^2)+($K$34^2)+($K$35^2)+($K$36^2)+($K$37^2)+($K$38^2)+($K$39^2)+($K$40^2))),"False"))))))) -> 425.8421571 | M64: =$L$46*0.8 -> 35112.8 | N64: 80% of Median Household Income | P64: =IF($M$64<$C$36,((($M$64-$C$35)/$D$35)*$L$35)+SUM($L$33:$L$34),IF($M$64<$C$37,((($M$64-$C$36)/$D$36)*$L$36)+SUM($L$33:$L$35),IF($M$64<$C$38,((($M$64-$C$37)/$D$37)*$L$37)+SUM($L$33:$L$36),IF($M$64<$C$39,((($M$64-$C$38)/$D$38)*$L$38)+SUM($L$33:$L$37),IF($M$64<$C$40,((($M$64-$C$39)/$D$39)*$L$39)+SUM($L$33:$L$38),IF($M$64<$C$41,((($M$64-$C$40)/$D$40)*$L$40)+SUM($L$33:$L$39),IF($M$64<$C$42,((($M$64-$C$41)/$D$41)*$L$41)+SUM($L$33:$L$40),"False"))))))) -> 1155.534636 | Q64: =IF($M$64<$C$36,((($M$64-$C$35)/$D$35)*$M$35)+SQRT(SUM(($M$33^2),($M$34^2))),IF($M$64<$C$37,((($M$64-$C$36)/$D$36)*$M$36)+SQRT(SUM(($M$33^2),($M$34^2),($M$35^2))),IF($M$64<$C$38,((($M$64-$C$37)/$D$37)*$M$37)+SQRT(SUM(($M$33^2),($M$34^2),($M$35^2),($M$36^2))),IF($M$64<$C$39,((($M$64-$C$38)/$D$38)*$M$38)+SQRT(SUM(($M$33^2),($M$34^2),($M$35^2),($M$36^2),($M$37^2))),IF($M$64<$C$40,((($M$64-$C$39)/$D$39)*$M$39)+SQRT(SUM(($M$33^2),($M$34^2),($M$35^2),($M$36^2),($M$37^2),($M$38^2))),IF($M$64<$C$41,((($M$64-$C$40)/$D$40)*$M$40)+SQRT(SUM(($M$33^2),($M$34^2),($M$35^2),($M$36^2),($M$37^2),($M$38^2),($M$39^2))),IF($M$64<$C$42,((($M$64-$C$41)/$D$41)*$M$41)+SQRT((($M$33^2)+($M$34^2)+($M$35^2)+($M$36^2)+($M$37^2)+($M$38^2)+($M$39^2)+($M$40^2))),"False"))))))) -> 294.0412192

Sheet ACS_Source_Table_List (hidden)
A2: ACS Table B01001 | B2: x
A3: ACS Table B01002 | B3: x
A4: ACS Table B03002 | B4: x
A5: ACS Table B05002 | B5: x
A6: ACS Table B07003 | B6: x | C6: Replaces C07001
A7: ACS Table B11001 | B7: x
A8: ACS Table B11002 | B8: x
A9: ACS Table B14001 & B15002 | B9: x | C9: Replaces C15002
A10: ACS Table B17001 | B10: x
A11: ACS Table B17010 | B11: x | C11: Replaces C17010 | D11: Poverty Status by family type
A12: ACS Table B17017 | B12: x | C12: Replaces C17017 | D12: Poverty Status by HH type
A13: ACS Table B18001 | C13: Removed Disability Tables
A14: ACS Table C18001 | C14: Removed Disability Tables
A15: ACS Table B18003 | C15: Removed Disability Tables
A16: ACS Table B18004 | C16: Removed Disability Tables
A17: ACS Table B18005 | C17: Removed Disability Tables
A18: ACS Table B18006 | C18: Removed Disability Tables
A19: ACS Table B18007 | C19: Removed Disability Tables
A20: ACS Table B18008 | C20: Removed Disability Tables
A21: ACS Table B19001 | B21: x
A22: ACS Table B19037 | B22: x
A23: ACS Table B19049 | B23: x
A24: ACS Table B19101& B19113 | B24: s
A25: ACS Table B19201 & B19202 | B25: s
A26: ACS Table B25001, B25003 & B25004 | B26: x
A27: ACS Table B25008 | B27: x
A28: ACS Table B25010 | B28: x
A29: ACS Table B25024 | B29: x
A30: ACS Table B25032 | B30: x
A31: ACS Table B25034 & B25041 | B31: x
A32: ACS Table B25063 & B25064 | B32: x
A33: ACS Table B25070 & B25074 | B33: x
A34: ACS Table B25075 & B25077 | B34: x
A35: ACS Table B25088 | B35: x
A36: ACS Table B25091 | B36: x
A37: ACS Table B25118 & B25119 | B37: x
A44: Tables Removed from 5 Year Estimates
A45: ACS Table C19001 | B45: x | C45: May have to consolidate this table from Table B19001. This has already been done. For 5 year estimates remove worksheet.
A46: ACS Table B25094 | B46: x | C46: No Comparison Table for B25094 Removed
A47: ACS Table B25101 | C47: No Comparison Table for B25101 Removed
A48: ACS Table B25104 & B25105 | C48: No Comparison Table for B25104 & B25105 Removed
A49: ACS Table B25106 | B49: x | C49: No Comparison Table for B25106 Removed

Sheet CntyDataLinkPrior5YearEstimates (hidden)
A1: 1 | B1: =A1+1 -> 2 | C1: 3 | D1: 4 | E1: 5 | F1: 6 | G1: 7 | H1: 8 | I1: 9 | J1: 10 | K1: 11 | L1: 12 | M1: 13 | N1: 14 | O1: 15 | P1: 16 | Q1: 17 | R1: 18 | S1: 19 | T1: 20 | U1: 21 | V1: 22 | W1: 23 | X1: 24 | Y1: 25 | Z1: 26 | AA1: 27 | AB1: 28 | AC1: 29 | AD1: 30 | AE1: 31 | AF1: 32 | AG1: 33 | AH1: 34 | AI1: 35 | AJ1: 36 | AK1: 37 | AL1: 38 | AM1: 39 | AN1: 40 | AO1: 41 | AP1: 42 | AQ1: 43 | AR1: 44 | AS1: 45 | AT1: 46 | AU1: 47 | AV1: 48 | AW1: 49 | AX1: 50 | AY1: 51 | AZ1: 52 | BA1: 53 | BB1: 54 | BC1: 55 | BD1: 56 | BE1: 57 | BF1: 58 | BG1: 59 | BH1: 60 | BI1: 61 | BJ1: 62 | BK1: 63 | BL1: 64 | BM1: 65 | BN1: =BM1+1 -> 66 | BO1: 67 | BP1: 68 | BQ1: 69 | BR1: 70 | BS1: 71 | BT1: 72 | BU1: 73 | BV1: 74 | BW1: 75 | BX1: 76 | BY1: 77 | BZ1: 78 | CA1: 79 | CB1: 80 | CC1: 81 | CD1: 82 | CE1: 83 | CF1: 84 | CG1: 85 | CH1: 86 | CI1: 87 | CJ1: 88 | CK1: 89 | CL1: 90 | CM1: 91 | CN1: 92 | CO1: 93 | CP1: 94 | CQ1: 95 | CR1: 96 | CS1: 97 | CT1: 98 | CU1: 99 | CV1: 100 | CW1: 101 | CX1: 102 | CY1: 103 | CZ1: 104 | DA1: 105 | DB1: 106 | DC1: 107 | DD1: 108 | DE1: 109 | DF1: 110 | DG1: 111 | DH1: 112 | DI1: 113 | DJ1: 114 | DK1: 115 | DL1: 116 | DM1: 117 | DN1: 118 | DO1: 119 | DP1: 120 | DQ1: 121 | DR1: 122 | DS1: 123 | DT1: 124 | DU1: 125 | DV1: 126 | DW1: 127 | DX1: 128 | DY1: 129 | DZ1: =DY1+1 -> 130 | EA1: 131 | EB1: 132 | EC1: 133 | ED1: 134 | EE1: 135 | EF1: 136 | EG1: 137 | EH1: 138 | EI1: 139 | EJ1: 140 | EK1: 141 | EL1: 142 | EM1: 143 | EN1: 144 | EO1: 145 | EP1: 146 | EQ1: 147 | ER1: 148 | ES1: 149 | ET1: 150 | EU1: 151 | EV1: 152 | EW1: 153 | EX1: 154 | EY1: 155 | EZ1: 156 | FA1: 157 | FB1: 158 | FC1: 159 | FD1: 160 | FE1: 161 | FF1: 162 | FG1: 163 | FH1: 164 | FI1: 165 | FJ1: 166 | FK1: 167 | FL1: 168 | FM1: 169 | FN1: 170 | FO1: 171 | FP1: 172 | FQ1: 173 | FR1: 174 | FS1: 175 | FT1: 176 | FU1: 177 | FV1: 178 | FW1: 179 | FX1: 180 | FY1: 181 | FZ1: 182 | GA1: 183
A105: ACS | B105: 2 | C105: =B105+1 -> 3 | D105: =C105+1 -> 4 | E105: 5 | F105: 6 | G105: 7 | H105: 8 | I105: 9 | J105: 10 | K105: 11 | L105: =K105+1 -> 12 | M105: 13 | N105: 14 | O105: 15 | P105: =O105+1 -> 16 | Q105: 17 | R105: 18 | S105: 19 | T105: 20 | U105: 21 | V105: 22 | W105: 23 | X105: 24 | Y105: 25 | Z105: 26 | AA105: 27 | AB105: 28 | AC105: 29 | AD105: 30 | AE105: 31 | AF105: 32 | AG105: 33 | AH105: 34 | AI105: 35 | AJ105: 36 | AK105: 37 | AL105: 38 | AM105: 39 | AN105: 40 | AO105: 41 | AP105: 42 | AQ105: 43 | AR105: 44 | AS105: 45 | AT105: 46 | AU105: 47 | AV105: 48 | AW105: 49 | AX105: 50 | AY105: 51 | AZ105: 52 | BA105: 53 | BB105: 54 | BC105: 55 | BD105: 56 | BE105: 57 | BF105: 58 | BG105: 59 | BH105: 60 | BI105: 61 | BJ105: 62 | BK105: 63 | BL105: 64 | BM105: 65 | BN105: 66 | BO105: 67 | BP105: =BO105+1 -> 68 | BQ105: 69 | BR105: 70 | BS105: 71 | BT105: 72 | BU105: 73 | BV105: 74 | BW105: 75 | BX105: 76 | BY105: 77 | BZ105: 78 | CA105: 79 | CB105: 80 | CC105: 81 | CD105: 82 | CE105: 83 | CF105: 84 | CG105: 85 | CH105: 86 | CI105: 87 | CJ105: 88 | CK105: 89 | CL105: 90 | CM105: 91 | CN105: 92 | CO105: 93 | CP105: 94 | CQ105: 95 | CR105: 96 | CS105: 97 | CT105: 98 | CU105: 99 | CV105: 100 | CW105: 101 | CX105: 102 | CY105: 103 | CZ105: 104 | DA105: 105 | DB105: 106 | DC105: 107 | DD105: 108 | DE105: 109 | DF105: 110 | DG105: 111 | DH105: 112 | DI105: 113 | DJ105: 114 | DK105: 115 | DL105: 116 | DM105: 117 | DN105: 118 | DO105: 119 | DP105: 120 | DQ105: 121 | DR105: 122 | DS105: 123 | DT105: 124 | DU105: 125
A106: Househould Data (Housing Unit Type)
A107: NAME | B107: TotalHU | C107: ="MOE "&B107 -> MOE TotalHU | D107: TotalOccHU | E107: ="MOE "&D107 -> MOE TotalOccHU | F107: TotalOwnerOccUn | G107: ="MOE "&F107 -> MOE TotalOwnerOccUn | H107: TotalRenterOccn | I107: ="MOE "&H107 -> MOE TotalRenterOccn | J107: TotalVacantUntis | K107: ="MOE "&J107 -> MOE TotalVacantUntis | L107: VacantUnitsForRent | M107: ="MOE "&L107 -> MOE VacantUnitsForRent | N107: VacantUnitRentedNotOcc | O107: ="MOE "&N107 -> MOE VacantUnitRentedNotOcc | P107: VacantUnitForSale | Q107: ="MOE "&P107 -> MOE VacantUnitForSale | R107: VacantUnitSoldNotOcc | S107: ="MOE "&R107 -> MOE VacantUnitSoldNotOcc | T107: VacantUnitSeasonalRec | U107: ="MOE "&T107 -> MOE VacantUnitSeasonalRec | V107: TotalPopInHousingUnits | W107: ="MOE "&V107 -> MOE TotalPopInHousingUnits | X107: OwnerOccPopHousingUnits | Y107: ="MOE "&X107 -> MOE OwnerOccPopHousingUnits | Z107: RenterOccPopHousingUnits | AA107: ="MOE "&Z107 -> MOE RenterOccPopHousingUnits | AB107: TotalUntis | AC107: ="MOE "&AB107 -> MOE TotalUntis | AD107: TotalOwnerOccUnits | AE107: ="MOE "&AD107 -> MOE TotalOwnerOccUnits | AF107: SigFamOwnerOcc | AG107: ="MOE "&AF107 -> MOE SigFamOwnerOcc | AH107: MultiFamOwnerOcc | AI107: ="MOE "&AH107 -> MOE MultiFamOwnerOcc | AJ107: MobileOwnerOcc | AK107: ="MOE "&AJ107 -> MOE MobileOwnerOcc | AL107: TotalRenterOccUnits | AM107: ="MOE "&AL107 -> MOE TotalRenterOccUnits | AN107: SigFamRenterOcc | AO107: ="MOE "&AN107 -> MOE SigFamRenterOcc | AP107: MultiFamRenterOcc | AQ107: ="MOE "&AP107 -> MOE MultiFamRenterOcc | AR107: MobileRenterOcc | AS107: ="MOE "&AR107 -> MOE MobileRenterOcc | AT107: TotalSigFamilyUnits | AU107: ="MOE "&AT107 -> MOE TotalSigFamilyUnits | AV107: TotalMultiFamilyUnits | AW107: ="MOE "&AV107 -> MOE TotalMultiFamilyUnits | AX107: TotalMobileUnits | AY107: ="MOE "&AX107 -> MOE TotalMobileUnits | AZ107: YrHouseBuilt2005Later | BA107: ="MOE "&AZ107 -> MOE YrHouseBuilt2005Later | BB107: YrHouseBuilt2000-2004 | BC107: ="MOE "&BB107 -> MOE YrHouseBuilt2000-2004 | BD107: YrHouseBuilt1990-1999 | BE107: ="MOE "&BD107 -> MOE YrHouseBuilt1990-1999 | BF107: YrHouseBuilt1980-1989 | BG107: ="MOE "&BF107 -> MOE YrHouseBuilt1980-1989 | BH107: YrHouseBuilt1970-1979 | BI107: ="MOE "&BH107 -> MOE YrHouseBuilt1970-1979 | BJ107: YrHouseBuilt1960-1969 | BK107: ="MOE "&BJ107 -> MOE YrHouseBuilt1960-1969 | BL107: YrHouseBuilt1950-1959 | BM107: ="MOE "&BL107 -> MOE YrHouseBuilt1950-1959 | BN107: YrHouseBuilt1940-1949 | BO107: ="MOE "&BN107 -> MOE YrHouseBuilt1940-1949 | BP107: YrHouseBuilt1939orEarlier | BQ107: ="MOE "&BP107 -> MOE YrHouseBuilt1939orEarlier | BR107: NoBedrooms | BS107: ="MOE "&BR107 -> MOE NoBedrooms | BT107: 1Bedroom | BU107: ="MOE "&BT107 -> MOE 1Bedroom | BV107: 2Bedroom | BW107: ="MOE "&BV107 -> MOE 2Bedroom | BX107: 3Bedroom | BY107: ="MOE "&BX107 -> MOE 3Bedroom | BZ107: 4+Bedroom | CA107: ="MOE "&BZ107 -> MOE 4+Bedroom
A108: =VLOOKUP(DropDownList!$A$19,CntyQuery!$A$53:$DN$64,A$1) -> Laconia | B108: 9945 | C108: 324 | D108: 6740 | E108: 357 | F108: 3650 | G108: 271 | H108: 3090 | I108: 253 | J108: 3205 | K108: 294 | L108: 120 | M108: 99 | N108: 0 | O108: 17 | P108: 142 | Q108: 103 | R108: 9 | S108: 15 | T108: 2748 | U108: 302 | V108: 15635 | W108: 181 | X108: 8790 | Y108: 668 | Z108: 6845 | AA108: 630 | AB108: 6740 | AC108: 357 | AD108: 3650 | AE108: 271 | AF108: 2997 | AG108: 256 | AH108: 505 | AI108: 129.8691649 | AJ108: 148 | AK108: 62.36184731 | AL108: 3090 | AM108: 253 | AN108: 507 | AO108: 168 | AP108: 2565 | AQ108: 342.9825068 | AR108: 18 | AS108: 31.06444913 | AT108: 5197 | AU108: 338 | AV108: 4381 | AW108: 463.3033563 | AX108: 367 | AY108: 131.1068267 | AZ108: 9 | BA108: 14 | BB108: 103 | BC108: 53 | BD108: 952 | BE108: 181 | BF108: 703 | BG108: 204 | BH108: 1895 | BI108: 245 | BJ108: 1171 | BK108: 220 | BL108: 874 | BM108: 174 | BN108: 677 | BO108: 154 | BP108: 696 | BQ108: 169 | BR108: 172 | BS108: 88 | BT108: 1539 | BU108: 276 | BV108: 3715 | BW108: 343 | BX108: 3221 | BY108: 336 | BZ108: 1280 | CA108: 242.0330556
A110: Disability Data
A111: NAME | B111: TotalPop | C111: ="MOE "&B111 -> MOE TotalPop | D111: PopUnder 5 years: | E111: ="MOE "&D111 -> MOE PopUnder 5 years: | F111: =D$111&"-WithDisability" -> PopUnder 5 years:-WithDisability | G111: ="MOE "&F111 -> MOE PopUnder 5 years:-WithDisability | H111: =D111&"-NoDisability" -> PopUnder 5 years:-NoDisability | I111: ="MOE "&H111 -> MOE PopUnder 5 years:-NoDisability | J111: PopUnder 5 to 17years: | K111: ="MOE "&J111 -> MOE PopUnder 5 to 17years: | L111: =J$111&"-WithDisability" -> PopUnder 5 to 17years:-WithDisability | M111: ="MOE "&L111 -> MOE PopUnder 5 to 17years:-WithDisability | N111: =J111&"-NoDisability" -> PopUnder 5 to 17years:-NoDisability | O111: ="MOE "&N111 -> MOE PopUnder 5 to 17years:-NoDisability | P111: PopUnder 18 to 34 years: | Q111: ="MOE "&P111 -> MOE PopUnder 18 to 34 years: | R111: =P$111&"-WithDisability" -> PopUnder 18 to 34 years:-WithDisability | S111: ="MOE "&R111 -> MOE PopUnder 18 to 34 years:-WithDisability | T111: =P111&"-NoDisability" -> PopUnder 18 to 34 years:-NoDisability | U111: ="MOE "&T111 -> MOE PopUnder 18 to 34 years:-NoDisability | V111: Pop 35 years to 64: | W111: ="MOE "&V111 -> MOE Pop 35 years to 64: | X111: =$V$111&"-WithDisability" -> Pop 35 years to 64:-WithDisability | Y111: ="MOE "&X111 -> MOE Pop 35 years to 64:-WithDisability | Z111: =$V$111&"-NoDisability" -> Pop 35 years to 64:-NoDisability | AA111: ="MOE "&Z111 -> MOE Pop 35 years to 64:-NoDisability | AB111: Pop 65 years to 74: | AC111: ="MOE "&AB111 -> MOE Pop 65 years to 74: | AD111: =$AB$111&"-WithDisability" -> Pop 65 years to 74:-WithDisability | AE111: ="MOE "&AD111 -> MOE Pop 65 years to 74:-WithDisability | AF111: =$AB$111&"-NoDisability" -> Pop 65 years to 74:-NoDisability | AG111: ="MOE "&AF111 -> MOE Pop 65 years to 74:-NoDisability | AH111: Pop 75 and older: | AI111: ="MOE "&AH111 -> MOE Pop 75 and older: | AJ111: =$AH$111&"-WithDisability" -> Pop 75 and older:-WithDisability | AK111: ="MOE "&AJ111 -> MOE Pop 75 and older:-WithDisability | AL111: =$AH$111&"-NoDisability" -> Pop 75 and older:-NoDisability | AM111: ="MOE "&AL111 -> MOE Pop 75 and older:-NoDisability | AN111: TotalPopUnder5_HearingDisability | AO111: ="MOE "&AN111 -> MOE TotalPopUnder5_HearingDisability | AP111: TotalUnder5_HearingDisability | AQ111: ="MOE "&AP111 -> MOE TotalUnder5_HearingDisability | AR111: TotalPop18To34_HearingDisability | AS111: ="MOE "&AR111 -> MOE TotalPop18To34_HearingDisability | AT111: TotalPop35To64_HearingDisability | AU111: ="MOE "&AT111 -> MOE TotalPop35To64_HearingDisability | AV111: TotalPop65To74_HearingDisability | AW111: ="MOE "&AV111 -> MOE TotalPop65To74_HearingDisability | AX111: TotalPop75andOlder_HearingDisability | AY111: ="MOE "&AX111 -> MOE TotalPop75andOlder_HearingDisability | AZ111: TotalUnder5_VisionDisability | BA111: ="MOE "&AZ111 -> MOE TotalUnder5_VisionDisability | BB111: Total5To17_VisionDisability | BC111: ="MOE "&BB111 -> MOE Total5To17_VisionDisability | BD111: Total18To34_VisionDisability | BE111: ="MOE "&BD111 -> MOE Total18To34_VisionDisability | BF111: Total35To64_VisionDisability | BG111: ="MOE "&BF111 -> MOE Total35To64_VisionDisability | BH111: Total65To74_VisionDisability | BI111: ="MOE "&BH111 -> MOE Total65To74_VisionDisability | BJ111: Total75andOlder_VisionDisability | BK111: ="MOE "&BJ111 -> MOE Total75andOlder_VisionDisability | BL111: Total5To17_CongnitiveDisability | BM111: ="MOE "&BL111 -> MOE Total5To17_CongnitiveDisability | BN111: Total18To34_CongnitiveDisability | BO111: ="MOE "&BN111 -> MOE Total18To34_CongnitiveDisability | BP111: Total35To64_CongnitiveDisability | BQ111: ="MOE "&BP111 -> MOE Total35To64_CongnitiveDisability | BR111: Total65To74_CongnitiveDisability | BS111: ="MOE "&BR111 -> MOE Total65To74_CongnitiveDisability | BT111: Total75andOlder_CongnitiveDisability | BU111: ="MOE "&BT111 -> MOE Total75andOlder_CongnitiveDisability | BV111: Total5To17_AmbulatoryDisability | BW111: ="MOE "&BV111 -> MOE Total5To17_AmbulatoryDisability | BX111: Total18To34_AmbulatoryDisability | BY111: ="MOE "&BX111 -> MOE Total18To34_AmbulatoryDisability | BZ111: Total35To64_AmbulatoryDisability | CA111: ="MOE "&BZ111 -> MOE Total35To64_AmbulatoryDisability | CB111: Total65To74_AmbulatoryDisability | CC111: ="MOE "&CB111 -> MOE Total65To74_AmbulatoryDisability | CD111: Total75andOlder_AmbulatoryDisability | CE111: ="MOE "&CD111 -> MOE Total75andOlder_AmbulatoryDisability | CF111: Total5To17_SelfCareDisability | CG111: ="MOE "&CF111 -> MOE Total5To17_SelfCareDisability | CH111: Total18To34_SelfCareDisability | CI111: ="MOE "&CH111 -> MOE Total18To34_SelfCareDisability | CJ111: Total35To64_SelfCareDisability | CK111: ="MOE "&CJ111 -> MOE Total35To64_SelfCareDisability | CL111: Total65To74_SelfCareDisability | CM111: ="MOE "&CL111 -> MOE Total65To74_SelfCareDisability | CN111: Total75andOlder_SelfCareDisability | CO111: ="MOE "&CN111 -> MOE Total75andOlder_SelfCareDisability | CP111: Total18To34_IndependantLivingDisability | CQ111: ="MOE "&CP111 -> MOE Total18To34_IndependantLivingDisability | CR111: Total35To64_IndependantLivingDisability | CS111: ="MOE "&CR111 -> MOE Total35To64_IndependantLivingDisability | CT111: Total65To74_IndependantLivingDisability | CU111: ="MOE "&CT111 -> MOE Total65To74_IndependantLivingDisability | CV111: Total75andOlder_IndependantLivingDisability | CW111: ="MOE "&CV111 -> MOE Total75andOlder_IndependantLivingDisability | CX111: TotalUnder18_OneDisability | CY111: ="MOE "&CX111 -> MOE TotalUnder18_OneDisability | CZ111: TotalUnder18_TwoDisability | DA111: ="MOE "&CZ111 -> MOE TotalUnder18_TwoDisability | DB111: 18to6YearWIthOneDisability | DC111: ="MOE "&DB111 -> MOE 18to6YearWIthOneDisability | DD111: 18to64YearWIthTwoOrMoreDisability | DE111: ="MOE "&DD111 -> MOE 18to64YearWIthTwoOrMoreDisability | DF111: Over64YearsWIthOneDisability | DG111: ="MOE "&DF111 -> MOE Over64YearsWIthOneDisability | DH111: Over64YearsWIthTwoOrMoreDisability | DI111: ="MOE "&DH111 -> MOE Over64YearsWIthTwoOrMoreDisability
A112: =VLOOKUP(DropDownList!$A$19,CntyQuery!$A$53:$DN$64,A$1) -> Laconia | B112: 15694 | C112: 177 | D112: 914 | E112: 214.9790687 | F112: 0 | G112: 24.04163056 | H112: 914 | I112: 214.9790687 | J112: 2170 | K112: 313.2602752 | L112: 269 | M112: 152.1610988 | N112: 1901 | O112: 259.7883754 | P112: 3299 | Q112: 323.4455132 | R112: 305 | S112: 138.0579588 | T112: 2994 | U112: 356.2162265 | V112: 6611 | W112: 358.810535 | X112: 1072 | Y112: 205.7984451 | Z112: 5539 | AA112: 345.4634568 | AB112: 1599 | AC112: 178.4040358 | AD112: 322 | AE112: 87.92041856 | AF112: 1277 | AG112: 168.8075828 | AH112: 1101 | AI112: 161.5549442 | AJ112: 447 | AK112: 122.1556384 | AL112: 654 | AM112: 128.9689885 | AN112: 0 | AO112: 24.04163056 | AP112: 8 | AQ112: 22.02271555 | AR112: 62 | AS112: 53.07541804 | AT112: 181 | AU112: 74.94664769 | AV112: 124 | AW112: 61.91122677 | AX112: 224 | AY112: 79.75587753 | AZ112: 0 | BA112: 24.04163056 | BB112: 20 | BC112: 22.627417 | BD112: 6 | BE112: 20.24845673 | BF112: 168 | BG112: 73.60027174 | BH112: 31 | BI112: 36.23534186 | BJ112: 175 | BK112: 79.64923101 | BL112: 261 | BM112: 154.3826415 | BN112: 232 | BO112: 106.400188 | BP112: 449 | BQ112: 137.9057649 | BR112: 49 | BS112: 41.23105626 | BT112: 104 | BU112: 63.90618123 | BV112: 0 | BW112: 24.04163056 | BX112: 111 | BY112: 103.247276 | BZ112: 530 | CA112: 146.4786674 | CB112: 198 | CC112: 73.81734214 | CD112: 305 | CE112: 106.0424443 | CF112: 22 | CG112: 31.06444913 | CH112: 35 | CI112: 44.38468204 | CJ112: 152 | CK112: 85.44003745 | CL112: 47 | CM112: 36.79673899 | CN112: 74 | CO112: 46.57252409 | CP112: 115 | CQ112: 74.8465096 | CR112: 382 | CS112: 142.8005602 | CT112: 68 | CU112: 55.54277631 | CV112: 253 | CW112: 96.76776323 | CX112: 227 | CY112: 135 | CZ112: 42 | DA112: 39 | DB112: 733 | DC112: 169 | DD112: 644 | DE112: 202 | DF112: 288 | DG112: 74 | DH112: 481 | DI112: 126
A114: Househould Income By Age
A115: NAME | B115: TotalHouseholds | C115: ="MOE "&B115 -> MOE TotalHouseholds | D115: HHInc<10K | E115: ="MOE "&D115 -> MOE HHInc<10K | F115: HHInc10to15K | G115: ="MOE "&F115 -> MOE HHInc10to15K | H115: HHInc15to20K | I115: ="MOE "&H115 -> MOE HHInc15to20K | J115: HHInc20to25K | K115: ="MOE "&J115 -> MOE HHInc20to25K | L115: HHInc25to30K | M115: ="MOE "&L115 -> MOE HHInc25to30K | N115: HHInc30to35K | O115: ="MOE "&N115 -> MOE HHInc30to35K | P115: HHInc35to40K | Q115: ="MOE "&P115 -> MOE HHInc35to40K | R115: HHInc40to45K | S115: ="MOE "&R115 -> MOE HHInc40to45K | T115: HHInc45to50K | U115: ="MOE "&T115 -> MOE HHInc45to50K | V115: HHInc50to60K | W115: ="MOE "&V115 -> MOE HHInc50to60K | X115: HHInc60to75K | Y115: ="MOE "&X115 -> MOE HHInc60to75K | Z115: HHInc75to100K | AA115: ="MOE "&Z115 -> MOE HHInc75to100K | AB115: HHInc100to125K | AC115: ="MOE "&AB115 -> MOE HHInc100to125K | AD115: HHInc125to150K | AE115: ="MOE "&AD115 -> MOE HHInc125to150K | AF115: HHInc150to200K | AG115: ="MOE "&AF115 -> MOE HHInc150to200K | AH115: HHInc>200K | AI115: ="MOE "&AH115 -> MOE HHInc>200K | AJ115: TotalHH | AK115: ="MOE "&AJ115 -> MOE TotalHH | AL115: HHAgeHHUnder25yrs | AM115: ="MOE "&AL115 -> MOE HHAgeHHUnder25yrs | AN115: HHAgeHH<25HHInc<10K | AO115: ="MOE "&AN115 -> MOE HHAgeHH<25HHInc<10K | AP115: HHAgeHH<25HHInc10to15K | AQ115: ="MOE "&AP115 -> MOE HHAgeHH<25HHInc10to15K | AR115: HHAgeHH<25HHInc15to20K | AS115: ="MOE "&AR115 -> MOE HHAgeHH<25HHInc15to20K | AT115: HHAgeHH<25HHInc20to25K | AU115: ="MOE "&AT115 -> MOE HHAgeHH<25HHInc20to25K | AV115: HHAgeHH<25HHInc25to30K | AW115: ="MOE "&AV115 -> MOE HHAgeHH<25HHInc25to30K | AX115: HHAgeHH<25HHInc30to35K | AY115: ="MOE "&AX115 -> MOE HHAgeHH<25HHInc30to35K | AZ115: HHAgeHH<25HHInc35to40K | BA115: ="MOE "&AZ115 -> MOE HHAgeHH<25HHInc35to40K | BB115: HHAgeHH<25HHInc40to45K | BC115: ="MOE "&BB115 -> MOE HHAgeHH<25HHInc40to45K | BD115: HHAgeHH<25HHInc45to50K | BE115: ="MOE "&BD115 -> MOE HHAgeHH<25HHInc45to50K | BF115: HHAgeHH<25HHInc50to60K | BG115: ="MOE "&BF115 -> MOE HHAgeHH<25HHInc50to60K | BH115: HHAgeHH<25HHInc60to75K | BI115: ="MOE "&BH115 -> MOE HHAgeHH<25HHInc60to75K | BJ115: HHAgeHH<25HHInc75to100K | BK115: ="MOE "&BJ115 -> MOE HHAgeHH<25HHInc75to100K | BL115: HHAgeHH<25HHInc100to125K | BM115: ="MOE "&BL115 -> MOE HHAgeHH<25HHInc100to125K | BN115: HHAgeHH<25HHInc125to150K | BO115: ="MOE "&BN115 -> MOE HHAgeHH<25HHInc125to150K | BP115: HHAgeHH<25HHInc150to200K | BQ115: ="MOE "&BP115 -> MOE HHAgeHH<25HHInc150to200K | BR115: HHAge<25HHInc>200K | BS115: ="MOE "&BR115 -> MOE HHAge<25HHInc>200K | BT115: HHAgeHH25to44yrs | BU115: ="MOE "&BT115 -> MOE HHAgeHH25to44yrs | BV115: HHAgeHH25To44yrsHHInc<10K | BW115: ="MOE "&BV115 -> MOE HHAgeHH25To44yrsHHInc<10K | BX115: HHAgeHH25To44yrsHHInc10to15K | BY115: ="MOE "&BX115 -> MOE HHAgeHH25To44yrsHHInc10to15K | BZ115: HHAgeHH25To44yrsHHInc15to20K | CA115: ="MOE "&BZ115 -> MOE HHAgeHH25To44yrsHHInc15to20K | CB115: HHAgeHH25To44yrsHHInc20to25K | CC115: ="MOE "&CB115 -> MOE HHAgeHH25To44yrsHHInc20to25K | CD115: HHAgeHH25To44yrsHHInc25to30K | CE115: ="MOE "&CD115 -> MOE HHAgeHH25To44yrsHHInc25to30K | CF115: HHAgeHH25To44yrsHHInc30to35K | CG115: ="MOE "&CF115 -> MOE HHAgeHH25To44yrsHHInc30to35K | CH115: HHAgeHH25To44yrsHHInc35to40K | CI115: ="MOE "&CH115 -> MOE HHAgeHH25To44yrsHHInc35to40K | CJ115: HHAgeHH25To44yrsHHInc40to45K | CK115: ="MOE "&CJ115 -> MOE HHAgeHH25To44yrsHHInc40to45K | CL115: HHAgeHH25To44yrsHHInc45to50K | CM115: ="MOE "&CL115 -> MOE HHAgeHH25To44yrsHHInc45to50K | CN115: HHAgeHH25To44yrsHHInc50to60K | CO115: ="MOE "&CN115 -> MOE HHAgeHH25To44yrsHHInc50to60K | CP115: HHAgeHH25To44yrsHHInc60to75K | CQ115: ="MOE "&CP115 -> MOE HHAgeHH25To44yrsHHInc60to75K | CR115: HHAgeHH25To44yrsHHInc75to100K | CS115: ="MOE "&CR115 -> MOE HHAgeHH25To44yrsHHInc75to100K | CT115: HHAgeHH25To44yrsHHInc100to125K | CU115: ="MOE "&CT115 -> MOE HHAgeHH25To44yrsHHInc100to125K | CV115: HHAgeHH25To44yrsHHInc125to150K | CW115: ="MOE "&CV115 -> MOE HHAgeHH25To44yrsHHInc125to150K | CX115: HHAgeHH25To44yrsHHInc150to200K | CY115: ="MOE "&CX115 -> MOE HHAgeHH25To44yrsHHInc150to200K | CZ115: HHAge25To44yrsHHInc>200K | DA115: ="MOE "&CZ115 -> MOE HHAge25To44yrsHHInc>200K | DB115: HHAgeHH45To64yrs | DC115: ="MOE "&DB115 -> MOE HHAgeHH45To64yrs | DD115: HHAgeHH45To64yrsHHInc<10K | DE115: ="MOE "&DD115 -> MOE HHAgeHH45To64yrsHHInc<10K | DF115: HHAgeHH45To64yrsHHInc10to15K | DG115: ="MOE "&DF115 -> MOE HHAgeHH45To64yrsHHInc10to15K | DH115: HHAgeHH45To64yrsHHInc15to20K | DI115: ="MOE "&DH115 -> MOE HHAgeHH45To64yrsHHInc15to20K | DJ115: HHAgeHH45To64yrsHHInc20to25K | DK115: ="MOE "&DJ115 -> MOE HHAgeHH45To64yrsHHInc20to25K | DL115: HHAgeHH45To64yrsHHInc25to30K | DM115: ="MOE "&DL115 -> MOE HHAgeHH45To64yrsHHInc25to30K | DN115: HHAgeHH45To64yrsHHInc30to35K | DO115: ="MOE "&DN115 -> MOE HHAgeHH45To64yrsHHInc30to35K | DP115: HHAgeHH45To64yrsHHInc35to40K | DQ115: ="MOE "&DP115 -> MOE HHAgeHH45To64yrsHHInc35to40K | DR115: HHAgeHH45To64yrsHHInc40to45K | DS115: ="MOE "&DR115 -> MOE HHAgeHH45To64yrsHHInc40to45K | DT115: HHAgeHH45To64yrsHHInc45to50K | DU115: ="MOE "&DT115 -> MOE HHAgeHH45To64yrsHHInc45to50K | DV115: HHAgeHH45To64yrsHHInc50to60K | DW115: ="MOE "&DV115 -> MOE HHAgeHH45To64yrsHHInc50to60K | DX115: HHAgeHH45To64yrsHHInc60to75K | DY115: ="MOE "&DX115 -> MOE HHAgeHH45To64yrsHHInc60to75K | DZ115: HHAgeHH45To64yrsHHInc75to100K | EA115: ="MOE "&DZ115 -> MOE HHAgeHH45To64yrsHHInc75to100K | EB115: HHAgeHH45To64yrsHHInc100to125K | EC115: ="MOE "&EB115 -> MOE HHAgeHH45To64yrsHHInc100to125K | ED115: HHAgeHH45To64yrsHHInc125to150K | EE115: ="MOE "&ED115 -> MOE HHAgeHH45To64yrsHHInc125to150K | EF115: HHAgeHH45To64yrsHHInc150to200K | EG115: ="MOE "&EF115 -> MOE HHAgeHH45To64yrsHHInc150to200K | EH115: HHAge45To64yrsHHInc>200K | EI115: ="MOE "&EH115 -> MOE HHAge45To64yrsHHInc>200K | EJ115: HHAgeHH65yrsorOlder | EK115: ="MOE "&EJ115 -> MOE HHAgeHH65yrsorOlder | EL115: HHAgeHH65yrsorOlderHHInc<10K | EM115: ="MOE "&EL115 -> MOE HHAgeHH65yrsorOlderHHInc<10K | EN115: HHAgeHH65yrsorOlderHHInc10to15K | EO115: ="MOE "&EN115 -> MOE HHAgeHH65yrsorOlderHHInc10to15K | EP115: HHAgeHH65yrsorOlderHHInc15to20K | EQ115: ="MOE "&EP115 -> MOE HHAgeHH65yrsorOlderHHInc15to20K | ER115: HHAgeHH65yrsorOlderHHInc20to25K | ES115: ="MOE "&ER115 -> MOE HHAgeHH65yrsorOlderHHInc20to25K | ET115: HHAgeHH65yrsorOlderHHInc25to30K | EU115: ="MOE "&ET115 -> MOE HHAgeHH65yrsorOlderHHInc25to30K | EV115: HHAgeHH65yrsorOlderHHInc30to35K | EW115: ="MOE "&EV115 -> MOE HHAgeHH65yrsorOlderHHInc30to35K | EX115: HHAgeHH65yrsorOlderHHInc35to40K | EY115: ="MOE "&EX115 -> MOE HHAgeHH65yrsorOlderHHInc35to40K | EZ115: HHAgeHH65yrsorOlderHHInc40to45K | FA115: ="MOE "&EZ115 -> MOE HHAgeHH65yrsorOlderHHInc40to45K | FB115: HHAgeHH65yrsorOlderHHInc45to50K | FC115: ="MOE "&FB115 -> MOE HHAgeHH65yrsorOlderHHInc45to50K | FD115: HHAgeHH65yrsorOlderHHInc50to60K | FE115: ="MOE "&FD115 -> MOE HHAgeHH65yrsorOlderHHInc50to60K | FF115: HHAgeHH65yrsorOlderHHInc60to75K | FG115: ="MOE "&FF115 -> MOE HHAgeHH65yrsorOlderHHInc60to75K | FH115: HHAgeHH65yrsorOlderHHInc75to100K | FI115: ="MOE "&FH115 -> MOE HHAgeHH65yrsorOlderHHInc75to100K | FJ115: HHAgeHH65yrsorOlderHHInc100to125K | FK115: ="MOE "&FJ115 -> MOE HHAgeHH65yrsorOlderHHInc100to125K | FL115: HHAgeHH65yrsorOlderHHInc125to150K | FM115: ="MOE "&FL115 -> MOE HHAgeHH65yrsorOlderHHInc125to150K | FN115: HHAgeHH65yrsorOlderHHInc150to200K | FO115: ="MOE "&FN115 -> MOE HHAgeHH65yrsorOlderHHInc150to200K | FP115: HHAge65yrsorOlderHHInc>200K | FQ115: ="MOE "&FP115 -> MOE HHAge65yrsorOlderHHInc>200K | FR115: MedianHHInc | FS115: ="MOE "&FR115 -> MOE MedianHHInc | FT115: HH under 25 years | FU115: ="MOE "&FT115 -> MOE HH under 25 years | FV115: Householder 25 to 44 years | FW115: ="MOE "&FV115 -> MOE Householder 25 to 44 years | FX115: Householder 45 to 64 years | FY115: ="MOE "&FX115 -> MOE Householder 45 to 64 years | FZ115: Householder 65 years and over | GA115: ="MOE "&FZ115 -> MOE Householder 65 years and over
A116: =VLOOKUP(DropDownList!$A$19,CntyQuery!$A$53:$DN$64,A$1) -> Laconia | B116: 7143 | C116: 283 | D116: 536 | E116: 177 | F116: 441 | G116: 120 | H116: 417 | I116: 125 | J116: 384 | K116: 141 | L116: 384 | M116: 138 | N116: 354 | O116: 127 | P116: 334 | Q116: 116 | R116: 484 | S116: 160 | T116: 482 | U116: 169 | V116: 585 | W116: 157 | X116: 641 | Y116: 174 | Z116: 624 | AA116: 165 | AB116: 666 | AC116: 164 | AD116: 341 | AE116: 126 | AF116: 288 | AG116: 95 | AH116: 182 | AI116: 74 | AJ116: 6740 | AK116: 357 | AL116: 256 | AM116: 155 | AN116: 42 | AO116: 47 | AP116: 0 | AQ116: 17 | AR116: 83 | AS116: 88 | AT116: 0 | AU116: 17 | AV116: 14 | AW116: 23 | AX116: 0 | AY116: 17 | AZ116: 20 | BA116: 24 | BB116: 51 | BC116: 77 | BD116: 0 | BE116: 17 | BF116: 0 | BG116: 17 | BH116: 46 | BI116: 47 | BJ116: 0 | BK116: 17 | BL116: 0 | BM116: 17 | BN116: 0 | BO116: 17 | BP116: 0 | BQ116: 17 | BR116: 0 | BS116: 17 | BT116: 1884 | BU116: 224 | BV116: 124 | BW116: 75 | BX116: 47 | BY116: 52 | BZ116: 105 | CA116: 73 | CB116: 153 | CC116: 110 | CD116: 141 | CE116: 83 | CF116: 71 | CG116: 41 | CH116: 110 | CI116: 106 | CJ116: 49 | CK116: 39 | CL116: 153 | CM116: 106 | CN116: 102 | CO116: 49 | CP116: 266 | CQ116: 123 | CR116: 282 | CS116: 110 | CT116: 159 | CU116: 132 | CV116: 33 | CW116: 34 | CX116: 39 | CY116: 46 | CZ116: 50 | DA116: 40 | DB116: 2827 | DC116: 249 | DD116: 141 | DE116: 69 | DF116: 185 | DG116: 87 | DH116: 219 | DI116: 120 | DJ116: 161 | DK116: 120 | DL116: 106 | DM116: 64 | DN116: 100 | DO116: 56 | DP116: 126 | DQ116: 60 | DR116: 115 | DS116: 56 | DT116: 29 | DU116: 27 | DV116: 143 | DW116: 83 | DX116: 242 | DY116: 115 | DZ116: 374 | EA116: 104 | EB116: 239 | EC116: 95 | ED116: 177 | EE116: 59 | EF116: 306 | EG116: 101 | EH116: 164 | EI116: 80 | EJ116: 1773 | EK116: 189 | EL116: 86 | EM116: 52 | EN116: 114 | EO116: 55 | EP116: 221 | EQ116: 105 | ER116: 177 | ES116: 82 | ET116: 112 | EU116: 54 | EV116: 136 | EW116: 63 | EX116: 46 | EY116: 25 | EZ116: 109 | FA116: 53 | FB116: 105 | FC116: 62 | FD116: 130 | FE116: 46 | FF116: 172 | FG116: 71 | FH116: 143 | FI116: 59 | FJ116: 87 | FK116: 41 | FL116: 37 | FM116: 25 | FN116: 58 | FO116: 42 | FP116: 40 | FQ116: 38 | FR116: 48893 | FS116: 4719 | FT116: - | FU116: ** | FV116: 49704 | FW116: 13702 | FX116: 65920 | FY116: 10082 | FZ116: 39450 | GA116: 7532
A118: Number of Households by Income
A119: NAME | B119: HHIncLessThn10k | C119: ="MOE "&B119 -> MOE HHIncLessThn10k | D119: HHInc10to15K | E119: ="MOE "&D119 -> MOE HHInc10to15K | F119: HHInc15to25K | G119: ="MOE "&F119 -> MOE HHInc15to25K | H119: HHInc25to35K | I119: ="MOE "&H119 -> MOE HHInc25to35K | J119: HHInc35to50K | K119: ="MOE "&J119 -> MOE HHInc35to50K | L119: HHInc50to75K | M119: ="MOE "&L119 -> MOE HHInc50to75K | N119: HHInc75to100K | O119: ="MOE "&N119 -> MOE HHInc75to100K | P119: HHInc100to150K | Q119: ="MOE "&P119 -> MOE HHInc100to150K | R119: HHInc150to200K | S119: ="MOE "&R119 -> MOE HHInc150to200K | T119: HHIncOver200K | U119: ="MOE "&T119 -> MOE HHIncOver200K
A120: =VLOOKUP(DropDownList!$A$19,CntyQuery!$A$53:$DN$64,A$1) -> Laconia | B120: 536 | C120: 177 | D120: 441 | E120: 120 | F120: 801 | G120: 188.4303585 | H120: 738 | I120: 187.5446613 | J120: 1300 | K120: 260.0326903 | L120: 1226 | M120: 234.3608329 | N120: 624 | O120: 165 | P120: 1007 | Q120: 206.813926 | R120: 288 | S120: 95 | T120: 182 | U120: 74
A122: POVERTY DATA
A123: NAME | B123: TotalPop | C123: ="MOE "&B123 -> MOE TotalPop | D123: Total Individuals living in Poverty | E123: ="MOE "&D123 -> MOE Total Individuals living in Poverty | F123: Under 5 yrs. | G123: ="MOE "&F123 -> MOE Under 5 yrs. | H123: 5 to 17 yrs. | I123: ="MOE "&H123 -> MOE 5 to 17 yrs. | J123: 18 to 64 yrs. | K123: ="MOE "&J123 -> MOE 18 to 64 yrs. | L123: 65 to 74 yrs. | M123: ="MOE "&L123 -> MOE 65 to 74 yrs. | N123: 75 yrs. & Over | O123: ="MOE "&N123 -> MOE 75 yrs. & Over | P123: Total Individuals Not living Poverty | Q123: ="MOE "&P123 -> MOE Total Individuals Not living Poverty | R123: Under 5 yrs. | S123: ="MOE "&R123 -> MOE Under 5 yrs. | T123: 5 to 17 yrs. | U123: ="MOE "&T123 -> MOE 5 to 17 yrs. | V123: 18 to 64 yrs. | W123: ="MOE "&V123 -> MOE 18 to 64 yrs. | X123: 65 to 74 yrs. | Y123: ="MOE "&X123 -> MOE 65 to 74 yrs. | Z123: 75 yrs. & Over | AA123: ="MOE "&Z123 -> MOE 75 yrs. & Over | AB123: Total HH | AC123: ="MOE "&AB123 -> MOE Total HH | AD123: Total Households Below Poverty | AE123: ="MOE "&AD123 -> MOE Total Households Below Poverty | AF123: Family Households in Poverty | AG123: ="MOE "&AF123 -> MOE Family Households in Poverty | AH123: Married Couple Fam HH | AI123: ="MOE "&AH123 -> MOE Married Couple Fam HH | AJ123: Other Family | AK123: ="MOE "&AJ123 -> MOE Other Family | AL123: Male Head of Family HH no spouse | AM123: ="MOE "&AL123 -> MOE Male Head of Family HH no spouse | AN123: Female Head of Family HH no spouse | AO123: ="MOE "&AN123 -> MOE Female Head of Family HH no spouse | AP123: Non-Family HH | AQ123: ="MOE "&AP123 -> MOE Non-Family HH | AR123: Non-Family Male HH | AS123: ="MOE "&AR123 -> MOE Non-Family Male HH | AT123: Non-Family Female HH | AU123: ="MOE "&AT123 -> MOE Non-Family Female HH | AV123: Total Households at or Above Poverty | AW123: ="MOE "&AV123 -> MOE Total Households at or Above Poverty | AX123: Family Households above Poverty | AY123: ="MOE "&AX123 -> MOE Family Households above Poverty | AZ123: Married Couple Fam HH | BA123: ="MOE "&AZ123 -> MOE Married Couple Fam HH | BB123: Other Family | BC123: ="MOE "&BB123 -> MOE Other Family | BD123: Male Head of Family HH no spouse | BE123: ="MOE "&BD123 -> MOE Male Head of Family HH no spouse | BF123: Female Head of Family HH no spouse | BG123: ="MOE "&BF123 -> MOE Female Head of Family HH no spouse | BH123: Non-Family HH | BI123: ="MOE "&BH123 -> MOE Non-Family HH | BJ123: Non-Family Male HH | BK123: ="MOE "&BJ123 -> MOE Non-Family Male HH | BL123: Non-Family Female HH | BM123: ="MOE "&BL123 -> MOE Non-Family Female HH | BN123: Married Couple with Children Below Poverty | BO123: ="MOE "&BN123 -> MOE Married Couple with Children Below Poverty | BP123: Male HH with children below poverty | BQ123: ="MOE "&BP123 -> MOE Male HH with children below poverty | BR123: Female HH with children below poverty | BS123: ="MOE "&BR123 -> MOE Female HH with children below poverty | BT123: Married Couple with Children At or Above Poverty | BU123: ="MOE "&BT123 -> MOE Married Couple with Children At or Above Poverty | BV123: Male HH with children at or above poverty | BW123: ="MOE "&BV123 -> MOE Male HH with children at or above poverty | BX123: Female HH with children at or above poverty | BY123: ="MOE "&BX123 -> MOE Female HH with children at or above poverty
A124: =VLOOKUP(DropDownList!$A$19,CntyQuery!$A$53:$DN$64,A$1) -> Laconia | B124: 15571 | C124: 209 | D124: 2557 | E124: 733 | F124: 325 | G124: 149.5660389 | H124: 558 | I124: 216.9930874 | J124: 1503 | K124: 286.0034965 | L124: 71 | M124: 48.02082881 | N124: 100 | O124: 52.83937925 | P124: 13014 | Q124: 797 | R124: 576 | S124: 202.3709465 | T124: 1500 | U124: 320.7179446 | V124: 8409 | W124: 551.3383716 | X124: 1528 | Y124: 180.2359565 | Z124: 242 | AA124: 87.4185335 | AB124: 6740 | AC124: 357 | AD124: 961 | AE124: 228 | AF124: 516 | AG124: 166 | AH124: 217 | AI124: 109 | AJ124: 299 | AK124: 129 | AL124: 40 | AM124: 33 | AN124: 259 | AO124: 124 | AP124: 445 | AQ124: 135 | AR124: 184 | AS124: 110 | AT124: 261 | AU124: 85 | AV124: 5779 | AW124: 429 | AX124: 3590 | AY124: 282 | AZ124: 2736 | BA124: 283 | BB124: 854 | BC124: 191 | BD124: 201 | BE124: 86 | BF124: 653 | BG124: 192 | BH124: 2189 | BI124: 308 | BJ124: 939 | BK124: 186 | BL124: 1250 | BM124: 254 | BN124: 120 | BO124: 110 | BP124: 9 | BQ124: 14 | BR124: 247 | BS124: 122 | BT124: 763 | BU124: 201 | BV124: 99 | BW124: 86 | BX124: 333 | BY124: 124
A126: Household Income By Tenure
A127: NAME | B127: TotalOccHU | C127: ="MOE "&B127 -> MOE TotalOccHU | D127: OwnOccHU | E127: ="MOE "&D127 -> MOE OwnOccHU | F127: OOHUInc<5K | G127: ="MOE "&F127 -> MOE OOHUInc<5K | H127: OOHUInc5to10K | I127: ="MOE "&H127 -> MOE OOHUInc5to10K | J127: OOHUInc10to15K | K127: ="MOE "&J127 -> MOE OOHUInc10to15K | L127: OOHUInc15to20K | M127: ="MOE "&L127 -> MOE OOHUInc15to20K | N127: OOHUInc20to25K | O127: ="MOE "&N127 -> MOE OOHUInc20to25K | P127: OOHUInc25to35K | Q127: ="MOE "&P127 -> MOE OOHUInc25to35K | R127: OOHUInc35to50K | S127: ="MOE "&R127 -> MOE OOHUInc35to50K | T127: OOHUInc50to75K | U127: ="MOE "&T127 -> MOE OOHUInc50to75K | V127: OOHUInc75to100K | W127: ="MOE "&V127 -> MOE OOHUInc75to100K | X127: OOHUInc100to150K | Y127: ="MOE "&X127 -> MOE OOHUInc100to150K | Z127: OOHUInc>150K | AA127: ="MOE "&Z127 -> MOE OOHUInc>150K | AB127: RentOccHU | AC127: ="MOE "&AB127 -> MOE RentOccHU | AD127: ROHUInc<5K | AE127: ="MOE "&AD127 -> MOE ROHUInc<5K | AF127: ROHUInc5to10K | AG127: ="MOE "&AF127 -> MOE ROHUInc5to10K | AH127: ROHUInc10to15K | AI127: ="MOE "&AH127 -> MOE ROHUInc10to15K | AJ127: ROHUInc15to20K | AK127: ="MOE "&AJ127 -> MOE ROHUInc15to20K | AL127: ROHUInc20to25K | AM127: ="MOE "&AL127 -> MOE ROHUInc20to25K | AN127: ROHUInc25to35K | AO127: ="MOE "&AN127 -> MOE ROHUInc25to35K | AP127: ROHUInc35to50K | AQ127: ="MOE "&AP127 -> MOE ROHUInc35to50K | AR127: ROHUInc50to75K | AS127: ="MOE "&AR127 -> MOE ROHUInc50to75K | AT127: ROHUInc75to100K | AU127: ="MOE "&AT127 -> MOE ROHUInc75to100K | AV127: ROHUInc100to150K | AW127: ="MOE "&AV127 -> MOE ROHUInc100to150K | AX127: ROHUInc>150K | AY127: ="MOE "&AX127 -> MOE ROHUInc>150K | AZ127: Total OCC HUInc<5K | BA127: ="MOE "&AZ127 -> MOE Total OCC HUInc<5K | BB127: Total OCC HUInc5to10K | BC127: ="MOE "&BB127 -> MOE Total OCC HUInc5to10K | BD127: Total OCC HUInc10to15K | BE127: ="MOE "&BD127 -> MOE Total OCC HUInc10to15K | BF127: Total OCC HUInc15to20K | BG127: ="MOE "&BF127 -> MOE Total OCC HUInc15to20K | BH127: Total OCC HUInc20to25K | BI127: ="MOE "&BH127 -> MOE Total OCC HUInc20to25K | BJ127: Total OCC HUInc25to35K | BK127: ="MOE "&BJ127 -> MOE Total OCC HUInc25to35K | BL127: Total OCC HUInc35to50K | BM127: ="MOE "&BL127 -> MOE Total OCC HUInc35to50K | BN127: Total OCC HUInc50to75K | BO127: ="MOE "&BN127 -> MOE Total OCC HUInc50to75K | BP127: Total OCC HUInc75to100K | BQ127: ="MOE "&BP127 -> MOE Total OCC HUInc75to100K | BR127: Total OCC HUInc100to150K | BS127: ="MOE "&BR127 -> MOE Total OCC HUInc100to150K | BT127: Total OCC HUInc>150K | BU127: ="MOE "&BT127 -> MOE Total OCC HUInc>150K | BV127: MedHHInc | BW127: ="MOE "&BV127 -> MOE MedHHInc | BX127: MedOwnOccHHInc | BY127: ="MOE "&BX127 -> MOE MedOwnOccHHInc | BZ127: MedRentOccHHInc | CA127: ="MOE "&BZ127 -> MOE MedRentOccHHInc
A128: =VLOOKUP(DropDownList!$A$19,CntyQuery!$A$53:$DN$64,A$1) -> Laconia | B128: 6740 | C128: 357 | D128: 3650 | E128: 271 | F128: 71 | G128: 55 | H128: 32 | I128: 27 | J128: 19 | K128: 19 | L128: 299 | M128: 151 | N128: 110 | O128: 55 | P128: 259 | Q128: 109 | R128: 417 | S128: 125 | T128: 657 | U128: 139 | V128: 642 | W128: 135 | X128: 568 | Y128: 117 | Z128: 576 | AA128: 115 | AB128: 3090 | AC128: 253 | AD128: 148 | AE128: 90 | AF128: 142 | AG128: 66 | AH128: 327 | AI128: 117 | AJ128: 329 | AK128: 139 | AL128: 381 | AM128: 173 | AN128: 421 | AO128: 123 | AP128: 496 | AQ128: 195 | AR128: 444 | AS128: 154 | AT128: 157 | AU128: 88 | AV128: 164 | AW128: 128 | AX128: 81 | AY128: 75 | AZ128: 223 | BA128: 108.3005078 | BB128: 211 | BC128: 92.17917335 | BD128: 384 | BE128: 113.6529806 | BF128: 633 | BG128: 199.4241711 | BH128: 392 | BI128: 145.7737974 | BJ128: 651 | BK128: 152.8201557 | BL128: 894 | BM128: 180.4799158 | BN128: 1177 | BO128: 228.0372777 | BP128: 791 | BQ128: 162.3391512 | BR128: 820 | BS128: 186.1316738 | BT128: 600 | BU128: 139.2910622 | BV128: 48893 | BW128: 4719 | BX128: 73566 | BY128: 8041 | BZ128: 29549 | CA128: 6400
A130: Population Data
A131: NAME | B131: Total Population | C131: MOE Total Population | D131: Under 15 Years | E131: MOE Under 15 yrs. | F131: 15 to 24 yrs. | G131: MOE 15 to 24 yrs. | H131: 25 to 34 yrs. | I131: MOE 25 to 34 yrs. | J131: 35 to 44 yrs. | K131: MOE 35 to 44 yrs. | L131: 45 to 54 yrs. | M131: MOE 45 to 54 yrs. | N131: 55 to 64 yrs. | O131: MOE 55 to 64 yrs. | P131: 65 to 74 yrs. | Q131: MOE 65 to 74 yrs. | R131: Over 74 yrs. | S131: MOE Over 74 yrs. | T131: TotalHH | U131: MOE TotalHH | V131: FamilyHH | W131: MOE FamilyHH | X131: MarriedFamilyHH | Y131: MOE MarriedFamilyHH | Z131: SingleFamilyHH | AA131: MOE SingleFamilyHH | AB131: Sfamily-MaleHH | AC131: MOE Sfamily-MaleHH | AD131: Sfamily-FemaleHH | AE131: MOE Sfamily-FemaleHH | AF131: NonFamilyHH | AG131: MOE NonFamilyHH | AH131: NonFamilyHH-LivingAlone | AI131: MOE NonFamilyHH-LivingAlone | AJ131: NonFamilyHH-NotLivingAlone | AK131: MOE NonFamilyHH-NotLivingAlone | AL131: PopRaceWhite | AM131: MOE PopRaceWhite | AN131: PopRaceBlack | AO131: MOE PopRaceBlack | AP131: PopRaceAmerican Indian | AQ131: MOE PopRaceAmerican Indian | AR131: PopRaceAsian &Pacific Is. | AS131: MOE PopRaceAsian &Pacific Is. | AT131: PopRaceOther* | AU131: MOE PopRaceOther* | AV131: PopRaceHispanic or Latino: | AW131: MOE PopRaceHispanic or Latino: | AX131: AvgAgeTotalPop | AY131: MOE AvgAgeTotalPop | AZ131: AvgAgeMale | BA131: MOE AvgAgeMale | BB131: AvgAgeFemale | BC131: MOE AvgAgeFemale | BD131: AvgHHSizeTotal | BE131: MOE AvgHHSizeTotal | BF131: AvgHHSizeFamilyHH | BG131: MOE AvgHHSizeFamilyHH | BH131: AvgHHSizeNonFamilyHH | BI131: MOE AvgHHSizeNonFamilyHH
A132: =VLOOKUP(DropDownList!$A$19,CntyQuery!$A$53:$DN$64,A$1) -> Laconia | B132: 2973 | C132: 16 | D132: 456 | E132: 83.25262759 | F132: 285 | G132: 76.81145748 | H132: 228 | I132: 62.15303693 | J132: 305 | K132: 56.57738064 | L132: 455 | M132: 84.17838202 | N132: 714 | O132: 110.4807676 | P132: 344 | Q132: 59.21992908 | R132: 186 | S132: 58.5918083 | T132: 1118 | U132: 83 | V132: 842 | W132: 71 | X132: 749 | Y132: 70 | Z132: 93 | AA132: 48 | AB132: 35 | AC132: 32 | AD132: 58 | AE132: 33 | AF132: 276 | AG132: 77 | AH132: 187 | AI132: 61 | AJ132: 89 | AK132: 41 | AL132: 2804 | AM132: 122 | AN132: 16 | AO132: 20 | AP132: 0 | AQ132: 11 | AR132: 47 | AS132: 48.33218389 | AT132: 59 | AU132: 61 | AV132: 47 | AW132: 43 | AX132: 48 | AY132: 2.5 | AZ132: 47.6 | BA132: 2 | BB132: 50.2 | BC132: 4.9 | BD132: 2.650268336 | BE132: 0.197341856 | BF132: 3.067695962 | BG132: 0.2887320534 | BH132: 1.376811594 | BI132: 0.5509161647
A134: Nativity and Prior Place of Residence
A135: NAME | B135: TotalPop | C135: ="MOE "&B135 -> MOE TotalPop | D135: Native: | E135: ="MOE "&D135 -> MOE Native: | F135: NatBornInStateOfResidence | G135: ="MOE "&F135 -> MOE NatBornInStateOfResidence | H135: Born in other state in the United States: | I135: ="MOE "&H135 -> MOE Born in other state in the United States: | J135: Northeast | K135: ="MOE "&J135 -> MOE Northeast | L135: Midwest | M135: ="MOE "&L135 -> MOE Midwest | N135: South | O135: ="MOE "&N135 -> MOE South | P135: West | Q135: ="MOE "&P135 -> MOE West | R135: Born outside the United States: | S135: ="MOE "&R135 -> MOE Born outside the United States: | T135: Puerto Rico | U135: ="MOE "&T135 -> MOE Puerto Rico | V135: U.S. Island Areas | W135: ="MOE "&V135 -> MOE U.S. Island Areas | X135: Born abroad of American parent(s) | Y135: ="MOE "&X135 -> MOE Born abroad of American parent(s) | Z135: Foreign born: | AA135: ="MOE "&Z135 -> MOE Foreign born: | AB135: Naturalized U.S. citizen | AC135: ="MOE "&AB135 -> MOE Naturalized U.S. citizen | AD135: Not a U.S. citizen | AE135: ="MOE "&AD135 -> MOE Not a U.S. citizen | AF135: CurrentResideneTotal: | AG135: ="MOE "&AF135 -> MOE CurrentResideneTotal: | AH135: SameHouse: | AI135: ="MOE "&AH135 -> MOE SameHouse: | AJ135: DifferentHouse: | AK135: ="MOE "&AJ135 -> MOE DifferentHouse: | AL135: DiffHouseInNH | AM135: ="MOE "&AL135 -> MOE DiffHouseInNH | AN135: DiffHouseInNHSameCnty | AO135: ="MOE "&AN135 -> MOE DiffHouseInNHSameCnty | AP135: DiffHouseInNHDiffCnty | AQ135: ="MOE "&AP135 -> MOE DiffHouseInNHDiffCnty | AR135: DiffHouseInDiffState | AS135: ="MOE "&AR135 -> MOE DiffHouseInDiffState | AT135: DiffHouseInElsewhere | AU135: ="MOE "&AT135 -> MOE DiffHouseInElsewhere
A136: =VLOOKUP(DropDownList!$A$19,CntyQuery!$A$53:$DN$64,A$1) -> Laconia | B136: 2973 | C136: 16 | D136: 2894 | E136: 61 | F136: 1578 | G136: 131 | H136: 1296 | I136: 133 | J136: 915 | K136: 142 | L136: 134 | M136: 64 | N136: 143 | O136: 64 | P136: 104 | Q136: 34 | R136: 20 | S136: 15 | T136: 2 | U136: 4 | V136: 0 | W136: 11 | X136: 18 | Y136: 15 | Z136: 79 | AA136: 59 | AB136: 74 | AC136: 57 | AD136: 5 | AE136: 11 | AF136: 2954 | AG136: 26 | AH136: 2795 | AI136: 62 | AJ136: 159 | AK136: 58.91519329 | AL136: 118 | AM136: 53.90732789 | AN136: 85 | AO136: 41 | AP136: 33 | AQ136: 35 | AR136: 36 | AS136: 22 | AT136: 5 | AU136: 9 | AV136: 35 | AW136: 43
A138: School Attainment & Enrollment
A139: NAME | B139: Total Pop 3 Years and Older | C139: MOE Total Pop 3 Years and Older | D139: SchEnrlPop3yrOver | E139: ="MOE "&D139 -> MOE SchEnrlPop3yrOver | F139: TotalEnrollNursy&Kinder | G139: ="MOE "&F139 -> MOE TotalEnrollNursy&Kinder | H139: NurserSchEnrl | I139: ="MOE "&H139 -> MOE NurserSchEnrl | J139: KinderSchEnrl | K139: ="MOE "&J139 -> MOE KinderSchEnrl | L139: ElemSchEnrl (1-8) | M139: ="MOE "&L139 -> MOE ElemSchEnrl (1-8) | N139: HighSchEnrl(9-12) | O139: ="MOE "&N139 -> MOE HighSchEnrl(9-12) | P139: TotalElementry&HSEnroll | Q139: ="MOE "&P139 -> MOE TotalElementry&HSEnroll | R139: CollGradSchEnrl | S139: ="MOE "&R139 -> MOE CollGradSchEnrl | T139: PopNotEnrolled | U139: MOE PopNotEnrolled | V139: Pop25yrsOver | W139: ="MOE "&V139 -> MOE Pop25yrsOver | X139: EduAtain<9grd | Y139: ="MOE "&X139 -> MOE EduAtain<9grd | Z139: EduAtainHSnoDip | AA139: ="MOE "&Z139 -> MOE EduAtainHSnoDip | AB139: EduAtainHSgrad | AC139: ="MOE "&AB139 -> MOE EduAtainHSgrad | AD139: EduAtainCollNoDeg | AE139: ="MOE "&AD139 -> MOE EduAtainCollNoDeg | AF139: EduAtainAssocDeg | AG139: ="MOE "&AF139 -> MOE EduAtainAssocDeg | AH139: EduAtainBachDeg | AI139: ="MOE "&AH139 -> MOE EduAtainBachDeg | AJ139: EduAtainGradProfDeg | AK139: ="MOE "&AJ139 -> MOE EduAtainGradProfDeg
A140: =VLOOKUP(DropDownList!$A$19,CntyQuery!$A$53:$DN$64,A$1) -> Laconia | B140: 2934 | C140: 33 | D140: 641 | E140: 98 | F140: 71 | G140: 34.98571137 | H140: 48 | I140: 30 | J140: 23 | K140: 18 | L140: 293 | M140: 73.06161783 | N140: 161 | O140: 52 | P140: 454 | Q140: 89.67719889 | R140: 116 | S140: 49.04079934 | T140: 2293 | U140: 93 | V140: 2232 | W140: 93 | X140: 21 | Y140: 27.58622845 | Z140: 43 | AA140: 31.70173497 | AB140: 528 | AC140: 97.5807358 | AD140: 444 | AE140: 96.43132271 | AF140: 319 | AG140: 75.69015788 | AH140: 470 | AI140: 84.64632302 | AJ140: 392 | AK140: 90.31057524
A142: Occupied Owner Housing Value
A143: NAME | B143: Estimate; Total: | C143: Margin of Error; Total: | D143: Estimate; Total: - Less than $10,000 | E143: Margin of Error; Total: - Less than $10,000 | F143: Estimate; Total: - $10,000 to $14,999 | G143: Margin of Error; Total: - $10,000 to $14,999 | H143: Estimate; Total: - $15,000 to $19,999 | I143: Margin of Error; Total: - $15,000 to $19,999 | J143: Estimate; Total: - $20,000 to $24,999 | K143: Margin of Error; Total: - $20,000 to $24,999 | L143: Estimate; Total: - $25,000 to $29,999 | M143: Margin of Error; Total: - $25,000 to $29,999 | N143: Estimate; Total: - $30,000 to $34,999 | O143: Margin of Error; Total: - $30,000 to $34,999 | P143: Estimate; Total: - $35,000 to $39,999 | Q143: Margin of Error; Total: - $35,000 to $39,999 | R143: Estimate; Total: - $40,000 to $49,999 | S143: Margin of Error; Total: - $40,000 to $49,999 | T143: Estimate; Total: - $50,000 to $59,999 | U143: Margin of Error; Total: - $50,000 to $59,999 | V143: Estimate; Total: - $60,000 to $69,999 | W143: Margin of Error; Total: - $60,000 to $69,999 | X143: Estimate; Total: - $70,000 to $79,999 | Y143: Margin of Error; Total: - $70,000 to $79,999 | Z143: Estimate; Total: - $80,000 to $89,999 | AA143: Margin of Error; Total: - $80,000 to $89,999 | AB143: Estimate; Total: - $90,000 to $99,999 | AC143: Margin of Error; Total: - $90,000 to $99,999 | AD143: Estimate; Total: - $100,000 to $124,999 | AE143: Margin of Error; Total: - $100,000 to $124,999 | AF143: Estimate; Total: - $125,000 to $149,999 | AG143: Margin of Error; Total: - $125,000 to $149,999 | AH143: Estimate; Total: - $150,000 to $174,999 | AI143: Margin of Error; Total: - $150,000 to $174,999 | AJ143: Estimate; Total: - $175,000 to $199,999 | AK143: Margin of Error; Total: - $175,000 to $199,999 | AL143: Estimate; Total: - $200,000 to $249,999 | AM143: Margin of Error; Total: - $200,000 to $249,999 | AN143: Estimate; Total: - $250,000 to $299,999 | AO143: Margin of Error; Total: - $250,000 to $299,999 | AP143: Estimate; Total: - $300,000 to $399,999 | AQ143: Margin of Error; Total: - $300,000 to $399,999 | AR143: Estimate; Total: - $400,000 to $499,999 | AS143: Margin of Error; Total: - $400,000 to $499,999 | AT143: Estimate; Total: - $500,000 to $749,999 | AU143: Margin of Error; Total: - $500,000 to $749,999 | AV143: Estimate; Total: - $750,000 to $999,999 | AW143: Margin of Error; Total: - $750,000 to $999,999 | AX143: Estimate; Total: - $1,000,000 to $1,499,999 | AY143: Margin of Error; Total: - $1,000,000 to $1,499,999 | AZ143: Estimate; Total: - $1,500,000 to $1,999,999 | BA143: Margin of Error; Total: - $1,500,000 to $1,999,999 | BB143: Estimate; Total: - $2,000,000 or more | BC143: Margin of Error; Total: - $2,000,000 or more | BD143: MedianOwnOCCHomeValue | BE143: MOE MedianOwnOCCHomeValue | BF143: OnwerOccHsU | BG143: MOE OnwerOccHsU | BH143: OwnerCosts>20PctHHInc | BI143: MOE OwnerCosts>20PctHHInc | BJ143: OwnerCosts20to29.9PctHHInc | BK143: MOE OwnerCosts20to29.9PctHHInc | BL143: OwnerCosts<30PctHHInc | BM143: MOE OwnerCosts<30PctHHInc | BN143: OwnerCosts>30PctHHInc | BO143: MOE OwnerCosts>30PctHHInc | BP143: OwnerCosts30to34.9PctHHInc | BQ143: MOE OwnerCosts30to34.9PctHHInc | BR143: OwnerCosts<35PctHHInc | BS143: MOE OwnerCosts<35PctHHInc | BT143: OwnerCosts>35PctHHInc | BU143: MOE OwnerCosts>35PctHHInc | BV143: OwnerCosts>50PctHHInc | BW143: MOE OwnerCosts>50PctHHInc | BX143: OwnerCostsPctNotcomputed | BY143: MOE OwnerCostsPctNotcomputed | BZ143: OwnerOHUHhInc<20k | CA143: MOE OwnerOHUHhInc<20k | CB143: OwnerOHUHhInc<20kHCosts<20pct | CC143: MOE OwnerOHUHhInc<20kHCosts<20pct | CD143: OwnerOHUHhInc<20kHCosts20to29pct | CE143: MOE OwnerOHUHhInc<20kHCosts20to29pct | CF143: OwnerOHUHhInc>20kHCosts30pct | CG143: MOE OwnerOHUHhInc>20kHCosts30pct | CH143: OwnerOHUHhInc20kTo34999 | CI143: MOE OwnerOHUHhInc20kTo34999 | CJ143: OwnerOHUHhInc20kTo34999HCosts<20pct | CK143: MOE OwnerOHUHhInc20kTo34999HCosts<20pct | CL143: OwnerOHUHhInc20kTo34999HCosts20to29pct | CM143: MOE OwnerOHUHhInc20kTo34999HCosts20to29pct | CN143: OwnerOHUHhInc20kTo34999HCosts30pct | CO143: MOE OwnerOHUHhInc20kTo34999HCosts30pct | CP143: OwnerOHUHhInc35kTo49999 | CQ143: MOE OwnerOHUHhInc35kTo49999 | CR143: OwnerOHUHhInc35kTo49999HCosts<20pct | CS143: MOE OwnerOHUHhInc35kTo49999HCosts<20pct | CT143: OwnerOHUHhInc35kTo49999HCosts20to29pct | CU143: MOE OwnerOHUHhInc35kTo49999HCosts20to29pct | CV143: OwnerOHUHhInc35kTo49999HCosts30pct | CW143: MOE OwnerOHUHhInc35kTo49999HCosts30pct | CX143: OwnerOHUHhInc50kTo74999 | CY143: MOE OwnerOHUHhInc50kTo74999 | CZ143: OwnerOHUHhInc50kTo74999HCosts<20pct | DA143: MOE OwnerOHUHhInc50kTo74999HCosts<20pct | DB143: OwnerOHUHhInc50kTo74999HCosts20to29pct | DC143: MOE OwnerOHUHhInc50kTo74999HCosts20to29pct | DD143: OwnerOHUHhInc50kTo74999HCosts30pct | DE143: MOE OwnerOHUHhInc50kTo74999HCosts30pct | DF143: OwnerOHUHhInc>75000 | DG143: MOE OwnerOHUHhInc>75000 | DH143: OwnerOHUHhInc>75000HCosts<20pct | DI143: MOE OwnerOHUHhInc>75000HCosts<20pct | DJ143: OwnerOHUHhInc>75000HCosts20to29pct | DK143: MOE OwnerOHUHhInc>75000HCosts20to29pct | DL143: OwnerOHUHhInc>75000HCosts30pct | DM143: MOE OwnerOHUHhInc>75000HCosts30pct | DN143: ZeroOrNegativeIncome | DO143: MOE ZeroOrNegativeIncome
A144: =VLOOKUP(DropDownList!$A$19,CntyQuery!$A$53:$DN$64,A$1) -> Laconia | B144: 3650 | C144: 271 | D144: 17 | E144: 20 | F144: 0 | G144: 17 | H144: 20 | I144: 22 | J144: 28 | K144: 34 | L144: 8 | M144: 13 | N144: 12 | O144: 20 | P144: 0 | Q144: 17 | R144: 6 | S144: 10 | T144: 32 | U144: 31 | V144: 65 | W144: 33 | X144: 73 | Y144: 53 | Z144: 42 | AA144: 31 | AB144: 82 | AC144: 49 | AD144: 460 | AE144: 133 | AF144: 368 | AG144: 117 | AH144: 565 | AI144: 133 | AJ144: 384 | AK144: 133 | AL144: 439 | AM144: 129 | AN144: 359 | AO144: 112 | AP144: 360 | AQ144: 92 | AR144: 139 | AS144: 62 | AT144: 72 | AU144: 40 | AV144: 70 | AW144: 52 | AX144: 49 | AY144: 36 | AZ144: 0 | BA144: 17 | BB144: 0 | BC144: 17 | BD144: 178100 | BE144: 10709 | BF144: 3650 | BG144: 271 | BH144: 1696 | BI144: 238.3673635 | BJ144: 847 | BK144: 179.273534 | BL144: 2543 | BM144: 298.2582773 | BN144: 1094 | BO144: 231.5491309 | BP144: 232 | BQ144: 92.76313923 | BR144: 2775 | BS144: 312.3507644 | BT144: 862 | BU144: 212.1556033 | BV144: 599 | BW144: 194.0541162 | BX144: 13 | BY144: 27.01851217 | BZ144: 326 | CA144: 121 | CB144: 0 | CC144: 18 | CD144: 8 | CE144: 13 | CF144: 318 | CG144: 121 | CH144: 430 | CI144: 133 | CJ144: 57 | CK144: 40 | CL144: 92 | CM144: 52 | CN144: 281 | CO144: 113 | CP144: 457 | CQ144: 124 | CR144: 160 | CS144: 90 | CT144: 122 | CU144: 59 | CV144: 175 | CW144: 79 | CX144: 602 | CY144: 138 | CZ144: 269 | DA144: 100 | DB144: 138 | DC144: 67 | DD144: 195 | DE144: 81 | DF144: 1953 | DG144: 199 | DH144: 1427 | DI144: 205 | DJ144: 451 | DK144: 122 | DL144: 75 | DM144: 52 | DN144: 18 | DO144: 27
A146: Occupied Rental Housing Value
A147: NAME | B147: RntrOccHU | C147: MOE RntrOccHU | D147: RntrOccHUwRent | E147: MOE RntrOccHUwRent | F147: ROHUGRent<100 | G147: MOE ROHUGRent<100 | H147: ROHUGRent100to149 | I147: MOE ROHUGRent100to149 | J147: ROHUGRent150to199 | K147: MOE ROHUGRent150to199 | L147: ROHUGRent200to249 | M147: MOE ROHUGRent200to249 | N147: ROHUGRent250to299 | O147: MOE ROHUGRent250to299 | P147: ROHUGRent300to349 | Q147: MOE ROHUGRent300to349 | R147: ROHUGRent350to399 | S147: MOE ROHUGRent350to399 | T147: ROHUGRent400to449 | U147: MOE ROHUGRent400to449 | V147: ROHUGRent450to499 | W147: MOE ROHUGRent450to499 | X147: ROHUGRent500to549 | Y147: MOE ROHUGRent500to549 | Z147: ROHUGRent550to599 | AA147: MOE ROHUGRent550to599 | AB147: ROHUGRent600to649 | AC147: MOE ROHUGRent600to649 | AD147: ROHUGRent650to699 | AE147: MOE ROHUGRent650to699 | AF147: ROHUGRent700to749 | AG147: MOE ROHUGRent700to749 | AH147: ROHUGRent750to799 | AI147: MOE ROHUGRent750to799 | AJ147: ROHUGRent800to899 | AK147: MOE ROHUGRent800to899 | AL147: ROHUGRent900to999 | AM147: MOE ROHUGRent900to999 | AN147: ROHUGRent1000to1249 | AO147: MOE ROHUGRent1000to1249 | AP147: ROHUGRent1250to1499 | AQ147: MOE ROHUGRent1250to1499 | AR147: ROHUGRent1500to1999 | AS147: MOE ROHUGRent1500to1999 | AT147: ROHUGRent$2,000 to $2,499 | AU147: MOE ROHUGRent$2,000 to $2,499 | AV147: ROHUGRent$2,500 to $2,999 | AW147: MOE ROHUGRent$2,500 to $2,999 | AX147: ROHUGRent$3,000 to $3,499 | AY147: MOE ROHUGRent$3,000 to $3,499 | AZ147: ROHUGRent$3,500 or more | BA147: MOE ROHUGRent$3,500 or more | BB147: ROHUNoGRent | BC147: MOE ROHUNoGRent | BD147: MedianGrossRnt | BE147: MOE MedianGrossRnt | BF147: H73RenterOccHU | BG147: MOE H73RenterOccHU | BH147: H73ROHUHhInc<10k | BI147: MOE H73ROHUHhInc<10k | BJ147: H73ROHUHhInc<10kRnt<20pct | BK147: MOE H73ROHUHhInc<10kRnt<20pct | BL147: H73ROHUHhInc<10kRnt20to25pct | BM147: MOE H73ROHUHhInc<10kRnt20to25pct | BN147: H73ROHUHhInc<10kRnt25to30pct | BO147: MOE H73ROHUHhInc<10kRnt25to30pct | BP147: H73ROHUHhInc<10kRnt30to35pct | BQ147: MOE H73ROHUHhInc<10kRnt30to35pct | BR147: H73ROHUHhInc<10kRnt35to39.9 | BS147: MOE H73ROHUHhInc<10kRnt35to39.9 | BT147: H73ROHUHhInc<10kRnt40to49.9 | BU147: MOE H73ROHUHhInc<10kRnt40to49.9 | BV147: H73ROHUHhInc<10kRnt>50pct | BW147: MOE H73ROHUHhInc<10kRnt>50pct | BX147: H73ROHUHhInc<10kPctNotComput | BY147: MOE H73ROHUHhInc<10kPctNotComput | BZ147: H73ROHUHhInc10to20k | CA147: MOE H73ROHUHhInc10to20k | CB147: H73ROHUHhInc10to20kRnt<20pct | CC147: MOE H73ROHUHhInc10to20kRnt<20pct | CD147: H73ROHUHhInc10to20kRnt20to25pct | CE147: MOE H73ROHUHhInc10to20kRnt20to25pct | CF147: H73ROHUHhInc10to20kRnt25to30pct | CG147: MOE H73ROHUHhInc10to20kRnt25to30pct | CH147: H73ROHUHhInc10to20kRnt30to35pct | CI147: MOE H73ROHUHhInc10to20kRnt30to35pct | CJ147: H73ROHUHhInc10to20kRnt35to39.9 | CK147: MOE H73ROHUHhInc10to20kRnt35to39.9 | CL147: H73ROHUHhInc10to20kRnt40to49.9 | CM147: MOE H73ROHUHhInc10to20kRnt40to49.9 | CN147: H73ROHUHhInc10to20kRnt>50pct | CO147: MOE H73ROHUHhInc10to20kRnt>50pct | CP147: H73ROHUHhInc10to20kRntPctNC | CQ147: MOE H73ROHUHhInc10to20kRntPctNC | CR147: H73ROHUHhInc20to34.9k | CS147: MOE H73ROHUHhInc20to34.9k | CT147: H73ROHUHhInc20to34.9kRnt<20pct | CU147: MOE H73ROHUHhInc20to34.9kRnt<20pct | CV147: H73ROHUHhInc20to34.9kRnt20to25pct | CW147: MOE H73ROHUHhInc20to34.9kRnt20to25pct | CX147: H73ROHUHhInc20to34.9kRnt25to30pct | CY147: MOE H73ROHUHhInc20to34.9kRnt25to30pct | CZ147: H73ROHUHhInc20to34.9kRnt30to35pct | DA147: MOE H73ROHUHhInc20to34.9kRnt30to35pct | DB147: H73ROHUHhInc20to34.9kRnt35to39.9 | DC147: MOE H73ROHUHhInc20to34.9kRnt35to39.9 | DD147: H73ROHUHhInc20to34.9kRnt40to49.9 | DE147: MOE H73ROHUHhInc20to34.9kRnt40to49.9 | DF147: H73ROHUHhInc20to34.9kRnt>50pct | DG147: MOE H73ROHUHhInc20to34.9kRnt>50pct | DH147: H73ROHUHhInc20to34.9kRntPctNC | DI147: MOE H73ROHUHhInc20to34.9kRntPctNC | DJ147: H73ROHUHhInc35to49.9k | DK147: MOE H73ROHUHhInc35to49.9k | DL147: H73ROHUHhInc35to49.9kRnt<20pct | DM147: MOE H73ROHUHhInc35to49.9kRnt<20pct | DN147: H73ROHUHhInc35to49.9kRnt20to25pct | DO147: MOE H73ROHUHhInc35to49.9kRnt20to25pct | DP147: H73ROHUHhInc35to49.9kRnt25to30pct | DQ147: MOE H73ROHUHhInc35to49.9kRnt25to30pct | DR147: H73ROHUHhInc35to49.9kRnt30to35pct | DS147: MOE H73ROHUHhInc35to49.9kRnt30to35pct | DT147: H73ROHUHhInc35to49.9kRnt35to39.9 | DU147: MOE H73ROHUHhInc35to49.9kRnt35to39.9 | DV147: H73ROHUHhInc35to49.9kRnt40to49.9 | DW147: MOE H73ROHUHhInc35to49.9kRnt40to49.9 | DX147: H73ROHUHhInc35to49.9kRnt>50pct | DY147: MOE H73ROHUHhInc35to49.9kRnt>50pct | DZ147: H73ROHUHhInc35to49.9kRntPctNC | EA147: MOE H73ROHUHhInc35to49.9kRntPctNC | EB147: H73ROHUHhInc50to74.9k | EC147: MOE H73ROHUHhInc50to74.9k | ED147: H73ROHUHhInc50to74.9kRnt<20pct | EE147: MOE H73ROHUHhInc50to74.9kRnt<20pct | EF147: H73ROHUHhInc50to74.9kRnt20to25pct | EG147: MOE H73ROHUHhInc50to74.9kRnt20to25pct | EH147: H73ROHUHhInc50to74.9kRnt25to30pct | EI147: MOE H73ROHUHhInc50to74.9kRnt25to30pct | EJ147: H73ROHUHhInc50to74.9kRnt30to35pct | EK147: MOE H73ROHUHhInc50to74.9kRnt30to35pct | EL147: H73ROHUHhInc50to74.9kRnt35to39.9 | EM147: MOE H73ROHUHhInc50to74.9kRnt35to39.9 | EN147: H73ROHUHhInc50to74.9kRnt40to49.9 | EO147: MOE H73ROHUHhInc50to74.9kRnt40to49.9 | EP147: H73ROHUHhInc50to74.9kRnt>50pct | EQ147: MOE H73ROHUHhInc50to74.9kRnt>50pct | ER147: H73ROHUHhInc50to74.9kRntPctNC | ES147: MOE H73ROHUHhInc50to74.9kRntPctNC | ET147: H73ROHUHhInc75to99.9k | EU147: MOE H73ROHUHhInc75to99.9k | EV147: H73ROHUHhInc75to99.9kRnt<20pct | EW147: MOE H73ROHUHhInc75to99.9kRnt<20pct | EX147: H73ROHUHhInc75to99.9kRnt20to25pct | EY147: MOE H73ROHUHhInc75to99.9kRnt20to25pct | EZ147: H73ROHUHhInc75to99.9kRnt25to30pct | FA147: MOE H73ROHUHhInc75to99.9kRnt25to30pct | FB147: H73ROHUHhInc75to99.9kRnt30to35pct | FC147: MOE H73ROHUHhInc75to99.9kRnt30to35pct | FD147: H73ROHUHhInc75to99.9kRnt35to39.9 | FE147: MOE H73ROHUHhInc75to99.9kRnt35to39.9 | FF147: H73ROHUHhInc75to99.9kRnt40to49.9 | FG147: MOE H73ROHUHhInc75to99.9kRnt40to49.9 | FH147: H73ROHUHhInc75to99.9kRnt>50pct | FI147: MOE H73ROHUHhInc75to99.9kRnt>50pct | FJ147: H73ROHUHhInc75to99.9kRntPctNC | FK147: MOE H73ROHUHhInc75to99.9kRntPctNC | FL147: H73ROHUHhInc>100k | FM147: MOE H73ROHUHhInc>100k | FN147: H73ROHUHhInc>100kRnt<20pct | FO147: MOE H73ROHUHhInc>100kRnt<20pct | FP147: H73ROHUHhInc>100kRnt20to25pct | FQ147: MOE H73ROHUHhInc>100kRnt20to25pct | FR147: H73ROHUHhInc>100kRnt25to30pct | FS147: MOE H73ROHUHhInc>100kRnt25to30pct | FT147: H73ROHUHhInc>100kRnt30to35pct | FU147: MOE H73ROHUHhInc>100kRnt30to35pct | FV147: H73ROHUHhInc>100kRnt35to39.9 | FW147: MOE H73ROHUHhInc>100kRnt35to39.9 | FX147: H73ROHUHhInc>100kRnt40to49.9 | FY147: MOE H73ROHUHhInc>100kRnt40to49.9 | FZ147: H73ROHUHhInc>100kRnt>50pct | GA147: MOE H73ROHUHhInc>100kRnt>50pct | GB147: H73ROHUHhInc>100kRntPctNC | GC147: MOE H73ROHUHhInc>100kRntPctNC
A148: =VLOOKUP(DropDownList!$A$19,CntyQuery!$A$53:$DN$64,A$1) -> Laconia | B148: 3090 | C148: 253 | D148: 3026 | E148: 238 | F148: 0 | G148: 17 | H148: 28 | I148: 43 | J148: 27 | K148: 29 | L148: 61 | M148: 48 | N148: 63 | O148: 48 | P148: 0 | Q148: 17 | R148: 58 | S148: 63 | T148: 15 | U148: 17 | V148: 42 | W148: 32 | X148: 64 | Y148: 43 | Z148: 22 | AA148: 25 | AB148: 86 | AC148: 93 | AD148: 112 | AE148: 66 | AF148: 194 | AG148: 82 | AH148: 258 | AI148: 106 | AJ148: 552 | AK148: 222 | AL148: 337 | AM148: 128 | AN148: 514 | AO148: 159 | AP148: 372 | AQ148: 127 | AR148: 168 | AS148: 76 | AT148: 36 | AU148: 30 | AV148: 17 | AW148: 26 | AX148: 0 | AY148: 17 | AZ148: 0 | BA148: 17 | BB148: 64 | BC148: 48 | BD148: 888 | BE148: 34 | BF148: 3090 | BG148: 253 | BH148: 290 | BI148: 110 | BJ148: 0 | BK148: 17 | BL148: 16 | BM148: 25 | BN148: 30 | BO148: 27 | BP148: 0 | BQ148: 17 | BR148: 0 | BS148: 17 | BT148: 0 | BU148: 17 | BV148: 144 | BW148: 73 | BX148: 100 | BY148: 82 | BZ148: 656 | CA148: 173 | CB148: 35 | CC148: 42 | CD148: 12 | CE148: 19 | CF148: 57 | CG148: 55 | CH148: 0 | CI148: 17 | CJ148: 11 | CK148: 18 | CL148: 89 | CM148: 63 | CN148: 445 | CO148: 141 | CP148: 7 | CQ148: 11 | CR148: 802 | CS148: 197 | CT148: 42 | CU148: 45 | CV148: 32 | CW148: 31 | CX148: 44 | CY148: 32 | CZ148: 52 | DA148: 48 | DB148: 158 | DC148: 117 | DD148: 134 | DE148: 59 | DF148: 317 | DG148: 137 | DH148: 23 | DI148: 21 | DJ148: 496 | DK148: 195 | DL148: 17 | DM148: 20 | DN148: 182 | DO148: 138 | DP148: 189 | DQ148: 132 | DR148: 25 | DS148: 21 | DT148: 10 | DU148: 16 | DV148: 41 | DW148: 29 | DX148: 32 | DY148: 32 | DZ148: 0 | EA148: 17 | EB148: 444 | EC148: 154 | ED148: 293 | EE148: 145 | EF148: 78 | EG148: 58 | EH148: 44 | EI148: 34 | EJ148: 9 | EK148: 15 | EL148: 0 | EM148: 17 | EN148: 0 | EO148: 17 | EP148: 0 | EQ148: 17 | ER148: 20 | ES148: 24 | ET148: 157 | EU148: 88 | EV148: 131 | EW148: 83 | EX148: 12 | EY148: 19 | EZ148: 0 | FA148: 17 | FB148: 0 | FC148: 17 | FD148: 0 | FE148: 17 | FF148: 0 | FG148: 17 | FH148: 0 | FI148: 17 | FJ148: 14 | FK148: 22 | FL148: 245 | FM148: 133 | FN148: 222 | FO148: 131 | FP148: 7 | FQ148: 12 | FR148: 16 | FS148: 17 | FT148: 0 | FU148: 17 | FV148: 0 | FW148: 17 | FX148: 0 | FY148: 17 | FZ148: 0 | GA148: 17 | GB148: 0 | GC148: 17
A154: Occupied Rental Housing Cost Burdern All Incomes
A155: NAME | B155: RntrOccHU | C155: MOE RntrOccHU | D155: RntrOccHUwRent | E155: MOE RntrOccHUwRent | F155: ROHUGRent<100 | G155: MOE ROHUGRent<100 | H155: ROHUGRent100to149 | I155: MOE ROHUGRent100to149 | J155: ROHUGRent150to199 | K155: MOE ROHUGRent150to199 | L155: ROHUGRent200to249 | M155: MOE ROHUGRent200to249 | N155: ROHUGRent250to299 | O155: MOE ROHUGRent250to299 | P155: ROHUGRent300to349 | Q155: MOE ROHUGRent300to349 | R155: ROHUGRent350to399 | S155: MOE ROHUGRent350to399 | T155: ROHUGRent400to449 | U155: MOE ROHUGRent400to449 | V155: ROHUGRent450to499 | W155: MOE ROHUGRent450to499 | X155: ROHUGRent500to549 | Y155: MOE ROHUGRent500to549 | Z155: ROHUGRent550to599 | AA155: MOE ROHUGRent550to599 | AB155: ROHUGRent600to649 | AC155: MOE ROHUGRent600to649 | AD155: ROHUGRent650to699 | AE155: MOE ROHUGRent650to699 | AF155: ROHUGRent700to749 | AG155: MOE ROHUGRent700to749 | AH155: ROHUGRent750to799 | AI155: MOE ROHUGRent750to799 | AJ155: ROHUGRent800to899 | AK155: MOE ROHUGRent800to899 | AL155: ROHUGRent900to999 | AM155: MOE ROHUGRent900to999 | AN155: ROHUGRent1000to1249 | AO155: MOE ROHUGRent1000to1249 | AP155: ROHUGRent1250to1499 | AQ155: MOE ROHUGRent1250to1499 | AR155: ROHUGRent1500to1999 | AS155: MOE ROHUGRent1500to1999 | AT155: ROHUGRent2000> | AU155: MOE ROHUGRent2000> | AV155: ROHUNoGRent | AW155: MOE ROHUNoGRent | AX155: MedianGrossRnt | AY155: MOE MedianGrossRnt | AZ155: H73RenterOccHU | BA155: MOE H73RenterOccHU | BB155: H73ROHUHhInc<10k | BC155: MOE H73ROHUHhInc<10k | BD155: H73ROHUHhInc<10kRnt<20pct | BE155: MOE H73ROHUHhInc<10kRnt<20pct | BF155: H73ROHUHhInc<10kRnt20to25pct | BG155: MOE H73ROHUHhInc<10kRnt20to25pct | BH155: H73ROHUHhInc<10kRnt25to30pct | BI155: MOE H73ROHUHhInc<10kRnt25to30pct | BJ155: H73ROHUHhInc<10kRnt30to35pct | BK155: MOE H73ROHUHhInc<10kRnt30to35pct | BL155: H73ROHUHhInc<10kRnt35to39.9 | BM155: MOE H73ROHUHhInc<10kRnt35to39.9 | BN155: H73ROHUHhInc<10kRnt40to49.9 | BO155: MOE H73ROHUHhInc<10kRnt40to49.9 | BP155: H73ROHUHhInc<10kRnt>50pct | BQ155: MOE H73ROHUHhInc<10kRnt>50pct | BR155: H73ROHUHhInc<10kPctNotComput | BS155: MOE H73ROHUHhInc<10kPctNotComput | BT155: H73ROHUHhInc10to20k | BU155: MOE H73ROHUHhInc10to20k | BV155: H73ROHUHhInc10to20kRnt<20pct | BW155: MOE H73ROHUHhInc10to20kRnt<20pct | BX155: H73ROHUHhInc10to20kRnt20to25pct | BY155: MOE H73ROHUHhInc10to20kRnt20to25pct | BZ155: H73ROHUHhInc10to20kRnt25to30pct | CA155: MOE H73ROHUHhInc10to20kRnt25to30pct | CB155: H73ROHUHhInc10to20kRnt30to35pct | CC155: MOE H73ROHUHhInc10to20kRnt30to35pct | CD155: H73ROHUHhInc10to20kRnt35to39.9 | CE155: MOE H73ROHUHhInc10to20kRnt35to39.9 | CF155: H73ROHUHhInc10to20kRnt40to49.9 | CG155: MOE H73ROHUHhInc10to20kRnt40to49.9 | CH155: H73ROHUHhInc10to20kRnt>50pct | CI155: MOE H73ROHUHhInc10to20kRnt>50pct | CJ155: H73ROHUHhInc10to20kRntPctNC | CK155: MOE H73ROHUHhInc10to20kRntPctNC | CL155: H73ROHUHhInc20to34.9k | CM155: MOE H73ROHUHhInc20to34.9k | CN155: H73ROHUHhInc20to34.9kRnt<20pct | CO155: MOE H73ROHUHhInc20to34.9kRnt<20pct | CP155: H73ROHUHhInc20to34.9kRnt20to25pct | CQ155: MOE H73ROHUHhInc20to34.9kRnt20to25pct | CR155: H73ROHUHhInc20to34.9kRnt25to30pct | CS155: MOE H73ROHUHhInc20to34.9kRnt25to30pct | CT155: H73ROHUHhInc20to34.9kRnt30to35pct | CU155: MOE H73ROHUHhInc20to34.9kRnt30to35pct | CV155: H73ROHUHhInc20to34.9kRnt35to39.9 | CW155: MOE H73ROHUHhInc20to34.9kRnt35to39.9 | CX155: H73ROHUHhInc20to34.9kRnt40to49.9 | CY155: MOE H73ROHUHhInc20to34.9kRnt40to49.9 | CZ155: H73ROHUHhInc20to34.9kRnt>50pct | DA155: MOE H73ROHUHhInc20to34.9kRnt>50pct | DB155: H73ROHUHhInc20to34.9kRntPctNC | DC155: MOE H73ROHUHhInc20to34.9kRntPctNC | DD155: H73ROHUHhInc35to49.9k | DE155: MOE H73ROHUHhInc35to49.9k | DF155: H73ROHUHhInc35to49.9kRnt<20pct | DG155: MOE H73ROHUHhInc35to49.9kRnt<20pct | DH155: H73ROHUHhInc35to49.9kRnt20to25pct | DI155: MOE H73ROHUHhInc35to49.9kRnt20to25pct | DJ155: H73ROHUHhInc35to49.9kRnt25to30pct | DK155: MOE H73ROHUHhInc35to49.9kRnt25to30pct | DL155: H73ROHUHhInc35to49.9kRnt30to35pct | DM155: MOE H73ROHUHhInc35to49.9kRnt30to35pct | DN155: H73ROHUHhInc35to49.9kRnt35to39.9 | DO155: MOE H73ROHUHhInc35to49.9kRnt35to39.9 | DP155: H73ROHUHhInc35to49.9kRnt40to49.9 | DQ155: MOE H73ROHUHhInc35to49.9kRnt40to49.9 | DR155: H73ROHUHhInc35to49.9kRnt>50pct | DS155: MOE H73ROHUHhInc35to49.9kRnt>50pct | DT155: H73ROHUHhInc35to49.9kRntPctNC | DU155: MOE H73ROHUHhInc35to49.9kRntPctNC | DV155: H73ROHUHhInc50to74.9k | DW155: MOE H73ROHUHhInc50to74.9k | DX155: H73ROHUHhInc50to74.9kRnt<20pct | DY155: MOE H73ROHUHhInc50to74.9kRnt<20pct | DZ155: H73ROHUHhInc50to74.9kRnt20to25pct | EA155: MOE H73ROHUHhInc50to74.9kRnt20to25pct | EB155: H73ROHUHhInc50to74.9kRnt25to30pct | EC155: MOE H73ROHUHhInc50to74.9kRnt25to30pct | ED155: H73ROHUHhInc50to74.9kRnt30to35pct | EE155: MOE H73ROHUHhInc50to74.9kRnt30to35pct | EF155: H73ROHUHhInc50to74.9kRnt35to39.9 | EG155: MOE H73ROHUHhInc50to74.9kRnt35to39.9 | EH155: H73ROHUHhInc50to74.9kRnt40to49.9 | EI155: MOE H73ROHUHhInc50to74.9kRnt40to49.9 | EJ155: H73ROHUHhInc50to74.9kRnt>50pct | EK155: MOE H73ROHUHhInc50to74.9kRnt>50pct | EL155: H73ROHUHhInc50to74.9kRntPctNC | EM155: MOE H73ROHUHhInc50to74.9kRntPctNC | EN155: H73ROHUHhInc75to99.9k | EO155: MOE H73ROHUHhInc75to99.9k | EP155: H73ROHUHhInc75to99.9kRnt<20pct | EQ155: MOE H73ROHUHhInc75to99.9kRnt<20pct | ER155: H73ROHUHhInc75to99.9kRnt20to25pct | ES155: MOE H73ROHUHhInc75to99.9kRnt20to25pct | ET155: H73ROHUHhInc75to99.9kRnt25to30pct | EU155: MOE H73ROHUHhInc75to99.9kRnt25to30pct | EV155: H73ROHUHhInc75to99.9kRnt30to35pct | EW155: MOE H73ROHUHhInc75to99.9kRnt30to35pct | EX155: H73ROHUHhInc75to99.9kRnt35to39.9 | EY155: MOE H73ROHUHhInc75to99.9kRnt35to39.9 | EZ155: H73ROHUHhInc75to99.9kRnt40to49.9 | FA155: MOE H73ROHUHhInc75to99.9kRnt40to49.9 | FB155: H73ROHUHhInc75to99.9kRnt>50pct | FC155: MOE H73ROHUHhInc75to99.9kRnt>50pct | FD155: H73ROHUHhInc75to99.9kRntPctNC | FE155: MOE H73ROHUHhInc75to99.9kRntPctNC | FF155: H73ROHUHhInc>100k | FG155: MOE H73ROHUHhInc>100k | FH155: H73ROHUHhInc>100kRnt<20pct | FI155: MOE H73ROHUHhInc>100kRnt<20pct | FJ155: H73ROHUHhInc>100kRnt20to25pct | FK155: MOE H73ROHUHhInc>100kRnt20to25pct | FL155: H73ROHUHhInc>100kRnt25to30pct | FM155: MOE H73ROHUHhInc>100kRnt25to30pct | FN155: H73ROHUHhInc>100kRnt30to35pct | FO155: MOE H73ROHUHhInc>100kRnt30to35pct | FP155: H73ROHUHhInc>100kRnt35to39.9 | FQ155: MOE H73ROHUHhInc>100kRnt35to39.9 | FR155: H73ROHUHhInc>100kRnt40to49.9 | FS155: MOE H73ROHUHhInc>100kRnt40to49.9 | FT155: H73ROHUHhInc>100kRnt>50pct | FU155: MOE H73ROHUHhInc>100kRnt>50pct | FV155: H73ROHUHhInc>100kRntPctNC | FW155: MOE H73ROHUHhInc>100kRntPctNC
A156: =VLOOKUP(DropDownList!$A$19,CntyQuery!$A$53:$DN$64,A$1) -> Laconia | B156: 3090 | C156: 253 | D156: 740 | E156: 222.4095322 | F156: 339 | G156: 150 | H156: 380 | I156: 165 | J156: 1459 | K156: 314.9460271 | L156: 1467 | M156: 256.5891658 | N156: 86 | O156: 56 | P156: 1545 | Q156: 319.8859172 | R156: 1381 | S156: 250.4036741 | T156: 938 | U156: 203 | V156: 164 | W156: 91
A158: Income By Household Type and Tenure
A159: NAME | B159: TotalFamilyHouseholds | C159: ="MOE "&B159 -> MOE TotalFamilyHouseholds | D159: FamInc<10K | E159: ="MOE "&D159 -> MOE FamInc<10K | F159: FamInc10to15K | G159: ="MOE "&F159 -> MOE FamInc10to15K | H159: FamInc15to20K | I159: ="MOE "&H159 -> MOE FamInc15to20K | J159: FamInc20to25K | K159: ="MOE "&J159 -> MOE FamInc20to25K | L159: FamInc25to30K | M159: ="MOE "&L159 -> MOE FamInc25to30K | N159: FamInc30to35K | O159: ="MOE "&N159 -> MOE FamInc30to35K | P159: FamInc35to40K | Q159: ="MOE "&P159 -> MOE FamInc35to40K | R159: FamInc40to45K | S159: ="MOE "&R159 -> MOE FamInc40to45K | T159: FamInc45to50K | U159: ="MOE "&T159 -> MOE FamInc45to50K | V159: FamInc50to60K | W159: ="MOE "&V159 -> MOE FamInc50to60K | X159: FamInc60to75K | Y159: ="MOE "&X159 -> MOE FamInc60to75K | Z159: FamInc75to100K | AA159: ="MOE "&Z159 -> MOE FamInc75to100K | AB159: FamInc100to125K | AC159: ="MOE "&AB159 -> MOE FamInc100to125K | AD159: FamInc125to150K | AE159: ="MOE "&AD159 -> MOE FamInc125to150K | AF159: FamInc150to200K | AG159: ="MOE "&AF159 -> MOE FamInc150to200K | AH159: FamInc>200K | AI159: ="MOE "&AH159 -> MOE FamInc>200K | AJ159: MedFamInc | AK159: ="MOE "&AJ159 -> MOE MedFamInc | AL159: TotalNonNonFamilyHouseholds | AM159: ="MOE "&AL159 -> MOE TotalNonNonFamilyHouseholds | AN159: NonFamInc<10K | AO159: ="MOE "&AN159 -> MOE NonFamInc<10K | AP159: NonFamInc10to15K | AQ159: ="MOE "&AP159 -> MOE NonFamInc10to15K | AR159: NonFamInc15to20K | AS159: ="MOE "&AR159 -> MOE NonFamInc15to20K | AT159: NonFamInc20to25K | AU159: ="MOE "&AT159 -> MOE NonFamInc20to25K | AV159: NonFamInc25to30K | AW159: ="MOE "&AV159 -> MOE NonFamInc25to30K | AX159: NonFamInc30to35K | AY159: ="MOE "&AX159 -> MOE NonFamInc30to35K | AZ159: NonFamInc35to40K | BA159: ="MOE "&AZ159 -> MOE NonFamInc35to40K | BB159: NonFamInc40to45K | BC159: ="MOE "&BB159 -> MOE NonFamInc40to45K | BD159: NonFamInc45to50K | BE159: ="MOE "&BD159 -> MOE NonFamInc45to50K | BF159: NonFamInc50to60K | BG159: ="MOE "&BF159 -> MOE NonFamInc50to60K | BH159: NonFamInc60to75K | BI159: ="MOE "&BH159 -> MOE NonFamInc60to75K | BJ159: NonFamInc75to100K | BK159: ="MOE "&BJ159 -> MOE NonFamInc75to100K | BL159: NonFamInc100to125K | BM159: ="MOE "&BL159 -> MOE NonFamInc100to125K | BN159: NonFamInc125to150K | BO159: ="MOE "&BN159 -> MOE NonFamInc125to150K | BP159: NonFamInc150to200K | BQ159: ="MOE "&BP159 -> MOE NonFamInc150to200K | BR159: NonFamInc>200K | BS159: ="MOE "&BR159 -> MOE NonFamInc>200K | BT159: MedNonFamInc | BU159: ="MOE "&BT159 -> MOE MedNonFamInc
A160: =VLOOKUP(DropDownList!$A$19,CntyQuery!$A$53:$DN$64,A$1) -> Laconia | B160: 2634 | C160: 309 | D160: 209 | E160: 82 | F160: 269 | G160: 100 | H160: 492 | I160: 177 | J160: 265 | K160: 125 | L160: 148 | M160: 66 | N160: 153 | O160: 77 | P160: 185 | Q160: 116 | R160: 94 | S160: 55 | T160: 133 | U160: 91 | V160: 121 | W160: 54 | X160: 174 | Y160: 91 | Z160: 142 | AA160: 81 | AB160: 67 | AC160: 41 | AD160: 60 | AE160: 39 | AF160: 66 | AG160: 53 | AH160: 56 | AI160: 47 | AJ160: 26737 | AK160: 5942 | AL160: 2634 | AM160: 309 | AN160: 209 | AO160: 82 | AP160: 269 | AQ160: 100 | AR160: 492 | AS160: 177 | AT160: 265 | AU160: 125 | AV160: 148 | AW160: 66 | AX160: 153 | AY160: 77 | AZ160: 185 | BA160: 116 | BB160: 94 | BC160: 55 | BD160: 133 | BE160: 91 | BF160: 121 | BG160: 54 | BH160: 174 | BI160: 91 | BJ160: 142 | BK160: 81 | BL160: 67 | BM160: 41 | BN160: 60 | BO160: 39 | BP160: 66 | BQ160: 53 | BR160: 56 | BS160: 47 | BV160: 26737 | BW160: 5942

Sheet CntyDataLinkPrior10YearEstimate (hidden)
A1: 1 | B1: =A1+1 -> 2 | C1: 3 | D1: 4 | E1: 5 | F1: 6 | G1: 7 | H1: 8 | I1: 9 | J1: 10 | K1: 11 | L1: 12 | M1: 13 | N1: 14 | O1: 15 | P1: 16 | Q1: 17 | R1: 18 | S1: 19 | T1: 20 | U1: 21 | V1: 22 | W1: 23 | X1: 24 | Y1: 25 | Z1: 26 | AA1: 27 | AB1: 28 | AC1: 29 | AD1: 30 | AE1: 31 | AF1: 32 | AG1: 33 | AH1: 34 | AI1: 35 | AJ1: 36 | AK1: 37 | AL1: 38 | AM1: 39 | AN1: 40 | AO1: 41 | AP1: 42 | AQ1: 43 | AR1: 44 | AS1: 45 | AT1: 46 | AU1: 47 | AV1: 48 | AW1: 49 | AX1: 50 | AY1: 51 | AZ1: 52 | BA1: 53 | BB1: 54 | BC1: 55 | BD1: 56 | BE1: 57 | BF1: 58 | BG1: 59 | BH1: 60 | BI1: 61 | BJ1: 62 | BK1: 63 | BL1: 64 | BM1: 65 | BN1: =BM1+1 -> 66 | BO1: 67 | BP1: 68 | BQ1: 69 | BR1: 70 | BS1: 71 | BT1: 72 | BU1: 73 | BV1: 74 | BW1: 75 | BX1: 76 | BY1: 77 | BZ1: 78 | CA1: 79 | CB1: 80 | CC1: 81 | CD1: 82 | CE1: 83 | CF1: 84 | CG1: 85 | CH1: 86 | CI1: 87 | CJ1: 88 | CK1: 89 | CL1: 90 | CM1: 91 | CN1: 92 | CO1: 93 | CP1: 94 | CQ1: 95 | CR1: 96 | CS1: 97 | CT1: 98 | CU1: 99 | CV1: 100 | CW1: 101 | CX1: 102 | CY1: 103 | CZ1: 104 | DA1: 105 | DB1: 106 | DC1: 107 | DD1: 108 | DE1: 109 | DF1: 110 | DG1: 111 | DH1: 112 | DI1: 113 | DJ1: 114 | DK1: 115 | DL1: 116 | DM1: 117 | DN1: 118 | DO1: 119 | DP1: 120 | DQ1: 121 | DR1: 122 | DS1: 123 | DT1: 124 | DU1: 125 | DV1: 126 | DW1: 127 | DX1: 128 | DY1: 129 | DZ1: =DY1+1 -> 130 | EA1: 131 | EB1: 132 | EC1: 133 | ED1: 134 | EE1: 135 | EF1: 136 | EG1: 137 | EH1: 138 | EI1: 139 | EJ1: 140 | EK1: 141 | EL1: 142 | EM1: 143 | EN1: 144 | EO1: 145 | EP1: 146 | EQ1: 147 | ER1: 148 | ES1: 149 | ET1: 150 | EU1: 151 | EV1: 152 | EW1: 153 | EX1: 154 | EY1: 155 | EZ1: 156 | FA1: 157 | FB1: 158 | FC1: 159 | FD1: 160 | FE1: 161 | FF1: 162 | FG1: 163 | FH1: 164 | FI1: 165 | FJ1: 166 | FK1: 167 | FL1: 168 | FM1: 169 | FN1: 170 | FO1: 171 | FP1: 172 | FQ1: 173 | FR1: 174 | FS1: 175 | FT1: 176 | FU1: 177 | FV1: 178 | FW1: 179 | FX1: 180 | FY1: 181 | FZ1: 182 | GA1: 183
A105: ACS | B105: 2 | C105: =B105+1 -> 3 | D105: =C105+1 -> 4 | E105: 5 | F105: 6 | G105: 7 | H105: 8 | I105: 9 | J105: 10 | K105: 11 | L105: =K105+1 -> 12 | M105: 13 | N105: 14 | O105: 15 | P105: =O105+1 -> 16 | Q105: 17 | R105: 18 | S105: 19 | T105: 20 | U105: 21 | V105: 22 | W105: 23 | X105: 24 | Y105: 25 | Z105: 26 | AA105: 27 | AB105: 28 | AC105: 29 | AD105: 30 | AE105: 31 | AF105: 32 | AG105: 33 | AH105: 34 | AI105: 35 | AJ105: 36 | AK105: 37 | AL105: 38 | AM105: 39 | AN105: 40 | AO105: 41 | AP105: 42 | AQ105: 43 | AR105: 44 | AS105: 45 | AT105: 46 | AU105: 47 | AV105: 48 | AW105: 49 | AX105: 50 | AY105: 51 | AZ105: 52 | BA105: 53 | BB105: 54 | BC105: 55 | BD105: 56 | BE105: 57 | BF105: 58 | BG105: 59 | BH105: 60 | BI105: 61 | BJ105: 62 | BK105: 63 | BL105: 64 | BM105: 65 | BN105: 66 | BO105: 67 | BP105: =BO105+1 -> 68 | BQ105: 69 | BR105: 70 | BS105: 71 | BT105: 72 | BU105: 73 | BV105: 74 | BW105: 75 | BX105: 76 | BY105: 77 | BZ105: 78 | CA105: 79 | CB105: 80 | CC105: 81 | CD105: 82 | CE105: 83 | CF105: 84 | CG105: 85 | CH105: 86 | CI105: 87 | CJ105: 88 | CK105: 89 | CL105: 90 | CM105: 91 | CN105: 92 | CO105: 93 | CP105: 94 | CQ105: 95 | CR105: 96 | CS105: 97 | CT105: 98 | CU105: 99 | CV105: 100 | CW105: 101 | CX105: 102 | CY105: 103 | CZ105: 104 | DA105: 105 | DB105: 106 | DC105: 107 | DD105: 108 | DE105: 109 | DF105: 110 | DG105: 111 | DH105: 112 | DI105: 113 | DJ105: 114 | DK105: 115 | DL105: 116 | DM105: 117 | DN105: 118 | DO105: 119 | DP105: 120 | DQ105: 121 | DR105: 122 | DS105: 123 | DT105: 124 | DU105: 125
A106: Househould Data (Housing Unit Type)
A107: NAME | B107: TotalHU | C107: ="MOE "&B107 -> MOE TotalHU | D107: TotalOccHU | E107: ="MOE "&D107 -> MOE TotalOccHU | F107: TotalOwnerOccUn | G107: ="MOE "&F107 -> MOE TotalOwnerOccUn | H107: TotalRenterOccn | I107: ="MOE "&H107 -> MOE TotalRenterOccn | J107: TotalVacantUntis | K107: ="MOE "&J107 -> MOE TotalVacantUntis | L107: VacantUnitsForRent | M107: ="MOE "&L107 -> MOE VacantUnitsForRent | N107: VacantUnitRentedNotOcc | O107: ="MOE "&N107 -> MOE VacantUnitRentedNotOcc | P107: VacantUnitForSale | Q107: ="MOE "&P107 -> MOE VacantUnitForSale | R107: VacantUnitSoldNotOcc | S107: ="MOE "&R107 -> MOE VacantUnitSoldNotOcc | T107: VacantUnitSeasonalRec | U107: ="MOE "&T107 -> MOE VacantUnitSeasonalRec | V107: TotalPopInHousingUnits | W107: ="MOE "&V107 -> MOE TotalPopInHousingUnits | X107: OwnerOccPopHousingUnits | Y107: ="MOE "&X107 -> MOE OwnerOccPopHousingUnits | Z107: RenterOccPopHousingUnits | AA107: ="MOE "&Z107 -> MOE RenterOccPopHousingUnits | AB107: TotalUntis | AC107: ="MOE "&AB107 -> MOE TotalUntis | AD107: TotalOwnerOccUnits | AE107: ="MOE "&AD107 -> MOE TotalOwnerOccUnits | AF107: SigFamOwnerOcc | AG107: ="MOE "&AF107 -> MOE SigFamOwnerOcc | AH107: MultiFamOwnerOcc | AI107: ="MOE "&AH107 -> MOE MultiFamOwnerOcc | AJ107: MobileOwnerOcc | AK107: ="MOE "&AJ107 -> MOE MobileOwnerOcc | AL107: TotalRenterOccUnits | AM107: ="MOE "&AL107 -> MOE TotalRenterOccUnits | AN107: SigFamRenterOcc | AO107: ="MOE "&AN107 -> MOE SigFamRenterOcc | AP107: MultiFamRenterOcc | AQ107: ="MOE "&AP107 -> MOE MultiFamRenterOcc | AR107: MobileRenterOcc | AS107: ="MOE "&AR107 -> MOE MobileRenterOcc | AT107: TotalSigFamilyUnits | AU107: ="MOE "&AT107 -> MOE TotalSigFamilyUnits | AV107: TotalMultiFamilyUnits | AW107: ="MOE "&AV107 -> MOE TotalMultiFamilyUnits | AX107: TotalMobileUnits | AY107: ="MOE "&AX107 -> MOE TotalMobileUnits | AZ107: YrHouseBuilt2005Later | BA107: ="MOE "&AZ107 -> MOE YrHouseBuilt2005Later | BB107: YrHouseBuilt2000-2004 | BC107: ="MOE "&BB107 -> MOE YrHouseBuilt2000-2004 | BD107: YrHouseBuilt1990-1999 | BE107: ="MOE "&BD107 -> MOE YrHouseBuilt1990-1999 | BF107: YrHouseBuilt1980-1989 | BG107: ="MOE "&BF107 -> MOE YrHouseBuilt1980-1989 | BH107: YrHouseBuilt1970-1979 | BI107: ="MOE "&BH107 -> MOE YrHouseBuilt1970-1979 | BJ107: YrHouseBuilt1960-1969 | BK107: ="MOE "&BJ107 -> MOE YrHouseBuilt1960-1969 | BL107: YrHouseBuilt1950-1959 | BM107: ="MOE "&BL107 -> MOE YrHouseBuilt1950-1959 | BN107: YrHouseBuilt1940-1949 | BO107: ="MOE "&BN107 -> MOE YrHouseBuilt1940-1949 | BP107: YrHouseBuilt1939orEarlier | BQ107: ="MOE "&BP107 -> MOE YrHouseBuilt1939orEarlier | BR107: NoBedrooms | BS107: ="MOE "&BR107 -> MOE NoBedrooms | BT107: 1Bedroom | BU107: ="MOE "&BT107 -> MOE 1Bedroom | BV107: 2Bedroom | BW107: ="MOE "&BV107 -> MOE 2Bedroom | BX107: 3Bedroom | BY107: ="MOE "&BX107 -> MOE 3Bedroom | BZ107: 4+Bedroom | CA107: ="MOE "&BZ107 -> MOE 4+Bedroom
A108: =VLOOKUP(DropDownList!$A$19,CntyQuery!$A$53:$DN$64,A$1) -> Laconia | B108: 9927 | C108: 258 | D108: 7143 | E108: 283 | F108: 4244 | G108: 308 | H108: 2899 | I108: 306 | J108: 2784 | K108: 290 | L108: 270 | M108: 150 | N108: 0 | O108: 18 | P108: 66 | Q108: 75 | R108: 10 | S108: 15 | T108: 2185 | U108: 258 | V108: 15488 | W108: 140 | X108: 9681 | Y108: 761 | Z108: 5807 | AA108: 764 | AB108: 7143 | AC108: 283 | AD108: 4244 | AE108: 308 | AF108: 3388 | AG108: 283 | AH108: 675 | AI108: 198.3330532 | AJ108: 181 | AK108: 74.21590126 | AL108: 2899 | AM108: 306 | AN108: 414 | AO108: 139 | AP108: 2474 | AQ108: 378.8086588 | AR108: 11 | AS108: 24.75883681 | AT108: 5003 | AU108: 370 | AV108: 4447 | AW108: 520.1317141 | AX108: 477 | AY108: 168.9615341 | AZ108: 8 | BA108: 15 | BB108: 951 | BC108: 189 | BD108: 1061 | BE108: 247 | BF108: 1798 | BG108: 315 | BH108: 767 | BI108: 182 | BJ108: 746 | BK108: 183 | BL108: 1004 | BM108: 223 | BN108: 568 | BO108: 174 | BP108: 3024 | BQ108: 320 | BR108: 178 | BS108: 98 | BT108: 1341 | BU108: 217 | BV108: 3646 | BW108: 409 | BX108: 3227 | BY108: 313 | BZ108: 1404 | CA108: 237.8760181
A110: Disability Data
A111: NAME | B111: TotalPop | C111: ="MOE "&B111 -> MOE TotalPop | D111: PopUnder 5 years: | E111: ="MOE "&D111 -> MOE PopUnder 5 years: | F111: =D$111&"-WithDisability" -> PopUnder 5 years:-WithDisability | G111: ="MOE "&F111 -> MOE PopUnder 5 years:-WithDisability | H111: =D111&"-NoDisability" -> PopUnder 5 years:-NoDisability | I111: ="MOE "&H111 -> MOE PopUnder 5 years:-NoDisability | J111: PopUnder 5 to 17years: | K111: ="MOE "&J111 -> MOE PopUnder 5 to 17years: | L111: =J$111&"-WithDisability" -> PopUnder 5 to 17years:-WithDisability | M111: ="MOE "&L111 -> MOE PopUnder 5 to 17years:-WithDisability | N111: =J111&"-NoDisability" -> PopUnder 5 to 17years:-NoDisability | O111: ="MOE "&N111 -> MOE PopUnder 5 to 17years:-NoDisability | P111: PopUnder 18 to 34 years: | Q111: ="MOE "&P111 -> MOE PopUnder 18 to 34 years: | R111: =P$111&"-WithDisability" -> PopUnder 18 to 34 years:-WithDisability | S111: ="MOE "&R111 -> MOE PopUnder 18 to 34 years:-WithDisability | T111: =P111&"-NoDisability" -> PopUnder 18 to 34 years:-NoDisability | U111: ="MOE "&T111 -> MOE PopUnder 18 to 34 years:-NoDisability | V111: Pop 35 years to 64: | W111: ="MOE "&V111 -> MOE Pop 35 years to 64: | X111: =$V$111&"-WithDisability" -> Pop 35 years to 64:-WithDisability | Y111: ="MOE "&X111 -> MOE Pop 35 years to 64:-WithDisability | Z111: =$V$111&"-NoDisability" -> Pop 35 years to 64:-NoDisability | AA111: ="MOE "&Z111 -> MOE Pop 35 years to 64:-NoDisability | AB111: Pop 65 years to 74: | AC111: ="MOE "&AB111 -> MOE Pop 65 years to 74: | AD111: =$AB$111&"-WithDisability" -> Pop 65 years to 74:-WithDisability | AE111: ="MOE "&AD111 -> MOE Pop 65 years to 74:-WithDisability | AF111: =$AB$111&"-NoDisability" -> Pop 65 years to 74:-NoDisability | AG111: ="MOE "&AF111 -> MOE Pop 65 years to 74:-NoDisability | AH111: Pop 75 and older: | AI111: ="MOE "&AH111 -> MOE Pop 75 and older: | AJ111: =$AH$111&"-WithDisability" -> Pop 75 and older:-WithDisability | AK111: ="MOE "&AJ111 -> MOE Pop 75 and older:-WithDisability | AL111: =$AH$111&"-NoDisability" -> Pop 75 and older:-NoDisability | AM111: ="MOE "&AL111 -> MOE Pop 75 and older:-NoDisability | AN111: TotalPopUnder5_HearingDisability | AO111: ="MOE "&AN111 -> MOE TotalPopUnder5_HearingDisability | AP111: TotalPopUnder5_HearingDisability | AQ111: ="MOE "&AP111 -> MOE TotalPopUnder5_HearingDisability | AR111: TotalPop18To34_HearingDisability | AS111: ="MOE "&AR111 -> MOE TotalPop18To34_HearingDisability | AT111: TotalPop35To64_HearingDisability | AU111: ="MOE "&AT111 -> MOE TotalPop35To64_HearingDisability | AV111: TotalPop65To74_HearingDisability | AW111: ="MOE "&AV111 -> MOE TotalPop65To74_HearingDisability | AX111: TotalPop75andOlder_HearingDisability | AY111: ="MOE "&AX111 -> MOE TotalPop75andOlder_HearingDisability | AZ111: TotalPopUnder5_VisionDisability | BA111: ="MOE "&AZ111 -> MOE TotalPopUnder5_VisionDisability | BB111: TotalPop5To17_VisionDisability | BC111: ="MOE "&BB111 -> MOE TotalPop5To17_VisionDisability | BD111: TotalPop18To34_VisionDisability | BE111: ="MOE "&BD111 -> MOE TotalPop18To34_VisionDisability | BF111: TotalPop35To64_VisionDisability | BG111: ="MOE "&BF111 -> MOE TotalPop35To64_VisionDisability | BH111: TotalPop65To74_VisionDisability | BI111: ="MOE "&BH111 -> MOE TotalPop65To74_VisionDisability | BJ111: TotalPop75andOlder_VisionDisability | BK111: ="MOE "&BJ111 -> MOE TotalPop75andOlder_VisionDisability | BL111: TotalPop5To17_CongnitiveDisability | BM111: ="MOE "&BL111 -> MOE TotalPop5To17_CongnitiveDisability | BN111: TotalPop18To34_CongnitiveDisability | BO111: ="MOE "&BN111 -> MOE TotalPop18To34_CongnitiveDisability | BP111: TotalPop35To64_CongnitiveDisability | BQ111: ="MOE "&BP111 -> MOE TotalPop35To64_CongnitiveDisability | BR111: TotalPop65To74_CongnitiveDisability | BS111: ="MOE "&BR111 -> MOE TotalPop65To74_CongnitiveDisability | BT111: TotalPop75andOlder_CongnitiveDisability | BU111: ="MOE "&BT111 -> MOE TotalPop75andOlder_CongnitiveDisability | BV111: TotalPop5To17_AmbulatoryDisability | BW111: ="MOE "&BV111 -> MOE TotalPop5To17_AmbulatoryDisability | BX111: TotalPop18To34_AmbulatoryDisability | BY111: ="MOE "&BX111 -> MOE TotalPop18To34_AmbulatoryDisability | BZ111: TotalPop35To64_AmbulatoryDisability | CA111: ="MOE "&BZ111 -> MOE TotalPop35To64_AmbulatoryDisability | CB111: TotalPop65To74_AmbulatoryDisability | CC111: ="MOE "&CB111 -> MOE TotalPop65To74_AmbulatoryDisability | CD111: TotalPop75andOlder_AmbulatoryDisability | CE111: ="MOE "&CD111 -> MOE TotalPop75andOlder_AmbulatoryDisability | CF111: TotalPop5To17_SelfCareDisability | CG111: ="MOE "&CF111 -> MOE TotalPop5To17_SelfCareDisability | CH111: TotalPop18To34_SelfCareDisability | CI111: ="MOE "&CH111 -> MOE TotalPop18To34_SelfCareDisability | CJ111: TotalPop35To64_SelfCareDisability | CK111: ="MOE "&CJ111 -> MOE TotalPop35To64_SelfCareDisability | CL111: TotalPop65To74_SelfCareDisability | CM111: ="MOE "&CL111 -> MOE TotalPop65To74_SelfCareDisability | CN111: TotalPop75andOlder_SelfCareDisability | CO111: ="MOE "&CN111 -> MOE TotalPop75andOlder_SelfCareDisability | CP111: TotalPop18To34_IndependantLivingDisability | CQ111: ="MOE "&CP111 -> MOE TotalPop18To34_IndependantLivingDisability | CR111: TotalPop35To64_IndependantLivingDisability | CS111: ="MOE "&CR111 -> MOE TotalPop35To64_IndependantLivingDisability | CT111: TotalPop65To74_IndependantLivingDisability | CU111: ="MOE "&CT111 -> MOE TotalPop65To74_IndependantLivingDisability | CV111: TotalPop75andOlder_IndependantLivingDisability | CW111: ="MOE "&CV111 -> MOE TotalPop75andOlder_IndependantLivingDisability | CX111: TotalUnder18 | CY111: ="MOE "&CX111 -> MOE TotalUnder18 | CZ111: Under 18_Total | DA111: ="MOE "&CZ111 -> MOE Under 18_Total | DB111: Under18_OneDisability | DC111: ="MOE "&DB111 -> MOE Under18_OneDisability | DD111: Under18_TwoDisability | DE111: ="MOE "&DD111 -> MOE Under18_TwoDisability | DF111: Under18_NoDisability | DG111: ="MOE "&DF111 -> MOE Under18_NoDisability | DH111: 18-64._Total | DI111: ="MOE "&DH111 -> MOE 18-64._Total | DJ111: 18-64._OneDisability | DK111: ="MOE "&DJ111 -> MOE 18-64._OneDisability | DL111: 18-64_TwoDisability | DM111: ="MOE "&DL111 -> MOE 18-64_TwoDisability | DN111: 18-64_NoDisability | DO111: ="MOE "&DN111 -> MOE 18-64_NoDisability | DP111: 64 and Over_Total | DQ111: ="MOE "&DP111 -> MOE 64 and Over_Total | DR111: 64 and Over_OneDisability | DS111: ="MOE "&DR111 -> MOE 64 and Over_OneDisability | DT111: 64 and Over_TwoDisability | DU111: ="MOE "&DT111 -> MOE 64 and Over_TwoDisability | DV111: 64 and Over_NoDisability | DW111: ="MOE "&DV111 -> MOE 64 and Over_NoDisability
A112: =VLOOKUP(DropDownList!$A$19,CntyQuery!$A$53:$DN$64,A$1) -> Laconia | B112: 15551 | C112: 140 | D112: 833 | E112: 177.4964788 | F112: 0 | G112: 25.45584412 | H112: 833 | I112: 177.4964788 | J112: 2179 | K112: 294.6133059 | L112: 86 | M112: 69.28924881 | N112: 2093 | O112: 282.526105 | P112: 3079 | Q112: 255.3448648 | R112: 360 | S112: 157.4706322 | T112: 2719 | U112: 270.7397274 | V112: 7084 | W112: 296.2988356 | X112: 1020 | Y112: 193.4037228 | Z112: 6064 | AA112: 309.0258889 | AB112: 1193 | AC112: 153.4438008 | AD112: 283 | AE112: 86.55634003 | AF112: 910 | AG112: 143.5583505 | AH112: 1183 | AI112: 156.8470593 | AJ112: 428 | AK112: 103.247276 | AL112: 755 | AM112: 144.8067678 | AN112: 0 | AO112: 25.45584412 | AP112: 0 | AQ112: 25.45584412 | AR112: 12 | AS112: 26.90724809 | AT112: 162 | AU112: 76.05918748 | AV112: 118 | AW112: 58.52349955 | AX112: 228 | AY112: 71.42128534 | AZ112: 0 | BA112: 25.45584412 | BB112: 0 | BC112: 25.45584412 | BD112: 0 | BE112: 25.45584412 | BF112: 131 | BG112: 77.36924454 | BH112: 9 | BI112: 22.8035085 | BJ112: 118 | BK112: 54.91812087 | BL112: 86 | BM112: 69.28924881 | BN112: 113 | BO112: 72.80109889 | BP112: 520 | BQ112: 147.8681845 | BR112: 90 | BS112: 54.4885309 | BT112: 68 | BU112: 42.72001873 | BV112: 0 | BW112: 25.45584412 | BX112: 248 | BY112: 144.1006593 | BZ112: 593 | CA112: 149.9366533 | CB112: 167 | CC112: 66.03029608 | CD112: 234 | CE112: 81.9390017 | CF112: 0 | CG112: 25.45584412 | CH112: 204 | CI112: 126.1150269 | CJ112: 239 | CK112: 121.2105606 | CL112: 38 | CM112: 33.28663395 | CN112: 144 | CO112: 65.8634952 | CP112: 224 | CQ112: 129.4488316 | CR112: 430 | CS112: 134.465609 | CT112: 61 | CU112: 38.41874542 | CV112: 197 | CW112: 69.3181073 | CX112: 86 | CY112: 69 | CZ112: 0 | DA112: 18 | DB112: 545 | DC112: 141 | DD112: 835 | DE112: 224 | DF112: 316 | DG112: 93 | DH112: 395 | DI112: 111
A114: Househould Income By Age
A115: NAME | B115: TotalHouseholds | C115: ="MOE "&B115 -> MOE TotalHouseholds | D115: HHInc<10K | E115: ="MOE "&D115 -> MOE HHInc<10K | F115: HHInc10to15K | G115: ="MOE "&F115 -> MOE HHInc10to15K | H115: HHInc15to20K | I115: ="MOE "&H115 -> MOE HHInc15to20K | J115: HHInc20to25K | K115: ="MOE "&J115 -> MOE HHInc20to25K | L115: HHInc25to30K | M115: ="MOE "&L115 -> MOE HHInc25to30K | N115: HHInc30to35K | O115: ="MOE "&N115 -> MOE HHInc30to35K | P115: HHInc35to40K | Q115: ="MOE "&P115 -> MOE HHInc35to40K | R115: HHInc40to45K | S115: ="MOE "&R115 -> MOE HHInc40to45K | T115: HHInc45to50K | U115: ="MOE "&T115 -> MOE HHInc45to50K | V115: HHInc50to60K | W115: ="MOE "&V115 -> MOE HHInc50to60K | X115: HHInc60to75K | Y115: ="MOE "&X115 -> MOE HHInc60to75K | Z115: HHInc75to100K | AA115: ="MOE "&Z115 -> MOE HHInc75to100K | AB115: HHInc100to125K | AC115: ="MOE "&AB115 -> MOE HHInc100to125K | AD115: HHInc125to150K | AE115: ="MOE "&AD115 -> MOE HHInc125to150K | AF115: HHInc150to200K | AG115: ="MOE "&AF115 -> MOE HHInc150to200K | AH115: HHInc>200K | AI115: ="MOE "&AH115 -> MOE HHInc>200K | AJ115: TotalHH | AK115: ="MOE "&AJ115 -> MOE TotalHH | AL115: HHAgeHHUnder25yrs | AM115: ="MOE "&AL115 -> MOE HHAgeHHUnder25yrs | AN115: HHAgeHH<25HHInc<10K | AO115: ="MOE "&AN115 -> MOE HHAgeHH<25HHInc<10K | AP115: HHAgeHH<25HHInc10to15K | AQ115: ="MOE "&AP115 -> MOE HHAgeHH<25HHInc10to15K | AR115: HHAgeHH<25HHInc15to20K | AS115: ="MOE "&AR115 -> MOE HHAgeHH<25HHInc15to20K | AT115: HHAgeHH<25HHInc20to25K | AU115: ="MOE "&AT115 -> MOE HHAgeHH<25HHInc20to25K | AV115: HHAgeHH<25HHInc25to30K | AW115: ="MOE "&AV115 -> MOE HHAgeHH<25HHInc25to30K | AX115: HHAgeHH<25HHInc30to35K | AY115: ="MOE "&AX115 -> MOE HHAgeHH<25HHInc30to35K | AZ115: HHAgeHH<25HHInc35to40K | BA115: ="MOE "&AZ115 -> MOE HHAgeHH<25HHInc35to40K | BB115: HHAgeHH<25HHInc40to45K | BC115: ="MOE "&BB115 -> MOE HHAgeHH<25HHInc40to45K | BD115: HHAgeHH<25HHInc45to50K | BE115: ="MOE "&BD115 -> MOE HHAgeHH<25HHInc45to50K | BF115: HHAgeHH<25HHInc50to60K | BG115: ="MOE "&BF115 -> MOE HHAgeHH<25HHInc50to60K | BH115: HHAgeHH<25HHInc60to75K | BI115: ="MOE "&BH115 -> MOE HHAgeHH<25HHInc60to75K | BJ115: HHAgeHH<25HHInc75to100K | BK115: ="MOE "&BJ115 -> MOE HHAgeHH<25HHInc75to100K | BL115: HHAgeHH<25HHInc100to125K | BM115: ="MOE "&BL115 -> MOE HHAgeHH<25HHInc100to125K | BN115: HHAgeHH<25HHInc125to150K | BO115: ="MOE "&BN115 -> MOE HHAgeHH<25HHInc125to150K | BP115: HHAgeHH<25HHInc150to200K | BQ115: ="MOE "&BP115 -> MOE HHAgeHH<25HHInc150to200K | BR115: HHAge<25HHInc>200K | BS115: ="MOE "&BR115 -> MOE HHAge<25HHInc>200K | BT115: HHAgeHH25to44yrs | BU115: ="MOE "&BT115 -> MOE HHAgeHH25to44yrs | BV115: HHAgeHH25To44yrsHHInc<10K | BW115: ="MOE "&BV115 -> MOE HHAgeHH25To44yrsHHInc<10K | BX115: HHAgeHH25To44yrsHHInc10to15K | BY115: ="MOE "&BX115 -> MOE HHAgeHH25To44yrsHHInc10to15K | BZ115: HHAgeHH25To44yrsHHInc15to20K | CA115: ="MOE "&BZ115 -> MOE HHAgeHH25To44yrsHHInc15to20K | CB115: HHAgeHH25To44yrsHHInc20to25K | CC115: ="MOE "&CB115 -> MOE HHAgeHH25To44yrsHHInc20to25K | CD115: HHAgeHH25To44yrsHHInc25to30K | CE115: ="MOE "&CD115 -> MOE HHAgeHH25To44yrsHHInc25to30K | CF115: HHAgeHH25To44yrsHHInc30to35K | CG115: ="MOE "&CF115 -> MOE HHAgeHH25To44yrsHHInc30to35K | CH115: HHAgeHH25To44yrsHHInc35to40K | CI115: ="MOE "&CH115 -> MOE HHAgeHH25To44yrsHHInc35to40K | CJ115: HHAgeHH25To44yrsHHInc40to45K | CK115: ="MOE "&CJ115 -> MOE HHAgeHH25To44yrsHHInc40to45K | CL115: HHAgeHH25To44yrsHHInc45to50K | CM115: ="MOE "&CL115 -> MOE HHAgeHH25To44yrsHHInc45to50K | CN115: HHAgeHH25To44yrsHHInc50to60K | CO115: ="MOE "&CN115 -> MOE HHAgeHH25To44yrsHHInc50to60K | CP115: HHAgeHH25To44yrsHHInc60to75K | CQ115: ="MOE "&CP115 -> MOE HHAgeHH25To44yrsHHInc60to75K | CR115: HHAgeHH25To44yrsHHInc75to100K | CS115: ="MOE "&CR115 -> MOE HHAgeHH25To44yrsHHInc75to100K | CT115: HHAgeHH25To44yrsHHInc100to125K | CU115: ="MOE "&CT115 -> MOE HHAgeHH25To44yrsHHInc100to125K | CV115: HHAgeHH25To44yrsHHInc125to150K | CW115: ="MOE "&CV115 -> MOE HHAgeHH25To44yrsHHInc125to150K | CX115: HHAgeHH25To44yrsHHInc150to200K | CY115: ="MOE "&CX115 -> MOE HHAgeHH25To44yrsHHInc150to200K | CZ115: HHAge25To44yrsHHInc>200K | DA115: ="MOE "&CZ115 -> MOE HHAge25To44yrsHHInc>200K | DB115: HHAgeHH45To64yrs | DC115: ="MOE "&DB115 -> MOE HHAgeHH45To64yrs | DD115: HHAgeHH45To64yrsHHInc<10K | DE115: ="MOE "&DD115 -> MOE HHAgeHH45To64yrsHHInc<10K | DF115: HHAgeHH45To64yrsHHInc10to15K | DG115: ="MOE "&DF115 -> MOE HHAgeHH45To64yrsHHInc10to15K | DH115: HHAgeHH45To64yrsHHInc15to20K | DI115: ="MOE "&DH115 -> MOE HHAgeHH45To64yrsHHInc15to20K | DJ115: HHAgeHH45To64yrsHHInc20to25K | DK115: ="MOE "&DJ115 -> MOE HHAgeHH45To64yrsHHInc20to25K | DL115: HHAgeHH45To64yrsHHInc25to30K | DM115: ="MOE "&DL115 -> MOE HHAgeHH45To64yrsHHInc25to30K | DN115: HHAgeHH45To64yrsHHInc30to35K | DO115: ="MOE "&DN115 -> MOE HHAgeHH45To64yrsHHInc30to35K | DP115: HHAgeHH45To64yrsHHInc35to40K | DQ115: ="MOE "&DP115 -> MOE HHAgeHH45To64yrsHHInc35to40K | DR115: HHAgeHH45To64yrsHHInc40to45K | DS115: ="MOE "&DR115 -> MOE HHAgeHH45To64yrsHHInc40to45K | DT115: HHAgeHH45To64yrsHHInc45to50K | DU115: ="MOE "&DT115 -> MOE HHAgeHH45To64yrsHHInc45to50K | DV115: HHAgeHH45To64yrsHHInc50to60K | DW115: ="MOE "&DV115 -> MOE HHAgeHH45To64yrsHHInc50to60K | DX115: HHAgeHH45To64yrsHHInc60to75K | DY115: ="MOE "&DX115 -> MOE HHAgeHH45To64yrsHHInc60to75K | DZ115: HHAgeHH45To64yrsHHInc75to100K | EA115: ="MOE "&DZ115 -> MOE HHAgeHH45To64yrsHHInc75to100K | EB115: HHAgeHH45To64yrsHHInc100to125K | EC115: ="MOE "&EB115 -> MOE HHAgeHH45To64yrsHHInc100to125K | ED115: HHAgeHH45To64yrsHHInc125to150K | EE115: ="MOE "&ED115 -> MOE HHAgeHH45To64yrsHHInc125to150K | EF115: HHAgeHH45To64yrsHHInc150to200K | EG115: ="MOE "&EF115 -> MOE HHAgeHH45To64yrsHHInc150to200K | EH115: HHAge45To64yrsHHInc>200K | EI115: ="MOE "&EH115 -> MOE HHAge45To64yrsHHInc>200K | EJ115: HHAgeHH65yrsorOlder | EK115: ="MOE "&EJ115 -> MOE HHAgeHH65yrsorOlder | EL115: HHAgeHH65yrsorOlderHHInc<10K | EM115: ="MOE "&EL115 -> MOE HHAgeHH65yrsorOlderHHInc<10K | EN115: HHAgeHH65yrsorOlderHHInc10to15K | EO115: ="MOE "&EN115 -> MOE HHAgeHH65yrsorOlderHHInc10to15K | EP115: HHAgeHH65yrsorOlderHHInc15to20K | EQ115: ="MOE "&EP115 -> MOE HHAgeHH65yrsorOlderHHInc15to20K | ER115: HHAgeHH65yrsorOlderHHInc20to25K | ES115: ="MOE "&ER115 -> MOE HHAgeHH65yrsorOlderHHInc20to25K | ET115: HHAgeHH65yrsorOlderHHInc25to30K | EU115: ="MOE "&ET115 -> MOE HHAgeHH65yrsorOlderHHInc25to30K | EV115: HHAgeHH65yrsorOlderHHInc30to35K | EW115: ="MOE "&EV115 -> MOE HHAgeHH65yrsorOlderHHInc30to35K | EX115: HHAgeHH65yrsorOlderHHInc35to40K | EY115: ="MOE "&EX115 -> MOE HHAgeHH65yrsorOlderHHInc35to40K | EZ115: HHAgeHH65yrsorOlderHHInc40to45K | FA115: ="MOE "&EZ115 -> MOE HHAgeHH65yrsorOlderHHInc40to45K | FB115: HHAgeHH65yrsorOlderHHInc45to50K | FC115: ="MOE "&FB115 -> MOE HHAgeHH65yrsorOlderHHInc45to50K | FD115: HHAgeHH65yrsorOlderHHInc50to60K | FE115: ="MOE "&FD115 -> MOE HHAgeHH65yrsorOlderHHInc50to60K | FF115: HHAgeHH65yrsorOlderHHInc60to75K | FG115: ="MOE "&FF115 -> MOE HHAgeHH65yrsorOlderHHInc60to75K | FH115: HHAgeHH65yrsorOlderHHInc75to100K | FI115: ="MOE "&FH115 -> MOE HHAgeHH65yrsorOlderHHInc75to100K | FJ115: HHAgeHH65yrsorOlderHHInc100to125K | FK115: ="MOE "&FJ115 -> MOE HHAgeHH65yrsorOlderHHInc100to125K | FL115: HHAgeHH65yrsorOlderHHInc125to150K | FM115: ="MOE "&FL115 -> MOE HHAgeHH65yrsorOlderHHInc125to150K | FN115: HHAgeHH65yrsorOlderHHInc150to200K | FO115: ="MOE "&FN115 -> MOE HHAgeHH65yrsorOlderHHInc150to200K | FP115: HHAge65yrsorOlderHHInc>200K | FQ115: ="MOE "&FP115 -> MOE HHAge65yrsorOlderHHInc>200K | FR115: MedianHHInc | FS115: ="MOE "&FR115 -> MOE MedianHHInc | FT115: HH under 25 years | FU115: ="MOE "&FT115 -> MOE HH under 25 years | FV115: Householder 25 to 44 years | FW115: ="MOE "&FV115 -> MOE Householder 25 to 44 years | FX115: Householder 45 to 64 years | FY115: ="MOE "&FX115 -> MOE Householder 45 to 64 years | FZ115: Householder 65 years and over | GA115: ="MOE "&FZ115 -> MOE Householder 65 years and over
A116: =VLOOKUP(DropDownList!$A$19,CntyQuery!$A$53:$DN$64,A$1) -> Laconia | B116: 7143 | C116: 283 | D116: 536 | E116: 177 | F116: 441 | G116: 120 | H116: 417 | I116: 125 | J116: 384 | K116: 141 | L116: 384 | M116: 138 | N116: 354 | O116: 127 | P116: 334 | Q116: 116 | R116: 484 | S116: 160 | T116: 482 | U116: 169 | V116: 585 | W116: 157 | X116: 641 | Y116: 174 | Z116: 624 | AA116: 165 | AB116: 666 | AC116: 164 | AD116: 341 | AE116: 126 | AF116: 288 | AG116: 95 | AH116: 182 | AI116: 74 | AJ116: 7143 | AK116: 283 | AL116: 490 | AM116: 176 | AN116: 161 | AO116: 128 | AP116: 0 | AQ116: 18 | AR116: 58 | AS116: 74 | AT116: 0 | AU116: 18 | AV116: 61 | AW116: 92 | AX116: 17 | AY116: 29 | AZ116: 43 | BA116: 67 | BB116: 86 | BC116: 113 | BD116: 0 | BE116: 18 | BF116: 41 | BG116: 51 | BH116: 14 | BI116: 23 | BJ116: 9 | BK116: 15 | BL116: 0 | BM116: 18 | BN116: 0 | BO116: 18 | BP116: 0 | BQ116: 18 | BR116: 0 | BS116: 18 | BT116: 1902 | BU116: 221 | BV116: 86 | BW116: 72 | BX116: 63 | BY116: 54 | BZ116: 86 | CA116: 80 | CB116: 126 | CC116: 90 | CD116: 117 | CE116: 69 | CF116: 35 | CG116: 29 | CH116: 54 | CI116: 50 | CJ116: 129 | CK116: 85 | CL116: 171 | CM116: 109 | CN116: 191 | CO116: 107 | CP116: 220 | CQ116: 103 | CR116: 236 | CS116: 105 | CT116: 194 | CU116: 113 | CV116: 123 | CW116: 108 | CX116: 32 | CY116: 33 | CZ116: 39 | DA116: 34 | DB116: 3075 | DC116: 257 | DD116: 220 | DE116: 92 | DF116: 170 | DG116: 88 | DH116: 152 | DI116: 74 | DJ116: 120 | DK116: 71 | DL116: 91 | DM116: 45 | DN116: 117 | DO116: 83 | DP116: 101 | DQ116: 64 | DR116: 145 | DS116: 68 | DT116: 200 | DU116: 122 | DV116: 243 | DW116: 86 | DX116: 336 | DY116: 129 | DZ116: 290 | EA116: 119 | EB116: 414 | EC116: 160 | ED116: 160 | EE116: 61 | EF116: 205 | EG116: 84 | EH116: 111 | EI116: 55 | EJ116: 1676 | EK116: 199 | EL116: 69 | EM116: 43 | EN116: 208 | EO116: 79 | EP116: 121 | EQ116: 62 | ER116: 138 | ES116: 75 | ET116: 115 | EU116: 56 | EV116: 185 | EW116: 82 | EX116: 136 | EY116: 54 | EZ116: 124 | FA116: 55 | FB116: 111 | FC116: 52 | FD116: 110 | FE116: 50 | FF116: 71 | FG116: 40 | FH116: 89 | FI116: 52 | FJ116: 58 | FK116: 40 | FL116: 58 | FM116: 50 | FN116: 51 | FO116: 35 | FP116: 32 | FQ116: 29 | FR116: 47817 | FS116: 2617 | FT116: 28566 | FU116: 18446 | FV116: 54682 | FW116: 7384 | FX116: 59264 | FY116: 8950 | FZ116: 35192 | GA116: 5581
A118: Number of Households by Income
A119: NAME | B119: HHIncLessThn10k | C119: ="MOE "&B119 -> MOE HHIncLessThn10k | D119: HHInc10to15K | E119: ="MOE "&D119 -> MOE HHInc10to15K | F119: HHInc15to25K | G119: ="MOE "&F119 -> MOE HHInc15to25K | H119: HHInc25to35K | I119: ="MOE "&H119 -> MOE HHInc25to35K | J119: HHInc35to50K | K119: ="MOE "&J119 -> MOE HHInc35to50K | L119: HHInc50to75K | M119: ="MOE "&L119 -> MOE HHInc50to75K | N119: HHInc75to100K | O119: ="MOE "&N119 -> MOE HHInc75to100K | P119: HHInc100to150K | Q119: ="MOE "&P119 -> MOE HHInc100to150K | R119: HHInc150to200K | S119: ="MOE "&R119 -> MOE HHInc150to200K | T119: HHIncOver200K | U119: ="MOE "&T119 -> MOE HHIncOver200K
A120: =VLOOKUP(DropDownList!$A$19,CntyQuery!$A$53:$DN$64,A$1) -> Laconia | B120: 536 | C120: 177 | D120: 441 | E120: 120 | F120: 801 | G120: 188.4303585 | H120: 738 | I120: 187.5446613 | J120: 1300 | K120: 260.0326903 | L120: 1226 | M120: 234.3608329 | N120: 624 | O120: 165 | P120: 1007 | Q120: 206.813926 | R120: 288 | S120: 95 | T120: 182 | U120: 74 | V120: 752 | W120: 145 | X120: 774 | Y120: 188 | Z120: 456 | AA120: 150 | AB120: 309 | AC120: 125 | AD120: 157 | AE120: 83 | AF120: 159 | AG120: 75
A122: POVERTY DATA
A123: NAME | B123: TotalPop | C123: ="MOE "&B123 -> MOE TotalPop | D123: Total Individuals living in Poverty | E123: ="MOE "&D123 -> MOE Total Individuals living in Poverty | F123: Under 5 yrs. | G123: ="MOE "&F123 -> MOE Under 5 yrs. | H123: 5 to 17 yrs. | I123: ="MOE "&H123 -> MOE 5 to 17 yrs. | J123: 18 to 64 yrs. | K123: ="MOE "&J123 -> MOE 18 to 64 yrs. | L123: 65 to 74 yrs. | M123: ="MOE "&L123 -> MOE 65 to 74 yrs. | N123: 75 yrs. & Over | O123: ="MOE "&N123 -> MOE 75 yrs. & Over | P123: Total Individuals Not living Poverty | Q123: ="MOE "&P123 -> MOE Total Individuals Not living Poverty | R123: Under 5 yrs. | S123: ="MOE "&R123 -> MOE Under 5 yrs. | T123: 5 to 17 yrs. | U123: ="MOE "&T123 -> MOE 5 to 17 yrs. | V123: 18 to 64 yrs. | W123: ="MOE "&V123 -> MOE 18 to 64 yrs. | X123: 65 to 74 yrs. | Y123: ="MOE "&X123 -> MOE 65 to 74 yrs. | Z123: 75 yrs. & Over | AA123: ="MOE "&Z123 -> MOE 75 yrs. & Over | AB123: Total HH | AC123: ="MOE "&AB123 -> MOE Total HH | AD123: Total Households Below Poverty | AE123: ="MOE "&AD123 -> MOE Total Households Below Poverty | AF123: Family Households in Poverty | AG123: ="MOE "&AF123 -> MOE Family Households in Poverty | AH123: Married Couple Fam HH | AI123: ="MOE "&AH123 -> MOE Married Couple Fam HH | AJ123: Other Family | AK123: ="MOE "&AJ123 -> MOE Other Family | AL123: Male Head of Family HH no spouse | AM123: ="MOE "&AL123 -> MOE Male Head of Family HH no spouse | AN123: Female Head of Family HH no spouse | AO123: ="MOE "&AN123 -> MOE Female Head of Family HH no spouse | AP123: Non-Family HH | AQ123: ="MOE "&AP123 -> MOE Non-Family HH | AR123: Non-Family Male HH | AS123: ="MOE "&AR123 -> MOE Non-Family Male HH | AT123: Non-Family Female HH | AU123: ="MOE "&AT123 -> MOE Non-Family Female HH | AV123: Total Households at or Above Poverty | AW123: ="MOE "&AV123 -> MOE Total Households at or Above Poverty | AX123: Family Households above Poverty | AY123: ="MOE "&AX123 -> MOE Family Households above Poverty | AZ123: Married Couple Fam HH | BA123: ="MOE "&AZ123 -> MOE Married Couple Fam HH | BB123: Other Family | BC123: ="MOE "&BB123 -> MOE Other Family | BD123: Male Head of Family HH no spouse | BE123: ="MOE "&BD123 -> MOE Male Head of Family HH no spouse | BF123: Female Head of Family HH no spouse | BG123: ="MOE "&BF123 -> MOE Female Head of Family HH no spouse | BH123: Non-Family HH | BI123: ="MOE "&BH123 -> MOE Non-Family HH | BJ123: Non-Family Male HH | BK123: ="MOE "&BJ123 -> MOE Non-Family Male HH | BL123: Non-Family Female HH | BM123: ="MOE "&BL123 -> MOE Non-Family Female HH | BN123: Married Couple with Children Below Poverty | BO123: ="MOE "&BN123 -> MOE Married Couple with Children Below Poverty | BP123: Male HH with children below poverty | BQ123: ="MOE "&BP123 -> MOE Male HH with children below poverty | BR123: Female HH with children below poverty | BS123: ="MOE "&BR123 -> MOE Female HH with children below poverty | BT123: Married Couple with Children At or Above Poverty | BU123: ="MOE "&BT123 -> MOE Married Couple with Children At or Above Poverty | BV123: Male HH with children at or above poverty | BW123: ="MOE "&BV123 -> MOE Male HH with children at or above poverty | BX123: Female HH with children at or above poverty | BY123: ="MOE "&BX123 -> MOE Female HH with children at or above poverty
A124: =VLOOKUP(DropDownList!$A$19,CntyQuery!$A$53:$DN$64,A$1) -> Laconia | B124: 15409 | C124: 237 | D124: 1817 | E124: 454 | F124: 63 | G124: 61.68468205 | H124: 357 | I124: 237.1602834 | J124: 1204 | K124: 260.6415163 | L124: 89 | M124: 56.22277119 | N124: 104 | O124: 61.84658438 | P124: 13592 | Q124: 493 | R124: 558 | S124: 154.9870962 | T124: 1990 | U124: 334.7626025 | V124: 8795 | W124: 505.1158283 | X124: 1126 | Y124: 145.6914548 | Z124: 153 | AA124: 70 | AB124: 6878 | AC124: 265 | AD124: 828 | AE124: 193 | AF124: 343 | AG124: 137 | AH124: 82 | AI124: 56 | AJ124: 261 | AK124: 127 | AL124: 105 | AM124: 87 | AN124: 156 | AO124: 91 | AP124: 485 | AQ124: 150 | AR124: 173 | AS124: 87 | AT124: 312 | AU124: 135 | AV124: 6050 | AW124: 301 | AX124: 3796 | AY124: 254 | AZ124: 2988 | BA124: 231 | BB124: 2254 | BC124: 267 | BD124: 74 | BE124: 46 | BF124: 734 | BG124: 207 | BH124: 2254 | BI124: 267 | BJ124: 943 | BK124: 182 | BL124: 1311 | BM124: 205 | BN124: 0 | BO124: 85 | BP124: 55 | BQ124: 55 | BR124: 141 | BS124: 87 | BT124: 1043 | BU124: 188 | BV124: 50 | BW124: 38 | BX124: 394 | BY124: 173
A126: Household Income By Tenure
A127: NAME | B127: TotalOccHU | C127: ="MOE "&B127 -> MOE TotalOccHU | D127: OwnOccHU | E127: ="MOE "&D127 -> MOE OwnOccHU | F127: OOHUInc<5K | G127: ="MOE "&F127 -> MOE OOHUInc<5K | H127: OOHUInc5to10K | I127: ="MOE "&H127 -> MOE OOHUInc5to10K | J127: OOHUInc10to15K | K127: ="MOE "&J127 -> MOE OOHUInc10to15K | L127: OOHUInc15to20K | M127: ="MOE "&L127 -> MOE OOHUInc15to20K | N127: OOHUInc20to25K | O127: ="MOE "&N127 -> MOE OOHUInc20to25K | P127: OOHUInc25to35K | Q127: ="MOE "&P127 -> MOE OOHUInc25to35K | R127: OOHUInc35to50K | S127: ="MOE "&R127 -> MOE OOHUInc35to50K | T127: OOHUInc50to75K | U127: ="MOE "&T127 -> MOE OOHUInc50to75K | V127: OOHUInc75to100K | W127: ="MOE "&V127 -> MOE OOHUInc75to100K | X127: OOHUInc100to150K | Y127: ="MOE "&X127 -> MOE OOHUInc100to150K | Z127: OOHUInc>150K | AA127: ="MOE "&Z127 -> MOE OOHUInc>150K | AB127: RentOccHU | AC127: ="MOE "&AB127 -> MOE RentOccHU | AD127: ROHUInc<5K | AE127: ="MOE "&AD127 -> MOE ROHUInc<5K | AF127: ROHUInc5to10K | AG127: ="MOE "&AF127 -> MOE ROHUInc5to10K | AH127: ROHUInc10to15K | AI127: ="MOE "&AH127 -> MOE ROHUInc10to15K | AJ127: ROHUInc15to20K | AK127: ="MOE "&AJ127 -> MOE ROHUInc15to20K | AL127: ROHUInc20to25K | AM127: ="MOE "&AL127 -> MOE ROHUInc20to25K | AN127: ROHUInc25to35K | AO127: ="MOE "&AN127 -> MOE ROHUInc25to35K | AP127: ROHUInc35to50K | AQ127: ="MOE "&AP127 -> MOE ROHUInc35to50K | AR127: ROHUInc50to75K | AS127: ="MOE "&AR127 -> MOE ROHUInc50to75K | AT127: ROHUInc75to100K | AU127: ="MOE "&AT127 -> MOE ROHUInc75to100K | AV127: ROHUInc100to150K | AW127: ="MOE "&AV127 -> MOE ROHUInc100to150K | AX127: ROHUInc>150K | AY127: ="MOE "&AX127 -> MOE ROHUInc>150K | AZ127: Total OCC HUInc<5K | BA127: ="MOE "&AZ127 -> MOE Total OCC HUInc<5K | BB127: Total OCC HUInc5to10K | BC127: ="MOE "&BB127 -> MOE Total OCC HUInc5to10K | BD127: Total OCC HUInc10to15K | BE127: ="MOE "&BD127 -> MOE Total OCC HUInc10to15K | BF127: Total OCC HUInc15to20K | BG127: ="MOE "&BF127 -> MOE Total OCC HUInc15to20K | BH127: Total OCC HUInc20to25K | BI127: ="MOE "&BH127 -> MOE Total OCC HUInc20to25K | BJ127: Total OCC HUInc25to35K | BK127: ="MOE "&BJ127 -> MOE Total OCC HUInc25to35K | BL127: Total OCC HUInc35to50K | BM127: ="MOE "&BL127 -> MOE Total OCC HUInc35to50K | BN127: Total OCC HUInc50to75K | BO127: ="MOE "&BN127 -> MOE Total OCC HUInc50to75K | BP127: Total OCC HUInc75to100K | BQ127: ="MOE "&BP127 -> MOE Total OCC HUInc75to100K | BR127: Total OCC HUInc100to150K | BS127: ="MOE "&BR127 -> MOE Total OCC HUInc100to150K | BT127: Total OCC HUInc>150K | BU127: ="MOE "&BT127 -> MOE Total OCC HUInc>150K | BV127: MedHHInc | BW127: ="MOE "&BV127 -> MOE MedHHInc | BX127: MedOwnOccHHInc | BY127: ="MOE "&BX127 -> MOE MedOwnOccHHInc | BZ127: MedRentOccHHInc | CA127: ="MOE "&BZ127 -> MOE MedRentOccHHInc
A128: =VLOOKUP(DropDownList!$A$19,CntyQuery!$A$53:$DN$64,A$1) -> Laconia | B128: 7143 | C128: 283 | D128: 4244 | E128: 308 | F128: 60 | G128: 40 | H128: 67 | I128: 50 | J128: 109 | K128: 79 | L128: 132 | M128: 74 | N128: 208 | O128: 106 | P128: 372 | Q128: 118 | R128: 632 | S128: 146 | T128: 796 | U128: 155 | V128: 573 | W128: 160 | X128: 887 | Y128: 219 | Z128: 408 | AA128: 95 | AB128: 2899 | AC128: 306 | AD128: 128 | AE128: 85 | AF128: 281 | AG128: 141 | AH128: 332 | AI128: 100 | AJ128: 285 | AK128: 126 | AL128: 176 | AM128: 95 | AN128: 366 | AO128: 134 | AP128: 668 | AQ128: 194 | AR128: 430 | AS128: 179 | AT128: 51 | AU128: 40 | AV128: 120 | AW128: 75 | AX128: 62 | AY128: 61 | AZ128: 188 | BA128: 93.94147114 | BB128: 348 | BC128: 149.6028075 | BD128: 441 | BE128: 127.440182 | BF128: 417 | BG128: 146.1232357 | BH128: 384 | BI128: 142.3411395 | BJ128: 738 | BK128: 178.549713 | BL128: 1300 | BM128: 242.8003295 | BN128: 1226 | BO128: 236.7826007 | BP128: 624 | BQ128: 164.924225 | BR128: 1007 | BS128: 231.4865007 | BT128: 470 | BU128: 112.8981842 | BV128: 47817 | BW128: 2617 | BX128: 67056 | BY128: 4673 | BZ128: 30798 | CA128: 5789 | CB128: 131 | CC128: 60.20797289 | CD128: 97 | CE128: 130.2497601 | CF128: 256 | CG128: 116.9700816 | CH128: 418 | CI128: 127.0590414 | CJ128: 510 | CK128: 129.7112177 | CL128: 449 | CM128: 123.0690863 | CN128: 508 | CO128: 128.4133949 | CP128: 207 | CQ128: 136.458785
A130: Population Data
A131: NAME | B131: Total Population | C131: MOE Total Population | D131: Under 15 Years | E131: MOE Under 15 yrs. | F131: 15 to 24 yrs. | G131: MOE 15 to 24 yrs. | H131: 25 to 34 yrs. | I131: MOE 25 to 34 yrs. | J131: 35 to 44 yrs. | K131: MOE 35 to 44 yrs. | L131: 45 to 54 yrs. | M131: MOE 45 to 54 yrs. | N131: 55 to 64 yrs. | O131: MOE 55 to 64 yrs. | P131: 65 to 74 yrs. | Q131: MOE 65 to 74 yrs. | R131: Over 74 yrs. | S131: MOE Over 74 yrs. | T131: TotalHH | U131: MOE TotalHH | V131: FamilyHH | W131: MOE FamilyHH | X131: MarriedFamilyHH | Y131: MOE MarriedFamilyHH | Z131: SingleFamilyHH | AA131: MOE SingleFamilyHH | AB131: Sfamily-MaleHH | AC131: MOE Sfamily-MaleHH | AD131: Sfamily-FemaleHH | AE131: MOE Sfamily-FemaleHH | AF131: NonFamilyHH | AG131: MOE NonFamilyHH | AH131: NonFamilyHH-LivingAlone | AI131: MOE NonFamilyHH-LivingAlone | AJ131: NonFamilyHH-NotLivingAlone | AK131: MOE NonFamilyHH-NotLivingAlone | AL131: PopRaceWhite | AM131: MOE PopRaceWhite | AN131: PopRaceBlack | AO131: MOE PopRaceBlack | AP131: PopRaceAmerican Indian | AQ131: MOE PopRaceAmerican Indian | AR131: PopRaceAsian &Pacific Is. | AS131: MOE PopRaceAsian &Pacific Is. | AT131: PopRaceOther* | AU131: MOE PopRaceOther* | AV131: PopRaceHispanic or Latino: | AW131: MOE PopRaceHispanic or Latino: | AX131: AvgAgeTotalPop | AY131: MOE AvgAgeTotalPop | AZ131: AvgAgeMale | BA131: MOE AvgAgeMale | BB131: AvgAgeFemale | BC131: MOE AvgAgeFemale | BD131: AvgHHSizeTotal | BE131: MOE AvgHHSizeTotal | BF131: AvgHHSizeFamilyHH | BG131: MOE AvgHHSizeFamilyHH | BH131: AvgHHSizeNonFamilyHH | BI131: MOE AvgHHSizeNonFamilyHH
A132: =VLOOKUP(DropDownList!$A$19,CntyQuery!$A$53:$DN$64,A$1) -> Laconia | B132: 2958 | C132: 18 | D132: 505 | E132: 125.6582667 | F132: 214 | G132: 59.88321969 | H132: 269 | I132: 76.88302804 | J132: 358 | K132: 83.18653737 | L132: 586 | M132: 111.919614 | N132: 592 | O132: 110.8196733 | P132: 230 | Q132: 66.49812027 | R132: 204 | S132: 66.1135387 | T132: 1190 | U132: 79 | V132: 836 | W132: 79 | X132: 719 | Y132: 77 | Z132: 117 | AA132: 53 | AB132: 53 | AC132: 35 | AD132: 64 | AE132: 37 | AF132: 354 | AG132: 90 | AH132: 252 | AI132: 70 | AJ132: 102 | AK132: 57 | AL132: 2855 | AM132: 79 | AN132: 0 | AO132: 11 | AP132: 16 | AQ132: 24 | AR132: 0 | AS132: 15.55634919 | AT132: 0 | AU132: 15.55634919 | AV132: 87 | AW132: 72 | AX132: 47.4 | AY132: 3.7 | AZ132: 48.6 | BA132: 2.9 | BB132: 46.2 | BC132: 3.3 | BD132: 2.482352941 | BE132: 0.1655665156 | BF132: 2.979665072 | BG132: 0.3276073598 | BH132: 1.307909605 | BI132: 0.514536085
A134: Nativity and Prior Place of Residence
A135: NAME | B135: TotalPop | C135: ="MOE "&B135 -> MOE TotalPop | D135: Native: | E135: ="MOE "&D135 -> MOE Native: | F135: NatBornInStateOfResidence | G135: ="MOE "&F135 -> MOE NatBornInStateOfResidence | H135: Born in other state in the United States: | I135: ="MOE "&H135 -> MOE Born in other state in the United States: | J135: Northeast | K135: ="MOE "&J135 -> MOE Northeast | L135: Midwest | M135: ="MOE "&L135 -> MOE Midwest | N135: South | O135: ="MOE "&N135 -> MOE South | P135: West | Q135: ="MOE "&P135 -> MOE West | R135: Born outside the United States: | S135: ="MOE "&R135 -> MOE Born outside the United States: | T135: Puerto Rico | U135: ="MOE "&T135 -> MOE Puerto Rico | V135: U.S. Island Areas | W135: ="MOE "&V135 -> MOE U.S. Island Areas | X135: Born abroad of American parent(s) | Y135: ="MOE "&X135 -> MOE Born abroad of American parent(s) | Z135: Foreign born: | AA135: ="MOE "&Z135 -> MOE Foreign born: | AB135: Naturalized U.S. citizen | AC135: ="MOE "&AB135 -> MOE Naturalized U.S. citizen | AD135: Not a U.S. citizen | AE135: ="MOE "&AD135 -> MOE Not a U.S. citizen | AF135: CurrentResideneTotal: | AG135: ="MOE "&AF135 -> MOE CurrentResideneTotal: | AH135: SameHouse: | AI135: ="MOE "&AH135 -> MOE SameHouse: | AJ135: DifferentHouse: | AK135: ="MOE "&AJ135 -> MOE DifferentHouse: | AL135: DiffHouseInNH | AM135: ="MOE "&AL135 -> MOE DiffHouseInNH | AN135: DiffHouseInNHSameCnty | AO135: ="MOE "&AN135 -> MOE DiffHouseInNHSameCnty | AP135: DiffHouseInNHDiffCnty | AQ135: ="MOE "&AP135 -> MOE DiffHouseInNHDiffCnty | AR135: DiffHouseInDiffState | AS135: ="MOE "&AR135 -> MOE DiffHouseInDiffState | AT135: DiffHouseInElsewhere | AU135: ="MOE "&AT135 -> MOE DiffHouseInElsewhere
A136: =VLOOKUP(DropDownList!$A$19,CntyQuery!$A$53:$DN$64,A$1) -> Laconia | B136: 2958 | C136: 18 | D136: 2896 | E136: 47 | F136: 1289 | G136: 153 | H136: 1539 | I136: 142 | J136: 1125 | K136: 169 | L136: 105 | M136: 52 | N136: 217 | O136: 136 | P136: 92 | Q136: 49 | R136: 68 | S136: 42 | T136: 13 | U136: 24 | V136: 0 | W136: 11 | X136: 55 | Y136: 33 | Z136: 62 | AA136: 42 | AB136: 55 | AC136: 42 | AD136: 7 | AE136: 8 | AF136: 2923 | AG136: 36 | AH136: 2725 | AI136: 111 | AJ136: 198 | AK136: 111.9553482 | AL136: 123 | AM136: 93.40770846 | AN136: 32 | AO136: 25 | AP136: 91 | AQ136: 90 | AR136: 50 | AS136: 55 | AT136: 25 | AU136: 28
A138: School Attainment & Enrollment
A139: NAME | B139: Total Pop 3 Years and Older | C139: MOE Total Pop 3 Years and Older | D139: SchEnrlPop3yrOver | E139: ="MOE "&D139 -> MOE SchEnrlPop3yrOver | F139: TotalEnrollNursy&Kinder | G139: ="MOE "&F139 -> MOE TotalEnrollNursy&Kinder | H139: NurserSchEnrl | I139: ="MOE "&H139 -> MOE NurserSchEnrl | J139: KinderSchEnrl | K139: ="MOE "&J139 -> MOE KinderSchEnrl | L139: ElemSchEnrl (1-8) | M139: ="MOE "&L139 -> MOE ElemSchEnrl (1-8) | N139: HighSchEnrl(9-12) | O139: ="MOE "&N139 -> MOE HighSchEnrl(9-12) | P139: TotalElementry&HSEnroll | Q139: ="MOE "&P139 -> MOE TotalElementry&HSEnroll | R139: CollGradSchEnrl | S139: ="MOE "&R139 -> MOE CollGradSchEnrl | T139: PopNotEnrolled | U139: MOE PopNotEnrolled | V139: Pop25yrsOver | W139: ="MOE "&V139 -> MOE Pop25yrsOver | X139: EduAtain<9grd | Y139: ="MOE "&X139 -> MOE EduAtain<9grd | Z139: EduAtainHSnoDip | AA139: ="MOE "&Z139 -> MOE EduAtainHSnoDip | AB139: EduAtainHSgrad | AC139: ="MOE "&AB139 -> MOE EduAtainHSgrad | AD139: EduAtainCollNoDeg | AE139: ="MOE "&AD139 -> MOE EduAtainCollNoDeg | AF139: EduAtainAssocDeg | AG139: ="MOE "&AF139 -> MOE EduAtainAssocDeg | AH139: EduAtainBachDeg | AI139: ="MOE "&AH139 -> MOE EduAtainBachDeg | AJ139: EduAtainGradProfDeg | AK139: ="MOE "&AJ139 -> MOE EduAtainGradProfDeg
A140: =VLOOKUP(DropDownList!$A$19,CntyQuery!$A$53:$DN$64,A$1) -> Laconia | B140: 2823 | C140: 69 | D140: 493 | E140: 88 | F140: 84 | G140: 50.93132631 | H140: 43 | I140: 35 | J140: 41 | K140: 37 | L140: 184 | M140: 60.95900262 | N140: 107 | O140: 44 | P140: 291 | Q140: 75.17978452 | R140: 118 | S140: 56.63920903 | T140: 2330 | U140: 85 | V140: 2239 | W140: 88 | X140: 55 | Y140: 55.06359959 | Z140: 106 | AA140: 44.92215489 | AB140: 545 | AC140: 102.5329215 | AD140: 447 | AE140: 87.29833904 | AF140: 297 | AG140: 85.60373824 | AH140: 500 | AI140: 95.46203434 | AJ140: 170 | AK140: 70.24243732
A142: Occupied Owner Housing Value
A143: NAME | B143: Estimate; Total: | C143: Margin of Error; Total: | D143: Estimate; Total: - Less than $10,000 | E143: Margin of Error; Total: - Less than $10,000 | F143: Estimate; Total: - $10,000 to $14,999 | G143: Margin of Error; Total: - $10,000 to $14,999 | H143: Estimate; Total: - $15,000 to $19,999 | I143: Margin of Error; Total: - $15,000 to $19,999 | J143: Estimate; Total: - $20,000 to $24,999 | K143: Margin of Error; Total: - $20,000 to $24,999 | L143: Estimate; Total: - $25,000 to $29,999 | M143: Margin of Error; Total: - $25,000 to $29,999 | N143: Estimate; Total: - $30,000 to $34,999 | O143: Margin of Error; Total: - $30,000 to $34,999 | P143: Estimate; Total: - $35,000 to $39,999 | Q143: Margin of Error; Total: - $35,000 to $39,999 | R143: Estimate; Total: - $40,000 to $49,999 | S143: Margin of Error; Total: - $40,000 to $49,999 | T143: Estimate; Total: - $50,000 to $59,999 | U143: Margin of Error; Total: - $50,000 to $59,999 | V143: Estimate; Total: - $60,000 to $69,999 | W143: Margin of Error; Total: - $60,000 to $69,999 | X143: Estimate; Total: - $70,000 to $79,999 | Y143: Margin of Error; Total: - $70,000 to $79,999 | Z143: Estimate; Total: - $80,000 to $89,999 | AA143: Margin of Error; Total: - $80,000 to $89,999 | AB143: Estimate; Total: - $90,000 to $99,999 | AC143: Margin of Error; Total: - $90,000 to $99,999 | AD143: Estimate; Total: - $100,000 to $124,999 | AE143: Margin of Error; Total: - $100,000 to $124,999 | AF143: Estimate; Total: - $125,000 to $149,999 | AG143: Margin of Error; Total: - $125,000 to $149,999 | AH143: Estimate; Total: - $150,000 to $174,999 | AI143: Margin of Error; Total: - $150,000 to $174,999 | AJ143: Estimate; Total: - $175,000 to $199,999 | AK143: Margin of Error; Total: - $175,000 to $199,999 | AL143: Estimate; Total: - $200,000 to $249,999 | AM143: Margin of Error; Total: - $200,000 to $249,999 | AN143: Estimate; Total: - $250,000 to $299,999 | AO143: Margin of Error; Total: - $250,000 to $299,999 | AP143: Estimate; Total: - $300,000 to $399,999 | AQ143: Margin of Error; Total: - $300,000 to $399,999 | AR143: Estimate; Total: - $400,000 to $499,999 | AS143: Margin of Error; Total: - $400,000 to $499,999 | AT143: Estimate; Total: - $500,000 to $749,999 | AU143: Margin of Error; Total: - $500,000 to $749,999 | AV143: Estimate; Total: - $750,000 to $999,999 | AW143: Margin of Error; Total: - $750,000 to $999,999 | AX143: Estimate; Total: - $1,000,000 to $1,499,999 | AY143: Margin of Error; Total: - $1,000,000 to $1,499,999 | AZ143: Estimate; Total: - $1,500,000 to $1,999,999 | BA143: Margin of Error; Total: - $1,500,000 to $1,999,999 | BB143: Estimate; Total: - $2,000,000 or more | BC143: Margin of Error; Total: - $2,000,000 or more | BD143: MedianOwnOCCHomeValue | BE143: MOE MedianOwnOCCHomeValue | BF143: OnwerOccHsU | BG143: MOE OnwerOccHsU | BH143: OwnerCosts>20PctHHInc | BI143: MOE OwnerCosts>20PctHHInc | BJ143: OwnerCosts20to29.9PctHHInc | BK143: MOE OwnerCosts20to29.9PctHHInc | BL143: OwnerCosts<30PctHHInc | BM143: MOE OwnerCosts<30PctHHInc | BN143: OwnerCosts>30PctHHInc | BO143: MOE OwnerCosts>30PctHHInc | BP143: OwnerCosts30to34.9PctHHInc | BQ143: MOE OwnerCosts30to34.9PctHHInc | BR143: OwnerCosts<35PctHHInc | BS143: MOE OwnerCosts<35PctHHInc | BT143: OwnerCosts>35PctHHInc | BU143: MOE OwnerCosts>35PctHHInc | BV143: OwnerCosts>50PctHHInc | BW143: MOE OwnerCosts>50PctHHInc | BX143: OwnerCostsPctNotcomputed | BY143: MOE OwnerCostsPctNotcomputed | BZ143: OwnerOHUHhInc<20k | CA143: MOE OwnerOHUHhInc<20k | CB143: OwnerOHUHhInc<20kHCosts<20pct | CC143: MOE OwnerOHUHhInc<20kHCosts<20pct | CD143: OwnerOHUHhInc<20kHCosts20to29pct | CE143: MOE OwnerOHUHhInc<20kHCosts20to29pct | CF143: OwnerOHUHhInc>20kHCosts30pct | CG143: MOE OwnerOHUHhInc>20kHCosts30pct | CH143: OwnerOHUHhInc20kTo34999 | CI143: MOE OwnerOHUHhInc20kTo34999 | CJ143: OwnerOHUHhInc20kTo34999HCosts<20pct | CK143: MOE OwnerOHUHhInc20kTo34999HCosts<20pct | CL143: OwnerOHUHhInc20kTo34999HCosts20to29pct | CM143: MOE OwnerOHUHhInc20kTo34999HCosts20to29pct | CN143: OwnerOHUHhInc20kTo34999HCosts30pct | CO143: MOE OwnerOHUHhInc20kTo34999HCosts30pct | CP143: OwnerOHUHhInc35kTo49999 | CQ143: MOE OwnerOHUHhInc35kTo49999 | CR143: OwnerOHUHhInc35kTo49999HCosts<20pct | CS143: MOE OwnerOHUHhInc35kTo49999HCosts<20pct | CT143: OwnerOHUHhInc35kTo49999HCosts20to29pct | CU143: MOE OwnerOHUHhInc35kTo49999HCosts20to29pct | CV143: OwnerOHUHhInc35kTo49999HCosts30pct | CW143: MOE OwnerOHUHhInc35kTo49999HCosts30pct | CX143: OwnerOHUHhInc50kTo74999 | CY143: MOE OwnerOHUHhInc50kTo74999 | CZ143: OwnerOHUHhInc50kTo74999HCosts<20pct | DA143: MOE OwnerOHUHhInc50kTo74999HCosts<20pct | DB143: OwnerOHUHhInc50kTo74999HCosts20to29pct | DC143: MOE OwnerOHUHhInc50kTo74999HCosts20to29pct | DD143: OwnerOHUHhInc50kTo74999HCosts30pct | DE143: MOE OwnerOHUHhInc50kTo74999HCosts30pct | DF143: OwnerOHUHhInc>75000 | DG143: MOE OwnerOHUHhInc>75000 | DH143: OwnerOHUHhInc>75000HCosts<20pct | DI143: MOE OwnerOHUHhInc>75000HCosts<20pct | DJ143: OwnerOHUHhInc>75000HCosts20to29pct | DK143: MOE OwnerOHUHhInc>75000HCosts20to29pct | DL143: OwnerOHUHhInc>75000HCosts30pct | DM143: MOE OwnerOHUHhInc>75000HCosts30pct | DN143: ZeroOrNegativeIncome | DO143: MOE ZeroOrNegativeIncome
A144: =VLOOKUP(DropDownList!$A$19,CntyQuery!$A$53:$DN$64,A$1) -> Laconia | B144: 4244 | C144: 308 | D144: 31 | E144: 27 | F144: 0 | G144: 18 | H144: 0 | I144: 18 | J144: 0 | K144: 18 | L144: 27 | M144: 26 | N144: 8 | O144: 12 | P144: 0 | Q144: 18 | R144: 24 | S144: 26 | T144: 91 | U144: 63 | V144: 21 | W144: 24 | X144: 18 | Y144: 20 | Z144: 44 | AA144: 32 | AB144: 73 | AC144: 37 | AD144: 235 | AE144: 99 | AF144: 315 | AG144: 103 | AH144: 651 | AI144: 146 | AJ144: 702 | AK144: 199 | AL144: 855 | AM144: 167 | AN144: 341 | AO144: 136 | AP144: 468 | AQ144: 145 | AR144: 130 | AS144: 61 | AT144: 94 | AU144: 54 | AV144: 58 | AW144: 33 | AX144: 58 | AY144: 49 | BD144: 195800 | BE144: 7741 | BF144: 4244 | BG144: 308 | BH144: 1485 | BI144: 256.0156245 | BJ144: 1194 | BK144: 217.2049723 | BL144: 2679 | BM144: 335.7409716 | BN144: 1544 | BO144: 257.6451047 | BP144: 303 | BQ144: 94.49338601 | BR144: 2982 | BS144: 348.7850341 | BT144: 1241 | BU144: 239.6914684 | BV144: 653 | BW144: 167.8392088 | BX144: 21 | BY144: 24.20743687 | BZ144: 347 | CA144: 128 | CB144: 0 | CC144: 18 | CD144: 16 | CE144: 18 | CF144: 331 | CG144: 124 | CH144: 580 | CI144: 165 | CJ144: 12 | CK144: 19 | CL144: 90 | CM144: 53 | CN144: 478 | CO144: 157 | CP144: 632 | CQ144: 146 | CR144: 156 | CS144: 55 | CT144: 62 | CU144: 34 | CV144: 414 | CW144: 160 | CX144: 796 | CY144: 155 | CZ144: 258 | DA144: 94 | DB144: 352 | DC144: 110 | DD144: 186 | DE144: 80 | DF144: 1868 | DG144: 253 | DH144: 1059 | DI144: 212 | DJ144: 674 | DK144: 167 | DL144: 135 | DM144: 59 | DN144: 21 | DO144: 24 | DP144: 2899 | DQ144: 306
A146: Occupied Rental Housing Value
A147: NAME | B147: RntrOccHU | C147: MOE RntrOccHU | D147: RntrOccHUwRent | E147: MOE RntrOccHUwRent | F147: ROHUGRent<100 | G147: MOE ROHUGRent<100 | H147: ROHUGRent100to149 | I147: MOE ROHUGRent100to149 | J147: ROHUGRent150to199 | K147: MOE ROHUGRent150to199 | L147: ROHUGRent200to249 | M147: MOE ROHUGRent200to249 | N147: ROHUGRent250to299 | O147: MOE ROHUGRent250to299 | P147: ROHUGRent300to349 | Q147: MOE ROHUGRent300to349 | R147: ROHUGRent350to399 | S147: MOE ROHUGRent350to399 | T147: ROHUGRent400to449 | U147: MOE ROHUGRent400to449 | V147: ROHUGRent450to499 | W147: MOE ROHUGRent450to499 | X147: ROHUGRent500to549 | Y147: MOE ROHUGRent500to549 | Z147: ROHUGRent550to599 | AA147: MOE ROHUGRent550to599 | AB147: ROHUGRent600to649 | AC147: MOE ROHUGRent600to649 | AD147: ROHUGRent650to699 | AE147: MOE ROHUGRent650to699 | AF147: ROHUGRent700to749 | AG147: MOE ROHUGRent700to749 | AH147: ROHUGRent750to799 | AI147: MOE ROHUGRent750to799 | AJ147: ROHUGRent800to899 | AK147: MOE ROHUGRent800to899 | AL147: ROHUGRent900to999 | AM147: MOE ROHUGRent900to999 | AN147: ROHUGRent1000to1249 | AO147: MOE ROHUGRent1000to1249 | AP147: ROHUGRent1250to1499 | AQ147: MOE ROHUGRent1250to1499 | AR147: ROHUGRent1500to1999 | AS147: MOE ROHUGRent1500to1999 | AT147: ROHUGRent$2,000 to $2,499 | AU147: MOE ROHUGRent$2,000 to $2,499 | AV147: ROHUGRent$2,500 to $2,999 | AW147: MOE ROHUGRent$2,500 to $2,999 | AX147: ROHUGRent$3,000 to $3,499 | AY147: MOE ROHUGRent$3,000 to $3,499 | AZ147: ROHUGRent$3,500 or more | BA147: MOE ROHUGRent$3,500 or more | BB147: ROHUNoGRent | BC147: MOE ROHUNoGRent | BD147: MedianGrossRnt | BE147: MOE MedianGrossRnt | BF147: H73RenterOccHU | BG147: MOE H73RenterOccHU | BH147: H73ROHUHhInc<10k | BI147: MOE H73ROHUHhInc<10k | BJ147: H73ROHUHhInc<10kRnt<20pct | BK147: MOE H73ROHUHhInc<10kRnt<20pct | BL147: H73ROHUHhInc<10kRnt20to25pct | BM147: MOE H73ROHUHhInc<10kRnt20to25pct | BN147: H73ROHUHhInc<10kRnt25to30pct | BO147: MOE H73ROHUHhInc<10kRnt25to30pct | BP147: H73ROHUHhInc<10kRnt30to35pct | BQ147: MOE H73ROHUHhInc<10kRnt30to35pct | BR147: H73ROHUHhInc<10kRnt35to39.9 | BS147: MOE H73ROHUHhInc<10kRnt35to39.9 | BT147: H73ROHUHhInc<10kRnt40to49.9 | BU147: MOE H73ROHUHhInc<10kRnt40to49.9 | BV147: H73ROHUHhInc<10kRnt>50pct | BW147: MOE H73ROHUHhInc<10kRnt>50pct | BX147: H73ROHUHhInc<10kPctNotComput | BY147: MOE H73ROHUHhInc<10kPctNotComput | BZ147: H73ROHUHhInc10to20k | CA147: MOE H73ROHUHhInc10to20k | CB147: H73ROHUHhInc10to20kRnt<20pct | CC147: MOE H73ROHUHhInc10to20kRnt<20pct | CD147: H73ROHUHhInc10to20kRnt20to25pct | CE147: MOE H73ROHUHhInc10to20kRnt20to25pct | CF147: H73ROHUHhInc10to20kRnt25to30pct | CG147: MOE H73ROHUHhInc10to20kRnt25to30pct | CH147: H73ROHUHhInc10to20kRnt30to35pct | CI147: MOE H73ROHUHhInc10to20kRnt30to35pct | CJ147: H73ROHUHhInc10to20kRnt35to39.9 | CK147: MOE H73ROHUHhInc10to20kRnt35to39.9 | CL147: H73ROHUHhInc10to20kRnt40to49.9 | CM147: MOE H73ROHUHhInc10to20kRnt40to49.9 | CN147: H73ROHUHhInc10to20kRnt>50pct | CO147: MOE H73ROHUHhInc10to20kRnt>50pct | CP147: H73ROHUHhInc10to20kRntPctNC | CQ147: MOE H73ROHUHhInc10to20kRntPctNC | CR147: H73ROHUHhInc20to34.9k | CS147: MOE H73ROHUHhInc20to34.9k | CT147: H73ROHUHhInc20to34.9kRnt<20pct | CU147: MOE H73ROHUHhInc20to34.9kRnt<20pct | CV147: H73ROHUHhInc20to34.9kRnt20to25pct | CW147: MOE H73ROHUHhInc20to34.9kRnt20to25pct | CX147: H73ROHUHhInc20to34.9kRnt25to30pct | CY147: MOE H73ROHUHhInc20to34.9kRnt25to30pct | CZ147: H73ROHUHhInc20to34.9kRnt30to35pct | DA147: MOE H73ROHUHhInc20to34.9kRnt30to35pct | DB147: H73ROHUHhInc20to34.9kRnt35to39.9 | DC147: MOE H73ROHUHhInc20to34.9kRnt35to39.9 | DD147: H73ROHUHhInc20to34.9kRnt40to49.9 | DE147: MOE H73ROHUHhInc20to34.9kRnt40to49.9 | DF147: H73ROHUHhInc20to34.9kRnt>50pct | DG147: MOE H73ROHUHhInc20to34.9kRnt>50pct | DH147: H73ROHUHhInc20to34.9kRntPctNC | DI147: MOE H73ROHUHhInc20to34.9kRntPctNC | DJ147: H73ROHUHhInc35to49.9k | DK147: MOE H73ROHUHhInc35to49.9k | DL147: H73ROHUHhInc35to49.9kRnt<20pct | DM147: MOE H73ROHUHhInc35to49.9kRnt<20pct | DN147: H73ROHUHhInc35to49.9kRnt20to25pct | DO147: MOE H73ROHUHhInc35to49.9kRnt20to25pct | DP147: H73ROHUHhInc35to49.9kRnt25to30pct | DQ147: MOE H73ROHUHhInc35to49.9kRnt25to30pct | DR147: H73ROHUHhInc35to49.9kRnt30to35pct | DS147: MOE H73ROHUHhInc35to49.9kRnt30to35pct | DT147: H73ROHUHhInc35to49.9kRnt35to39.9 | DU147: MOE H73ROHUHhInc35to49.9kRnt35to39.9 | DV147: H73ROHUHhInc35to49.9kRnt40to49.9 | DW147: MOE H73ROHUHhInc35to49.9kRnt40to49.9 | DX147: H73ROHUHhInc35to49.9kRnt>50pct | DY147: MOE H73ROHUHhInc35to49.9kRnt>50pct | DZ147: H73ROHUHhInc35to49.9kRntPctNC | EA147: MOE H73ROHUHhInc35to49.9kRntPctNC | EB147: H73ROHUHhInc50to74.9k | EC147: MOE H73ROHUHhInc50to74.9k | ED147: H73ROHUHhInc50to74.9kRnt<20pct | EE147: MOE H73ROHUHhInc50to74.9kRnt<20pct | EF147: H73ROHUHhInc50to74.9kRnt20to25pct | EG147: MOE H73ROHUHhInc50to74.9kRnt20to25pct | EH147: H73ROHUHhInc50to74.9kRnt25to30pct | EI147: MOE H73ROHUHhInc50to74.9kRnt25to30pct | EJ147: H73ROHUHhInc50to74.9kRnt30to35pct | EK147: MOE H73ROHUHhInc50to74.9kRnt30to35pct | EL147: H73ROHUHhInc50to74.9kRnt35to39.9 | EM147: MOE H73ROHUHhInc50to74.9kRnt35to39.9 | EN147: H73ROHUHhInc50to74.9kRnt40to49.9 | EO147: MOE H73ROHUHhInc50to74.9kRnt40to49.9 | EP147: H73ROHUHhInc50to74.9kRnt>50pct | EQ147: MOE H73ROHUHhInc50to74.9kRnt>50pct | ER147: H73ROHUHhInc50to74.9kRntPctNC | ES147: MOE H73ROHUHhInc50to74.9kRntPctNC | ET147: H73ROHUHhInc75to99.9k | EU147: MOE H73ROHUHhInc75to99.9k | EV147: H73ROHUHhInc75to99.9kRnt<20pct | EW147: MOE H73ROHUHhInc75to99.9kRnt<20pct | EX147: H73ROHUHhInc75to99.9kRnt20to25pct | EY147: MOE H73ROHUHhInc75to99.9kRnt20to25pct | EZ147: H73ROHUHhInc75to99.9kRnt25to30pct | FA147: MOE H73ROHUHhInc75to99.9kRnt25to30pct | FB147: H73ROHUHhInc75to99.9kRnt30to35pct | FC147: MOE H73ROHUHhInc75to99.9kRnt30to35pct | FD147: H73ROHUHhInc75to99.9kRnt35to39.9 | FE147: MOE H73ROHUHhInc75to99.9kRnt35to39.9 | FF147: H73ROHUHhInc75to99.9kRnt40to49.9 | FG147: MOE H73ROHUHhInc75to99.9kRnt40to49.9 | FH147: H73ROHUHhInc75to99.9kRnt>50pct | FI147: MOE H73ROHUHhInc75to99.9kRnt>50pct | FJ147: H73ROHUHhInc75to99.9kRntPctNC | FK147: MOE H73ROHUHhInc75to99.9kRntPctNC | FL147: H73ROHUHhInc>100k | FM147: MOE H73ROHUHhInc>100k | FN147: H73ROHUHhInc>100kRnt<20pct | FO147: MOE H73ROHUHhInc>100kRnt<20pct | FP147: H73ROHUHhInc>100kRnt20to25pct | FQ147: MOE H73ROHUHhInc>100kRnt20to25pct | FR147: H73ROHUHhInc>100kRnt25to30pct | FS147: MOE H73ROHUHhInc>100kRnt25to30pct | FT147: H73ROHUHhInc>100kRnt30to35pct | FU147: MOE H73ROHUHhInc>100kRnt30to35pct | FV147: H73ROHUHhInc>100kRnt35to39.9 | FW147: MOE H73ROHUHhInc>100kRnt35to39.9 | FX147: H73ROHUHhInc>100kRnt40to49.9 | FY147: MOE H73ROHUHhInc>100kRnt40to49.9 | FZ147: H73ROHUHhInc>100kRnt>50pct | GA147: MOE H73ROHUHhInc>100kRnt>50pct | GB147: H73ROHUHhInc>100kRntPctNC | GC147: MOE H73ROHUHhInc>100kRntPctNC
A148: =VLOOKUP(DropDownList!$A$19,CntyQuery!$A$53:$DN$64,A$1) -> Laconia | B148: 2899 | C148: 306 | D148: 2815 | E148: 306 | F148: 14 | G148: 24 | H148: 0 | I148: 18 | J148: 34 | K148: 31 | L148: 53 | M148: 40 | N148: 44 | O148: 37 | P148: 111 | Q148: 117 | R148: 50 | S148: 43 | T148: 56 | U148: 42 | V148: 73 | W148: 73 | X148: 30 | Y148: 36 | Z148: 120 | AA148: 80 | AB148: 165 | AC148: 112 | AD148: 146 | AE148: 122 | AF148: 157 | AG148: 78 | AH148: 194 | AI148: 99 | AJ148: 477 | AK148: 176 | AL148: 317 | AM148: 174 | AN148: 498 | AO148: 153 | AP148: 200 | AQ148: 90 | AR148: 61 | AS148: 43 | AT148: 15 | AU148: 16 | BB148: 84 | BC148: 62 | BD148: 834 | BE148: 41 | BF148: 2899 | BG148: 306 | BH148: 409 | BI148: 164 | BJ148: 14 | BK148: 24 | BL148: 0 | BM148: 18 | BN148: 10 | BO148: 16 | BP148: 7 | BQ148: 12 | BR148: 299 | BS148: 148 | BX148: 79 | BY148: 65 | BZ148: 617 | CA148: 165 | CB148: 22 | CC148: 25 | CD148: 33 | CE148: 33 | CF148: 29 | CG148: 29 | CH148: 49 | CI148: 34 | CJ148: 454 | CK148: 161 | CP148: 30 | CQ148: 28 | CR148: 542 | CS148: 159 | CT148: 44 | CU148: 35 | CV148: 18 | CW148: 17 | CX148: 134 | CY148: 103 | CZ148: 70 | DA148: 60 | DB148: 255 | DC148: 106 | DH148: 21 | DI148: 24 | DJ148: 668 | DK148: 194 | DL148: 189 | DM148: 142 | DN148: 196 | DO148: 95 | DP148: 175 | DQ148: 102 | DR148: 23 | DS148: 29 | DT148: 85 | DU148: 58 | DZ148: 0 | EA148: 18 | EB148: 430 | EC148: 179 | ED148: 271 | EE148: 158 | EF148: 48 | EG148: 50 | EH148: 100 | EI148: 70 | EJ148: 0 | EK148: 18 | EL148: 11 | EM148: 17 | ER148: 0 | ES148: 18 | ET148: 51 | EU148: 40 | EV148: 23 | EW148: 25 | EX148: 13 | EY148: 25 | EZ148: 15 | FA148: 16 | FB148: 0 | FC148: 18 | FD148: 0 | FE148: 18 | FJ148: 0 | FK148: 18 | FL148: 182 | FM148: 92 | FN148: 182 | FO148: 92 | FP148: 0 | FQ148: 18 | FR148: 0 | FS148: 18 | FT148: 0 | FU148: 18 | FV148: 0 | FW148: 18
A154: Occupied Rental Housing Cost Burdern All Incomes
A155: NAME | B155: RenterOccHsU | C155: ="MOE "&B155 -> MOE RenterOccHsU | D155: GRnt<20PctHHInc | E155: ="MOE "&D155 -> MOE GRnt<20PctHHInc | F155: GRnt20to249PctHHInc | G155: ="MOE "&F155 -> MOE GRnt20to249PctHHInc | H155: GRnt25to29.9PctHHInc | I155: ="MOE "&H155 -> MOE GRnt25to29.9PctHHInc | J155: GRnt<30PctHHInc | K155: ="MOE "&J155 -> MOE GRnt<30PctHHInc | L155: GRnt>30PctHHInc | M155: ="MOE "&L155 -> MOE GRnt>30PctHHInc | N155: GRnt30to349PctHHInc | O155: ="MOE "&N155 -> MOE GRnt30to349PctHHInc | P155: GRnt<35PctHHInc | Q155: ="MOE "&P155 -> MOE GRnt<35PctHHInc | R155: GRnt>35PctHHInc | S155: ="MOE "&R155 -> MOE GRnt>35PctHHInc | T155: GRnt>50PctHHInc | U155: ="MOE "&T155 -> MOE GRnt>50PctHHInc | V155: HCB Not Calculated | W155: ="MOE "&V155 -> MOE HCB Not Calculated
A156: =VLOOKUP(DropDownList!$A$19,CntyQuery!$A$53:$DN$64,A$1) -> Laconia | B156: 2899 | C156: 306 | D156: 745 | E156: 218.3826916 | F156: 308 | G156: 113 | H156: 463 | I156: 173 | J156: 1516 | K156: 300.6476343 | L156: 1253 | M156: 252.0297601 | N156: 149 | O156: 73 | P156: 1665 | Q156: 309.3832575 | R156: 1104 | S156: 241.2260351 | T156: 716 | U156: 195 | V156: 130 | W156: 74
A158: Income By Household Type and Tenure
A159: NAME | B159: TotalFamilyHouseholds | C159: ="MOE "&B159 -> MOE TotalFamilyHouseholds | D159: FamInc<10K | E159: ="MOE "&D159 -> MOE FamInc<10K | F159: FamInc10to15K | G159: ="MOE "&F159 -> MOE FamInc10to15K | H159: FamInc15to20K | I159: ="MOE "&H159 -> MOE FamInc15to20K | J159: FamInc20to25K | K159: ="MOE "&J159 -> MOE FamInc20to25K | L159: FamInc25to30K | M159: ="MOE "&L159 -> MOE FamInc25to30K | N159: FamInc30to35K | O159: ="MOE "&N159 -> MOE FamInc30to35K | P159: FamInc35to40K | Q159: ="MOE "&P159 -> MOE FamInc35to40K | R159: FamInc40to45K | S159: ="MOE "&R159 -> MOE FamInc40to45K | T159: FamInc45to50K | U159: ="MOE "&T159 -> MOE FamInc45to50K | V159: FamInc50to60K | W159: ="MOE "&V159 -> MOE FamInc50to60K | X159: FamInc60to75K | Y159: ="MOE "&X159 -> MOE FamInc60to75K | Z159: FamInc75to100K | AA159: ="MOE "&Z159 -> MOE FamInc75to100K | AB159: FamInc100to125K | AC159: ="MOE "&AB159 -> MOE FamInc100to125K | AD159: FamInc125to150K | AE159: ="MOE "&AD159 -> MOE FamInc125to150K | AF159: FamInc150to200K | AG159: ="MOE "&AF159 -> MOE FamInc150to200K | AH159: FamInc>200K | AI159: ="MOE "&AH159 -> MOE FamInc>200K | AJ159: MedFamInc | AK159: ="MOE "&AJ159 -> MOE MedFamInc | AL159: TotalNonNonFamilyHouseholds | AM159: ="MOE "&AL159 -> MOE TotalNonNonFamilyHouseholds | AN159: NonFamInc<10K | AO159: ="MOE "&AN159 -> MOE NonFamInc<10K | AP159: NonFamInc10to15K | AQ159: ="MOE "&AP159 -> MOE NonFamInc10to15K | AR159: NonFamInc15to20K | AS159: ="MOE "&AR159 -> MOE NonFamInc15to20K | AT159: NonFamInc20to25K | AU159: ="MOE "&AT159 -> MOE NonFamInc20to25K | AV159: NonFamInc25to30K | AW159: ="MOE "&AV159 -> MOE NonFamInc25to30K | AX159: NonFamInc30to35K | AY159: ="MOE "&AX159 -> MOE NonFamInc30to35K | AZ159: NonFamInc35to40K | BA159: ="MOE "&AZ159 -> MOE NonFamInc35to40K | BB159: NonFamInc40to45K | BC159: ="MOE "&BB159 -> MOE NonFamInc40to45K | BD159: NonFamInc45to50K | BE159: ="MOE "&BD159 -> MOE NonFamInc45to50K | BF159: NonFamInc50to60K | BG159: ="MOE "&BF159 -> MOE NonFamInc50to60K | BH159: NonFamInc60to75K | BI159: ="MOE "&BH159 -> MOE NonFamInc60to75K | BJ159: NonFamInc75to100K | BK159: ="MOE "&BJ159 -> MOE NonFamInc75to100K | BL159: NonFamInc100to125K | BM159: ="MOE "&BL159 -> MOE NonFamInc100to125K | BN159: NonFamInc125to150K | BO159: ="MOE "&BN159 -> MOE NonFamInc125to150K | BP159: NonFamInc150to200K | BQ159: ="MOE "&BP159 -> MOE NonFamInc150to200K | BR159: NonFamInc>200K | BS159: ="MOE "&BR159 -> MOE NonFamInc>200K | BT159: MedNonFamInc | BU159: ="MOE "&BT159 -> MOE MedNonFamInc
A160: =VLOOKUP(DropDownList!$A$19,CntyQuery!$A$53:$DN$64,A$1) -> Laconia | B160: 2758 | C160: 310 | D160: 329 | E160: 146 | F160: 352 | G160: 102 | H160: 307 | I160: 106 | J160: 244 | K160: 111 | L160: 210 | M160: 119 | N160: 187 | O160: 86 | P160: 204 | Q160: 99 | R160: 165 | S160: 64 | T160: 126 | U160: 81 | V160: 219 | W160: 97 | X160: 84 | Y160: 56 | Z160: 104 | AA160: 59 | AB160: 108 | AC160: 81 | AD160: 10 | AE160: 17 | AF160: 63 | AG160: 46 | AH160: 46 | AI160: 35 | AJ160: 28698 | AK160: 3547 | AL160: 2739 | AM160: 279 | AN160: 295 | AO160: 119 | AP160: 419 | AQ160: 138 | AR160: 232 | AS160: 90 | AT160: 227 | AU160: 99 | AV160: 233 | AW160: 131 | AX160: 173 | AY160: 72 | AZ160: 200 | BA160: 98 | BB160: 103 | BC160: 65 | BD160: 132 | BE160: 80 | BF160: 244 | BG160: 106 | BH160: 108 | BI160: 67 | BJ160: 154 | BK160: 64 | BL160: 121 | BM160: 89 | BN160: 23 | BO160: 29 | BP160: 35 | BQ160: 33 | BR160: 40 | BS160: 34 | BT160: 29422 | BU160: 2840

Sheet Updates
A2: Important Notes
A4: Date | C4: Task
A5: 2023-12-11 | C5: Updated 2018-2022 Amreican Community Survey Data. Updated CPI Adjustement Factor factor 1.19 for 2013-2017 and 1.27 for 2008-2012
A6: 2023-11-21 | C6: Updated 2022 Wage amd Employment Data
A7: 2023-10-12 | C7: Updated error on the Poverty Worksheet
A8: 2023-09-12 | C8: Updated 2008-2012 and 2013-2017 ACS Data; Added 10 Year Disability Comparison Worksheet
A9: 2023-01-25 | C9: Updated Permit Data and all appropriate charts.
A10: 2022-12-12 | C10: Updated with 2017-2021 ACS Data
A11: 2022-11-01 | C11: Updated NH Population Estimates through 2030
A12: 2022-09-14 | C12: Updated 2021 Annual Wage and Employment count for County
A13: 2022-10-05 | C13: Updated Employment and Wage Information for 2021
A14: 2022-03-21 | C14: Updated historical data 2016-2020 ACS Data
A15: 2022-03-14 | C15: Updated CPI Adjustement factor to adjust 2010 (1.19) and 2015 (1.09) dollars to 2020 dollars.
A16: 2022-02-16 | C16: Updated 2020 Permit Data
A17: 2021-09-09 | C17: Updated with 2020 Decennial Population data
A18: 2020-12-18 | C18: Updated 2015-2019 Amreican Community Survey Data and added 2019 NH Permit data.
A19: 2020-09-03 | C19: Updated historical data 2005-2009 and 2010-2014 ACS Data
A20: 2019-12-31 | C20: Updated Visual Basic Code changing the footer font from Gotham Medium to Verdana.
A21: 2019-12-20 | C21: Updated with 2014-2018 ACS Data. Updated 2018 Permit data. Updated CPI Adjustment Factor (1.02437673) to the 2009-2013 and 2014-2018 Income Comparison Table. This factor was provided by Census
A22: 2019-11-26 | C22: Updated the 2009-2013 ACS data for comparison purposes.
A23: 2019-09-17 | C23: Updated 2018 Annual Employment and Wage data; updated Housing and Employment worksheet.
A24: 2018-12-19 | C24: Updated 2017 Annual Employment and Wage data; updated Housing and Employment worksheet. Updated 2017 Permit data
A25: 2018-12-08 | C25: Updated the 2008-2012 ACS data for comparison purposes. Updated CPI Adjustment Factor (1.0676) to the 2008-2012 and 2013-2017 Income Comparison Table. This factor was provided by Census.
A26: 2018-12-06 | C26: Updated charts with 2013-2017 Data
A27: 2018-12-05 | C27: Updated labels in workbook to reflect 2013-2017 data set and 2008-2012 comparison data set. Updated footer text.
A28: 2018-08-09 | C28: Updated charts with new color scheme
A29: 2018-05-09 | C29: Reviewed that unemployment rate data does not need to updated. There are no cities or towns that needed this update. Only a select number of locations are updated with this data.
A30: 2017-12-18 | C30: Updated 2016 NH Permit Data
A31: 2017-12-08 | C31: Updated Charts with 2012-2016 data; updated code to reflect additional data points in various tables. Updated CPI Adjustment Factor (1.06686838) to the 2007-2011 and 2012-2016 Income Comparison Table. This factor was provided by Census.
A32: 2017-11-16 | C32: Updated the 2006-2010 ACS data for comparison purposes.
A33: 2017-05-15 | C33: Reviewed that unemployment rate data does not need to updated. There are no cities or towns that needed this update. Only a select number of locations are updated with this data.
A34: 2017-04-11 | C34: Updated Household Income by Tenure worksheet by adding the Household Income in the Past 12 Months by Percent of Median Threshold.
A35: 2017-01-04 | C35: Verified Charts; Added 2015 Permit Data; Updated Housing and Permit data
A36: 2017-12-28 | C36: Updated the 2007-2011 ACS data for comparison purposes.
A37: 2017-12-23 | C37: Updated Town Comparisons: Employment and Housing with 2015 data
A38: 2017-12-14 | C38: Updated 2012-2015 ACS data
A39: 2017-10-31 | C39: Updated Employment and Wage Information for 2015
A40: 2017-01-14 | C40: Fixed error in School Attainment worksheet - Graduate or Professional Degree data.
A41: 2017-01-07 | C41: Fixed formula in Poverty worksheet; fixed Non-Family Persons per Household data; fixed legend of Rental Cost Charts.
A42: 2015-12-23 | C42: Fixed Table ACS_B25074
A43: 2015-12-15 | C43: Updated Code to correct an error on the RentalHousingCost worksheet; updated column names on CntyDataLink.
A44: 2015-12-09 | C44: Updated 2010-2014 ACS data
A45: 2015-12-07 | C45: Updated Permit Data and all appropriate charts.
A46: 2015-12-03 | C46: Updated RentalHousingCost and OwnerCost worksheet to eliminate a printed page. Charts were moved and reduced in size. Updated the CPI Adjustment Factor (1.1034264) to the 2005-2009 and 2010-2014 Income Comparison Table.
A47: 2015-11-24 | C47: Updated Color scheme on charts and added correct logo to the charts
A48: 2015-10-05 | C48: Added Town Employment and Housing Comparison data. Added Visual basic code to automatically update footer. Visual basic code will run when Ctrl-j is selected.
A49: 2015-09-29 | C49: Updated Employment Information
A50: 2015-09-15 | C50: Updated RentalHousingCost worksheet to accommodate changes to Table B25074; updated charts to include prior 5 year estimate
A51: 2015-08-31 | C51: Updated Code to include Prior 5 year estimate. Added Statistically Significant worksheet.
A52: 2015-08-06 | C52: Corrected the Employment vs. Housing worksheet.
A53: 2015-03-17 | C53: Added Labor Force Data
A54: 2014-12-30 | C54: Corrected Rental Cost formula.
A55: 2014-12-17 | C55: Corrected and verified household pie charts. All Permit data and employment data has been updated through 2013.
A56: 2012-10-14 | C56: Reformatted the code in the worksheet and corrected an error in the Income Comparison Sheet
A57: 2010-12-21 | C57: Added Margin of Error information on all applicable ACS Sheets
A58: 2010-12-07 | C58: Created a calculated Table B19001 in anticipation for the 5 year data. Table C19001 will not be provided

Sheet CntyQuery (hidden)
A2: Census 1990 Data - Query Name: DPCnty90Census
A3: NAME | B3: FIPS | C3: COUSUBFP | D3: LandAcres | E3: WaterAcres | F3: HousingUnits90Cen | G3: Persons90Cen | H3: Families90Cen | I3: Households90cen | J3: MalePop90cen | K3: FemalePop90cen | L3: WhitePop | M3: BlackPop | N3: AmerIndianPop | O3: AsianPIPop | P3: OtherRacePop | Q3: HispanicOrPop | R3: AgeUnder15_90cen | S3: Age15to24_90cen | T3: Age25to34_90cen | U3: Age35to44_90cen | V3: Age45to54_90cen | W3: Age55to64_90cen | X3: Age65to74_90cen | Y3: Age75andOver_90cen | Z3: PersonsInHH90cen | AA3: PersonsInFamHH90cen | AB3: PersonsInGC | AC3: PersonsPerHH90cen | AD3: PersonsPerFam90Cen | AE3: SinglePersonHH90cen | AF3: MarriedCoupleHH90cen | AG3: SingleParentHH90cen | AH3: NonFamilyHH90cen | AI3: TotalHousingUnits | AJ3: OccupiedHousingUnits | AK3: VacantHousingUnits | AL3: OwnerOccHU | AM3: RenterOccHU | AN3: VacantForRent90 | AO3: VacantForSale90 | AP3: VacantSeasonalRec | AQ3: SingFamHU90cen | AR3: MultiFamHU90cen | AS3: MobileHom90cen | AT3: SingFamOwnHU90cen | AU3: MultiFamOwnHU90cen | AV3: MobileHomOwnHU90cen | AW3: SingFamRntrHU90cen | AX3: MultiFamRntrHU90cen | AY3: MobileHomRntrHU90cen | AZ3: HU<5yrs90cen | BA3: HU5to20yrs90cen | BB3: HU20to50yrs90cen | BC3: HU>50yrs90cen | BD3: Units0Bedroom90cen | BE3: Units1Bedroom90cen | BF3: Units2Bedroom90cen | BG3: Units3Bedroom90cen | BH3: Units4+Bedroom90cen | BI3: HI<5K | BJ3: HI5Kto10K | BK3: HI10Kto15K | BL3: HI15Kto25K | BM3: HI25Kto35K | BN3: HI35Kto50K | BO3: HI50Kto75K | BP3: HI75Kto100K | BQ3: HI>100K | BR3: MedHI | BS3: HH<25HI<5K | BT3: HH<25HI5Kto10K | BU3: HH<25HI10Kto15K | BV3: HH<25HI15Kto25K | BW3: HH<25HI25Kto35K | BX3: HH<25HI35Kto50K | BY3: HH<25HI50Kto75K | BZ3: HH<25HI75Kto100K | CA3: HH<25HI>100K | CB3: HH25to34HI<5K | CC3: HH25to34HI5Kto10K | CD3: HH25to34HI10Kto15K | CE3: HH25to34HI15Kto25K | CF3: HH25to34HI25Kto35K | CG3: HH25to34HI35Kto50K | CH3: HH25to34HI50Kto75K | CI3: HH25to34HI75Kto100K | CJ3: HH25to34HI>100K | CK3: HH35to44HI<5K | CL3: HH35to44HI5Kto10K | CM3: HH35to44HI10Kto15K | CN3: HH35to44HI15Kto25K | CO3: HH35to44HI25Kto35K | CP3: HH35to44HI35Kto50K | CQ3: HH35to44HI50Kto75K | CR3: HH35to44HI75Kto100K | CS3: HH35to44HI>100K | CT3: HH45to54HI<5K | CU3: HH45to54HI5Kto10K | CV3: HH45to54HI10Kto15K | CW3: HH45to54HI15Kto25K | CX3: HH45to54HI25Kto35K | CY3: HH45to54HI35Kto50K | CZ3: HH45to54HI50Kto75K | DA3: HH45to54HI75Kto100K | DB3: HH45to54HI>100K | DC3: HH55to64HI<5K | DD3: HH55to64HI5Kto10K | DE3: HH55to64HI10Kto15K | DF3: HH55to64HI15Kto25K | DG3: HH55to64HI25Kto35K | DH3: HH55to64HI35Kto50K | DI3: HH55to64HI50Kto75K | DJ3: HH55to64HI75Kto100K | DK3: HH55to64HI>100K | DL3: HH65to74HI<5K | DM3: HH65to74HI5Kto10K | DN3: HH65to74HI10Kto15K | DO3: HH65to74HI15Kto25K | DP3: HH65to74HI25Kto35K | DQ3: HH65to74HI35Kto50K | DR3: HH65to74HI50Kto75K | DS3: HH65to74HI75Kto100K | DT3: HH65to74HI>100K | DU3: HH>75HI<5K | DV3: HH>75HI5Kto10K | DW3: HH>75HI10Kto15K | DX3: HH>75HI15Kto25K | DY3: HH>75HI25Kto35K | DZ3: HH>75HI35Kto50K | EA3: HH>75HI50Kto75K | EB3: HH>75HI75Kto100K | EC3: HH>75HI>100K | ED3: SchoolEnrollment1thru12 | EE3: Pop25andOver | EF3: HSGradorHigher | EG3: CollGradorHigher | EH3: NativePop | EI3: ForeignBornPop | EJ3: BornStateOfRes | EK3: NativePop2 | EL3: ForeignBornPop2 | EM3: DroveAlone | EN3: CarPooled | EO3: PublicTranspt | EP3: Walked | EQ3: OtherMeans | ER3: WorkedAtHome | ES3: HHInc<10K | ET3: HHInc10to15K | EU3: HHInc15to25K | EV3: HHInc25to35K | EW3: HHInc35to50K | EX3: HHInc50to75K | EY3: HHInc75to100K | EZ3: HHInc100to150K | FA3: HHInc>150K | FB3: YearStBlt89to90 | FC3: YearStBlt85to88 | FD3: YearStBlt80to84 | FE3: YearStBlt70to79 | FF3: YearStBlt60to69 | FG3: YearStBlt50to59 | FH3: YearStBlt40to49 | FI3: YearStBlt39earlier | FJ3: PlaceTownIDNumber
A4: CountyName | B4: Cnty_Code | C4: Census_Cnty_Code | D4: LandAcres | E4: WaterAcres | F4: HousingUnits90Cen | G4: Persons90Cen | H4: Families90Cen | I4: Households90cen | J4: MalePop90cen | K4: FemalePop90cen | L4: WhitePop | M4: BlackPop | N4: AmerIndianPop | O4: AsianPIPop | P4: OtherRacePop | Q4: HispanicOrPop | R4: AgeUnder15_90cen | S4: Age15to24_90cen | T4: Age25to34_90cen | U4: Age35to44_90cen | V4: Age45to54_90cen | W4: Age55to64_90cen | X4: Age65to74_90cen | Y4: Age75andOver_90cen | Z4: PersonsInHH90cen | AA4: PersonsInFamHH90cen | AB4: PersonsInGC | AC4: PersonsPerHH90cen | AD4: PersonsPerFam90Cen | AE4: SinglePersonHH90cen | AF4: MarriedCoupleHH90cen | AG4: SingleParentHH90cen | AH4: NonFamilyHH90cen | AI4: TotalHousingUnits | AJ4: OccupiedHousingUnits | AK4: VacantHousingUnits | AL4: OwnerOccHU | AM4: RenterOccHU | AN4: VacantForRent90 | AO4: VacantForSale90 | AP4: VacantSeasonalRec | AQ4: SingFamHU90cen | AR4: MultiFamHU90cen | AS4: MobileHom90cen | AT4: SingFamOwnHU90cen | AU4: MultiFamOwnHU90cen | AV4: MobileHomOwnHU90cen | AW4: SingFamRntrHU90cen | AX4: MultiFamRntrHU90cen | AY4: MobileHomRntrHU90cen | AZ4: HU<5yrs90cen | BA4: HU5to20yrs90cen | BB4: HU20to50yrs90cen | BC4: HU>50yrs90cen | BD4: Units0Bedroom90cen | BE4: Units1Bedroom90cen | BF4: Units2Bedroom90cen | BG4: Units3Bedroom90cen | BH4: Units4+Bedroom90cen | BI4: HI<5K | BJ4: HI5Kto10K | BK4: HI10Kto15K | BL4: HI15Kto25K | BM4: HI25Kto35K | BN4: HI35Kto50K | BO4: HI50Kto75K | BP4: HI75Kto100K | BQ4: HI>100K | BR4: MedHI | BS4: HH<25HI<5K | BT4: HH<25HI5Kto10K | BU4: HH<25HI10Kto15K | BV4: HH<25HI15Kto25K | BW4: HH<25HI25Kto35K | BX4: HH<25HI35Kto50K | BY4: HH<25HI50Kto75K | BZ4: HH<25HI75Kto100K | CA4: HH<25HI>100K | CB4: HH25to34HI<5K | CC4: HH25to34HI5Kto10K | CD4: HH25to34HI10Kto15K | CE4: HH25to34HI15Kto25K | CF4: HH25to34HI25Kto35K | CG4: HH25to34HI35Kto50K | CH4: HH25to34HI50Kto75K | CI4: HH25to34HI75Kto100K | CJ4: HH25to34HI>100K | CK4: HH35to44HI<5K | CL4: HH35to44HI5Kto10K | CM4: HH35to44HI10Kto15K | CN4: HH35to44HI15Kto25K | CO4: HH35to44HI25Kto35K | CP4: HH35to44HI35Kto50K | CQ4: HH35to44HI50Kto75K | CR4: HH35to44HI75Kto100K | CS4: HH35to44HI>100K | CT4: HH45to54HI<5K | CU4: HH45to54HI5Kto10K | CV4: HH45to54HI10Kto15K | CW4: HH45to54HI15Kto25K | CX4: HH45to54HI25Kto35K | CY4: HH45to54HI35Kto50K | CZ4: HH45to54HI50Kto75K | DA4: HH45to54HI75Kto100K | DB4: HH45to54HI>100K | DC4: HH55to64HI<5K | DD4: HH55to64HI5Kto10K | DE4: HH55to64HI10Kto15K | DF4: HH55to64HI15Kto25K | DG4: HH55to64HI25Kto35K | DH4: HH55to64HI35Kto50K | DI4: HH55to64HI50Kto75K | DJ4: HH55to64HI75Kto100K | DK4: HH55to64HI>100K | DL4: HH65to74HI<5K | DM4: HH65to74HI5Kto10K | DN4: HH65to74HI10Kto15K | DO4: HH65to74HI15Kto25K | DP4: HH65to74HI25Kto35K | DQ4: HH65to74HI35Kto50K | DR4: HH65to74HI50Kto75K | DS4: HH65to74HI75Kto100K | DT4: HH65to74HI>100K | DU4: HH>75HI<5K | DV4: HH>75HI5Kto10K | DW4: HH>75HI10Kto15K | DX4: HH>75HI15Kto25K | DY4: HH>75HI25Kto35K | DZ4: HH>75HI35Kto50K | EA4: HH>75HI50Kto75K | EB4: HH>75HI75Kto100K | EC4: HH>75HI>100K | ED4: SchoolEnrollment1thru12 | EE4: Pop25andOver | EF4: HSGradorHigher | EG4: CollGradorHigher | EH4: NativePop | EI4: ForeignBornPop | EJ4: BornStateOfRes | EK4: NativePop2 | EL4: ForeignBornPop2 | EM4: DroveAlone | EN4: CarPooled | EO4: PublicTranspt | EP4: Walked | EQ4: OtherMeans | ER4: WorkedAtHome | ES4: HHInc<10K | ET4: HHInc10to15K | EU4: HHInc15to25K | EV4: HHInc25to35K | EW4: HHInc35to50K | EX4: HHInc50to75K | EY4: HHInc75to100K | EZ4: HHInc100to150K | FA4: HHInc>150K
A5: Alton | B5: 1005 | C5: 01060 | D5: 40906.19 | E5: 12324.31 | F5: 3267 | G5: 3286 | H5: 938 | I5: 1262 | J5: 1667 | K5: 1619 | L5: 3274 | M5: 2 | N5: 5 | O5: 4 | P5: 1 | Q5: 14 | R5: 661 | S5: 367 | T5: 461 | U5: 538 | V5: 356 | W5: 389 | X5: 324 | Y5: 190 | Z5: 3258 | AA5: 2869 | AB5: 28 | AC5: 2.581616482 | AD5: 3.058635394 | AE5: 268 | AF5: 826 | AG5: 112 | AH5: 56 | AI5: 3267 | AJ5: 1262 | AK5: 2005 | AL5: 984 | AM5: 278 | AN5: 25 | AO5: 56 | AP5: 1834 | AQ5: 2769 | AR5: 179 | AS5: 319 | AT5: 851 | AU5: 26 | AV5: 319 | AW5: 131 | AX5: 115 | AY5: 32 | AZ5: 682 | BA5: 1064 | BB5: 579 | BC5: 942 | BD5: 12 | BE5: 107 | BF5: 1297 | BG5: 1231 | BH5: 620 | BI5: 43 | BJ5: 89 | BK5: 88 | BL5: 254 | BM5: 269 | BN5: 290 | BO5: 148 | BP5: 35 | BQ5: 45 | BR5: 31033 | BS5: 0 | BT5: 0 | BU5: 0 | BV5: 7 | BW5: 0 | BX5: 0 | BY5: 0 | BZ5: 9 | CA5: 0 | CB5: 11 | CC5: 17 | CD5: 8 | CE5: 24 | CF5: 107 | CG5: 38 | CH5: 49 | CI5: 0 | CJ5: 0 | CK5: 0 | CL5: 0 | CM5: 18 | CN5: 37 | CO5: 66 | CP5: 87 | CQ5: 41 | CR5: 13 | CS5: 0 | CT5: 0 | CU5: 6 | CV5: 0 | CW5: 26 | CX5: 41 | CY5: 47 | CZ5: 24 | DA5: 7 | DB5: 18 | DC5: 0 | DD5: 7 | DE5: 22 | DF5: 30 | DG5: 36 | DH5: 95 | DI5: 19 | DJ5: 0 | DK5: 19 | DL5: 6 | DM5: 16 | DN5: 10 | DO5: 113 | DP5: 19 | DQ5: 23 | DR5: 15 | DS5: 0 | DT5: 8 | DU5: 26 | DV5: 43 | DW5: 30 | DX5: 17 | DY5: 0 | DZ5: 0 | EA5: 0 | EB5: 6 | EC5: 0 | ED5: 600 | EE5: 2345 | EF5: 1997 | EG5: 425 | EH5: 3251 | EI5: 35 | EJ5: 1486 | EK5: 3251 | EL5: 35 | EM5: 1248 | EN5: 108 | EO5: 6 | EP5: 76 | EQ5: 6 | ER5: 54 | ES5: 132 | ET5: 88 | EU5: 254 | EV5: 269 | EW5: 290 | EX5: 148 | EY5: 35 | EZ5: 27 | FA5: 18 | FB5: 132 | FC5: 550 | FD5: 456 | FE5: 608 | FF5: 220 | FG5: 192 | FH5: 167 | FI5: 942 | FJ5: 101
A6: Barnstead | B6: 1010 | C6: 03220 | D6: 27483.81 | E6: 1274.82 | F6: 1861 | G6: 3100 | H6: 851 | I6: 1096 | J6: 1551 | K6: 1549 | L6: 3081 | M6: 9 | N6: 4 | O6: 6 | P6: 0 | Q6: 17 | R6: 737 | S6: 376 | T6: 589 | U6: 541 | V6: 332 | W6: 224 | X6: 204 | Y6: 97 | Z6: 3100 | AA6: 2755 | AB6: 0 | AC6: 2.828467153 | AD6: 3.237367803 | AE6: 162 | AF6: 742 | AG6: 109 | AH6: 83 | AI6: 1861 | AJ6: 1096 | AK6: 765 | AL6: 934 | AM6: 162 | AN6: 15 | AO6: 13 | AP6: 679 | AQ6: 1672 | AR6: 74 | AS6: 115 | AT6: 859 | AU6: 21 | AV6: 115 | AW6: 108 | AX6: 38 | AY6: 16 | AZ6: 383 | BA6: 695 | BB6: 287 | BC6: 490 | BD6: 16 | BE6: 77 | BF6: 719 | BG6: 785 | BH6: 258 | BI6: 44 | BJ6: 39 | BK6: 99 | BL6: 269 | BM6: 188 | BN6: 290 | BO6: 208 | BP6: 26 | BQ6: 18 | BR6: 32063 | BS6: 0 | BT6: 0 | BU6: 0 | BV6: 6 | BW6: 6 | BX6: 27 | BY6: 0 | BZ6: 0 | CA6: 0 | CB6: 0 | CC6: 11 | CD6: 7 | CE6: 64 | CF6: 7 | CG6: 135 | CH6: 50 | CI6: 8 | CJ6: 0 | CK6: 17 | CL6: 7 | CM6: 13 | CN6: 37 | CO6: 110 | CP6: 50 | CQ6: 57 | CR6: 18 | CS6: 0 | CT6: 0 | CU6: 0 | CV6: 0 | CW6: 34 | CX6: 39 | CY6: 28 | CZ6: 59 | DA6: 0 | DB6: 18 | DC6: 17 | DD6: 0 | DE6: 8 | DF6: 55 | DG6: 16 | DH6: 31 | DI6: 42 | DJ6: 0 | DK6: 0 | DL6: 0 | DM6: 0 | DN6: 38 | DO6: 46 | DP6: 10 | DQ6: 7 | DR6: 0 | DS6: 0 | DT6: 0 | DU6: 10 | DV6: 21 | DW6: 33 | DX6: 27 | DY6: 0 | DZ6: 12 | EA6: 0 | EB6: 0 | EC6: 0 | ED6: 379 | EE6: 2074 | EF6: 1739 | EG6: 514 | EH6: 2958 | EI6: 76 | EJ6: 1529 | EK6: 2958 | EL6: 76 | EM6: 1342 | EN6: 146 | EO6: 0 | EP6: 0 | EQ6: 0 | ER6: 122 | ES6: 83 | ET6: 99 | EU6: 269 | EV6: 188 | EW6: 290 | EX6: 208 | EY6: 26 | EZ6: 18 | FA6: 0 | FB6: 77 | FC6: 306 | FD6: 168 | FE6: 527 | FF6: 237 | FG6: 37 | FH6: 13 | FI6: 490 | FJ6: 102
A7: Belmont | B7: 1015 | C7: 04740 | D7: 19293.73 | E7: 1133.73 | F7: 2869 | G7: 5796 | H7: 1580 | I7: 2146 | J7: 2871 | K7: 2925 | L7: 5738 | M7: 10 | N7: 29 | O7: 18 | P7: 1 | Q7: 24 | R7: 1396 | S7: 683 | T7: 1157 | U7: 1022 | V7: 539 | W7: 446 | X7: 361 | Y7: 192 | Z7: 5784 | AA7: 5038 | AB7: 12 | AC7: 2.695246971 | AD7: 3.188607595 | AE7: 413 | AF7: 1311 | AG7: 269 | AH7: 153 | AI7: 2869 | AJ7: 2146 | AK7: 723 | AL7: 1675 | AM7: 471 | AN7: 77 | AO7: 65 | AP7: 525 | AQ7: 1635 | AR7: 441 | AS7: 793 | AT7: 1142 | AU7: 60 | AV7: 793 | AW7: 105 | AX7: 296 | AY7: 70 | AZ7: 828 | BA7: 1280 | BB7: 393 | BC7: 368 | BD7: 6 | BE7: 254 | BF7: 1218 | BG7: 1151 | BH7: 240 | BI7: 62 | BJ7: 143 | BK7: 149 | BL7: 369 | BM7: 359 | BN7: 629 | BO7: 374 | BP7: 53 | BQ7: 24 | BR7: 34972 | BS7: 7 | BT7: 16 | BU7: 10 | BV7: 27 | BW7: 0 | BX7: 35 | BY7: 11 | BZ7: 0 | CA7: 0 | CB7: 0 | CC7: 30 | CD7: 21 | CE7: 125 | CF7: 113 | CG7: 165 | CH7: 109 | CI7: 0 | CJ7: 0 | CK7: 0 | CL7: 0 | CM7: 22 | CN7: 46 | CO7: 138 | CP7: 214 | CQ7: 143 | CR7: 38 | CS7: 0 | CT7: 9 | CU7: 0 | CV7: 9 | CW7: 56 | CX7: 30 | CY7: 95 | CZ7: 68 | DA7: 5 | DB7: 24 | DC7: 9 | DD7: 42 | DE7: 4 | DF7: 40 | DG7: 34 | DH7: 77 | DI7: 43 | DJ7: 10 | DK7: 0 | DL7: 12 | DM7: 6 | DN7: 39 | DO7: 48 | DP7: 44 | DQ7: 30 | DR7: 0 | DS7: 0 | DT7: 0 | DU7: 25 | DV7: 49 | DW7: 44 | DX7: 27 | DY7: 0 | DZ7: 13 | EA7: 0 | EB7: 0 | EC7: 0 | ED7: 1042 | EE7: 3717 | EF7: 2925 | EG7: 612 | EH7: 5704 | EI7: 92 | EJ7: 3527 | EK7: 5704 | EL7: 92 | EM7: 2219 | EN7: 574 | EO7: 0 | EP7: 47 | EQ7: 52 | ER7: 69 | ES7: 205 | ET7: 149 | EU7: 369 | EV7: 359 | EW7: 629 | EX7: 374 | EY7: 53 | EZ7: 14 | FA7: 10 | FB7: 55 | FC7: 773 | FD7: 602 | FE7: 678 | FF7: 223 | FG7: 135 | FH7: 35 | FI7: 368 | FJ7: 103
A8: Center Harbor | B8: 1020 | C8: 10660 | D8: 8532.56 | E8: 1861.86 | F8: 649 | G8: 996 | H8: 285 | I8: 377 | J8: 471 | K8: 525 | L8: 990 | M8: 3 | N8: 0 | O8: 3 | P8: 0 | Q8: 3 | R8: 202 | S8: 109 | T8: 142 | U8: 173 | V8: 113 | W8: 101 | X8: 103 | Y8: 53 | Z8: 996 | AA8: 873 | AB8: 0 | AC8: 2.641909814 | AD8: 3.063157895 | AE8: 69 | AF8: 250 | AG8: 35 | AH8: 23 | AI8: 649 | AJ8: 377 | AK8: 272 | AL8: 318 | AM8: 59 | AN8: 7 | AO8: 8 | AP8: 239 | AQ8: 527 | AR8: 38 | AS8: 84 | AT8: 282 | AU8: 10 | AV8: 84 | AW8: 31 | AX8: 17 | AY8: 11 | AZ8: 115 | BA8: 189 | BB8: 146 | BC8: 199 | BD8: 5 | BE8: 74 | BF8: 145 | BG8: 312 | BH8: 113 | BI8: 5 | BJ8: 20 | BK8: 36 | BL8: 50 | BM8: 70 | BN8: 84 | BO8: 70 | BP8: 10 | BQ8: 25 | BR8: 35435 | BS8: 0 | BT8: 0 | BU8: 0 | BV8: 4 | BW8: 0 | BX8: 2 | BY8: 1 | BZ8: 0 | CA8: 2 | CB8: 0 | CC8: 0 | CD8: 2 | CE8: 13 | CF8: 21 | CG8: 17 | CH8: 7 | CI8: 0 | CJ8: 0 | CK8: 0 | CL8: 0 | CM8: 0 | CN8: 12 | CO8: 23 | CP8: 25 | CQ8: 22 | CR8: 2 | CS8: 8 | CT8: 0 | CU8: 2 | CV8: 2 | CW8: 0 | CX8: 8 | CY8: 17 | CZ8: 15 | DA8: 3 | DB8: 6 | DC8: 3 | DD8: 5 | DE8: 5 | DF8: 11 | DG8: 9 | DH8: 10 | DI8: 16 | DJ8: 0 | DK8: 4 | DL8: 0 | DM8: 7 | DN8: 12 | DO8: 9 | DP8: 7 | DQ8: 11 | DR8: 5 | DS8: 5 | DT8: 5 | DU8: 2 | DV8: 6 | DW8: 15 | DX8: 1 | DY8: 2 | DZ8: 2 | EA8: 4 | EB8: 0 | EC8: 0 | ED8: 188 | EE8: 687 | EF8: 626 | EG8: 206 | EH8: 980 | EI8: 16 | EJ8: 410 | EK8: 980 | EL8: 16 | EM8: 381 | EN8: 32 | EO8: 0 | EP8: 16 | EQ8: 11 | ER8: 43 | ES8: 25 | ET8: 36 | EU8: 50 | EV8: 70 | EW8: 84 | EX8: 70 | EY8: 10 | EZ8: 16 | FA8: 9 | FB8: 19 | FC8: 96 | FD8: 55 | FE8: 134 | FF8: 115 | FG8: 29 | FH8: 2 | FI8: 199 | FJ8: 104
A9: Gilford | B9: 1025 | C9: 28740 | D9: 24826.75 | E9: 9416.9 | F9: 4397 | G9: 5867 | H9: 1701 | I9: 2298 | J9: 2891 | K9: 2976 | L9: 5830 | M9: 2 | N9: 8 | O9: 26 | P9: 1 | Q9: 29 | R9: 1169 | S9: 632 | T9: 776 | U9: 1066 | V9: 741 | W9: 654 | X9: 547 | Y9: 282 | Z9: 5867 | AA9: 5123 | AB9: 0 | AC9: 2.553089643 | AD9: 3.01175779 | AE9: 467 | AF9: 1487 | AG9: 214 | AH9: 130 | AI9: 4397 | AJ9: 2298 | AK9: 2099 | AL9: 1854 | AM9: 444 | AN9: 134 | AO9: 60 | AP9: 1833 | AQ9: 3076 | AR9: 702 | AS9: 619 | AT9: 1460 | AU9: 63 | AV9: 619 | AW9: 205 | AX9: 192 | AY9: 47 | AZ9: 1162 | BA9: 1898 | BB9: 864 | BC9: 473 | BD9: 34 | BE9: 379 | BF9: 1214 | BG9: 2191 | BH9: 579 | BI9: 67 | BJ9: 163 | BK9: 124 | BL9: 382 | BM9: 315 | BN9: 542 | BO9: 525 | BP9: 103 | BQ9: 94 | BR9: 37048 | BS9: 0 | BT9: 30 | BU9: 7 | BV9: 0 | BW9: 25 | BX9: 11 | BY9: 13 | BZ9: 0 | CA9: 0 | CB9: 24 | CC9: 0 | CD9: 13 | CE9: 55 | CF9: 85 | CG9: 87 | CH9: 57 | CI9: 11 | CJ9: 9 | CK9: 0 | CL9: 0 | CM9: 20 | CN9: 75 | CO9: 80 | CP9: 193 | CQ9: 186 | CR9: 27 | CS9: 6 | CT9: 7 | CU9: 10 | CV9: 23 | CW9: 63 | CX9: 26 | CY9: 52 | CZ9: 139 | DA9: 41 | DB9: 44 | DC9: 14 | DD9: 41 | DE9: 14 | DF9: 52 | DG9: 32 | DH9: 88 | DI9: 85 | DJ9: 14 | DK9: 26 | DL9: 7 | DM9: 37 | DN9: 11 | DO9: 81 | DP9: 61 | DQ9: 93 | DR9: 25 | DS9: 10 | DT9: 9 | DU9: 15 | DV9: 45 | DW9: 36 | DX9: 56 | DY9: 6 | DZ9: 18 | EA9: 20 | EB9: 0 | EC9: 0 | ED9: 1057 | EE9: 4066 | EF9: 3485 | EG9: 1176 | EH9: 5750 | EI9: 117 | EJ9: 2870 | EK9: 5750 | EL9: 117 | EM9: 2508 | EN9: 263 | EO9: 0 | EP9: 76 | EQ9: 8 | ER9: 162 | ES9: 230 | ET9: 124 | EU9: 382 | EV9: 315 | EW9: 542 | EX9: 525 | EY9: 103 | EZ9: 49 | FA9: 45 | FB9: 103 | FC9: 1059 | FD9: 672 | FE9: 1226 | FF9: 448 | FG9: 182 | FH9: 234 | FI9: 473 | FJ9: 105
A10: Gilmanton | B10: 1030 | C10: 28980 | D10: 36891.37 | E10: 1235.77 | F10: 1744 | G10: 2609 | H10: 748 | I10: 914 | J10: 1328 | K10: 1281 | L10: 2597 | M10: 6 | N10: 2 | O10: 4 | P10: 0 | Q10: 7 | R10: 627 | S10: 269 | T10: 497 | U10: 482 | V10: 244 | W10: 216 | X10: 176 | Y10: 98 | Z10: 2609 | AA10: 2392 | AB10: 0 | AC10: 2.854485777 | AD10: 3.197860963 | AE10: 120 | AF10: 667 | AG10: 81 | AH10: 46 | AI10: 1744 | AJ10: 914 | AK10: 830 | AL10: 828 | AM10: 86 | AN10: 7 | AO10: 26 | AP10: 752 | AQ10: 1618 | AR10: 49 | AS10: 77 | AT10: 779 | AU10: 17 | AV10: 77 | AW10: 63 | AX10: 20 | AY10: 3 | AZ10: 366 | BA10: 717 | BB10: 259 | BC10: 432 | BD10: 7 | BE10: 129 | BF10: 648 | BG10: 716 | BH10: 274 | BI10: 13 | BJ10: 56 | BK10: 16 | BL10: 97 | BM10: 243 | BN10: 204 | BO10: 158 | BP10: 62 | BQ10: 39 | BR10: 36397 | BS10: 0 | BT10: 0 | BU10: 0 | BV10: 0 | BW10: 0 | BX10: 5 | BY10: 0 | BZ10: 0 | CA10: 0 | CB10: 0 | CC10: 0 | CD10: 4 | CE10: 21 | CF10: 88 | CG10: 62 | CH10: 53 | CI10: 15 | CJ10: 12 | CK10: 0 | CL10: 9 | CM10: 0 | CN10: 36 | CO10: 63 | CP10: 72 | CQ10: 58 | CR10: 16 | CS10: 21 | CT10: 0 | CU10: 10 | CV10: 0 | CW10: 0 | CX10: 22 | CY10: 28 | CZ10: 21 | DA10: 31 | DB10: 6 | DC10: 0 | DD10: 6 | DE10: 8 | DF10: 12 | DG10: 35 | DH10: 27 | DI10: 16 | DJ10: 0 | DK10: 0 | DL10: 0 | DM10: 19 | DN10: 0 | DO10: 0 | DP10: 28 | DQ10: 10 | DR10: 10 | DS10: 0 | DT10: 0 | DU10: 13 | DV10: 12 | DW10: 4 | DX10: 28 | DY10: 7 | DZ10: 0 | EA10: 0 | EB10: 0 | EC10: 0 | ED10: 552 | EE10: 1751 | EF10: 1470 | EG10: 369 | EH10: 2661 | EI10: 30 | EJ10: 1556 | EK10: 2661 | EL10: 30 | EM10: 1014 | EN10: 277 | EO10: 0 | EP10: 11 | EQ10: 0 | ER10: 18 | ES10: 69 | ET10: 16 | EU10: 97 | EV10: 243 | EW10: 204 | EX10: 158 | EY10: 62 | EZ10: 26 | FA10: 13 | FB10: 81 | FC10: 285 | FD10: 259 | FE10: 458 | FF10: 31 | FG10: 210 | FH10: 18 | FI10: 432 | FJ10: 106
A11: Laconia | B11: 1035 | C11: 40180 | D11: 12860.61 | E11: 3851.61 | F11: 8201 | G11: 15743 | H11: 4032 | I11: 6176 | J11: 7452 | K11: 8291 | L11: 15539 | M11: 20 | N11: 35 | O11: 122 | P11: 27 | Q11: 98 | R11: 3423 | S11: 2064 | T11: 2537 | U11: 2365 | V11: 1575 | W11: 1368 | X11: 1290 | Y11: 1121 | Z11: 15312 | AA11: 12623 | AB11: 431 | AC11: 2.479274611 | AD11: 3.130704365 | AE11: 1721 | AF11: 3144 | AG11: 888 | AH11: 423 | AI11: 8201 | AJ11: 6176 | AK11: 2025 | AL11: 3494 | AM11: 2682 | AN11: 469 | AO11: 148 | AP11: 1216 | AQ11: 3948 | AR11: 4090 | AS11: 163 | AT11: 2854 | AU11: 564 | AV11: 163 | AW11: 298 | AX11: 2327 | AY11: 57 | AZ11: 1092 | BA11: 1898 | BB11: 1895 | BC11: 3316 | BD11: 131 | BE11: 1341 | BF11: 2580 | BG11: 2983 | BH11: 1166 | BI11: 215 | BJ11: 555 | BK11: 589 | BL11: 1257 | BM11: 1013 | BN11: 1051 | BO11: 1042 | BP11: 194 | BQ11: 247 | BR11: 29116 | BS11: 29 | BT11: 32 | BU11: 57 | BV11: 116 | BW11: 66 | BX11: 29 | BY11: 17 | BZ11: 0 | CA11: 0 | CB11: 38 | CC11: 74 | CD11: 78 | CE11: 270 | CF11: 298 | CG11: 237 | CH11: 180 | CI11: 33 | CJ11: 20 | CK11: 14 | CL11: 39 | CM11: 61 | CN11: 260 | CO11: 203 | CP11: 284 | CQ11: 365 | CR11: 42 | CS11: 86 | CT11: 10 | CU11: 18 | CV11: 54 | CW11: 133 | CX11: 125 | CY11: 249 | CZ11: 259 | DA11: 26 | DB11: 71 | DC11: 45 | DD11: 32 | DE11: 90 | DF11: 185 | DG11: 132 | DH11: 117 | DI11: 110 | DJ11: 77 | DK11: 43 | DL11: 45 | DM11: 157 | DN11: 90 | DO11: 156 | DP11: 119 | DQ11: 121 | DR11: 82 | DS11: 16 | DT11: 13 | DU11: 34 | DV11: 203 | DW11: 159 | DX11: 137 | DY11: 70 | DZ11: 14 | EA11: 29 | EB11: 0 | EC11: 14 | ED11: 2499 | EE11: 10256 | EF11: 7899 | EG11: 1784 | EH11: 15257 | EI11: 486 | EJ11: 9455 | EK11: 15257 | EL11: 486 | EM11: 5500 | EN11: 954 | EO11: 50 | EP11: 380 | EQ11: 50 | ER11: 284 | ES11: 770 | ET11: 589 | EU11: 1257 | EV11: 1013 | EW11: 1051 | EX11: 1042 | EY11: 194 | EZ11: 190 | FA11: 57 | FB11: 57 | FC11: 1035 | FD11: 860 | FE11: 1038 | FF11: 587 | FG11: 596 | FH11: 712 | FI11: 3316 | FJ11: 107
A12: Meredith | B12: 1040 | C12: 47140 | D12: 25804.32 | E12: 9115.37 | F12: 3720 | G12: 4837 | H12: 1310 | I12: 1936 | J12: 2296 | K12: 2541 | L12: 4806 | M12: 9 | N12: 8 | O12: 11 | P12: 3 | Q12: 26 | R12: 942 | S12: 592 | T12: 783 | U12: 780 | V12: 520 | W12: 444 | X12: 415 | Y12: 361 | Z12: 4726 | AA12: 3940 | AB12: 111 | AC12: 2.441115702 | AD12: 3.007633588 | AE12: 503 | AF12: 1086 | AG12: 224 | AH12: 123 | AI12: 3720 | AJ12: 1936 | AK12: 1784 | AL12: 1408 | AM12: 528 | AN12: 51 | AO12: 50 | AP12: 1603 | AQ12: 2877 | AR12: 508 | AS12: 335 | AT12: 1119 | AU12: 69 | AV12: 335 | AW12: 157 | AX12: 326 | AY12: 45 | AZ12: 602 | BA12: 1146 | BB12: 980 | BC12: 992 | BD12: 12 | BE12: 372 | BF12: 1223 | BG12: 1531 | BH12: 582 | BI12: 79 | BJ12: 146 | BK12: 155 | BL12: 504 | BM12: 310 | BN12: 377 | BO12: 244 | BP12: 57 | BQ12: 54 | BR12: 27057 | BS12: 0 | BT12: 0 | BU12: 15 | BV12: 46 | BW12: 33 | BX12: 20 | BY12: 0 | BZ12: 0 | CA12: 0 | CB12: 17 | CC12: 5 | CD12: 17 | CE12: 59 | CF12: 58 | CG12: 141 | CH12: 48 | CI12: 5 | CJ12: 0 | CK12: 0 | CL12: 21 | CM12: 22 | CN12: 135 | CO12: 76 | CP12: 127 | CQ12: 75 | CR12: 23 | CS12: 34 | CT12: 15 | CU12: 0 | CV12: 9 | CW12: 61 | CX12: 44 | CY12: 39 | CZ12: 62 | DA12: 10 | DB12: 10 | DC12: 20 | DD12: 5 | DE12: 19 | DF12: 58 | DG12: 62 | DH12: 45 | DI12: 15 | DJ12: 8 | DK12: 3 | DL12: 0 | DM12: 50 | DN12: 61 | DO12: 100 | DP12: 14 | DQ12: 5 | DR12: 38 | DS12: 11 | DT12: 7 | DU12: 27 | DV12: 65 | DW12: 12 | DX12: 45 | DY12: 23 | DZ12: 0 | EA12: 6 | EB12: 0 | EC12: 0 | ED12: 791 | EE12: 3303 | EF12: 2651 | EG12: 808 | EH12: 4732 | EI12: 105 | EJ12: 2690 | EK12: 4732 | EL12: 105 | EM12: 1883 | EN12: 239 | EO12: 12 | EP12: 58 | EQ12: 27 | ER12: 167 | ES12: 225 | ET12: 155 | EU12: 504 | EV12: 310 | EW12: 377 | EX12: 244 | EY12: 57 | EZ12: 22 | FA12: 32 | FB12: 48 | FC12: 554 | FD12: 437 | FE12: 709 | FF12: 600 | FG12: 246 | FH12: 134 | FI12: 992 | FJ12: 108
A13: New Hampton | B13: 1045 | C13: 51540 | D13: 23560.79 | E13: 999.14 | F13: 855 | G13: 1606 | H13: 444 | I13: 590 | J13: 804 | K13: 802 | L13: 1602 | M13: 3 | N13: 0 | O13: 1 | P13: 0 | Q13: 4 | R13: 369 | S13: 174 | T13: 291 | U13: 263 | V13: 176 | W13: 155 | X13: 122 | Y13: 56 | Z13: 1606 | AA13: 1416 | AB13: 0 | AC13: 2.722033898 | AD13: 3.189189189 | AE13: 111 | AF13: 378 | AG13: 66 | AH13: 35 | AI13: 855 | AJ13: 590 | AK13: 265 | AL13: 488 | AM13: 102 | AN13: 37 | AO13: 13 | AP13: 182 | AQ13: 666 | AR13: 48 | AS13: 141 | AT13: 410 | AU13: 9 | AV13: 141 | AW13: 47 | AX13: 20 | AY13: 35 | AZ13: 152 | BA13: 256 | BB13: 147 | BC13: 300 | BD13: 4 | BE13: 119 | BF13: 292 | BG13: 307 | BH13: 133 | BI13: 13 | BJ13: 23 | BK13: 55 | BL13: 108 | BM13: 112 | BN13: 173 | BO13: 77 | BP13: 20 | BQ13: 18 | BR13: 33487 | BS13: 3 | BT13: 3 | BU13: 9 | BV13: 2 | BW13: 2 | BX13: 3 | BY13: 1 | BZ13: 0 | CA13: 0 | CB13: 3 | CC13: 5 | CD13: 5 | CE13: 29 | CF13: 29 | CG13: 38 | CH13: 16 | CI13: 2 | CJ13: 2 | CK13: 2 | CL13: 0 | CM13: 10 | CN13: 21 | CO13: 25 | CP13: 54 | CQ13: 24 | CR13: 4 | CS13: 9 | CT13: 0 | CU13: 0 | CV13: 1 | CW13: 8 | CX13: 25 | CY13: 40 | CZ13: 18 | DA13: 6 | DB13: 0 | DC13: 0 | DD13: 3 | DE13: 8 | DF13: 18 | DG13: 18 | DH13: 24 | DI13: 13 | DJ13: 6 | DK13: 3 | DL13: 5 | DM13: 12 | DN13: 8 | DO13: 14 | DP13: 11 | DQ13: 6 | DR13: 5 | DS13: 2 | DT13: 4 | DU13: 0 | DV13: 0 | DW13: 14 | DX13: 16 | DY13: 2 | DZ13: 8 | EA13: 0 | EB13: 0 | EC13: 0 | ED13: 272 | EE13: 1063 | EF13: 856 | EG13: 272 | EH13: 1583 | EI13: 23 | EJ13: 874 | EK13: 1583 | EL13: 23 | EM13: 544 | EN13: 132 | EO13: 0 | EP13: 58 | EQ13: 7 | ER13: 68 | ES13: 36 | ET13: 55 | EU13: 108 | EV13: 112 | EW13: 173 | EX13: 77 | EY13: 20 | EZ13: 9 | FA13: 9 | FB13: 24 | FC13: 128 | FD13: 107 | FE13: 149 | FF13: 59 | FG13: 61 | FH13: 27 | FI13: 300 | FJ13: 109
A14: Sanbornton | B14: 1050 | C14: 67300 | D14: 30261.92 | E14: 1512.45 | F14: 1131 | G14: 2136 | H14: 613 | I14: 756 | J14: 1088 | K14: 1048 | L14: 2123 | M14: 2 | N14: 2 | O14: 8 | P14: 1 | Q14: 5 | R14: 495 | S14: 242 | T14: 334 | U14: 449 | V14: 224 | W14: 179 | X14: 158 | Y14: 55 | Z14: 2136 | AA14: 1948 | AB14: 0 | AC14: 2.825396825 | AD14: 3.177814029 | AE14: 106 | AF14: 559 | AG14: 54 | AH14: 37 | AI14: 1131 | AJ14: 756 | AK14: 375 | AL14: 650 | AM14: 106 | AN14: 10 | AO14: 19 | AP14: 311 | AQ14: 1032 | AR14: 37 | AS14: 62 | AT14: 613 | AU14: 9 | AV14: 62 | AW14: 74 | AX14: 22 | AY14: 10 | AZ14: 181 | BA14: 401 | BB14: 286 | BC14: 263 | BD14: 17 | BE14: 116 | BF14: 313 | BG14: 486 | BH14: 199 | BI14: 8 | BJ14: 39 | BK14: 81 | BL14: 133 | BM14: 144 | BN14: 170 | BO14: 140 | BP14: 24 | BQ14: 29 | BR14: 33581 | BS14: 0 | BT14: 2 | BU14: 2 | BV14: 2 | BW14: 2 | BX14: 8 | BY14: 1 | BZ14: 0 | CA14: 0 | CB14: 0 | CC14: 5 | CD14: 6 | CE14: 26 | CF14: 32 | CG14: 36 | CH14: 16 | CI14: 4 | CJ14: 7 | CK14: 5 | CL14: 2 | CM14: 19 | CN14: 29 | CO14: 58 | CP14: 66 | CQ14: 55 | CR14: 5 | CS14: 15 | CT14: 3 | CU14: 0 | CV14: 5 | CW14: 16 | CX14: 31 | CY14: 30 | CZ14: 37 | DA14: 8 | DB14: 5 | DC14: 0 | DD14: 6 | DE14: 16 | DF14: 23 | DG14: 2 | DH14: 16 | DI14: 24 | DJ14: 4 | DK14: 2 | DL14: 0 | DM14: 13 | DN14: 23 | DO14: 37 | DP14: 14 | DQ14: 11 | DR14: 5 | DS14: 3 | DT14: 0 | DU14: 0 | DV14: 11 | DW14: 10 | DX14: 0 | DY14: 5 | DZ14: 3 | EA14: 2 | EB14: 0 | EC14: 0 | ED14: 404 | EE14: 1399 | EF14: 1207 | EG14: 328 | EH14: 2088 | EI14: 48 | EJ14: 1115 | EK14: 2088 | EL14: 48 | EM14: 863 | EN14: 114 | EO14: 3 | EP14: 27 | EQ14: 0 | ER14: 73 | ES14: 47 | ET14: 81 | EU14: 133 | EV14: 144 | EW14: 170 | EX14: 140 | EY14: 24 | EZ14: 23 | FA14: 6 | FB14: 59 | FC14: 122 | FD14: 126 | FE14: 275 | FF14: 142 | FG14: 95 | FH14: 49 | FI14: 263 | FJ14: 110
A15: Tilton | B15: 1055 | C15: 77060 | D15: 7304.19 | E15: 333.57 | F15: 1612 | G15: 3240 | H15: 832 | I15: 1288 | J15: 1630 | K15: 1610 | L15: 3208 | M15: 1 | N15: 15 | O15: 13 | P15: 3 | Q15: 18 | R15: 625 | S15: 342 | T15: 562 | U15: 493 | V15: 351 | W15: 329 | X15: 298 | Y15: 240 | Z15: 3122 | AA15: 2534 | AB15: 118 | AC15: 2.423913043 | AD15: 3.045673077 | AE15: 350 | AF15: 696 | AG15: 136 | AH15: 106 | AI15: 1612 | AJ15: 1288 | AK15: 324 | AL15: 842 | AM15: 446 | AN15: 94 | AO15: 51 | AP15: 145 | AQ15: 843 | AR15: 445 | AS15: 324 | AT15: 560 | AU15: 60 | AV15: 324 | AW15: 101 | AX15: 300 | AY15: 45 | AZ15: 190 | BA15: 443 | BB15: 463 | BC15: 492 | BD15: 16 | BE15: 203 | BF15: 721 | BG15: 423 | BH15: 225 | BI15: 63 | BJ15: 191 | BK15: 103 | BL15: 203 | BM15: 264 | BN15: 227 | BO15: 145 | BP15: 41 | BQ15: 20 | BR15: 27446 | BS15: 17 | BT15: 9 | BU15: 0 | BV15: 0 | BW15: 9 | BX15: 13 | BY15: 0 | BZ15: 0 | CA15: 0 | CB15: 5 | CC15: 24 | CD15: 28 | CE15: 53 | CF15: 94 | CG15: 69 | CH15: 22 | CI15: 0 | CJ15: 0 | CK15: 0 | CL15: 10 | CM15: 7 | CN15: 41 | CO15: 51 | CP15: 84 | CQ15: 25 | CR15: 29 | CS15: 0 | CT15: 0 | CU15: 23 | CV15: 17 | CW15: 35 | CX15: 51 | CY15: 25 | CZ15: 31 | DA15: 12 | DB15: 9 | DC15: 0 | DD15: 21 | DE15: 13 | DF15: 15 | DG15: 28 | DH15: 0 | DI15: 46 | DJ15: 0 | DK15: 0 | DL15: 19 | DM15: 71 | DN15: 22 | DO15: 30 | DP15: 31 | DQ15: 36 | DR15: 14 | DS15: 0 | DT15: 0 | DU15: 22 | DV15: 33 | DW15: 16 | DX15: 29 | DY15: 0 | DZ15: 0 | EA15: 7 | EB15: 0 | EC15: 11 | ED15: 579 | EE15: 2148 | EF15: 1517 | EG15: 222 | EH15: 3087 | EI15: 137 | EJ15: 1877 | EK15: 3087 | EL15: 137 | EM15: 1121 | EN15: 156 | EO15: 0 | EP15: 65 | EQ15: 0 | ER15: 65 | ES15: 254 | ET15: 103 | EU15: 203 | EV15: 264 | EW15: 227 | EX15: 145 | EY15: 41 | EZ15: 9 | FA15: 11 | FB15: 25 | FC15: 165 | FD15: 103 | FE15: 340 | FF15: 177 | FG15: 187 | FH15: 99 | FI15: 492 | FJ15: 111
A18: Census 1990 Data - Query Name: CountySTF1Qry1
A19: NAME | B19: COUSUBFP | C19: Census_Cnty_Code | D19: FIPS | E19: LandAcres | F19: WaterAcres | G19: HousingUnits90Cen | H19: P01Persons90Cen | I19: P02Families90Cen | J19: P03Households90cen | K19: P05MalePop90cen | L19: P05FemalePop90cen | M19: P06WhitePop | N19: P06BlackPop | O19: P06AmerIndianPop | P19: P06AsianPIPop | Q19: P06OtherRacePop | R19: P08HispanicOrPop | S19: P11AgeUnder15_90cen | T19: P11Age15to24_90cen | U19: P11Age25to34_90cen | V19: P11Age35to44_90cen | W19: P11Age45to54_90cen | X19: P11Age55to64_90cen | Y19: P11Age65to74_90cen | Z19: P11Age75andOver_90cen | AA19: P15PersonsInHH90cen | AB19: P15PersonsInFamHH90cen | AC19: P15PersonsInGC | AD19: PersonsPerHH90cen | AE19: PersonsPerFam90Cen | AF19: P16SinglePersonHH90cen | AG19: P16MarriedCoupleHH90cen | AH19: P16SingleParentHH90cen | AI19: P16NonFamilyHH90cen | AJ19: H01TotalHousingUnits | AK19: H02OccupiedHousingUnits | AL19: H02VacantHousingUnits | AM19: H03OwnerOccHU | AN19: H03RenterOccHU | AO19: H05VacantForRent90 | AP19: H05VacantForSale90 | AQ19: H05VacantSeasonalRec | AR19: H23OOHUVal<15k | AS19: H23OOHUVal15to19k | AT19: H23OOHUVal20to24k | AU19: H23OOHUVal25to29k | AV19: H23OOHUVal30to34k | AW19: H23OOHUVal35to39k | AX19: H23OOHUVal40to44k | AY19: H23OOHUVal45to49k | AZ19: H23OOHUVal50to59k | BA19: H23OOHUVal60to74k | BB19: H23OOHUVal75to99k | BC19: H23OOHUVal100to124k | BD19: H23OOHUVal125to149k | BE19: H23OOHUVal150to174k | BF19: H23OOHUVal175to199k | BG19: H23OOHUVal200to249k | BH19: H23OOHUVal250to299k | BI19: H23OOHUVal300to399k | BJ19: H23OOHUVal400to499k | BK19: H23OOHUVal500kOrMore | BL19: H23BOOHUMedVal | BM19: H41SingFamHU90cen | BN19: H41MultiFamHU90cen | BO19: H41MobileHom90cen | BP19: H43SingFamOwnHU90cen | BQ19: H43MultiFamOwnHU90cen | BR19: H43MobileHomOwnHU90cen | BS19: H43SingFamRntrHU90cen | BT19: H43MultiFamRntrHU90cen | BU19: H43MobileHomRntrHU90cen | BV19: H41HU1UnitDet | BW19: H41HU1UnitAtt | BX19: H41HU2Unit | BY19: H41HU3to4Unit | BZ19: H41HU5to9Unit | CA19: H41HU10to19Unit | CB19: H41HU20to49Unit | CC19: H41HU50PlusUnit | CD19: H41HUMobilH | CE19: H41HUOther
A20: Alton | B20: 101 | C20: 1005 | D20: 01060 | E20: 40906.19 | F20: 12324.31 | G20: 3267 | H20: 3286 | I20: 938 | J20: 1262 | K20: 1667 | L20: 1619 | M20: 3274 | N20: 2 | O20: 5 | P20: 4 | Q20: 1 | R20: 14 | S20: 661 | T20: 367 | U20: 461 | V20: 538 | W20: 356 | X20: 389 | Y20: 324 | Z20: 190 | AA20: 3258 | AB20: 2869 | AC20: 28 | AD20: 2.581616482 | AE20: 3.058635394 | AF20: 268 | AG20: 826 | AH20: 112 | AI20: 56 | AJ20: 3267 | AK20: 1262 | AL20: 2005 | AM20: 984 | AN20: 278 | AO20: 25 | AP20: 56 | AQ20: 1834 | AR20: 1 | AS20: 0 | AT20: 1 | AU20: 2 | AV20: 0 | AW20: 3 | AX20: 2 | AY20: 3 | AZ20: 12 | BA20: 34 | BB20: 123 | BC20: 144 | BD20: 86 | BE20: 74 | BF20: 40 | BG20: 40 | BH20: 29 | BI20: 46 | BJ20: 9 | BK20: 18 | BL20: 127500 | BM20: 2769 | BN20: 179 | BO20: 319 | BP20: 851 | BQ20: 26 | BR20: 107 | BS20: 131 | BT20: 115 | BU20: 32 | BV20: 2769 | BW20: 27 | BX20: 61 | BY20: 64 | BZ20: 11 | CA20: 16 | CB20: 0 | CC20: 0 | CD20: 279 | CE20: 40
A21: Barnstead | B21: 102 | C21: 1010 | D21: 03220 | E21: 27483.81 | F21: 1274.82 | G21: 1861 | H21: 3100 | I21: 851 | J21: 1096 | K21: 1551 | L21: 1549 | M21: 3081 | N21: 9 | O21: 4 | P21: 6 | Q21: 0 | R21: 17 | S21: 737 | T21: 376 | U21: 589 | V21: 541 | W21: 332 | X21: 224 | Y21: 204 | Z21: 97 | AA21: 3100 | AB21: 2755 | AC21: 0 | AD21: 2.828467153 | AE21: 3.237367803 | AF21: 162 | AG21: 742 | AH21: 109 | AI21: 83 | AJ21: 1861 | AK21: 1096 | AL21: 765 | AM21: 934 | AN21: 162 | AO21: 15 | AP21: 13 | AQ21: 679 | AR21: 1 | AS21: 3 | AT21: 3 | AU21: 1 | AV21: 1 | AW21: 6 | AX21: 9 | AY21: 6 | AZ21: 15 | BA21: 60 | BB21: 244 | BC21: 165 | BD21: 79 | BE21: 41 | BF21: 20 | BG21: 10 | BH21: 5 | BI21: 3 | BJ21: 1 | BK21: 1 | BL21: 98800 | BM21: 1672 | BN21: 74 | BO21: 115 | BP21: 859 | BQ21: 21 | BR21: 54 | BS21: 108 | BT21: 38 | BU21: 16 | BV21: 1672 | BW21: 17 | BX21: 39 | BY21: 16 | BZ21: 2 | CA21: 0 | CB21: 0 | CC21: 0 | CD21: 109 | CE21: 6
A22: Belmont | B22: 103 | C22: 1015 | D22: 04740 | E22: 19293.73 | F22: 1133.73 | G22: 2869 | H22: 5796 | I22: 1580 | J22: 2146 | K22: 2871 | L22: 2925 | M22: 5738 | N22: 10 | O22: 29 | P22: 18 | Q22: 1 | R22: 24 | S22: 1396 | T22: 683 | U22: 1157 | V22: 1022 | W22: 539 | X22: 446 | Y22: 361 | Z22: 192 | AA22: 5784 | AB22: 5038 | AC22: 12 | AD22: 2.695246971 | AE22: 3.188607595 | AF22: 413 | AG22: 1311 | AH22: 269 | AI22: 153 | AJ22: 2869 | AK22: 2146 | AL22: 723 | AM22: 1675 | AN22: 471 | AO22: 77 | AP22: 65 | AQ22: 525 | AR22: 1 | AS22: 2 | AT22: 0 | AU22: 3 | AV22: 1 | AW22: 4 | AX22: 6 | AY22: 5 | AZ22: 22 | BA22: 65 | BB22: 309 | BC22: 252 | BD22: 163 | BE22: 83 | BF22: 29 | BG22: 17 | BH22: 7 | BI22: 6 | BJ22: 0 | BK22: 3 | BL22: 107000 | BM22: 1635 | BN22: 441 | BO22: 793 | BP22: 1142 | BQ22: 60 | BR22: 473 | BS22: 105 | BT22: 296 | BU22: 70 | BV22: 1635 | BW22: 50 | BX22: 117 | BY22: 201 | BZ22: 67 | CA22: 6 | CB22: 0 | CC22: 0 | CD22: 771 | CE22: 22
A23: Center Harbor | B23: 104 | C23: 1020 | D23: 10660 | E23: 8532.56 | F23: 1861.86 | G23: 649 | H23: 996 | I23: 285 | J23: 377 | K23: 471 | L23: 525 | M23: 990 | N23: 3 | O23: 0 | P23: 3 | Q23: 0 | R23: 3 | S23: 202 | T23: 109 | U23: 142 | V23: 173 | W23: 113 | X23: 101 | Y23: 103 | Z23: 53 | AA23: 996 | AB23: 873 | AC23: 0 | AD23: 2.641909814 | AE23: 3.063157895 | AF23: 69 | AG23: 250 | AH23: 35 | AI23: 23 | AJ23: 649 | AK23: 377 | AL23: 272 | AM23: 318 | AN23: 59 | AO23: 7 | AP23: 8 | AQ23: 239 | AR23: 0 | AS23: 1 | AT23: 0 | AU23: 2 | AV23: 1 | AW23: 1 | AX23: 2 | AY23: 1 | AZ23: 6 | BA23: 11 | BB23: 46 | BC23: 31 | BD23: 31 | BE23: 26 | BF23: 19 | BG23: 25 | BH23: 9 | BI23: 6 | BJ23: 5 | BK23: 8 | BL23: 135900 | BM23: 527 | BN23: 38 | BO23: 84 | BP23: 282 | BQ23: 10 | BR23: 26 | BS23: 31 | BT23: 17 | BU23: 11 | BV23: 527 | BW23: 12 | BX23: 7 | BY23: 6 | BZ23: 13 | CA23: 0 | CB23: 0 | CC23: 0 | CD23: 77 | CE23: 7
A24: Gilford | B24: 105 | C24: 1025 | D24: 28740 | E24: 24826.75 | F24: 9416.9 | G24: 4397 | H24: 5867 | I24: 1701 | J24: 2298 | K24: 2891 | L24: 2976 | M24: 5830 | N24: 2 | O24: 8 | P24: 26 | Q24: 1 | R24: 29 | S24: 1169 | T24: 632 | U24: 776 | V24: 1066 | W24: 741 | X24: 654 | Y24: 547 | Z24: 282 | AA24: 5867 | AB24: 5123 | AC24: 0 | AD24: 2.553089643 | AE24: 3.01175779 | AF24: 467 | AG24: 1487 | AH24: 214 | AI24: 130 | AJ24: 4397 | AK24: 2298 | AL24: 2099 | AM24: 1854 | AN24: 444 | AO24: 134 | AP24: 60 | AQ24: 1833 | AR24: 1 | AS24: 1 | AT24: 3 | AU24: 2 | AV24: 2 | AW24: 6 | AX24: 3 | AY24: 4 | AZ24: 13 | BA24: 43 | BB24: 187 | BC24: 281 | BD24: 196 | BE24: 183 | BF24: 119 | BG24: 108 | BH24: 52 | BI24: 55 | BJ24: 26 | BK24: 43 | BL24: 140100 | BM24: 3076 | BN24: 702 | BO24: 619 | BP24: 1460 | BQ24: 63 | BR24: 331 | BS24: 205 | BT24: 192 | BU24: 47 | BV24: 3076 | BW24: 318 | BX24: 75 | BY24: 69 | BZ24: 86 | CA24: 38 | CB24: 116 | CC24: 0 | CD24: 575 | CE24: 44
A25: Gilmanton | B25: 106 | C25: 1030 | D25: 28980 | E25: 36891.37 | F25: 1235.77 | G25: 1744 | H25: 2609 | I25: 748 | J25: 914 | K25: 1328 | L25: 1281 | M25: 2597 | N25: 6 | O25: 2 | P25: 4 | Q25: 0 | R25: 7 | S25: 627 | T25: 269 | U25: 497 | V25: 482 | W25: 244 | X25: 216 | Y25: 176 | Z25: 98 | AA25: 2609 | AB25: 2392 | AC25: 0 | AD25: 2.854485777 | AE25: 3.197860963 | AF25: 120 | AG25: 667 | AH25: 81 | AI25: 46 | AJ25: 1744 | AK25: 914 | AL25: 830 | AM25: 828 | AN25: 86 | AO25: 7 | AP25: 26 | AQ25: 752 | AR25: 3 | AS25: 4 | AT25: 2 | AU25: 3 | AV25: 3 | AW25: 3 | AX25: 7 | AY25: 7 | AZ25: 23 | BA25: 53 | BB25: 136 | BC25: 124 | BD25: 83 | BE25: 43 | BF25: 25 | BG25: 19 | BH25: 10 | BI25: 7 | BJ25: 1 | BK25: 0 | BL25: 106900 | BM25: 1618 | BN25: 49 | BO25: 77 | BP25: 779 | BQ25: 17 | BR25: 32 | BS25: 63 | BT25: 20 | BU25: 3 | BV25: 1618 | BW25: 11 | BX25: 25 | BY25: 13 | BZ25: 0 | CA25: 0 | CB25: 0 | CC25: 0 | CD25: 58 | CE25: 19
A26: Laconia | B26: 107 | C26: 1035 | D26: 40180 | E26: 12860.61 | F26: 3851.61 | G26: 8201 | H26: 15743 | I26: 4032 | J26: 6176 | K26: 7452 | L26: 8291 | M26: 15539 | N26: 20 | O26: 35 | P26: 122 | Q26: 27 | R26: 98 | S26: 3423 | T26: 2064 | U26: 2537 | V26: 2365 | W26: 1575 | X26: 1368 | Y26: 1290 | Z26: 1121 | AA26: 15312 | AB26: 12623 | AC26: 431 | AD26: 2.479274611 | AE26: 3.130704365 | AF26: 1721 | AG26: 3144 | AH26: 888 | AI26: 423 | AJ26: 8201 | AK26: 6176 | AL26: 2025 | AM26: 3494 | AN26: 2682 | AO26: 469 | AP26: 148 | AQ26: 1216 | AR26: 5 | AS26: 1 | AT26: 1 | AU26: 0 | AV26: 8 | AW26: 2 | AX26: 10 | AY26: 9 | AZ26: 43 | BA26: 183 | BB26: 909 | BC26: 568 | BD26: 349 | BE26: 199 | BF26: 122 | BG26: 144 | BH26: 65 | BI26: 49 | BJ26: 34 | BK26: 29 | BL26: 108500 | BM26: 3948 | BN26: 4090 | BO26: 163 | BP26: 2854 | BQ26: 564 | BR26: 76 | BS26: 298 | BT26: 2327 | BU26: 57 | BV26: 3948 | BW26: 543 | BX26: 939 | BY26: 809 | BZ26: 734 | CA26: 505 | CB26: 405 | CC26: 155 | CD26: 65 | CE26: 98
A27: Meredith | B27: 108 | C27: 1040 | D27: 47140 | E27: 25804.32 | F27: 9115.37 | G27: 3720 | H27: 4837 | I27: 1310 | J27: 1936 | K27: 2296 | L27: 2541 | M27: 4806 | N27: 9 | O27: 8 | P27: 11 | Q27: 3 | R27: 26 | S27: 942 | T27: 592 | U27: 783 | V27: 780 | W27: 520 | X27: 444 | Y27: 415 | Z27: 361 | AA27: 4726 | AB27: 3940 | AC27: 111 | AD27: 2.441115702 | AE27: 3.007633588 | AF27: 503 | AG27: 1086 | AH27: 224 | AI27: 123 | AJ27: 3720 | AK27: 1936 | AL27: 1784 | AM27: 1408 | AN27: 528 | AO27: 51 | AP27: 50 | AQ27: 1603 | AR27: 3 | AS27: 2 | AT27: 1 | AU27: 2 | AV27: 6 | AW27: 3 | AX27: 11 | AY27: 9 | AZ27: 39 | BA27: 59 | BB27: 203 | BC27: 154 | BD27: 112 | BE27: 96 | BF27: 76 | BG27: 82 | BH27: 37 | BI27: 38 | BJ27: 12 | BK27: 9 | BL27: 122600 | BM27: 2877 | BN27: 508 | BO27: 335 | BP27: 1119 | BQ27: 69 | BR27: 220 | BS27: 157 | BT27: 326 | BU27: 45 | BV27: 2877 | BW27: 56 | BX27: 144 | BY27: 103 | BZ27: 125 | CA27: 24 | CB27: 56 | CC27: 0 | CD27: 313 | CE27: 22
A28: New Hampton | B28: 109 | C28: 1045 | D28: 51540 | E28: 23560.79 | F28: 999.14 | G28: 855 | H28: 1606 | I28: 444 | J28: 590 | K28: 804 | L28: 802 | M28: 1602 | N28: 3 | O28: 0 | P28: 1 | Q28: 0 | R28: 4 | S28: 369 | T28: 174 | U28: 291 | V28: 263 | W28: 176 | X28: 155 | Y28: 122 | Z28: 56 | AA28: 1606 | AB28: 1416 | AC28: 0 | AD28: 2.722033898 | AE28: 3.189189189 | AF28: 111 | AG28: 378 | AH28: 66 | AI28: 35 | AJ28: 855 | AK28: 590 | AL28: 265 | AM28: 488 | AN28: 102 | AO28: 37 | AP28: 13 | AQ28: 182 | AR28: 3 | AS28: 2 | AT28: 2 | AU28: 3 | AV28: 3 | AW28: 2 | AX28: 6 | AY28: 4 | AZ28: 17 | BA28: 22 | BB28: 65 | BC28: 45 | BD28: 37 | BE28: 27 | BF28: 11 | BG28: 11 | BH28: 6 | BI28: 5 | BJ28: 1 | BK28: 0 | BL28: 103900 | BM28: 666 | BN28: 48 | BO28: 141 | BP28: 410 | BQ28: 9 | BR28: 69 | BS28: 47 | BT28: 20 | BU28: 35 | BV28: 666 | BW28: 4 | BX28: 26 | BY28: 18 | BZ28: 0 | CA28: 0 | CB28: 0 | CC28: 0 | CD28: 111 | CE28: 30
A29: Sanbornton | B29: 110 | C29: 1050 | D29: 67300 | E29: 30261.92 | F29: 1512.45 | G29: 1131 | H29: 2136 | I29: 613 | J29: 756 | K29: 1088 | L29: 1048 | M29: 2123 | N29: 2 | O29: 2 | P29: 8 | Q29: 1 | R29: 5 | S29: 495 | T29: 242 | U29: 334 | V29: 449 | W29: 224 | X29: 179 | Y29: 158 | Z29: 55 | AA29: 2136 | AB29: 1948 | AC29: 0 | AD29: 2.825396825 | AE29: 3.177814029 | AF29: 106 | AG29: 559 | AH29: 54 | AI29: 37 | AJ29: 1131 | AK29: 756 | AL29: 375 | AM29: 650 | AN29: 106 | AO29: 10 | AP29: 19 | AQ29: 311 | AR29: 1 | AS29: 1 | AT29: 3 | AU29: 1 | AV29: 1 | AW29: 1 | AX29: 3 | AY29: 5 | AZ29: 12 | BA29: 21 | BB29: 70 | BC29: 91 | BD29: 91 | BE29: 51 | BF29: 24 | BG29: 16 | BH29: 6 | BI29: 3 | BJ29: 3 | BK29: 2 | BL29: 123100 | BM29: 1032 | BN29: 37 | BO29: 62 | BP29: 613 | BQ29: 9 | BR29: 28 | BS29: 74 | BT29: 22 | BU29: 10 | BV29: 1032 | BW29: 6 | BX29: 27 | BY29: 4 | BZ29: 0 | CA29: 0 | CB29: 0 | CC29: 0 | CD29: 56 | CE29: 6
A30: Tilton | B30: 111 | C30: 1055 | D30: 77060 | E30: 7304.19 | F30: 333.57 | G30: 1612 | H30: 3240 | I30: 832 | J30: 1288 | K30: 1630 | L30: 1610 | M30: 3208 | N30: 1 | O30: 15 | P30: 13 | Q30: 3 | R30: 18 | S30: 625 | T30: 342 | U30: 562 | V30: 493 | W30: 351 | X30: 329 | Y30: 298 | Z30: 240 | AA30: 3122 | AB30: 2534 | AC30: 118 | AD30: 2.423913043 | AE30: 3.045673077 | AF30: 350 | AG30: 696 | AH30: 136 | AI30: 106 | AJ30: 1612 | AK30: 1288 | AL30: 324 | AM30: 842 | AN30: 446 | AO30: 94 | AP30: 51 | AQ30: 145 | AR30: 2 | AS30: 1 | AT30: 3 | AU30: 2 | AV30: 5 | AW30: 2 | AX30: 2 | AY30: 8 | AZ30: 15 | BA30: 49 | BB30: 170 | BC30: 90 | BD30: 58 | BE30: 31 | BF30: 9 | BG30: 9 | BH30: 7 | BI30: 3 | BJ30: 0 | BK30: 0 | BL30: 96200 | BM30: 843 | BN30: 445 | BO30: 324 | BP30: 560 | BQ30: 60 | BR30: 222 | BS30: 101 | BT30: 300 | BU30: 45 | BV30: 843 | BW30: 16 | BX30: 134 | BY30: 131 | BZ30: 67 | CA30: 97 | CB30: 0 | CC30: 0 | CD30: 266 | CE30: 58
A34: Census 1990 Data - Query Name: CountySTF3Qry1
A36: NAME | B36: FIPS | C36: COUSUBFP | D36: LandAcres | E36: WaterAcres | F36: HousingUnits90Cen | G36: P01Persons90Cen | H36: P02Families90Cen | I36: P03Households90cen | J36: H25HU<5yrs90cen | K36: H25HU5to20yrs90cen | L36: H25HU20to50yrs90cen | M36: H25HU>50yrs90cen | N36: H31Units0Bedroom90cen | O36: H31Units1Bedroom90cen | P36: H31Units2Bedroom90cen | Q36: H31Units3Bedroom90cen | R36: H31Units4Bedroom90cen | S36: H31Units5+Bedroom90cen | T36: P80HI<5K | U36: P80HI5Kto10K | V36: P80HI10Kto15K | W36: P80HI15Kto25K | X36: P80HI25Kto35K | Y36: P80HI35Kto50K | Z36: P80HI50Kto75K | AA36: P80HI75Kto100K | AB36: P80HI>100K | AC36: P80AMedHI | AD36: P86HH<25HI<5K | AE36: P86HH<25HI5Kto10K | AF36: P86HH<25HI10Kto15K | AG36: P86HH<25HI15Kto25K | AH36: P86HH<25HI25Kto35K | AI36: P86HH<25HI35Kto50K | AJ36: P86HH<25HI50Kto75K | AK36: P86HH<25HI75Kto100K | AL36: P86HH<25HI>100K | AM36: P86HH25to34HI<5K | AN36: P86HH25to34HI5Kto10K | AO36: P86HH25to34HI10Kto15K | AP36: P86HH25to34HI15Kto25K | AQ36: P86HH25to34HI25Kto35K | AR36: P86HH25to34HI35Kto50K | AS36: P86HH25to34HI50Kto75K | AT36: P86HH25to34HI75Kto100K | AU36: P86HH25to34HI>100K | AV36: P86HH35to44HI<5K | AW36: P86HH35to44HI5Kto10K | AX36: P86HH35to44HI10Kto15K | AY36: P86HH35to44HI15Kto25K | AZ36: P86HH35to44HI25Kto35K | BA36: P86HH35to44HI35Kto50K | BB36: P86HH35to44HI50Kto75K | BC36: P86HH35to44HI75Kto100K | BD36: P86HH35to44HI>100K | BE36: P86HH45to54HI<5K | BF36: P86HH45to54HI5Kto10K | BG36: P86HH45to54HI10Kto15K | BH36: P86HH45to54HI15Kto25K | BI36: P86HH45to54HI25Kto35K | BJ36: P86HH45to54HI35Kto50K | BK36: P86HH45to54HI50Kto75K | BL36: P86HH45to54HI75Kto100K | BM36: P86HH45to54HI>100K | BN36: P86HH55to64HI<5K | BO36: P86HH55to64HI5Kto10K | BP36: P86HH55to64HI10Kto15K | BQ36: P86HH55to64HI15Kto25K | BR36: P86HH55to64HI25Kto35K | BS36: P86HH55to64HI35Kto50K | BT36: P86HH55to64HI50Kto75K | BU36: P86HH55to64HI75Kto100K | BV36: P86HH55to64HI>100K | BW36: P86HH65to74HI<5K | BX36: P86HH65to74HI5Kto10K | BY36: P86HH65to74HI10Kto15K | BZ36: P86HH65to74HI15Kto25K | CA36: P86HH65to74HI25Kto35K | CB36: P86HH65to74HI35Kto50K | CC36: P86HH65to74HI50Kto75K | CD36: P86HH65to74HI75Kto100K | CE36: P86HH65to74HI>100K | CF36: P86HH>75HI<5K | CG36: P86HH>75HI5Kto10K | CH36: P86HH>75HI10Kto15K | CI36: P86HH>75HI15Kto25K | CJ36: P86HH>75HI25Kto35K | CK36: P86HH>75HI35Kto50K | CL36: P86HH>75HI50Kto75K | CM36: P86HH>75HI75Kto100K | CN36: P86HH>75HI>100K | CO36: P54SchlEnrlPrePrim | CP36: P54SchlEnrlElemThrHS | CQ36: P54SchlEnrlCollege | CR36: P54NotEnrlInSch | CS36: P57Pop25andOver | CT36: P57LessThan9thGrade | CU36: P579thto12thNoDip | CV36: P57HSGrad | CW36: P57SomeCollege | CX36: P57AssocDeg | CY36: P57BachelDeg | CZ36: P57GradorProfDeg | DA36: P57HSGradorHigher | DB36: P57CollGradorHigher | DC36: P42NativePop | DD36: P42ForeignBornPop | DE36: P42BornStateOfRes | DF36: P37NativePop2 | DG36: P37ForeignBornPop2 | DH36: P49DroveAlone | DI36: P49CarPooled | DJ36: P49PublicTranspt | DK36: P49Walked | DL36: P49OtherMeans | DM36: P49WorkedAtHome | DN36: P80HHInc<10K | DO36: P80HHInc10to15K | DP36: P80HHInc15to25K | DQ36: P80HHInc25to35K | DR36: P80HHInc35to50K | DS36: P80HHInc50to75K | DT36: P80HHInc75to100K | DU36: P80HHInc100to150K | DV36: P80HHInc>150K | DW36: H25YearStBlt89to90 | DX36: H25YearStBlt85to88 | DY36: H25YearStBlt80to84 | DZ36: H25YearStBlt70to79 | EA36: H25YearStBlt60to69 | EB36: H25YearStBlt50to59 | EC36: H25YearStBlt40to49 | ED36: H25YearStBlt39earlier | EE36: P107FamInc<10K | EF36: P107FamInc10to15K | EG36: P107FamInc15to25K | EH36: P107FamInc25to35K | EI36: P107FamInc35to50K | EJ36: P107FamInc50to75K | EK36: P107FamInc75to100K | EL36: P107FamInc100to150K | EM36: P107FamInc>150K | EN36: P107AMedFamInc | EO36: P110NonFamInc<10K | EP36: P110NonFamInc10to15K | EQ36: P110NonFamInc15to25K | ER36: P110NonFamInc25to35K | ES36: P110NonFamInc35to50K | ET36: P110NonFamInc50to75K | EU36: P110NonFamInc75to100K | EV36: P110NonFamInc100to150K | EW36: P110NonFamInc>150K | EX36: P110AMedNonFamInc | EY36: H16HU1Room | EZ36: H16HU2Room | FA36: H16HU3Room | FB36: H16HU4Room | FC36: H16HU5Room | FD36: H16HU6Room | FE36: H16HU7Room | FF36: H16HU8Room | FG36: H16HU9+Room | FH36: H43GrossRnt<100 | FI36: H43GrossRnt100to149 | FJ36: H43GrossRnt150to199 | FK36: H43GrossRnt200to249 | FL36: H43GrossRnt250to299 | FM36: H43GrossRnt300to349 | FN36: H43GrossRnt350to399 | FO36: H43GrossRnt400to449 | FP36: H43GrossRnt450to499 | FQ36: H43GrossRnt500to549 | FR36: H43GrossRnt550to599 | FS36: H43GrossRnt600to649 | FT36: H43GrossRnt650to699 | FU36: H43GrossRnt700to749 | FV36: H43GrossRnt750to999 | FW36: H43GrossRnt1000Plus | FX36: H43NoCashRent | FY36: H43MedGrossRent | FZ36: H51GrossRnt<20PctHHInc | GA36: H51GrossRnt20to24PctHHInc | GB36: H51GrossRnt25to29PctHHInc | GC36: H51GrossRnt30to34PctHHInc | GD36: H51GrossRnt35PctOrMoreHHInc | GE36: H51GrossRntAsPctHHIncNotComp | GF36: H52HUwMtgMoOwnCst<200 | GG36: H52HUwMtgMoOwnCst200to299 | GH36: H52HUwMtgMoOwnCst300to399 | GI36: H52HUwMtgMoOwnCst400to499 | GJ36: H52HUwMtgMoOwnCst500to599 | GK36: H52HUwMtgMoOwnCst600to699 | GL36: H52HUwMtgMoOwnCst700to799 | GM36: H52HUwMtgMoOwnCst800to899 | GN36: H52HUwMtgMoOwnCst900to999 | GO36: H52HUwMtgMoOwnCst1000to1249 | GP36: H52HUwMtgMoOwnCst1250to1499 | GQ36: H52HUwMtgMoOwnCst1500to1999 | GR36: H52HUwMtgMoOwnCst2000More | GS36: H52HUwNoMtgMoOwnCst<100 | GT36: H52HUwNoMtgMoOwnCst100to149 | GU36: H52HUwNoMtgMoOwnCst150to199 | GV36: H52HUwNoMtgMoOwnCst200to249 | GW36: H52HUwNoMtgMoOwnCst250to299 | GX36: H52HUwNoMtgMoOwnCst300to349 | GY36: H52HUwNoMtgMoOwnCst350to399 | GZ36: H52HUwNoMtgMoOwnCst400More | HA36: H52AMedMoOwnCstWMortg | HB36: H52AMedMoOwnCstWNoMortg | HC36: H58HUwMtgMOC<20pHHInc | HD36: H58HUwMtgMOC20to24pHHInc | HE36: H58HUwMtgMOC25to29pHHInc | HF36: H58HUwMtgMOC30to34pHHInc | HG36: H58wMtgMOC>35pHHInc | HH36: H58HUwMtgMOCNotComp | HI36: H58HUwNoMtgMOC<20pHHInc | HJ36: H58HUwNoMtgMOC20to24pHHInc | HK36: H58HUwNoMtgMOC25to29pHHInc | HL36: H58HUwNoMtgMOC30to34pHHInc | HM36: H58wNoMtgMOC>35pHHInc | HN36: H58HUwNoMtgMOCNotComp | HO36: H61OOHUVal<15k | HP36: H61OOHUVal15to19k | HQ36: H61OOHUVal20to24k | HR36: H61OOHUVal25to29k | HS36: H61OOHUVal30to34k | HT36: H61OOHUVal35to39k | HU36: H61OOHUVal40to44k | HV36: H61OOHUVal45to49k | HW36: H61OOHUVal50to59k | HX36: H61OOHUVal60to74k | HY36: H61OOHUVal75to99k | HZ36: H61OOHUVal100to124k | IA36: H61OOHUVal125to149k | IB36: H61OOHUVal150to174k | IC36: H61OOHUVal175to199k | ID36: H61OOHUVal200to249k | IE36: H61OOHUVal250to299k | IF36: H61OOHUVal300to399k | IG36: H61OOHUVal400to499k | IH36: H61OOHUVal500kOrMore | II36: H61aOOHUMedVal
A52: Other Demo Data - Query Name: QryAllTowns-ACSDemographicSheet | D52: 2023-01-25
A54: TOWN_NAME | B54: FIPS | C54: TOWNCNTY | D54: COUSUB | E54: POP80 | F54: POP90CDCEN | G54: POP2000CEN | H54: POP2010CEN | I54: POP2020CEN | J54: POP2025-Proj | K54: POP2030-Proj | L54: POP2035-Proj | M54: SF80 | N54: MF80 | O54: MH80 | P54: SF81 | Q54: MF81 | R54: MH81 | S54: SF82 | T54: MF82 | U54: MH82 | V54: SF83 | W54: MF83 | X54: MH83 | Y54: SF84_OSP | Z54: MF84_OSP | AA54: MH84_OSP | AB54: SF85_OSP | AC54: MF85_OSP | AD54: MH85_OSP | AE54: SF86_OSP | AF54: MF86_OSP | AG54: MH86_OSP | AH54: SF87_OSP | AI54: MF87_OSP | AJ54: MH87_OSP | AK54: SF88_OSP | AL54: MF88_OSP | AM54: MH88_OSP | AN54: SF89_OSP | AO54: MF89_OSP | AP54: MH89_OSP | AQ54: SF90_OSP | AR54: MF90_OSP | AS54: MH90_OSP | AT54: SF91_OSP | AU54: MF91_OSP | AV54: MH91_OSP | AW54: SF92_OSP | AX54: MF92_OSP | AY54: MH92_OSP | AZ54: SF93_OSP | BA54: MF93_OSP | BB54: MH93_OSP | BC54: SF94_OSP | BD54: MF94_OSP | BE54: MH94_OSP | BF54: SF95_OSP | BG54: MF95_OSP | BH54: MH95_OSP | BI54: SF96_OSP | BJ54: MF96_OSP | BK54: MH96_OSP | BL54: SF97_OSP | BM54: MF97_OSP | BN54: MH97_OSP | BO54: SF98_OSP | BP54: MF98_OSP | BQ54: MH98_OSP | BR54: SF99_OSP | BS54: MF99_OSP | BT54: MH99_OSP | BU54: SF00_OSP | BV54: MF00_OSP | BW54: MH00_OSP | BX54: SF01_OSP | BY54: MF01_OSP | BZ54: MH01_OSP | CA54: SF02_OSP | CB54: MF02_OSP | CC54: MH02_OSP | CD54: SF03_OSP | CE54: MF03_OSP | CF54: MH03_OSP | CG54: SF04_OSP | CH54: MF04_OSP | CI54: MH04_OSP | CJ54: SF05_OSP | CK54: MF05_OSP | CL54: MH05_OSP | CM54: SF06_OSP | CN54: MF06_OSP | CO54: MH06_OSP | CP54: SF07_OSP | CQ54: MF07_OSP | CR54: MH07_OSP | CS54: SF08_OSP | CT54: MF08_OSP | CU54: MH08_OSP | CV54: SF09_OSP | CW54: MF09_OSP | CX54: MH09_OSP | CY54: SF10_OSP | CZ54: MF10_OSP | DA54: MH10_OSP | DB54: SF11_OSP | DC54: MF11_OSP | DD54: MH11_OSP | DE54: SF12_OSP | DF54: MF12_OSP | DG54: MH12_OSP | DH54: SF13_OSP | DI54: MF13_OSP | DJ54: MH13_OSP | DK54: SF14_OSP | DL54: MF14_OSP | DM54: MH14_OSP | DN54: SF15_OSP | DO54: MF15_OSP | DP54: MH15_OSP | DQ54: SF16_OSP | DR54: MF16_OSP | DS54: MH16_OSP | DT54: SF17_OSP | DU54: MF17_OSP | DV54: MH17_OSP | DW54: SF18_OSP | DX54: MF18_OSP | DY54: MH18_OSP | DZ54: SF19_OSP | EA54: MF19_OSP | EB54: MH19_OSP | EC54: SF20_OSP | ED54: MF20_OSP | EE54: MH20_OSP | EF54: SF20 Census_OSP | EG54: MF20 Census OSP | EH54: MH20 Census_OSP | EI54: SF21_OSP | EJ54: MF21_OSP | EK54: MH21_OSP | EL54: COMMENTS | EM54: CNTY_CODE
A55: Alton | B55: 1005 | C55: 101 | D55: 01060 | E55: 2440 | F55: 3286 | G55: 4502 | H55: 5250 | I55: 5894 | J55: 6141 | K55: 6350 | L55: 6465 | M55: 42 | N55: 0 | O55: 17 | P55: 23 | Q55: 0 | R55: 10 | S55: 27 | T55: 0 | U55: 28 | V55: 31 | W55: 2 | X55: 26 | Y55: 23 | Z55: 0 | AA55: 4 | AB55: 21 | AC55: 24 | AD55: 0 | AE55: 64 | AF55: 4 | AG55: 2 | AH55: 105 | AI55: 0 | AJ55: 8 | AK55: 73 | AL55: 0 | AM55: 4 | AN55: 51 | AO55: 1 | AP55: 0 | AQ55: 30 | AR55: 7 | AS55: 6 | AT55: 28 | AU55: 0 | AV55: 1 | AW55: 25 | AX55: 0 | AY55: 0 | AZ55: 44 | BA55: 0 | BB55: 0 | BC55: 41 | BD55: 0 | BE55: 0 | BF55: 26 | BG55: 0 | BH55: 4 | BI55: 35 | BJ55: 0 | BK55: 3 | BL55: 58 | BM55: 0 | BN55: 5 | BO55: 35 | BP55: 0 | BQ55: 3 | BR55: 65 | BS55: 0 | BT55: 4 | BU55: 67 | BV55: 6 | BW55: 5 | BX55: 57 | BY55: 0 | BZ55: 1 | CA55: 80 | CB55: 2 | CC55: 3 | CD55: 100 | CE55: 4 | CF55: 0 | CG55: 106 | CH55: 4 | CI55: 0 | CJ55: 86 | CK55: 1 | CL55: 0 | CM55: 58 | CN55: 0 | CO55: 2 | CP55: 42 | CQ55: 0 | CR55: 0 | CS55: 49 | CT55: 0 | CU55: 4 | CV55: 17 | CW55: 0 | CX55: 1 | CY55: 7 | CZ55: 0 | DA55: 0 | DB55: 15 | DC55: 0 | DD55: 0 | DE55: 6 | DF55: 0 | DG55: 0 | DH55: 11 | DI55: 0 | DJ55: 0 | DK55: 16 | DL55: 0 | DM55: 2 | DN55: 5 | DO55: 0 | DP55: 0 | DQ55: 33 | DR55: 0 | DS55: 0 | DT55: 14 | DU55: 0 | DV55: 0 | DW55: 32 | DX55: 0 | DY55: 0 | DZ55: 21 | EA55: 0 | EB55: 0 | EC55: 40 | ED55: 4 | EE55: 2 | EI55: 38 | EJ55: 0 | EK55: 0 | EM55: 1
A56: Barnstead | B56: 1010 | C56: 102 | D56: 03220 | E56: 2292 | F56: 3100 | G56: 3886 | H56: 4593 | I56: 4915 | J56: 5121 | K56: 5295 | L56: 5391 | M56: 26 | N56: 0 | O56: 2 | P56: 9 | Q56: 81 | R56: 0 | S56: 18 | T56: 0 | U56: 0 | V56: 23 | W56: 0 | X56: 3 | Y56: 17 | Z56: 2 | AA56: 1 | AB56: 25 | AC56: 1 | AD56: 3 | AE56: 80 | AF56: 0 | AG56: -1 | AH56: 23 | AI56: 0 | AJ56: 3 | AK56: 63 | AL56: 0 | AM56: 4 | AN56: 55 | AO56: 0 | AP56: 3 | AQ56: 27 | AR56: 2 | AS56: 1 | AT56: 18 | AU56: 0 | AV56: 0 | AW56: 13 | AX56: 0 | AY56: 3 | AZ56: 12 | BA56: 1 | BB56: 4 | BC56: 7 | BD56: 1 | BE56: 0 | BF56: 8 | BG56: 0 | BH56: 1 | BI56: 16 | BJ56: 0 | BK56: 0 | BL56: 17 | BM56: 0 | BN56: 8 | BO56: 28 | BP56: 0 | BQ56: 3 | BR56: 22 | BS56: 2 | BT56: 12 | BU56: 48 | BV56: 4 | BW56: 5 | BX56: 123 | BY56: 4 | BZ56: 12 | CA56: 56 | CB56: 2 | CC56: 19 | CD56: 35 | CE56: 0 | CF56: 2 | CG56: 33 | CH56: 0 | CI56: 0 | CJ56: 40 | CK56: 0 | CL56: 0 | CM56: 34 | CN56: 0 | CO56: 0 | CP56: 25 | CQ56: 1 | CR56: 1 | CS56: 24 | CT56: 0 | CU56: 2 | CV56: 6 | CW56: 0 | CX56: 0 | CY56: 3 | CZ56: 0 | DA56: 1 | DB56: 6 | DC56: 0 | DD56: 3 | DE56: 6 | DF56: 0 | DG56: 1 | DH56: 3 | DI56: 0 | DJ56: 1 | DK56: 5 | DL56: 0 | DM56: 1 | DN56: 14 | DO56: 0 | DP56: 1 | DQ56: 14 | DR56: 0 | DS56: 1 | DT56: 20 | DU56: 0 | DV56: 6 | DW56: 18 | DX56: 0 | DY56: 0 | DZ56: 15 | EA56: 0 | EB56: 0 | EC56: 27 | ED56: 0 | EE56: 1 | EI56: 2 | EJ56: 0 | EK56: 1 | EL56: 2000 Did not provide data to OEP. Census data used | EM56: 1
A57: Belmont | B57: 1015 | C57: 103 | D57: 04740 | E57: 4026 | F57: 5796 | G57: 6716 | H57: 7356 | I57: 7314 | J57: 7620 | K57: 7880 | L57: 8022 | M57: 34 | N57: 34 | O57: 30 | P57: 45 | Q57: 3 | R57: 31 | S57: 46 | T57: 20 | U57: 17 | V57: 54 | W57: 8 | X57: 32 | Y57: 56 | Z57: 63 | AA57: 44 | AB57: 85 | AC57: 136 | AD57: 44 | AE57: 102 | AF57: 19 | AG57: 24 | AH57: 94 | AI57: 18 | AJ57: 5 | AK57: 61 | AL57: 54 | AM57: 0 | AN57: 25 | AO57: 4 | AP57: 14 | AQ57: 18 | AR57: 0 | AS57: 8 | AT57: 27 | AU57: 0 | AV57: 3 | AW57: 21 | AX57: 0 | AY57: 11 | AZ57: 17 | BA57: 0 | BB57: 21 | BC57: 12 | BD57: 0 | BE57: 37 | BF57: 6 | BG57: 2 | BH57: 30 | BI57: 9 | BJ57: 2 | BK57: 20 | BL57: 7 | BM57: 40 | BN57: 42 | BO57: 13 | BP57: 2 | BQ57: 30 | BR57: 20 | BS57: 0 | BT57: 7 | BU57: 25 | BV57: 6 | BW57: 22 | BX57: 29 | BY57: 0 | BZ57: 22 | CA57: 37 | CB57: 3 | CC57: 14 | CD57: 43 | CE57: 14 | CF57: 5 | CG57: 40 | CH57: 5 | CI57: 3 | CJ57: 23 | CK57: 2 | CL57: -2 | CM57: 26 | CN57: 12 | CO57: -2 | CP57: 19 | CQ57: 2 | CR57: 0 | CS57: 8 | CT57: 33 | CU57: 1 | CV57: 6 | CW57: 5 | CX57: -1 | CY57: 5 | CZ57: -2 | DA57: 0 | DB57: 4 | DC57: 1 | DD57: 0 | DE57: 6 | DF57: -3 | DG57: -12 | DH57: 2 | DI57: 0 | DJ57: 1 | DK57: 10 | DL57: 0 | DM57: -6 | DN57: 10 | DO57: 0 | DP57: 2 | DQ57: 3 | DR57: 0 | DS57: -2 | DT57: 12 | DU57: 0 | DV57: 6 | DW57: 10 | DX57: 0 | DY57: -2 | DZ57: 4 | EA57: 0 | EB57: 1 | EC57: 23 | ED57: 0 | EE57: 2 | EI57: 24 | EJ57: 4 | EK57: 3 | EM57: 1
A58: Center Harbor | B58: 1020 | C58: 104 | D58: 10660 | E58: 808 | F58: 996 | G58: 996 | H58: 1096 | I58: 1040 | J58: 1084 | K58: 1120 | L58: 1141 | M58: 6 | N58: 0 | O58: 4 | P58: 10 | Q58: 0 | R58: 3 | S58: 4 | T58: 0 | U58: 2 | V58: 8 | W58: 0 | X58: 0 | Y58: 6 | Z58: 0 | AA58: 1 | AB58: 9 | AC58: 9 | AD58: 0 | AE58: 12 | AF58: 3 | AG58: 0 | AH58: 17 | AI58: 0 | AJ58: 3 | AK58: 13 | AL58: 0 | AM58: 0 | AN58: 2 | AO58: 0 | AP58: 0 | AQ58: 5 | AR58: 0 | AS58: 2 | AT58: 3 | AU58: 0 | AV58: 1 | AW58: 5 | AX58: 0 | AY58: 2 | AZ58: 12 | BA58: 0 | BB58: 2 | BC58: 2 | BD58: 0 | BE58: 0 | BF58: 9 | BG58: 0 | BH58: 0 | BI58: 7 | BJ58: 0 | BK58: 0 | BL58: 9 | BM58: 0 | BN58: 0 | BO58: 5 | BP58: 0 | BQ58: 1 | BR58: 6 | BS58: 0 | BT58: -1 | BU58: 3 | BV58: 0 | BW58: 2 | BX58: 7 | BY58: 0 | BZ58: 0 | CA58: 6 | CB58: 0 | CC58: 1 | CD58: 15 | CE58: 0 | CF58: 0 | CG58: 19 | CH58: 0 | CI58: 2 | CJ58: 12 | CK58: 0 | CL58: 0 | CM58: 10 | CN58: 0 | CO58: 0 | CP58: 3 | CQ58: 0 | CR58: 0 | CS58: 1 | CT58: 0 | CU58: 0 | CV58: 7 | CW58: 0 | CX58: 0 | CY58: 0 | CZ58: 0 | DA58: 0 | DB58: 0 | DC58: 0 | DD58: 0 | DE58: 0 | DF58: 1 | DG58: -1 | DH58: 3 | DI58: 0 | DJ58: 0 | DK58: 0 | DL58: 0 | DM58: 0 | DN58: 3 | DO58: 0 | DP58: 0 | DQ58: 5 | DR58: 0 | DS58: 0 | DT58: 2 | DU58: 2 | DV58: 0 | DW58: -1 | DX58: 0 | DY58: 0 | DZ58: 3 | EA58: 2 | EB58: 0 | EC58: 3 | ED58: 0 | EE58: 0 | EI58: 4 | EJ58: 0 | EK58: -1 | EM58: 1
A59: Gilford | B59: 1025 | C59: 105 | D59: 28740 | E59: 4841 | F59: 5867 | G59: 6803 | H59: 7126 | I59: 7699 | J59: 8021 | K59: 8295 | L59: 8444 | M59: 53 | N59: 11 | O59: 1 | P59: 94 | Q59: 22 | R59: 6 | S59: 45 | T59: 65 | U59: 10 | V59: 67 | W59: 46 | X59: 0 | Y59: 143 | Z59: 6 | AA59: 16 | AB59: 131 | AC59: 5 | AD59: 23 | AE59: 142 | AF59: 79 | AG59: 49 | AH59: 110 | AI59: 4 | AJ59: 13 | AK59: 59 | AL59: 0 | AM59: 14 | AN59: 24 | AO59: 0 | AP59: 2 | AQ59: 16 | AR59: 0 | AS59: 2 | AT59: 20 | AU59: 0 | AV59: 5 | AW59: 21 | AX59: 0 | AY59: 0 | AZ59: 14 | BA59: 0 | BB59: 5 | BC59: 15 | BD59: 0 | BE59: 6 | BF59: 16 | BG59: 0 | BH59: 6 | BI59: 26 | BJ59: 0 | BK59: 7 | BL59: 23 | BM59: 0 | BN59: 10 | BO59: 31 | BP59: 0 | BQ59: 3 | BR59: 28 | BS59: 0 | BT59: 11 | BU59: 51 | BV59: 5 | BW59: 7 | BX59: 62 | BY59: 0 | BZ59: -3 | CA59: 102 | CB59: 8 | CC59: 14 | CD59: 59 | CE59: 7 | CF59: -5 | CG59: 38 | CH59: 0 | CI59: 0 | CJ59: 57 | CK59: 12 | CL59: 6 | CM59: 51 | CN59: 4 | CO59: 11 | CP59: 51 | CQ59: 2 | CR59: 1 | CS59: 23 | CT59: 0 | CU59: 0 | CV59: 12 | CW59: 0 | CX59: 0 | CY59: 17 | CZ59: 0 | DA59: 0 | DB59: 2 | DC59: 0 | DD59: 1 | DE59: 14 | DF59: 0 | DG59: 3 | DH59: 13 | DI59: 0 | DJ59: 4 | DK59: 13 | DL59: 0 | DM59: 0 | DN59: 25 | DO59: 0 | DP59: 0 | DQ59: 26 | DR59: 0 | DS59: 0 | DT59: 23 | DU59: 0 | DV59: 0 | DW59: 13 | DX59: 3 | DY59: 1 | DZ59: 16 | EA59: 0 | EB59: 2 | EC59: 28 | ED59: 0 | EE59: 3 | EI59: 28 | EJ59: 0 | EK59: 3 | EM59: 1
A60: Gilmanton | B60: 1030 | C60: 106 | D60: 28980 | E60: 1941 | F60: 2609 | G60: 3060 | H60: 3777 | I60: 3945 | J60: 4110 | K60: 4250 | L60: 4327 | M60: 15 | N60: 0 | O60: 2 | P60: 18 | Q60: 0 | R60: 3 | S60: 10 | T60: 0 | U60: 0 | V60: 23 | W60: 0 | X60: 0 | Y60: 22 | Z60: 1 | AA60: 0 | AB60: 34 | AC60: 0 | AD60: 0 | AE60: 62 | AF60: 2 | AG60: 0 | AH60: 68 | AI60: 0 | AJ60: 0 | AK60: 102 | AL60: 2 | AM60: 0 | AN60: 32 | AO60: 0 | AP60: 1 | AQ60: 26 | AR60: 0 | AS60: 2 | AT60: 18 | AU60: 0 | AV60: 0 | AW60: 13 | AX60: 0 | AY60: 0 | AZ60: 20 | BA60: 0 | BB60: 0 | BC60: 13 | BD60: 0 | BE60: 0 | BF60: 15 | BG60: 2 | BH60: 0 | BI60: 16 | BJ60: 0 | BK60: 0 | BL60: 13 | BM60: 2 | BN60: 0 | BO60: 13 | BP60: 2 | BQ60: 0 | BR60: 24 | BS60: 4 | BT60: 0 | BU60: 45 | BV60: 0 | BW60: 2 | BX60: 43 | BY60: 0 | BZ60: 0 | CA60: 53 | CB60: 2 | CC60: 0 | CD60: 55 | CE60: 0 | CF60: 0 | CG60: 45 | CH60: 2 | CI60: 0 | CJ60: 26 | CK60: 2 | CL60: 0 | CM60: 17 | CN60: 2 | CO60: 0 | CP60: 17 | CQ60: 0 | CR60: 0 | CS60: -1 | CT60: 0 | CU60: 0 | CV60: 5 | CW60: 0 | CX60: 0 | CY60: 1 | CZ60: 0 | DA60: 0 | DB60: 0 | DC60: 0 | DD60: 0 | DE60: 1 | DF60: 0 | DG60: 0 | DH60: 0 | DI60: 0 | DJ60: 0 | DK60: 1 | DL60: 0 | DM60: 0 | DN60: 2 | DO60: 0 | DP60: 0 | DQ60: 10 | DR60: 0 | DS60: 0 | DT60: 16 | DU60: 1 | DV60: 0 | DW60: 14 | DX60: 0 | DY60: 0 | DZ60: 2 | EA60: 2 | EB60: 0 | EC60: 12 | ED60: 0 | EE60: 0 | EI60: 20 | EJ60: 0 | EK60: 0 | EM60: 1
A61: Laconia | B61: 1035 | C61: 107 | D61: 40180 | E61: 15575 | F61: 15743 | G61: 16411 | H61: 15951 | I61: 16871 | J61: 17577 | K61: 18177 | L61: 18504 | M61: 32 | N61: 5 | O61: 1 | P61: 17 | Q61: 67 | R61: 2 | S61: 25 | T61: 148 | U61: 0 | V61: 7 | W61: -11 | X61: 0 | Y61: 52 | Z61: 24 | AA61: 3 | AB61: 85 | AC61: 164 | AD61: 0 | AE61: 132 | AF61: 277 | AG61: 0 | AH61: 110 | AI61: 134 | AJ61: 0 | AK61: 95 | AL61: 116 | AM61: 0 | AN61: 27 | AO61: 8 | AP61: 0 | AQ61: 19 | AR61: 12 | AS61: 0 | AT61: 10 | AU61: 0 | AV61: 10 | AW61: 31 | AX61: 29 | AY61: 5 | AZ61: 8 | BA61: 52 | BB61: 27 | BC61: 35 | BD61: 14 | BE61: 20 | BF61: 19 | BG61: 5 | BH61: 19 | BI61: 17 | BJ61: -6 | BK61: 23 | BL61: 26 | BM61: -26 | BN61: 6 | BO61: 34 | BP61: -5 | BQ61: 6 | BR61: 33 | BS61: 0 | BT61: 22 | BU61: 47 | BV61: 8 | BW61: 26 | BX61: 60 | BY61: 4 | BZ61: 1 | CA61: 72 | CB61: 10 | CC61: 0 | CD61: 139 | CE61: 0 | CF61: 1 | CG61: 166 | CH61: 0 | CI61: 0 | CJ61: 36 | CK61: 72 | CL61: 0 | CM61: 57 | CN61: 80 | CO61: 0 | CP61: 51 | CQ61: 14 | CR61: 0 | CS61: 30 | CT61: 47 | CU61: 0 | CV61: 32 | CW61: -3 | CX61: 0 | CY61: 54 | CZ61: -4 | DA61: 0 | DB61: 36 | DC61: 10 | DD61: 0 | DE61: 27 | DF61: 4 | DG61: 0 | DH61: 1 | DI61: 50 | DJ61: 0 | DK61: 34 | DL61: 64 | DM61: 0 | DN61: 32 | DO61: 138 | DP61: 0 | DQ61: 26 | DR61: 10 | DS61: 1 | DT61: 18 | DU61: 5 | DV61: 3 | DW61: 14 | DX61: 9 | DY61: 1 | DZ61: 12 | EA61: 4 | EB61: 0 | EC61: 44 | ED61: 24 | EE61: 19 | EI61: 26 | EJ61: 55 | EK61: 0 | EL61: 2002 Did not submit data to OEP. Used Census Data | EM61: 1
A62: Meredith | B62: 1040 | C62: 108 | D62: 47140 | E62: 4646 | F62: 4837 | G62: 5943 | H62: 6241 | I62: 6662 | J62: 6941 | K62: 7178 | L62: 7307 | M62: 51 | N62: 3 | O62: 1 | P62: 25 | Q62: 0 | R62: 6 | S62: 29 | T62: 0 | U62: 9 | V62: 30 | W62: 2 | X62: 4 | Y62: 46 | Z62: 47 | AA62: 9 | AB62: 65 | AC62: 4 | AD62: 18 | AE62: 89 | AF62: 20 | AG62: 6 | AH62: 84 | AI62: 0 | AJ62: 6 | AK62: 55 | AL62: 0 | AM62: 3 | AN62: 34 | AO62: 5 | AP62: 0 | AQ62: 21 | AR62: 1 | AS62: 0 | AT62: 26 | AU62: 2 | AV62: 0 | AW62: 24 | AX62: 1 | AY62: 0 | AZ62: 20 | BA62: 2 | BB62: 0 | BC62: 38 | BD62: 0 | BE62: 4 | BF62: 34 | BG62: 0 | BH62: 2 | BI62: 48 | BJ62: 0 | BK62: 5 | BL62: 35 | BM62: 0 | BN62: 11 | BO62: 45 | BP62: 0 | BQ62: 5 | BR62: 54 | BS62: 0 | BT62: 11 | BU62: 59 | BV62: 0 | BW62: 0 | BX62: 42 | BY62: 0 | BZ62: 0 | CA62: 71 | CB62: 0 | CC62: 4 | CD62: 70 | CE62: 0 | CF62: 1 | CG62: 79 | CH62: 4 | CI62: 5 | CJ62: 46 | CK62: 48 | CL62: 5 | CM62: 23 | CN62: 46 | CO62: 4 | CP62: 27 | CQ62: 2 | CR62: 0 | CS62: 17 | CT62: 0 | CU62: 0 | CV62: -4 | CW62: 0 | CX62: 0 | CY62: 17 | CZ62: 0 | DA62: 0 | DB62: 6 | DC62: 0 | DD62: 0 | DE62: 1 | DF62: 0 | DG62: 0 | DH62: 15 | DI62: 0 | DJ62: 0 | DK62: 19 | DL62: 0 | DM62: 0 | DN62: 12 | DO62: 0 | DP62: 0 | DQ62: 15 | DR62: 5 | DS62: 1 | DT62: 16 | DU62: 2 | DV62: 0 | DW62: 15 | DX62: 6 | DY62: -1 | DZ62: 31 | EA62: 6 | EB62: 3 | EC62: -8 | ED62: 36 | EE62: 2 | EI62: 22 | EJ62: 21 | EK62: 0 | EM62: 1
A63: New Hampton | B63: 1045 | C63: 109 | D63: 51540 | E63: 1249 | F63: 1606 | G63: 1950 | H63: 2165 | I63: 2377 | J63: 2476 | K63: 2561 | L63: 2607 | M63: 0 | N63: 0 | O63: 0 | P63: 2 | Q63: 0 | R63: 4 | S63: 0 | T63: 0 | U63: 0 | V63: 0 | W63: 0 | X63: 0 | Y63: 3 | Z63: 0 | AA63: 3 | AB63: 8 | AC63: 0 | AD63: 1 | AE63: 20 | AF63: 1 | AG63: 1 | AH63: 27 | AI63: 0 | AJ63: 5 | AK63: 24 | AL63: 0 | AM63: 2 | AN63: 18 | AO63: 24 | AP63: 6 | AQ63: 16 | AR63: 0 | AS63: 3 | AT63: 13 | AU63: 0 | AV63: 1 | AW63: 8 | AX63: 0 | AY63: 2 | AZ63: 10 | BA63: 0 | BB63: 2 | BC63: 12 | BD63: 0 | BE63: 4 | BF63: 12 | BG63: 1 | BH63: 3 | BI63: 8 | BJ63: 1 | BK63: 3 | BL63: 11 | BM63: 0 | BN63: 4 | BO63: 8 | BP63: 0 | BQ63: 2 | BR63: 7 | BS63: 3 | BT63: 2 | BU63: 21 | BV63: 2 | BW63: 0 | BX63: 13 | BY63: 0 | BZ63: 2 | CA63: 25 | CB63: 1 | CC63: -1 | CD63: 24 | CE63: 1 | CF63: -1 | CG63: 21 | CH63: 0 | CI63: 1 | CJ63: 12 | CK63: 3 | CL63: 0 | CM63: 20 | CN63: 0 | CO63: -1 | CP63: 10 | CQ63: 2 | CR63: 0 | CS63: 9 | CT63: 0 | CU63: 1 | CV63: 3 | CW63: 1 | CX63: 2 | CY63: 4 | CZ63: 2 | DA63: 1 | DB63: 7 | DC63: 0 | DD63: 0 | DE63: 4 | DF63: 1 | DG63: 1 | DH63: 1 | DI63: 5 | DJ63: 4 | DK63: 2 | DL63: 3 | DM63: 2 | DN63: 9 | DO63: 0 | DP63: 5 | DQ63: 3 | DR63: 0 | DS63: 6 | DT63: 2 | DU63: 4 | DV63: 16 | DW63: 0 | DX63: 1 | DY63: 0 | DZ63: 1 | EA63: 1 | EB63: 11 | EC63: 10 | ED63: 1 | EE63: 3 | EI63: 10 | EJ63: 2 | EK63: 4 | EM63: 1
A64: Sanbornton | B64: 1050 | C64: 110 | D64: 67300 | E64: 1679 | F64: 2136 | G64: 2581 | H64: 2966 | I64: 3026 | J64: 3153 | K64: 3260 | L64: 3319 | M64: 16 | N64: 0 | O64: 2 | P64: 14 | Q64: 0 | R64: 2 | S64: 10 | T64: 0 | U64: 0 | V64: -1 | W64: 0 | X64: 0 | Y64: 17 | Z64: 0 | AA64: 0 | AB64: 40 | AC64: 0 | AD64: 0 | AE64: 38 | AF64: 0 | AG64: 1 | AH64: 58 | AI64: 0 | AJ64: 3 | AK64: 38 | AL64: 1 | AM64: 1 | AN64: 27 | AO64: 2 | AP64: -1 | AQ64: 5 | AR64: 0 | AS64: 1 | AT64: 8 | AU64: 0 | AV64: 2 | AW64: 16 | AX64: 0 | AY64: 3 | AZ64: 12 | BA64: 0 | BB64: 0 | BC64: 24 | BD64: 0 | BE64: 2 | BF64: 1 | BG64: 0 | BH64: 3 | BI64: 7 | BJ64: 1 | BK64: 1 | BL64: 9 | BM64: 1 | BN64: 2 | BO64: 19 | BP64: 0 | BQ64: 0 | BR64: 25 | BS64: 0 | BT64: 7 | BU64: 36 | BV64: 0 | BW64: 6 | BX64: 19 | BY64: 0 | BZ64: 5 | CA64: 29 | CB64: 0 | CC64: 0 | CD64: 23 | CE64: 0 | CF64: 0 | CG64: 27 | CH64: 0 | CI64: 0 | CJ64: 36 | CK64: 0 | CL64: 1 | CM64: 16 | CN64: 0 | CO64: 2 | CP64: 16 | CQ64: 3 | CR64: 0 | CS64: 8 | CT64: 0 | CU64: 1 | CV64: 6 | CW64: 0 | CX64: 0 | CY64: 0 | CZ64: 0 | DA64: 2 | DB64: 5 | DC64: 0 | DD64: 0 | DE64: 6 | DF64: 0 | DG64: 0 | DH64: 4 | DI64: 0 | DJ64: 0 | DK64: 2 | DL64: 0 | DM64: 0 | DN64: 6 | DO64: 0 | DP64: 0 | DQ64: 0 | DR64: 0 | DS64: 0 | DT64: 3 | DU64: 2 | DV64: 0 | DW64: 6 | DX64: 0 | DY64: 0 | DZ64: 3 | EA64: 3 | EB64: 0 | EC64: 7 | ED64: 2 | EE64: 0 | EI64: 8 | EJ64: 2 | EK64: 0 | EM64: 1
A65: Tilton | B65: 1055 | C65: 111 | D65: 77060 | E65: 3387 | F65: 3240 | G65: 3477 | H65: 3567 | I65: 3962 | J65: 4128 | K65: 4269 | L65: 4346 | M65: 4 | N65: 2 | O65: 0 | P65: 7 | Q65: 0 | R65: 0 | S65: 7 | T65: 4 | U65: 0 | V65: 7 | W65: 1 | X65: 0 | Y65: 8 | Z65: 4 | AA65: 3 | AB65: 28 | AC65: 9 | AD65: 6 | AE65: 15 | AF65: 0 | AG65: 6 | AH65: 14 | AI65: 4 | AJ65: 8 | AK65: 12 | AL65: 13 | AM65: -1 | AN65: 2 | AO65: 16 | AP65: -1 | AQ65: 3 | AR65: 11 | AS65: 3 | AT65: 5 | AU65: -3 | AV65: 0 | AW65: 7 | AX65: 0 | AY65: -3 | AZ65: 2 | BA65: 0 | BB65: -2 | BC65: 4 | BD65: 0 | BE65: -2 | BF65: 4 | BG65: 0 | BH65: 0 | BI65: 6 | BJ65: 0 | BK65: 2 | BL65: 4 | BM65: 0 | BN65: 4 | BO65: 2 | BP65: 0 | BQ65: 4 | BR65: 5 | BS65: 0 | BT65: 1 | BU65: 6 | BV65: 2 | BW65: 2 | BX65: -2 | BY65: 0 | BZ65: 0 | CA65: 19 | CB65: 0 | CC65: 13 | CD65: 15 | CE65: 0 | CF65: 10 | CG65: 12 | CH65: 0 | CI65: 7 | CJ65: 12 | CK65: 0 | CL65: 9 | CM65: 10 | CN65: 2 | CO65: 0 | CP65: 4 | CQ65: 19 | CR65: 0 | CS65: 1 | CT65: 0 | CU65: 2 | CV65: 1 | CW65: 0 | CX65: 0 | CY65: -1 | CZ65: 10 | DA65: -1 | DB65: -1 | DC65: 4 | DD65: 0 | DE65: 3 | DF65: 19 | DG65: 1 | DH65: 1 | DI65: 0 | DJ65: 14 | DK65: 4 | DL65: 0 | DM65: 4 | DN65: 2 | DO65: 0 | DP65: 1 | DQ65: 1 | DR65: 0 | DS65: 14 | DT65: 4 | DU65: 5 | DV65: 0 | DW65: 9 | DX65: 0 | DY65: 4 | DZ65: 6 | EA65: 13 | EB65: 0 | EC65: 12 | ED65: 6 | EE65: 2 | EI65: 6 | EJ65: 2 | EK65: 4 | EM65: 1
A72: NH Employment Data | B72: Query Name: DPQryEmploymentByCnty-Good-Serv-Total | C72: Updated: | D72: 2022-09-14
